Workbook

Sheet Титул
D1: УТВЕРЖДЕНЫ Постановлением Администрации городского округа _________________ Московской области
D2: от______________№_____________
A8: Титульные списки объектов благоустройства городского округа _____________ Московской области

Sheet Свод
K4: Приложение № 1 к постановлению Администрации Городского округа _______________________ от ________________№ _________________
A8: Сводный титульный список объектов благоустройства, расположенных на территории Городского округа ________________
A10: № | B10: Наименование | G10: Ед. изм. | H10: Уборочная площадь (всего) | I10: Уборочная площадь содержится: | M10: Доля уборочной площади (всего) от общей площади городского округа (%)
I12: ОМСУ, МБУ, МКУ | K12: Иными лицами
I13: Площадь механизированной уборки | J13: Площадь ручной уборки | K13: Площадь механизированной уборки | L13: Площадь ручной уборки
A14: 1 | B14: 2 | G14: 3 | H14: 4 | I14: 5 | J14: 6 | K14: 7 | L14: 8 | M14: 9
A15: 1 | B15: Объекты благоустройства сводного титульного списка объектов благоустройства, расположенных на территории Московской области1 | G15: кв.м. | H15: =+I15+J15+K15+L15 -> 4928031.49 | I15: =I22+I44 -> 679244.38 | J15: =J22+J44 -> 3426247.03 | K15: =K22+K44 -> 101240.4 | L15: =L22+L44 -> 721299.68
A17: № | B17: Наименование | C17: Количество объектов благоустройства в составе придомовых территорий многоквартирных домов3 | G17: Ед. изм. | H17: Уборочная площадь объектов благоустройства в составе придомовых территорий многоквартирных домов4 | M17: Примечание
B19: Объекты благоустройства в составе придомовых территорий многоквартирных домов3 | C19: Ед. | D19: Количество объектов благоустройства (всего) | E19: Объекты содержатся: | H19: Уборочная площадь (всего) | I19: ОМСУ, МБУ, МКУ | K19: ЭО
E20: ОМСУ, МБУ, МКУ | F20: ЭО | I20: Площадь механизированной уборки | J20: Площадь ручной уборки | K20: Площадь механизированной уборки | L20: Площадь ручной уборки
A21: 10 | B21: 11 | C21: 12 | D21: 13 | E21: 14 | F21: 15 | G21: 16 | H21: 17 | I21: 18 | J21: 19 | K21: 20 | L21: 21 | M21: 22
A22: 2. | B22: Объекты благоустройства в составе придомовых территорий многоквартирных домов (всего), в том числе: | G22: кв.м. | H22: =SUM(I22:L22) -> 3331223.59 | I22: =SUM(I23:I24,I26:I30,I31,I35:I37) -> 559786.48 | J22: =SUM(J23:J24,J26:J30,J31,J35:J37) -> 1948897.03 | K22: 101240.4 | L22: 721299.68 | O22: Проверка площади по дворовым территориям
A23: 2.1. | B23: Детские игровые площадки | C23: ед. | D23: =E23+F23 -> 288 | E23: =ДТ!K11 -> 281 | F23: =ДТ!L11 -> 7 | G23: кв. м | H23: =SUM(I23:L23) -> 85208.38 | I23: =ДТ!M11+ДТ!Q11 -> 0 | J23: =ДТ!O11+ДТ!S11+ДТ!X11+ДТ!AA11+ДТ!AD11+ДТ!AF11+ДТ!AH11+ДТ!AJ11 -> 78803.38 | K23: =ДТ!N11+ДТ!R11 -> 0 | L23: =ДТ!P11+ДТ!T11+ДТ!Y11+ДТ!AB11+ДТ!AE11+ДТ!AG11+ДТ!AI11+ДТ!AK11 -> 6405
A24: 2.2. | B24: Спортивные площадки | C24: ед. | D24: =E24+F24 -> 70 | E24: =ДТ!AY11 -> 67 | F24: =ДТ!AZ11 -> 3 | G24: кв. м | H24: 24397.03 | I24: =ДТ!BC11+ДТ!BG11 -> 0 | J24: =ДТ!BE11+ДТ!BI11+ДТ!BN11+ДТ!BQ11+ДТ!BT11+ДТ!BV11+ДТ!BX11+ДТ!BZ11+ДТ!CB11+ДТ!CK11 -> 23047.03 | K24: =ДТ!BD11+ДТ!BH11 -> 0 | L24: =ДТ!BF11+ДТ!BJ11+ДТ!BO11+ДТ!BR11+ДТ!BU11+ДТ!BW11+ДТ!BY11+ДТ!CA11+ДТ!CC11+ДТ!CL11 -> 1350 | O24: =ДТ!E11-Свод!H22 -> 0
A25: 2.2.1. | B25: Скейтпарки | C25: ед | D25: 0 | E25: =ДТ!BA11 -> 0 | F25: =ДТ!BB11 -> 0 | G25: кв. м
A26: 2.3. | B26: Площадки отдыха | C26: ед. | D26: 0 | E26: =ДТ!IV11 -> 0 | F26: =ДТ!IW11 -> 0 | G26: кв. м | H26: =SUM(I26:L26) -> 0 | I26: =ДТ!IX11+ДТ!JB11 -> 0 | J26: =ДТ!IZ11+ДТ!JD11+ДТ!JF11+ДТ!JH11+ДТ!JJ11+ДТ!JL11+ДТ!JN11+ДТ!JP11+ДТ!JR11 -> 0 | K26: =ДТ!IY11+ДТ!JC11 -> 0 | L26: =ДТ!JA11+ДТ!JE11+ДТ!JG11+ДТ!JI11+ДТ!JK11+ДТ!JM11+ДТ!JO11+ДТ!JQ11+ДТ!JS11 -> 0
A27: 2.4. | B27: Контейнерные площадки | C27: ед. | D27: 161 | E27: =ДТ!DF11 -> 0 | F27: =ДТ!DG11 -> 161 | G27: кв. м | H27: =SUM(I27:L27) -> 7423.5 | I27: =ДТ!DH11+ДТ!DL11 -> 0 | J27: =ДТ!DJ11+ДТ!DN11 -> 0 | K27: =ДТ!DI11+ДТ!DM11 -> 0 | L27: =ДТ!DK11+ДТ!DO11 -> 7423.5
A28: 2.5. | B28: Коллективные автостоянки | C28: ед. мест | D28: 18173 | E28: =ДТ!EM11 -> 11892 | F28: =ДТ!EN11 -> 6281 | G28: кв. м | H28: 274969.51 | I28: =ДТ!EO11+ДТ!ES11 -> 168897.7 | J28: =ДТ!EQ11+ДТ!EU11+ДТ!EW11+ДТ!EY11+ДТ!FA11+ДТ!FC11 -> 6122.4 | K28: =ДТ!EP11+ДТ!ET11 -> 36489 | L28: =ДТ!ER11+ДТ!EV11+ДТ!EX11+ДТ!EZ11+ДТ!FB11+ДТ!FD11 -> 63460.41
A29: 2.6. | B29: Велодорожки | C29: ед. | D29: 0 | E29: =ДТ!JU11 -> 0 | F29: =ДТ!JV11 -> 0 | G29: кв. м | H29: 0 | I29: =ДТ!KF11+ДТ!LH11 -> 0 | J29: =ДТ!KJ11+ДТ!KR11+ДТ!KW11+ДТ!KY11+ДТ!LA11+ДТ!LD11+ДТ!LL11+ДТ!KN11 -> 0 | K29: =ДТ!KH11+ДТ!LJ11 -> 0 | L29: =ДТ!KL11+ДТ!KT11+ДТ!KX11+ДТ!KZ11+ДТ!LB11+ДТ!LF11+ДТ!LN11+ДТ!KP11 -> 0
A30: 2.7. | B30: Внутридворовые проезды (полосы движения транспортных средств) | C30: пог. м | D30: 96372.714 | E30: =ДТ!FU11 -> 89889.064 | F30: =ДТ!FV11 -> 6483.65 | G30: кв. м | H30: 413109.03 | I30: =ДТ!FE11+ДТ!FI11 -> 340504.63 | J30: =ДТ!FG11+ДТ!FK11+ДТ!FM11+ДТ!FO11+ДТ!FQ11+ДТ!FS11 -> 220 | K30: =ДТ!FF11+ДТ!FJ11 -> 64751.4 | L30: =ДТ!FH11+ДТ!FL11+ДТ!FN11+ДТ!FP11+ДТ!FR11+ДТ!FT11 -> 7633
A31: 2.8. | B31: Тротуары, в т. ч.: | C31: пог. м | D31: 14543.261 | E31: =ДТ!HU11 -> 9429.843 | F31: =ДТ!HV11 -> 5113.418 | G31: кв. м | H31: 117459.39 | I31: =SUM(I32:I34) -> 43928.15 | J31: =SUM(J32:J34) -> 16937.17 | K31: 0 | L31: 56594.07
A32: 2.8.1. | B32: 1 класс | C32: пог. м | G32: кв. м | H32: 0 | I32: =ДТ!FY11+ДТ!GK11 -> 0 | J32: =ДТ!GE11+ДТ!GQ11+ДТ!GW11+ДТ!HC11+ДТ!HI11+ДТ!HO11 -> 0 | K32: =ДТ!GB11+ДТ!GN11 -> 0 | L32: =ДТ!GH11+ДТ!GT11+ДТ!GZ11+ДТ!HF11+ДТ!HL11+ДТ!HR11 -> 0
A33: 2.8.2. | B33: 2 класс | C33: пог. м | G33: кв. м | H33: 117459.39 | I33: =ДТ!FZ11+ДТ!GL11 -> 43928.15 | J33: =ДТ!GF11+ДТ!GR11+ДТ!GX11+ДТ!HD11+ДТ!HJ11+ДТ!HP11 -> 16937.17 | K33: =ДТ!GC11+ДТ!GO11 -> 0 | L33: =ДТ!GI11+ДТ!GU11+ДТ!HA11+ДТ!HG11+ДТ!HM11+ДТ!HS11 -> 56594.07
A34: 2.8.3. | B34: 3 класс | C34: пог. м | G34: кв. м | H34: 0 | I34: =ДТ!GA11+ДТ!GM11 -> 0 | J34: =ДТ!GG11+ДТ!GS11+ДТ!GY11+ДТ!HE11+ДТ!HK11+ДТ!HQ11 -> 0 | K34: =ДТ!GD11+ДТ!GP11 -> 0 | L34: =ДТ!GJ11+ДТ!GV11+ДТ!HB11+ДТ!HH11+ДТ!HN11+ДТ!HT11 -> 0
A35: 2.9. | B35: Пешеходные дорожки | C35: пог. м | D35: =E35+F35 -> 505.67 | E35: =ДТ!IQ11 -> 502.33 | F35: =ДТ!IR11 -> 3.34 | G35: кв. м | H35: 31802 | I35: =ДТ!HY11+ДТ!IC11 -> 6456 | J35: =ДТ!IA11+ДТ!IE11+ДТ!IG11+ДТ!II11+ДТ!IK11+ДТ!IM11+ДТ!IO11 -> 22388.5 | K35: =ДТ!HZ11+ДТ!ID11 -> 0 | L35: =ДТ!IB11+ДТ!IF11+ДТ!IH11+ДТ!IJ11+ДТ!IL11+ДТ!IN11+ДТ!IP11 -> 2957.5
A36: 2.10. | B36: Озелененные территории многоквартирных домов | G36: кв. м | H36: 2376054.75 | I36: 0 | J36: =ДТ!CM11+ДТ!CO11+ДТ!CQ11+ДТ!DA11+ДТ!CW11 -> 1801378.55 | K36: 0 | L36: =ДТ!CN11+ДТ!CP11+ДТ!CR11+ДТ!CX11+ДТ!DB11 -> 574676.2
A37: 2.11. | B37: Иные объекты благоустройства в составе придомовых территорий многоквартирных домов | G37: кв. м | H37: 800 | I37: =ДТ!LS11+ДТ!LW11 -> 0 | J37: =ДТ!LU11+ДТ!LY11+ДТ!MA11+ДТ!MC11+ДТ!ME11+ДТ!MG11+ДТ!MI11+ДТ!MK11 -> 0 | K37: =ДТ!LT11+ДТ!LX11 -> 0 | L37: =ДТ!LV11+ДТ!LZ11+ДТ!MB11+ДТ!MD11+ДТ!MF11+ДТ!MH11+ДТ!MJ11+ДТ!ML11 -> 800
A39: № | B39: Наименование | C39: Ед. | D39: Количество объектов благоустройства, расположенных на землях и земельных участках, находящихся в государственной или муниципальной собственности, не являющихся объектами благоустройства в составе придомовых территорий многоквартирных домов | G39: Ед. изм. | H39: Уборочная площадь объектов благоустройства, расположенных на землях и земельных участках, находящихся в государственной или муниципальной собственности, не являющихся объектами благоустройства в составе придомовых территорий многоквартирных домов | M39: Примечание
H40: Уборочная площадь (всего) | I40: Уборочная площадь содержится:
I41: ОМСУ, МБУ, МКУ | K41: Иными лицами
I42: Площадь механизированной уборки | J42: Площадь ручной уборки | K42: Площадь механизированной уборки | L42: Площадь ручной уборки
A43: 23 | B43: 24 | C43: 25 | D43: 26 | G43: 27 | H43: 28 | I43: 29 | J43: 30 | K43: 31 | L43: 32 | M43: 33 | O43: Проверка площади по общественным пространствам
A44: 3. | B44: Территории общего пользования, ПКиО (всего), в т.ч.: | G44: кв.м. | H44: =SUM(I44:L44) -> 1596807.9 | I44: =SUM(I45:I55,I59:I65) -> 119457.9 | J44: =SUM(J45:J55,J59:J65) -> 1477350 | K44: =SUM(K45:K55,K59:K65) -> 0 | L44: =SUM(L45:L55,L59:L65) -> 0
A45: 3.1. | B45: Площади | G45: кв.м. | H45: =SUM(I45:L45) -> 0 | I45: ='Общественные пространства'!J10+'Общественные пространства'!L10-Свод!K45 -> 0 | J45: ='Общественные пространства'!K10+'Общественные пространства'!M10-Свод!L45 -> 0 | K45: =SUMIF('Общественные пространства'!$F$11:$F$1048576,"На содержании иных лиц",'Общественные пространства'!$J$11:$J$1048576)+SUMIF('Общественные пространства'!$F$11:$F$1048576,"На содержании иных лиц",'Общественные пространства'!$L$11:$L$1048576) -> 0 | L45: =SUMIF('Общественные пространства'!$F$11:$F$1048576,"На содержании иных лиц",'Общественные пространства'!$K$11:$K$1048576)+SUMIF('Общественные пространства'!$F$11:$F$1048576,"На содержании иных лиц",'Общественные пространства'!$M$11:$M$1048576) -> 0 | O45: ='Общественные пространства'!I10-Свод!H44 -> 1357
A46: 3.2. | B46: Детские площадки | C46: ед. | D46: ='Общественные пространства'!CY10 -> 45 | G46: кв.м. | H46: 14438.3 | I46: ='Общественные пространства'!CZ10+'Общественные пространства'!DB10-Свод!K46 -> 0 | J46: =SUM('Общественные пространства'!DA10,'Общественные пространства'!DC10,'Общественные пространства'!DD10:DI10)-Свод!L46 -> 14438.3 | K46: =SUMIF('Общественные пространства'!$F$11:$F$1048576,"На содержании иных лиц",'Общественные пространства'!$CZ$11:$CZ$1048576)+SUMIF('Общественные пространства'!$F$11:$F$1048576,"На содержании иных лиц",'Общественные пространства'!$DB$11:$DB$1048576) -> 0 | L46: =SUMIF('Общественные пространства'!$F$11:$F$1048576,"На содержании иных лиц",'Общественные пространства'!$DA$11:$DA$1048576)+SUMIF('Общественные пространства'!$F$11:$F$1048576,"На содержании иных лиц",'Общественные пространства'!$DC$11:$DC$1048576)+SUMIF('Общественные пространства'!$F$11:$F$1048576,"На содержании иных лиц",'Общественные пространства'!$DD$11:$DD$1048576)+SUMIF('Общественные пространства'!$F$11:$F$1048576,"На содержании иных лиц",'Общественные пространства'!$DE$11:$DE$1048576)+SUMIF('Общественные пространства'!$F$11:$F$1048576,"На содержании иных лиц",'Общественные пространства'!$DF$11:$DF$1048576)+SUMIF('Общественные пространства'!$F$11:$F$1048576,"На содержании иных лиц",'Общественные пространства'!$DG$11:$DG$1048576)+SUMIF('Общественные пространства'!$F$11:$F$1048576,"На содержании иных лиц",'Общественные пространства'!$DH$11:$DH$1048576)+SUMIF('Общественные пространства'!$F$11:$F$1048576,"На содержании иных лиц",'Общественные пространства'!$DI$11:$DI$1048576) -> 0
A47: 3.3. | B47: Спортивные площадки | C47: ед. | D47: ='Общественные пространства'!DN10 -> 12 | G47: кв.м. | H47: 8037 | I47: ='Общественные пространства'!DP10+'Общественные пространства'!DR10-Свод!K47 -> 0 | J47: =SUM('Общественные пространства'!DQ10,'Общественные пространства'!DS10,'Общественные пространства'!DT10:DZ10)-Свод!L47 -> 8037 | K47: =SUMIF('Общественные пространства'!$F$11:$F$1048576,"На содержании иных лиц",'Общественные пространства'!$DP$11:$DP$1048576)+SUMIF('Общественные пространства'!$F$11:$F$1048576,"На содержании иных лиц",'Общественные пространства'!$DR$11:$DR$1048576) -> 0 | L47: =SUMIF('Общественные пространства'!$F$11:$F$1048576,"На содержании иных лиц",'Общественные пространства'!$DQ$11:$DQ$1048576)+SUMIF('Общественные пространства'!$F$11:$F$1048576,"На содержании иных лиц",'Общественные пространства'!$DS$11:$DS$1048576)+SUMIF('Общественные пространства'!$F$11:$F$1048576,"На содержании иных лиц",'Общественные пространства'!$DT$11:$DT$1048576)+SUMIF('Общественные пространства'!$F$11:$F$1048576,"На содержании иных лиц",'Общественные пространства'!$DU$11:$DU$1048576)+SUMIF('Общественные пространства'!$F$11:$F$1048576,"На содержании иных лиц",'Общественные пространства'!$DV$11:$DV$1048576)+SUMIF('Общественные пространства'!$F$11:$F$1048576,"На содержании иных лиц",'Общественные пространства'!$DW$11:$DW$1048576)+SUMIF('Общественные пространства'!$F$11:$F$1048576,"На содержании иных лиц",'Общественные пространства'!$DX$11:$DX$1048576)+SUMIF('Общественные пространства'!$F$11:$F$1048576,"На содержании иных лиц",'Общественные пространства'!$DY$11:$DY$1048576)+SUMIF('Общественные пространства'!$F$11:$F$1048576,"На содержании иных лиц",'Общественные пространства'!$DZ$11:$DZ$1048576) -> 0
A48: 3.4. | B48: Контейнерные площадки | C48: ед. | D48: ='Общественные пространства'!ED10 -> 6 | G48: кв.м. | H48: 125 | I48: ='Общественные пространства'!EE10+'Общественные пространства'!EG10-Свод!K48 -> 0 | J48: ='Общественные пространства'!EF10+'Общественные пространства'!EH10-Свод!L48 -> 125 | K48: =SUMIF('Общественные пространства'!$F$11:$F$1048576,"На содержании иных лиц",'Общественные пространства'!$EE$11:$EE$1048576)+SUMIF('Общественные пространства'!$F$11:$F$1048576,"На содержании иных лиц",'Общественные пространства'!$EG$11:$EG$1048576) -> 0 | L48: =SUMIF('Общественные пространства'!$F$11:$F$1048576,"На содержании иных лиц",'Общественные пространства'!$EF$11:$EF$1048576)+SUMIF('Общественные пространства'!$F$11:$F$1048576,"На содержании иных лиц",'Общественные пространства'!$EH$11:$EH$1048576) -> 0
A49: 3.5. | B49: Площадки для отдыха | C49: ед. | D49: ='Общественные пространства'!ER10 -> 0 | G49: кв.м. | H49: 0 | I49: ='Общественные пространства'!ES10+'Общественные пространства'!EU10-Свод!K49 -> 0 | J49: =SUM('Общественные пространства'!ET10,'Общественные пространства'!EV10,'Общественные пространства'!EW10:FC10)-Свод!L49 -> 0 | K49: =SUMIF('Общественные пространства'!$F$11:$F$1048576,"На содержании иных лиц",'Общественные пространства'!$ES$11:$ES$1048576)+SUMIF('Общественные пространства'!$F$11:$F$1048576,"На содержании иных лиц",'Общественные пространства'!$EU$11:$EU$1048576) -> 0 | L49: =SUMIF('Общественные пространства'!$F$11:$F$1048576,"На содержании иных лиц",'Общественные пространства'!$ET$11:$ET$1048576)+SUMIF('Общественные пространства'!$F$11:$F$1048576,"На содержании иных лиц",'Общественные пространства'!$EV$11:$EV$1048576)+SUMIF('Общественные пространства'!$F$11:$F$1048576,"На содержании иных лиц",'Общественные пространства'!$EW$11:$EW$1048576)+SUMIF('Общественные пространства'!$F$11:$F$1048576,"На содержании иных лиц",'Общественные пространства'!$EX$11:$EX$1048576)+SUMIF('Общественные пространства'!$F$11:$F$1048576,"На содержании иных лиц",'Общественные пространства'!$EY$11:$EY$1048576)+SUMIF('Общественные пространства'!$F$11:$F$1048576,"На содержании иных лиц",'Общественные пространства'!$EZ$11:$EZ$1048576)+SUMIF('Общественные пространства'!$F$11:$F$1048576,"На содержании иных лиц",'Общественные пространства'!$FA$11:$FA$1048576)+SUMIF('Общественные пространства'!$F$11:$F$1048576,"На содержании иных лиц",'Общественные пространства'!FB$11:FB$1048576)+SUMIF('Общественные пространства'!$F$11:$F$1048576,"На содержании иных лиц",'Общественные пространства'!$FC$11:$FC$1048576) -> 0
A50: 3.6. | B50: Площадки для выгула животных | C50: ед. | D50: ='Общественные пространства'!FD10 -> 0 | G50: кв.м. | H50: 0 | I50: ='Общественные пространства'!FE10+'Общественные пространства'!FG10-Свод!K50 -> 0 | J50: =SUM('Общественные пространства'!FF10,'Общественные пространства'!FH10:FN10)-Свод!L50 -> 0 | K50: =SUMIF('Общественные пространства'!$F$11:$F$1048576,"На содержании иных лиц",'Общественные пространства'!$FE$11:$FE$1048576)+SUMIF('Общественные пространства'!$F$11:$F$1048576,"На содержании иных лиц",'Общественные пространства'!$FG$11:$FG$1048576) -> 0 | L50: =SUMIF('Общественные пространства'!$F$11:$F$1048576,"На содержании иных лиц",'Общественные пространства'!$FF$11:$FF$1048576)+SUMIF('Общественные пространства'!$F$11:$F$1048576,"На содержании иных лиц",'Общественные пространства'!$FH$11:$FH$1048576)+SUMIF('Общественные пространства'!$F$11:$F$1048576,"На содержании иных лиц",'Общественные пространства'!$FI$11:$FI$1048576)+SUMIF('Общественные пространства'!$F$11:$F$1048576,"На содержании иных лиц",'Общественные пространства'!$FJ$11:$FJ$1048576)+SUMIF('Общественные пространства'!$F$11:$F$1048576,"На содержании иных лиц",'Общественные пространства'!$FK$11:$FK$1048576)+SUMIF('Общественные пространства'!$F$11:$F$1048576,"На содержании иных лиц",'Общественные пространства'!$FL$11:$FL$1048576)+SUMIF('Общественные пространства'!$F$11:$F$1048576,"На содержании иных лиц",'Общественные пространства'!$FM$11:$FM$1048576)+SUMIF('Общественные пространства'!$F$11:$F$1048576,"На содержании иных лиц",'Общественные пространства'!$FN$11:$FN$1048576) -> 0
A51: 3.7. | B51: Площадки для дрессировки собак | C51: ед. | D51: ='Общественные пространства'!FO10 -> 1 | G51: кв.м. | H51: 508 | I51: ='Общественные пространства'!FP10+'Общественные пространства'!FR10-Свод!K51 -> 0 | J51: =SUM('Общественные пространства'!FQ10,'Общественные пространства'!FS10:FY10)-Свод!L51 -> 508 | K51: =SUMIF('Общественные пространства'!$F$11:$F$1048576,"На содержании иных лиц",'Общественные пространства'!$FP$11:$FP$1048576)+SUMIF('Общественные пространства'!$F$11:$F$1048576,"На содержании иных лиц",'Общественные пространства'!$FR$11:$FR$1048576) -> 0 | L51: =SUMIF('Общественные пространства'!$F$11:$F$1048576,"На содержании иных лиц",'Общественные пространства'!$FQ$11:$FQ$1048576)+SUMIF('Общественные пространства'!$F$11:$F$1048576,"На содержании иных лиц",'Общественные пространства'!$FS$11:$FS$1048576)+SUMIF('Общественные пространства'!$F$11:$F$1048576,"На содержании иных лиц",'Общественные пространства'!$FT$11:$FT$1048576)+SUMIF('Общественные пространства'!$F$11:$F$1048576,"На содержании иных лиц",'Общественные пространства'!$FU$11:$FU$1048576)+SUMIF('Общественные пространства'!$F$11:$F$1048576,"На содержании иных лиц",'Общественные пространства'!$FV$11:$FV$1048576)+SUMIF('Общественные пространства'!$F$11:$F$1048576,"На содержании иных лиц",'Общественные пространства'!$FW$11:$FW$1048576)+SUMIF('Общественные пространства'!$F$11:$F$1048576,"На содержании иных лиц",'Общественные пространства'!$FX$11:$FX$1048576)+SUMIF('Общественные пространства'!$F$11:$F$1048576,"На содержании иных лиц",'Общественные пространства'!$FY$11:$FY$1048576) -> 0
A52: 3.8. | B52: Площадки для размещения автотранспорта, парковки | C52: ед. мест | D52: ='Общественные пространства'!EI10 -> 56 | G52: кв.м. | H52: 5052 | I52: ='Общественные пространства'!EJ10+'Общественные пространства'!EL10-Свод!K52 -> 5052 | J52: =SUM('Общественные пространства'!EK10,'Общественные пространства'!EM10:EQ10)-Свод!L52 -> 0 | K52: =SUMIF('Общественные пространства'!$F$11:$F$1048576,"На содержании иных лиц",'Общественные пространства'!$EJ$11:$EJ$1048576)+SUMIF('Общественные пространства'!$F$11:$F$1048576,"На содержании иных лиц",'Общественные пространства'!$EL$11:$EL$1048576) -> 0 | L52: =SUMIF('Общественные пространства'!$F$11:$F$1048576,"На содержании иных лиц",'Общественные пространства'!$EK$11:$EK$1048576)+SUMIF('Общественные пространства'!$F$11:$F$1048576,"На содержании иных лиц",'Общественные пространства'!$EM$11:$EM$1048576)+SUMIF('Общественные пространства'!$F$11:$F$1048576,"На содержании иных лиц",'Общественные пространства'!$EN$11:$EN$1048576)+SUMIF('Общественные пространства'!$F$11:$F$1048576,"На содержании иных лиц",'Общественные пространства'!$EO$11:$EO$1048576)+SUMIF('Общественные пространства'!$F$11:$F$1048576,"На содержании иных лиц",'Общественные пространства'!$EP$11:$EP$1048576)+SUMIF('Общественные пространства'!$F$11:$F$1048576,"На содержании иных лиц",'Общественные пространства'!$EQ$11:$EQ$1048576) -> 0
A53: 3.9. | B53: Велодорожки | C53: ед. | D53: ='Общественные пространства'!GL10 -> 0 | G53: кв.м. | H53: 0 | I53: ='Общественные пространства'!GP10+'Общественные пространства'!HE10-Свод!K53 -> 0 | J53: =SUM('Общественные пространства'!GR10,'Общественные пространства'!GV10,'Общественные пространства'!GY10:HA10,'Общественные пространства'!HC10,'Общественные пространства'!HG10+'Общественные пространства'!GT10)-Свод!L53 -> 0 | K53: =SUMIF('Общественные пространства'!$F$11:$F$1048576,"На содержании иных лиц",'Общественные пространства'!$GP$11:$GP$1048576)+SUMIF('Общественные пространства'!$F$11:$F$1048576,"На содержании иных лиц",'Общественные пространства'!$HE$11:$HE$1048576) -> 0 | L53: =SUMIF('Общественные пространства'!$F$11:$F$1048576,"На содержании иных лиц",'Общественные пространства'!$GR$11:$GR$1048576)+SUMIF('Общественные пространства'!$F$11:$F$1048576,"На содержании иных лиц",'Общественные пространства'!$GV$11:$GV$1048576)+SUMIF('Общественные пространства'!$F$11:$F$1048576,"На содержании иных лиц",'Общественные пространства'!$GY$11:$GY$1048576)+SUMIF('Общественные пространства'!$F$11:$F$1048576,"На содержании иных лиц",'Общественные пространства'!$GZ$11:$GZ$1048576)+SUMIF('Общественные пространства'!$F$11:$F$1048576,"На содержании иных лиц",'Общественные пространства'!$HA$11:$HA$1048576)+SUMIF('Общественные пространства'!$F$11:$F$1048576,"На содержании иных лиц",'Общественные пространства'!$HC$11:$HC$1048576)+SUMIF('Общественные пространства'!$F$11:$F$1048576,"На содержании иных лиц",'Общественные пространства'!$HG$11:$HG$1048576)+SUMIF('Общественные пространства'!$F$11:$F$1048576,"На содержании иных лиц",'Общественные пространства'!$GT$11:$GT$1048576) -> 0
A54: 3.10. | B54: Внутриквартальные улицы, проезды местного значения, проезды общественных территорий (полосы движения транспортных средств) | C54: пог. м | G54: кв.м. | H54: 14858.8 | I54: ='Общественные пространства'!BA10+'Общественные пространства'!BC10-Свод!K54 -> 13427.8 | J54: =SUM('Общественные пространства'!BB10,'Общественные пространства'!BD10:BH10)-Свод!L54 -> 1431 | K54: =SUMIF('Общественные пространства'!$F$11:$F$1048576,"На содержании иных лиц",'Общественные пространства'!$BA$11:$BA$1048576)+SUMIF('Общественные пространства'!$F$11:$F$1048576,"На содержании иных лиц",'Общественные пространства'!$BC$11:$BC$1048576) -> 0 | L54: =SUMIF('Общественные пространства'!$F$11:$F$1048576,"На содержании иных лиц",'Общественные пространства'!$BB$11:$BB$1048576)+SUMIF('Общественные пространства'!$F$11:$F$1048576,"На содержании иных лиц",'Общественные пространства'!$BD$11:$BD$1048576)+SUMIF('Общественные пространства'!$F$11:$F$1048576,"На содержании иных лиц",'Общественные пространства'!$BE$11:$BE$1048576)+SUMIF('Общественные пространства'!$F$11:$F$1048576,"На содержании иных лиц",'Общественные пространства'!$BF$11:$BF$1048576)+SUMIF('Общественные пространства'!$F$11:$F$1048576,"На содержании иных лиц",'Общественные пространства'!$BG$11:$BG$1048576)+SUMIF('Общественные пространства'!$F$11:$F$1048576,"На содержании иных лиц",'Общественные пространства'!$BH$11:$BH$1048576) -> 0
A55: 3.11. | B55: Тротуары, в т. ч.: | C55: пог. м | D55: ='Общественные пространства'!AL10 -> 32.739 | G55: кв.м. | H55: 27866.2 | I55: =SUM(I56:I58) -> 19840 | J55: =SUM(J56:J58) -> 8026.2 | K55: 0 | L55: 0
A56: 3.11.1. | B56: 1 класс | C56: пог. м | G56: кв.м. | H56: 0 | I56: ='Общественные пространства'!N10+'Общественные пространства'!T10-Свод!K56 -> 0 | J56: =SUM('Общественные пространства'!Q10,'Общественные пространства'!W10,'Общественные пространства'!Z10,'Общественные пространства'!AC10,'Общественные пространства'!AF10,'Общественные пространства'!AI10)-Свод!L56 -> 0 | K56: =SUMIF('Общественные пространства'!$F$11:$F$1048576,"На содержании иных лиц",'Общественные пространства'!$N$11:$N$1048576)+SUMIF('Общественные пространства'!$F$11:$F$1048576,"На содержании иных лиц",'Общественные пространства'!$T$11:$T$1048576) -> 0 | L56: =SUMIF('Общественные пространства'!$F$11:$F$1048576,"На содержании иных лиц",'Общественные пространства'!$Q$11:$Q$1048576)+SUMIF('Общественные пространства'!$F$11:$F$1048576,"На содержании иных лиц",'Общественные пространства'!$W$11:$W$1048576)+SUMIF('Общественные пространства'!$F$11:$F$1048576,"На содержании иных лиц",'Общественные пространства'!$Z$11:$Z$1048576)+SUMIF('Общественные пространства'!$F$11:$F$1048576,"На содержании иных лиц",'Общественные пространства'!$AC$11:$AC$1048576)+SUMIF('Общественные пространства'!$F$11:$F$1048576,"На содержании иных лиц",'Общественные пространства'!$AF$11:$AF$1048576)+SUMIF('Общественные пространства'!$F$11:$F$1048576,"На содержании иных лиц",'Общественные пространства'!$AI$11:$AI$1048576) -> 0
A57: 3.11.2. | B57: 2 класс | C57: пог. м | G57: кв.м. | H57: 27866.2 | I57: ='Общественные пространства'!O10+'Общественные пространства'!U10-Свод!K57 -> 19840 | J57: =SUM('Общественные пространства'!R10,'Общественные пространства'!X10,'Общественные пространства'!AA10,'Общественные пространства'!AD10,'Общественные пространства'!AG10,'Общественные пространства'!AJ10)-Свод!L57 -> 8026.2 | K57: =SUMIF('Общественные пространства'!$F$11:$F$1048576,"На содержании иных лиц",'Общественные пространства'!$O$11:$O$1048576)+SUMIF('Общественные пространства'!$F$11:$F$1048576,"На содержании иных лиц",'Общественные пространства'!$U$11:$U$1048576) -> 0 | L57: =SUMIF('Общественные пространства'!$F$11:$F$1048576,"На содержании иных лиц",'Общественные пространства'!$R$11:$R$1048576)+SUMIF('Общественные пространства'!$F$11:$F$1048576,"На содержании иных лиц",'Общественные пространства'!$X$11:$X$1048576)+SUMIF('Общественные пространства'!$F$11:$F$1048576,"На содержании иных лиц",'Общественные пространства'!$AA$11:$AA$1048576)+SUMIF('Общественные пространства'!$F$11:$F$1048576,"На содержании иных лиц",'Общественные пространства'!$AD$11:$AD$1048576)+SUMIF('Общественные пространства'!$F$11:$F$1048576,"На содержании иных лиц",'Общественные пространства'!$AG$11:$AG$1048576)+SUMIF('Общественные пространства'!$F$11:$F$1048576,"На содержании иных лиц",'Общественные пространства'!$AJ$11:$AJ$1048576) -> 0
A58: 3.11.3. | B58: 3 класс | C58: пог. м | G58: кв.м. | H58: 0 | I58: ='Общественные пространства'!P10+'Общественные пространства'!V10-Свод!K58 -> 0 | J58: =SUM('Общественные пространства'!S10,'Общественные пространства'!Y10,'Общественные пространства'!AB10,'Общественные пространства'!AE10,'Общественные пространства'!AH10,'Общественные пространства'!AK10)-Свод!L58 -> 0 | K58: =SUMIF('Общественные пространства'!$F$11:$F$1048576,"На содержании иных лиц",'Общественные пространства'!$P$11:$P$1048576)+SUMIF('Общественные пространства'!$F$11:$F$1048576,"На содержании иных лиц",'Общественные пространства'!$V$11:$V$1048576) -> 0 | L58: =SUMIF('Общественные пространства'!$F$11:$F$1048576,"На содержании иных лиц",'Общественные пространства'!$S$11:$S$1048576)+SUMIF('Общественные пространства'!$F$11:$F$1048576,"На содержании иных лиц",'Общественные пространства'!$Y$11:$Y$1048576)+SUMIF('Общественные пространства'!$F$11:$F$1048576,"На содержании иных лиц",'Общественные пространства'!$AB$11:$AB$1048576)+SUMIF('Общественные пространства'!$F$11:$F$1048576,"На содержании иных лиц",'Общественные пространства'!$AE$11:$AE$1048576)+SUMIF('Общественные пространства'!$F$11:$F$1048576,"На содержании иных лиц",'Общественные пространства'!$AH$11:$AH$1048576)+SUMIF('Общественные пространства'!$F$11:$F$1048576,"На содержании иных лиц",'Общественные пространства'!$AK$11:$AK$1048576) -> 0
A59: 3.12. | B59: Пешеходные дорожки | C59: пог. м | D59: ='Общественные пространства'!AY10 -> 1732.765 | G59: кв.м. | H59: 119781.8 | I59: ='Общественные пространства'!AN10+'Общественные пространства'!AP10-Свод!K59 -> 73138.1 | J59: =SUM('Общественные пространства'!AO10,'Общественные пространства'!AQ10:AX10)-Свод!L59 -> 46643.7 | K59: =SUMIF('Общественные пространства'!$F$11:$F$1048576,"На содержании иных лиц",'Общественные пространства'!$AN$11:$AN$1048576)+SUMIF('Общественные пространства'!$F$11:$F$1048576,"На содержании иных лиц",'Общественные пространства'!$AP$11:$AP$1048576) -> 0 | L59: =SUMIF('Общественные пространства'!$F$11:$F$1048576,"На содержании иных лиц",'Общественные пространства'!$AO$11:$AO$1048576)+SUMIF('Общественные пространства'!$F$11:$F$1048576,"На содержании иных лиц",'Общественные пространства'!$AQ$11:$AQ$1048576)+SUMIF('Общественные пространства'!$F$11:$F$1048576,"На содержании иных лиц",'Общественные пространства'!$AR$11:$AR$1048576)+SUMIF('Общественные пространства'!$F$11:$F$1048576,"На содержании иных лиц",'Общественные пространства'!$AS$11:$AS$1048576)+SUMIF('Общественные пространства'!$F$11:$F$1048576,"На содержании иных лиц",'Общественные пространства'!$AT$11:$AT$1048576)+SUMIF('Общественные пространства'!$F$11:$F$1048576,"На содержании иных лиц",'Общественные пространства'!$AU$11:$AU$1048576)+SUMIF('Общественные пространства'!$F$11:$F$1048576,"На содержании иных лиц",'Общественные пространства'!$AV$11:$AV$1048576)+SUMIF('Общественные пространства'!$F$11:$F$1048576,"На содержании иных лиц",'Общественные пространства'!$AW$11:$AW$1048576)+SUMIF('Общественные пространства'!$F$11:$F$1048576,"На содержании иных лиц",'Общественные пространства'!$AX$11:$AX$1048576) -> 0
A60: 3.13. | B60: Пляжи | C60: ед. | G60: кв.м. | H60: 2733 | I60: ='Общественные пространства'!GA10+'Общественные пространства'!GC10-Свод!K60 -> 0 | J60: =SUM('Общественные пространства'!GB10,'Общественные пространства'!GD10:GK10)-Свод!L60 -> 2733 | K60: =SUMIF('Общественные пространства'!$F$11:$F$1048576,"На содержании иных лиц",'Общественные пространства'!$GA$11:$GA$1048576)+SUMIF('Общественные пространства'!$F$11:$F$1048576,"На содержании иных лиц",'Общественные пространства'!$GC$11:$GC$1048576) -> 0 | L60: =SUMIF('Общественные пространства'!$F$11:$F$1048576,"На содержании иных лиц",'Общественные пространства'!$GB$11:$GB$1048576)+SUMIF('Общественные пространства'!$F$11:$F$1048576,"На содержании иных лиц",'Общественные пространства'!$GD$11:$GD$1048576)+SUMIF('Общественные пространства'!$F$11:$F$1048576,"На содержании иных лиц",'Общественные пространства'!$GE$11:$GE$1048576)+SUMIF('Общественные пространства'!$F$11:$F$1048576,"На содержании иных лиц",'Общественные пространства'!$GF$11:$GF$1048576)+SUMIF('Общественные пространства'!$F$11:$F$1048576,"На содержании иных лиц",'Общественные пространства'!$GG$11:$GG$1048576)+SUMIF('Общественные пространства'!$F$11:$F$1048576,"На содержании иных лиц",'Общественные пространства'!$GH$11:$GH$1048576)+SUMIF('Общественные пространства'!$F$11:$F$1048576,"На содержании иных лиц",'Общественные пространства'!$GI$11:$GI$1048576)+SUMIF('Общественные пространства'!$F$11:$F$1048576,"На содержании иных лиц",'Общественные пространства'!$GJ$11:$GJ$1048576)+SUMIF('Общественные пространства'!$F$11:$F$1048576,"На содержании иных лиц",'Общественные пространства'!$GK$11:$GK$1048576) -> 0
A61: 3.14. | B61: Озелененные территории | G61: кв.м. | H61: 810609.8 | I61: 0 | J61: =SUM('Общественные пространства'!BK10:BM10,'Общественные пространства'!BQ10:BR10)-Свод!L61 -> 810609.8 | K61: 0 | L61: =SUMIF('Общественные пространства'!$F$11:$F$1048576,"На содержании иных лиц",'Общественные пространства'!$BK$11:$BK$1048576)+SUMIF('Общественные пространства'!$F$11:$F$1048576,"На содержании иных лиц",'Общественные пространства'!$BL$11:$BL$1048576)+SUMIF('Общественные пространства'!$F$11:$F$1048576,"На содержании иных лиц",'Общественные пространства'!$BM$11:$BM$1048576)+SUMIF('Общественные пространства'!$F$11:$F$1048576,"На содержании иных лиц",'Общественные пространства'!$BQ$11:$BQ$1048576)+SUMIF('Общественные пространства'!$F$11:$F$1048576,"На содержании иных лиц",'Общественные пространства'!$BR$11:$BR$1048576) -> 0
A62: 3.15. | B62: Лесные насаждения | G62: кв.м. | H62: 584798 | I62: 0 | J62: ='Общественные пространства'!BT10-Свод!L62 -> 584798 | K62: 0 | L62: =SUMIF('Общественные пространства'!$F$11:$F$1048576,"На содержании иных лиц",'Общественные пространства'!$BT$11:$BT$1048576) -> 0
A63: 3.16. | B63: Лыжные трассы | C63: пог. м | D63: ='Общественные пространства'!BV10 -> 0 | G63: кв.м. | H63: 0 | I63: ='Общественные пространства'!BW10-Свод!K63 -> 0 | J63: 0 | K63: =SUMIF('Общественные пространства'!$F$11:$F$1048576,"На содержании иных лиц",'Общественные пространства'!$BW$11:$BW$1048576) -> 0 | L63: 0
A64: 3.17. | B64: Хоккейные площадки | C64: ед. | D64: ='Общественные пространства'!BX10 -> 1 | G64: кв.м. | H64: 0 | I64: 0 | J64: ='Общественные пространства'!CA10+'Общественные пространства'!CC10-Свод!L64 -> 0 | K64: 0 | L64: =SUMIF('Общественные пространства'!$F$11:$F$1048576,"На содержании иных лиц",'Общественные пространства'!$CA$11:$CA$1048576)+SUMIF('Общественные пространства'!$F$11:$F$1048576,"На содержании иных лиц",'Общественные пространства'!$CC$11:$CC$1048576) -> 0
A65: 4. | B65: Иные объекты благоустройства, расположенные на земельных участках и землях, находящихся в государственной или муниципальной собственности, не являющихся объектами благоустройства в составе придомовых территорий многоквартирных домов | C65: ед. | D65: =COUNTIF('Общественные пространства'!$E$11:$E$1048576,"Иные объекты благоустройства") -> 25 | G65: кв. м | H65: 8000 | I65: ='Общественные пространства'!HJ10+'Общественные пространства'!HL10-Свод!K65 -> 8000 | J65: =SUM('Общественные пространства'!HK10,'Общественные пространства'!HM10:HU10)-Свод!L65 -> 0 | K65: =SUMIF('Общественные пространства'!$F$11:$F$1048576,"На содержании иных лиц",'Общественные пространства'!$HJ$11:$HJ$1048576)+SUMIF('Общественные пространства'!$F$11:$F$1048576,"На содержании иных лиц",'Общественные пространства'!$HL$11:$HL$1048576) -> 0 | L65: =SUMIF('Общественные пространства'!$F$11:$F$1048576,"На содержании иных лиц",'Общественные пространства'!$HK$11:$HK$1048576)+SUMIF('Общественные пространства'!$F$11:$F$1048576,"На содержании иных лиц",'Общественные пространства'!$HM$11:$HM$1048576)+SUMIF('Общественные пространства'!$F$11:$F$1048576,"На содержании иных лиц",'Общественные пространства'!$HN$11:$HN$1048576)+SUMIF('Общественные пространства'!$F$11:$F$1048576,"На содержании иных лиц",'Общественные пространства'!$HO$11:$HO$1048576)+SUMIF('Общественные пространства'!$F$11:$F$1048576,"На содержании иных лиц",'Общественные пространства'!$HP$11:$HP$1048576)+SUMIF('Общественные пространства'!$F$11:$F$1048576,"На содержании иных лиц",'Общественные пространства'!$HQ$11:$HQ$1048576)+SUMIF('Общественные пространства'!$F$11:$F$1048576,"На содержании иных лиц",'Общественные пространства'!$HR$11:$HR$1048576)+SUMIF('Общественные пространства'!$F$11:$F$1048576,"На содержании иных лиц",'Общественные пространства'!$HS$11:$HS$1048576)+SUMIF('Общественные пространства'!$F$11:$F$1048576,"На содержании иных лиц",'Общественные пространства'!$HT$11:$HT$1048576)+SUMIF('Общественные пространства'!$F$11:$F$1048576,"На содержании иных лиц",'Общественные пространства'!$HU$11:$HU$1048576) -> 0
K68: Приложение № 2 к постановлению Администрации Городского округа _____________________ от ________________№ _________________
A74: Сводный титульный списока элементов благоустройства, расположенных на территории Городского округа _______________
A76: № п/п | B76: Наименование | C76: Количество элементов благоустройства объектов благоустройства | H76: Примечание
C78: Ед. изм. | D78: Количество элементов благоустройства (всего) | E78: Элементы благоустройства содержатся:
E79: ОМСУ, МБУ, МКУ | F79: Иными лицами, обеспечивающими содержание придомовых территорий многоквартирных домов, объектов, прилегающих территорий
F80: ЭО | G80: Иными лицами
A81: 1 | B81: 2 | C81: 3 | D81: 4 | E81: 5 | F81: 6 | G81: 7 | H81: 8
A82: 5. | B82: Специализированные декоративные, технические, конструктивные устройства и оборудование (всего), в т. ч.: | C82: ед. | D82: =SUM(D83,D84,D85,D86,D87,D94,D97,D100) -> 5457 | E82: =SUM(E83,E84,E85,E86,E87,E94,E97,E100) -> 3117 | F82: =SUM(F83,F84,F85,F86,F87,F94,F97,F100) -> 2340 | G82: 0
A83: 5.1. | B83: Оборудование детских игровых площадок | C83: ед. | D83: =SUM(E83:G83) -> 1650 | E83: =SUM(ДТ!AN11,ДТ!AQ11,ДТ!AT11,'Общественные пространства'!DJ10:DL10)-Свод!G83 -> 1650 | F83: =ДТ!AO11+ДТ!AR11+ДТ!AU11 -> 0 | G83: =SUMIF('Общественные пространства'!$F$11:$F$1048576,"На содержании иных лиц",'Общественные пространства'!$DJ$11:$DJ$1048576)+SUMIF('Общественные пространства'!$F$11:$F$1048576,"На содержании иных лиц",'Общественные пространства'!$DK$11:$DK$1048576)+SUMIF('Общественные пространства'!$F$11:$F$1048576,"На содержании иных лиц",'Общественные пространства'!$DL$11:$DL$1048576) -> 0
A84: 5.2. | B84: Оборудование спортивных площадок (всего) | C84: ед. | D84: =SUM(E84:G84) -> 649 | E84: =SUM(ДТ!CC11,ДТ!CF11,ДТ!CI11,'Общественные пространства'!EA10:EC10)-Свод!G84 -> 649 | F84: =SUM(ДТ!CD11,ДТ!CG11,ДТ!CJ11) -> 0 | G84: =SUMIF('Общественные пространства'!$F$11:$F$1048576,"На содержании иных лиц",'Общественные пространства'!$EA$11:$EA$1048576)+SUMIF('Общественные пространства'!$F$11:$F$1048576,"На содержании иных лиц",'Общественные пространства'!$EB$11:$EB$1048576)+SUMIF('Общественные пространства'!$F$11:$F$1048576,"На содержании иных лиц",'Общественные пространства'!$EC$11:$EC$1048576) -> 0
A85: 5.3. | B85: Специальное тренировочное оборудование для дрессировки собак | C85: ед. | D85: 6 | E85: =SUM(SUMIFS('Общественные пространства'!$FZ$11:$FZ$99557,'Общественные пространства'!$F$11:$F$99557,{"Муниципальный заказ","На балансе муниципального учреждения"})) -> 6 | F85: 0 | G85: =SUM(SUMIFS('Общественные пространства'!$FZ$11:$FZ$99557,'Общественные пространства'!$F$11:$F$99557,{"На содержании иных лиц"})) -> 0
A86: 5.4. | B86: Конструкции велопарковок | C86: ед. | D86: 1 | E86: =ДТ!DR11+ДТ!LP11+SUM(SUMIFS('Общественные пространства'!$HH$11:$HH$99557,'Общественные пространства'!$F$11:$F$99557,{"Муниципальный заказ","На балансе муниципального учреждения"}))+SUM(SUMIFS('Общественные пространства'!$CW$11:$CW$99557,'Общественные пространства'!$F$11:$F$99557,{"Муниципальный заказ","На балансе муниципального учреждения"})) -> 1 | F86: =SUM(ДТ!LQ11) -> 0 | G86: =SUMIF('Общественные пространства'!$F$11:$F$1048576,"На содержании иных лиц",'Общественные пространства'!$CW$11:$CW$1048576)+SUMIF('Общественные пространства'!$F$11:$F$1048576,"На содержании иных лиц",'Общественные пространства'!$HH$11:$HH$1048576) -> 0
A87: 5.5. | B87: Малые архитектурные формы (всего), в т.ч.: | C87: ед. | D87: 2826 | E87: =SUM(E88:E92) -> 779 | F87: =SUM(F88:F92) -> 2047 | G87: 0
A88: 5.5.1. | B88: Количество городской мебели | C88: ед. | D88: 1681 | E88: =ДТ!ED11+'Общественные пространства'!CH10-Свод!G88 -> 408 | F88: =ДТ!EE11 -> 1273 | G88: =SUMIF('Общественные пространства'!$F$11:$F$1048576,"На содержании иных лиц",'Общественные пространства'!$CH$11:$CH$1048576) -> 0
A89: 5.5.2. | B89: Элементы монументально-декоративного оформления | C89: ед. | D89: 71 | E89: =ДТ!EF11+'Общественные пространства'!CI10-Свод!G89 -> 71 | F89: =ДТ!EG11 -> 0 | G89: =SUMIF('Общественные пространства'!$F$11:$F$1048576,"На содержании иных лиц",'Общественные пространства'!$CI$11:$CI$1048576) -> 0
A90: 5.5.3. | B90: Устройства для оформления озеленения | C90: ед. | D90: 4 | E90: =ДТ!EH11+'Общественные пространства'!CK10-Свод!G90 -> 4 | F90: =ДТ!EI11 -> 0 | G90: =SUMIF('Общественные пространства'!$F$11:$F$1048576,"На содержании иных лиц",'Общественные пространства'!$CK$11:$CK$1048576) -> 0
A91: 5.5.4. | B91: Урны (до 0,5 куб. м) | C91: ед. | D91: 1065 | E91: =ДТ!EJ11+'Общественные пространства'!CL10-Свод!G91 -> 291 | F91: =ДТ!EK11 -> 774 | G91: =SUMIF('Общественные пространства'!$F$11:$F$1048576,"На содержании иных лиц",'Общественные пространства'!$CL$11:$CL$1048576) -> 0
A92: 5.5.5. | B92: Элементы для отдыха и защиты от осадков | C92: ед. | D92: 5 | E92: ='Общественные пространства'!CJ10-Свод!G92 -> 5 | F92: 0 | G92: =SUMIF('Общественные пространства'!$F$11:$F$1048576,"На содержании иных лиц",'Общественные пространства'!$CJ$11:$CJ$1048576) -> 0
A93: 5.5.6. | B93: Песочницы | C93: ед. | D93: 2 | E93: =ДТ!AW11+'Общественные пространства'!DM10-Свод!G93 -> 2 | F93: =ДТ!AX11 -> 0 | G93: =SUMIF('Общественные пространства'!$F$11:$F$1048576,"На содержании иных лиц",'Общественные пространства'!$DM$11:$DM$1048576) -> 0
A94: 5.6. | B94: Водные устройства (всего), в т. ч.: | C94: ед. | D94: 3 | E94: =SUM(E95:E96) -> 3 | F94: =SUM(F95:F96) -> 0 | G94: 0
A95: 5.6.1. | B95: Питьевые фонтанчики | C95: ед. | D95: 0 | E95: ='Общественные пространства'!CO10-Свод!G95 -> 0 | F95: 0 | G95: =SUMIF('Общественные пространства'!$F$11:$F$1048576,"На содержании иных лиц",'Общественные пространства'!$CO$11:$CO$1048576) -> 0
A96: 5.6.2. | B96: Фонтаны | C96: ед. | D96: 3 | E96: ='Общественные пространства'!CM10-Свод!G96 -> 3 | F96: 0 | G96: =SUMIF('Общественные пространства'!$F$11:$F$1048576,"На содержании иных лиц",'Общественные пространства'!$CM$11:$CM$1048576) -> 0
A97: 5.7. | B97: Средства размещения информации, включая навигацию (всего), в т. ч.: | C97: ед. | D97: 322 | E97: =SUM(E98:E99) -> 29 | F97: =SUM(F98:F99) -> 293 | G97: 0
A98: 5.7.1. | B98: Информационные стенды | C98: ед. | D98: 322 | E98: =ДТ!DZ11+'Общественные пространства'!CQ10-Свод!G98 -> 29 | F98: =ДТ!EA11 -> 293 | G98: =SUMIF('Общественные пространства'!$F$11:$F$1048576,"На содержании иных лиц",'Общественные пространства'!$CQ$11:$CQ$1048576) -> 0
A99: 5.7.2. | B99: Иные средства | C99: ед. | D99: 0 | E99: =ДТ!EB11+'Общественные пространства'!CR10-Свод!G99 -> 0 | F99: =ДТ!EC11 -> 0 | G99: =SUMIF('Общественные пространства'!$F$11:$F$1048576,"На содержании иных лиц",'Общественные пространства'!$CR$11:$CR$1048576) -> 0
A100: 5.8. | B100: Светильники наружного освещения (всего), в т. ч.: | C100: ед. | D100: 0
A101: 5.8.1. | B101: Светодиодные светильники | C101: ед. | D101: 0
A102: 6. | B102: Водные объекты3 | C102: ед. | D102: 1 | E102: ='Общественные пространства'!CP10-G102 -> 1 | F102: 0 | G102: =SUMIF('Общественные пространства'!$F$11:$F$1048576,"На содержании иных лиц",'Общественные пространства'!$CP$11:$CP$1048576) -> 0
A103: 7. | B103: Некапитальные строения, сооружения4 (всего), в т. ч.: | C103: ед. | D103: =SUM(D104,D105,D106,D107) -> 3 | E103: =SUM(E104,E105,E106,E107) -> 3 | F103: 0 | G103: 0
A104: 7.1. | B104: Мобильные туалетные кабины | C104: ед. | D104: =SUM(E104:G104) -> 1 | E104: ='Общественные пространства'!CV10-Свод!G104 -> 1 | F104: 0 | G104: =SUMIF('Общественные пространства'!$F$11:$F$1048576,"На содержании иных лиц",'Общественные пространства'!$CV$11:$CV$1048576) -> 0
A105: 7.2. | B105: Нестационарные торговые объекты | C105: ед. | D105: 0 | E105: ='Общественные пространства'!CS10-Свод!G105 -> 0 | F105: 0 | G105: =SUMIF('Общественные пространства'!$F$11:$F$1048576,"На содержании иных лиц",'Общественные пространства'!$CS$11:$CS$1048576) -> 0
A106: 7.3. | B106: Сцены, эстрады (летние кинотеатры, зеленые театры) | C106: ед. | D106: 2 | E106: ='Общественные пространства'!CT10-Свод!G106 -> 2 | F106: 0 | G106: =SUMIF('Общественные пространства'!$F$11:$F$1048576,"На содержании иных лиц",'Общественные пространства'!$CT$11:$CT$1048576) -> 0
A107: 7.4. | B107: Амфитеатры | C107: ед. | D107: 0 | E107: ='Общественные пространства'!CU10-Свод!G107 -> 0 | F107: 0 | G107: =SUMIF('Общественные пространства'!$F$11:$F$1048576,"На содержании иных лиц",'Общественные пространства'!$CU$11:$CU$1048576) -> 0
A108: 8. | B108: Элементы озеленения (всего), в т. ч.: | C108: ед. | D108: =SUM(D109,D110,D111) -> 77300 | E108: =SUM(E109,E110,E111) -> 50336 | F108: 26964 | G108: 0
A109: 8.1. | B109: Деревья | C109: ед. | D109: =SUM(E109:G109) -> 40149 | E109: =ДТ!CS11+'Общественные пространства'!BN10-Свод!G109 -> 36886 | F109: =ДТ!CT11 -> 3263 | G109: =SUMIF('Общественные пространства'!$F$11:$F$1048576,"На содержании иных лиц",'Общественные пространства'!$BN$11:$BN$1048576) -> 0
A110: 8.2. | B110: Кустарники | C110: ед. | D110: 36330 | E110: =ДТ!DC11+'Общественные пространства'!BS10-Свод!G110 -> 12629 | F110: =ДТ!DD11 -> 23701 | G110: =SUMIF('Общественные пространства'!$F$11:$F$1048576,"На содержании иных лиц",'Общественные пространства'!$BS$11:$BS$1048576) -> 0
A111: 8.3. | B111: Цветники, в том числе: | C111: ед. | D111: 821 | E111: =ДТ!CU11+ДТ!CY11+'Общественные пространства'!BO10+'Общественные пространства'!BP10-Свод!G111 -> 821 | F111: =ДТ!CV11+ДТ!CZ11 -> 0 | G111: =SUMIF('Общественные пространства'!$F$11:$F$1048576,"На содержании иных лиц",'Общественные пространства'!$BO$11:$BO$1048576)+SUMIF('Общественные пространства'!$F$11:$F$1048576,"На содержании иных лиц",'Общественные пространства'!$BP$11:$BP$1048576) -> 0
C112: кв. м | D112: =D113+D114 -> 3070 | E112: =E113+E114 -> 513 | F112: 2557 | G112: 0
A113: 8.3.1. | B113: однолетники | C113: кв. м | D113: =SUM(E113:G113) -> 2748 | E113: =ДТ!CW11+'Общественные пространства'!BQ10-Свод!G113 -> 191 | F113: =ДТ!CX11 -> 2557 | G113: =SUMIF('Общественные пространства'!$F$11:$F$1048576,"На содержании иных лиц",'Общественные пространства'!$BQ$11:$BQ$1048576) -> 0
A114: 8.3.2. | B114: многолетники | C114: кв. м | D114: 322 | E114: =ДТ!DA11+'Общественные пространства'!BR10-Свод!G114 -> 322 | F114: =ДТ!DB11 -> 0 | G114: =SUMIF('Общественные пространства'!$F$11:$F$1048576,"На содержании иных лиц",'Общественные пространства'!$BR$11:$BR$1048576) -> 0
A115: 9. | B115: Иные устройства и оборудования | C115: ед. | D115: 0 | E115: ='Общественные пространства'!CX10-Свод!G115 -> 0 | F115: 0 | G115: =SUMIF('Общественные пространства'!$F$11:$F$1048576,"На содержании иных лиц",'Общественные пространства'!$CX$11:$CX$1048576) -> 0
A116: 10. | B116: Элементы сопряжения поверхностей | C116: п. м | D116: 255708.04 | E116: =ДТ!DP11+'Общественные пространства'!CD10-Свод!G116 -> 209050.04 | F116: =ДТ!DQ11 -> 46658 | G116: =SUMIF('Общественные пространства'!$F$11:$F$1048576,"На содержании иных лиц",'Общественные пространства'!$CD$11:$CD$1048576) -> 0
A117: 11. | B117: Ограждение (всего), в т. ч.: | C117: п. м | D117: 15230 | E117: =SUM(E118:E120) -> 13519 | F117: =SUM(F118:F120) -> 1711 | G117: 0
A118: 11.1. | B118: Деревянное ограждение | C118: п. м | D118: 952 | E118: =ДТ!DT11+'Общественные пространства'!CE10-Свод!G118 -> 788 | F118: =ДТ!DU11 -> 164 | G118: =SUMIF('Общественные пространства'!$F$11:$F$1048576,"На содержании иных лиц",'Общественные пространства'!$CE$11:$CE$1048576) -> 0
A119: 11.2. | B119: Металлическое ограждение | C119: п. м | D119: 12906 | E119: =ДТ!DV11+'Общественные пространства'!CF10-Свод!G119 -> 11700 | F119: =ДТ!DW11 -> 1206 | G119: =SUMIF('Общественные пространства'!$F$11:$F$1048576,"На содержании иных лиц",'Общественные пространства'!$CF$11:$CF$1048576) -> 0 | O119: Проверка площади покрытия
A120: 11.3. | B120: Прочие ограждения | C120: п. м | D120: 1372 | E120: =ДТ!DX11+'Общественные пространства'!CG10-Свод!G120 -> 1031 | F120: =ДТ!DY11 -> 341 | G120: =SUMIF('Общественные пространства'!$F$11:$F$1048576,"На содержании иных лиц",'Общественные пространства'!$CG$11:$CG$1048576) -> 0
A121: 12. | B121: Покрытия (всего), в т. ч.: | C121: кв. м | D121: =SUM(D122,D123,D124,D125,D126,D127,D128,D129,D130,D131,D136,D135) -> 4924961.49 | E121: =SUM(E122,E123,E124,E125,E126,E127,E128,E129,E130,E131,E136,E135) -> 4104978.41 | F121: 819983.08 | G121: 0
A122: 12.1. | B122: Резиновое, синтетическое | C122: кв. м | D122: 33266.07 | E122: =ДТ!X11+ДТ!AA11+ДТ!AD11+ДТ!BN11+ДТ!BQ11+ДТ!BT11+ДТ!IG11+ДТ!JF11+ДТ!KW11+ДТ!KY11+ДТ!LA11+ДТ!MA11+'Общественные пространства'!AR10+'Общественные пространства'!DD10+'Общественные пространства'!DE10+'Общественные пространства'!DF10+'Общественные пространства'!DT10+'Общественные пространства'!DU10+'Общественные пространства'!DV10+'Общественные пространства'!EW10+'Общественные пространства'!FI10+'Общественные пространства'!FT10+'Общественные пространства'!GE10+'Общественные пространства'!GY10+'Общественные пространства'!GZ10+'Общественные пространства'!HA10+'Общественные пространства'!HN10-Свод!G122 -> 29515.07 | F122: =ДТ!Y11+ДТ!AB11+ДТ!AE11+ДТ!BO11+ДТ!BR11+ДТ!BU11+ДТ!IH11+ДТ!JG11+ДТ!KX11+ДТ!KZ11+ДТ!LB11+ДТ!MB11 -> 3751 | G122: =SUMIF('Общественные пространства'!$F$11:$F$1048576,"На содержании иных лиц",'Общественные пространства'!$AR$11:$AR$1048576)+SUMIF('Общественные пространства'!$F$11:$F$1048576,"На содержании иных лиц",'Общественные пространства'!$DD$11:$DD$1048576)+SUMIF('Общественные пространства'!$F$11:$F$1048576,"На содержании иных лиц",'Общественные пространства'!$DE$11:$DE$1048576)+SUMIF('Общественные пространства'!$F$11:$F$1048576,"На содержании иных лиц",'Общественные пространства'!$DF$11:$DF$1048576)+SUMIF('Общественные пространства'!$F$11:$F$1048576,"На содержании иных лиц",'Общественные пространства'!$DT$11:$DT$1048576)+SUMIF('Общественные пространства'!$F$11:$F$1048576,"На содержании иных лиц",'Общественные пространства'!$DU$11:$DU$1048576)+SUMIF('Общественные пространства'!$F$11:$F$1048576,"На содержании иных лиц",'Общественные пространства'!$DV$11:$DV$1048576)+SUMIF('Общественные пространства'!$F$11:$F$1048576,"На содержании иных лиц",'Общественные пространства'!$EW$11:$EW$1048576)+SUMIF('Общественные пространства'!$F$11:$F$1048576,"На содержании иных лиц",'Общественные пространства'!$FI$11:$FI$1048576)+SUMIF('Общественные пространства'!$F$11:$F$1048576,"На содержании иных лиц",'Общественные пространства'!$FT$11:$FT$1048576)+SUMIF('Общественные пространства'!$F$11:$F$1048576,"На содержании иных лиц",'Общественные пространства'!$GE$11:$GE$1048576)+SUMIF('Общественные пространства'!$F$11:$F$1048576,"На содержании иных лиц",'Общественные пространства'!$GY$11:$GY$1048576)+SUMIF('Общественные пространства'!$F$11:$F$1048576,"На содержании иных лиц",'Общественные пространства'!$GZ$11:$GZ$1048576)+SUMIF('Общественные пространства'!$F$11:$F$1048576,"На содержании иных лиц",'Общественные пространства'!$HA$11:$HA$1048576)+SUMIF('Общественные пространства'!$F$11:$F$1048576,"На содержании иных лиц",'Общественные пространства'!$HN$11:$HN$1048576) -> 0 | O122: =E121+F121+G121+E112+F112+G112-H15 -> 0
A123: 12.2. | B123: Песчаное | C123: кв. м | D123: 6300 | E123: =ДТ!AF11+ДТ!BV11+ДТ!JH11+ДТ!MC11+'Общественные пространства'!AS10+'Общественные пространства'!DG10+'Общественные пространства'!DW10+'Общественные пространства'!EX10+'Общественные пространства'!FJ10+'Общественные пространства'!FU10+'Общественные пространства'!GF10+'Общественные пространства'!HO10-Свод!G123 -> 4443 | F123: =ДТ!AG11+ДТ!BW11+ДТ!JI11+ДТ!MD11 -> 1857 | G123: =SUMIF('Общественные пространства'!$F$11:$F$1048576,"На содержании иных лиц",'Общественные пространства'!$AS$11:$AS$1048576)+SUMIF('Общественные пространства'!$F$11:$F$1048576,"На содержании иных лиц",'Общественные пространства'!$DG$11:$DG$1048576)+SUMIF('Общественные пространства'!$F$11:$F$1048576,"На содержании иных лиц",'Общественные пространства'!$DW$11:$DW$1048576)+SUMIF('Общественные пространства'!$F$11:$F$1048576,"На содержании иных лиц",'Общественные пространства'!$EX$11:$EX$1048576)+SUMIF('Общественные пространства'!$F$11:$F$1048576,"На содержании иных лиц",'Общественные пространства'!$FJ$11:$FJ$1048576)+SUMIF('Общественные пространства'!$F$11:$F$1048576,"На содержании иных лиц",'Общественные пространства'!$FU$11:$FU$1048576)+SUMIF('Общественные пространства'!$F$11:$F$1048576,"На содержании иных лиц",'Общественные пространства'!$GF$11:$GF$1048576)+SUMIF('Общественные пространства'!$F$11:$F$1048576,"На содержании иных лиц",'Общественные пространства'!$HO$11:$HO$1048576) -> 0
A124: 12.3. | B124: Грунтовое | C124: кв. м | D124: 93679.98 | E124: =SUM(ДТ!AH11,ДТ!BX11,ДТ!EW11,ДТ!FM11,ДТ!GW11:GY11,ДТ!II11,ДТ!JJ11,ДТ!ME11,'Общественные пространства'!Z10:AB10,'Общественные пространства'!AT10,'Общественные пространства'!DH10,'Общественные пространства'!DX10,'Общественные пространства'!EN10,'Общественные пространства'!EY10,'Общественные пространства'!FK10,'Общественные пространства'!FV10,'Общественные пространства'!GG10,'Общественные пространства'!HP10)-G124 -> 92882.98 | F124: =ДТ!AI11+ДТ!BY11+ДТ!EX11+ДТ!FN11+SUM(ДТ!GZ11:HB11,ДТ!IJ11,ДТ!JK11,ДТ!MF11) -> 797 | G124: =SUMIF('Общественные пространства'!$F$11:$F$1048576,"На содержании иных лиц",'Общественные пространства'!$Z$11:$Z$1048576)+SUMIF('Общественные пространства'!$F$11:$F$1048576,"На содержании иных лиц",'Общественные пространства'!$AA$11:$AA$1048576)+SUMIF('Общественные пространства'!$F$11:$F$1048576,"На содержании иных лиц",'Общественные пространства'!$AB$11:$AB$1048576)+SUMIF('Общественные пространства'!$F$11:$F$1048576,"На содержании иных лиц",'Общественные пространства'!$AT$11:$AT$1048576)+SUMIF('Общественные пространства'!$F$11:$F$1048576,"На содержании иных лиц",'Общественные пространства'!$BE$11:$BE$1048576)+SUMIF('Общественные пространства'!$F$11:$F$1048576,"На содержании иных лиц",'Общественные пространства'!$DH$11:$DH$1048576)+SUMIF('Общественные пространства'!$F$11:$F$1048576,"На содержании иных лиц",'Общественные пространства'!$DX$11:$DX$1048576)+SUMIF('Общественные пространства'!$F$11:$F$1048576,"На содержании иных лиц",'Общественные пространства'!$EN$11:$EN$1048576)+SUMIF('Общественные пространства'!$F$11:$F$1048576,"На содержании иных лиц",'Общественные пространства'!$EY$11:$EY$1048576)+SUMIF('Общественные пространства'!$F$11:$F$1048576,"На содержании иных лиц",'Общественные пространства'!$FK$11:$FK$1048576)+SUMIF('Общественные пространства'!$F$11:$F$1048576,"На содержании иных лиц",'Общественные пространства'!$FV$11:$FV$1048576)+SUMIF('Общественные пространства'!$F$11:$F$1048576,"На содержании иных лиц",'Общественные пространства'!$GG$11:$GG$1048576)+SUMIF('Общественные пространства'!$F$11:$F$1048576,"На содержании иных лиц",'Общественные пространства'!$HP$11:$HP$1048576) -> 0
A125: 12.4. | B125: Гравийная крошка | C125: кв. м | D125: 300 | E125: =SUM(ДТ!AJ11,ДТ!BZ11,ДТ!EY11,ДТ!FO11,ДТ!HC11:HE11,ДТ!IK11,ДТ!JL11,ДТ!KN11,ДТ!MG11,'Общественные пространства'!AC10:AE10,'Общественные пространства'!AU10,'Общественные пространства'!BF10,'Общественные пространства'!DI10,'Общественные пространства'!DY10,'Общественные пространства'!EO10,'Общественные пространства'!EZ10,'Общественные пространства'!FL10,'Общественные пространства'!FW10,'Общественные пространства'!GH10,'Общественные пространства'!GT10,'Общественные пространства'!HQ10)-G125 -> 300 | F125: =ДТ!AK11+ДТ!CA11+ДТ!EZ11+ДТ!FP11+ДТ!HF11+ДТ!HG11+ДТ!HH11+ДТ!IL11+ДТ!JM11+ДТ!KP11+ДТ!MH11 -> 0 | G125: =SUMIF('Общественные пространства'!$F$11:$F$1048576,"На содержании иных лиц",'Общественные пространства'!$AC$11:$AC$1048576)+SUMIF('Общественные пространства'!$F$11:$F$1048576,"На содержании иных лиц",'Общественные пространства'!$AD$11:$AD$1048576)+SUMIF('Общественные пространства'!$F$11:$F$1048576,"На содержании иных лиц",'Общественные пространства'!$AE$11:$AE$1048576)+SUMIF('Общественные пространства'!$F$11:$F$1048576,"На содержании иных лиц",'Общественные пространства'!$AU$11:$AU$1048576)+SUMIF('Общественные пространства'!$F$11:$F$1048576,"На содержании иных лиц",'Общественные пространства'!$BF$11:$BF$1048576)+SUMIF('Общественные пространства'!$F$11:$F$1048576,"На содержании иных лиц",'Общественные пространства'!$DI$11:$DI$1048576)+SUMIF('Общественные пространства'!$F$11:$F$1048576,"На содержании иных лиц",'Общественные пространства'!$DY$11:$DY$1048576)+SUMIF('Общественные пространства'!$F$11:$F$1048576,"На содержании иных лиц",'Общественные пространства'!$EO$11:$EO$1048576)+SUMIF('Общественные пространства'!$F$11:$F$1048576,"На содержании иных лиц",'Общественные пространства'!$EZ$11:$EZ$1048576)+SUMIF('Общественные пространства'!$F$11:$F$1048576,"На содержании иных лиц",'Общественные пространства'!$FL$11:$FL$1048576)+SUMIF('Общественные пространства'!$F$11:$F$1048576,"На содержании иных лиц",'Общественные пространства'!$FW$11:$FW$1048576)+SUMIF('Общественные пространства'!$F$11:$F$1048576,"На содержании иных лиц",'Общественные пространства'!$GH$11:$GH$1048576)+SUMIF('Общественные пространства'!$F$11:$F$1048576,"На содержании иных лиц",'Общественные пространства'!$GT$11:$GT$1048576)+SUMIF('Общественные пространства'!$F$11:$F$1048576,"На содержании иных лиц",'Общественные пространства'!$HQ$11:$HQ$1048576) -> 0
A126: 12.5. | B126: Деревянное | C126: кв. м | D126: 0 | E126: =SUM(ДТ!JR11,'Общественные пространства'!AX10,'Общественные пространства'!FC10,'Общественные пространства'!GK10,'Общественные пространства'!HU10)-G126 -> 0 | F126: =ДТ!JS11 -> 0 | G126: =SUMIF('Общественные пространства'!$F$11:$F$1048576,"На содержании иных лиц",'Общественные пространства'!$AX$11:$AX$1048576)+SUMIF('Общественные пространства'!$F$11:$F$1048576,"На содержании иных лиц",'Общественные пространства'!$FC$11:$FC$1048576)+SUMIF('Общественные пространства'!$F$11:$F$1048576,"На содержании иных лиц",'Общественные пространства'!$GK$11:$GK$1048576)+SUMIF('Общественные пространства'!$F$11:$F$1048576,"На содержании иных лиц",'Общественные пространства'!$HU$11:$HU$1048576) -> 0
A127: 12.6. | B127: Асфальтобетонное | C127: кв. м | D127: 985627.29 | E127: =SUM(ДТ!M11,ДТ!O11,ДТ!BC11,ДТ!BE11,ДТ!DH11,ДТ!DJ11,ДТ!EO11,ДТ!EQ11,ДТ!FE11,ДТ!FG11,ДТ!FY11:GA11,ДТ!GE11:GG11,ДТ!HY11,ДТ!IA11,ДТ!IX11,ДТ!IZ11,ДТ!KF11,ДТ!KJ11,ДТ!LS11,ДТ!LU11,'Общественные пространства'!J10,'Общественные пространства'!K10,'Общественные пространства'!N10:S10,'Общественные пространства'!AN10:AO10,'Общественные пространства'!BA10:BB10,'Общественные пространства'!CZ10:DA10,'Общественные пространства'!DP10:DQ10,'Общественные пространства'!EE10:EF10,'Общественные пространства'!EJ10:EK10,'Общественные пространства'!ES10:ET10,'Общественные пространства'!FE10:FF10,'Общественные пространства'!FP10:FQ10,'Общественные пространства'!GA10:GB10,'Общественные пространства'!GP10,'Общественные пространства'!GR10,'Общественные пространства'!HJ10:HK10)-G127 -> 761086.81 | F127: =ДТ!N11+ДТ!P11+ДТ!BD11+ДТ!BF11+ДТ!DI11+ДТ!DK11+ДТ!EP11+ДТ!ER11+ДТ!FF11+ДТ!FH11+SUM(ДТ!GB11:GD11,ДТ!GH11:GJ11,ДТ!HZ11,ДТ!IB11,ДТ!IY11,ДТ!JA11,ДТ!KH11,ДТ!KL11,ДТ!LT11,ДТ!LV11) -> 224540.48 | G127: =SUMIF('Общественные пространства'!$F$11:$F$1048576,"На содержании иных лиц",'Общественные пространства'!$J$11:$J$1048576)+SUMIF('Общественные пространства'!$F$11:$F$1048576,"На содержании иных лиц",'Общественные пространства'!$K$11:$K$1048576)+SUMIF('Общественные пространства'!$F$11:$F$1048576,"На содержании иных лиц",'Общественные пространства'!$N$11:$N$1048576)+SUMIF('Общественные пространства'!$F$11:$F$1048576,"На содержании иных лиц",'Общественные пространства'!$O$11:$O$1048576)+SUMIF('Общественные пространства'!$F$11:$F$1048576,"На содержании иных лиц",'Общественные пространства'!$P$11:$P$1048576)+SUMIF('Общественные пространства'!$F$11:$F$1048576,"На содержании иных лиц",'Общественные пространства'!$Q$11:$Q$1048576)+SUMIF('Общественные пространства'!$F$11:$F$1048576,"На содержании иных лиц",'Общественные пространства'!$R$11:$R$1048576)+SUMIF('Общественные пространства'!$F$11:$F$1048576,"На содержании иных лиц",'Общественные пространства'!$S$11:$S$1048576)+SUMIF('Общественные пространства'!$F$11:$F$1048576,"На содержании иных лиц",'Общественные пространства'!$AN$11:$AN$1048576)+SUMIF('Общественные пространства'!$F$11:$F$1048576,"На содержании иных лиц",'Общественные пространства'!$AO$11:$AO$1048576)+SUMIF('Общественные пространства'!$F$11:$F$1048576,"На содержании иных лиц",'Общественные пространства'!$BA$11:$BA$1048576)+SUMIF('Общественные пространства'!$F$11:$F$1048576,"На содержании иных лиц",'Общественные пространства'!$BB$11:$BB$1048576)+SUMIF('Общественные пространства'!$F$11:$F$1048576,"На содержании иных лиц")+SUMIF('Общественные пространства'!$F$11:$F$1048576,"На содержании иных лиц")+SUMIF('Общественные пространства'!$F$11:$F$1048576,"На содержании иных лиц",'Общественные пространства'!$CZ$11:$CZ$1048576)+SUMIF('Общественные пространства'!$F$11:$F$1048576,"На содержании иных лиц",'Общественные пространства'!$DA$11:$DA$1048576)+SUMIF('Общественные пространства'!$F$11:$F$1048576,"На содержании иных лиц",'Общественные пространства'!$DP$11:$DP$1048576)+SUMIF('Общественные пространства'!$F$11:$F$1048576,"На содержании иных лиц",'Общественные пространства'!$DQ$11:$DQ$1048576)+SUMIF('Общественные пространства'!$F$11:$F$1048576,"На содержании иных лиц",'Общественные пространства'!$EE$11:$EE$1048576)+SUMIF('Общественные пространства'!$F$11:$F$1048576,"На содержании иных лиц",'Общественные пространства'!$EF$11:$EF$1048576)+SUMIF('Общественные пространства'!$F$11:$F$1048576,"На содержании иных лиц",'Общественные пространства'!$EJ$11:$EJ$1048576)+SUMIF('Общественные пространства'!$F$11:$F$1048576,"На содержании иных лиц",'Общественные пространства'!$EK$11:$EK$1048576)+SUMIF('Общественные пространства'!$F$11:$F$1048576,"На содержании иных лиц",'Общественные пространства'!$ES$11:$ES$1048576)+SUMIF('Общественные пространства'!$F$11:$F$1048576,"На содержании иных лиц",'Общественные пространства'!$ET$11:$ET$1048576)+SUMIF('Общественные пространства'!$F$11:$F$1048576,"На содержании иных лиц",'Общественные пространства'!$FE$11:$FE$1048576)+SUMIF('Общественные пространства'!$F$11:$F$1048576,"На содержании иных лиц",'Общественные пространства'!$FF$11:$FF$1048576)+SUMIF('Общественные пространства'!$F$11:$F$1048576,"На содержании иных лиц",'Общественные пространства'!$FP$11:$FP$1048576)+SUMIF('Общественные пространства'!$F$11:$F$1048576,"На содержании иных лиц",'Общественные пространства'!$FQ$11:$FQ$1048576)+SUMIF('Общественные пространства'!$F$11:$F$1048576,"На содержании иных лиц",'Общественные пространства'!$GA$11:$GA$1048576)+SUMIF('Общественные пространства'!$F$11:$F$1048576,"На содержании иных лиц",'Общественные пространства'!$GB$11:$GB$1048576)+SUMIF('Общественные пространства'!$F$11:$F$1048576,"На содержании иных лиц",'Общественные пространства'!$GP$11:$GP$1048576)+SUMIF('Общественные пространства'!$F$11:$F$1048576,"На содержании иных лиц",'Общественные пространства'!$GR$11:$GR$1048576)+SUMIF('Общественные пространства'!$F$11:$F$1048576,"На содержании иных лиц",'Общественные пространства'!$HJ$11:$HJ$1048576)+SUMIF('Общественные пространства'!$F$11:$F$1048576,"На содержании иных лиц",'Общественные пространства'!$HK$11:$HK$1048576) -> 0
A128: 12.7. | B128: Плитка | C128: кв. м | D128: 15557.7 | E128: =SUM(ДТ!Q11,ДТ!S11,ДТ!BG11,ДТ!BI11,ДТ!DL11,ДТ!DN11,ДТ!ES11,ДТ!EU11,ДТ!FI11,ДТ!FK11,ДТ!GK11:GM11,ДТ!GQ11:GS11,ДТ!IC11,ДТ!IE11,ДТ!JB11,ДТ!JD11,ДТ!LW11,ДТ!LY11,'Общественные пространства'!L10:M10,'Общественные пространства'!T10:Y10,'Общественные пространства'!AP10:AQ10,'Общественные пространства'!BC10:BD10,'Общественные пространства'!DB10:DC10,'Общественные пространства'!DR10:DS10,'Общественные пространства'!EG10:EH10,'Общественные пространства'!EL10:EM10,'Общественные пространства'!EU10:EV10,'Общественные пространства'!FG10:FH10,'Общественные пространства'!FR10:FS10,'Общественные пространства'!GC10:GD10,'Общественные пространства'!HL10:HM10)-G128 -> 13302.7 | F128: =SUM(ДТ!R11,ДТ!T11,ДТ!BH11,ДТ!BJ11,ДТ!DM11,ДТ!DO11,ДТ!ET11,ДТ!EV11,ДТ!FJ11,ДТ!FL11,ДТ!GN11:GP11,ДТ!GT11:GV11,ДТ!ID11,ДТ!IF11,ДТ!JC11,ДТ!JE11,ДТ!LX11,ДТ!LZ11) -> 2255 | G128: =SUMIF('Общественные пространства'!$F$11:$F$1048576,"На содержании иных лиц",'Общественные пространства'!$L$11:$L$1048576)+SUMIF('Общественные пространства'!$F$11:$F$1048576,"На содержании иных лиц",'Общественные пространства'!$M$11:$M$1048576)+SUMIF('Общественные пространства'!$F$11:$F$1048576,"На содержании иных лиц",'Общественные пространства'!$T$11:$T$1048576)+SUMIF('Общественные пространства'!$F$11:$F$1048576,"На содержании иных лиц",'Общественные пространства'!$U$11:$U$1048576)+SUMIF('Общественные пространства'!$F$11:$F$1048576,"На содержании иных лиц",'Общественные пространства'!$V$11:$V$1048576)+SUMIF('Общественные пространства'!$F$11:$F$1048576,"На содержании иных лиц",'Общественные пространства'!$W$11:$W$1048576)+SUMIF('Общественные пространства'!$F$11:$F$1048576,"На содержании иных лиц",'Общественные пространства'!$X$11:$X$1048576)+SUMIF('Общественные пространства'!$F$11:$F$1048576,"На содержании иных лиц",'Общественные пространства'!$Y$11:$Y$1048576)+SUMIF('Общественные пространства'!$F$11:$F$1048576,"На содержании иных лиц",'Общественные пространства'!$AP$11:$AP$1048576)+SUMIF('Общественные пространства'!$F$11:$F$1048576,"На содержании иных лиц",'Общественные пространства'!$AQ$11:$AQ$1048576)+SUMIF('Общественные пространства'!$F$11:$F$1048576,"На содержании иных лиц",'Общественные пространства'!$BC$11:$BC$1048576)+SUMIF('Общественные пространства'!$F$11:$F$1048576,"На содержании иных лиц",'Общественные пространства'!$BD$11:$BD$1048576)+SUMIF('Общественные пространства'!$F$11:$F$1048576,"На содержании иных лиц",'Общественные пространства'!$DB$11:$DB$1048576)+SUMIF('Общественные пространства'!$F$11:$F$1048576,"На содержании иных лиц",'Общественные пространства'!$DC$11:$DC$1048576)+SUMIF('Общественные пространства'!$F$11:$F$1048576,"На содержании иных лиц",'Общественные пространства'!$DR$11:$DR$1048576)+SUMIF('Общественные пространства'!$F$11:$F$1048576,"На содержании иных лиц",'Общественные пространства'!$DS$11:$DS$1048576)+SUMIF('Общественные пространства'!$F$11:$F$1048576,"На содержании иных лиц",'Общественные пространства'!$EG$11:$EG$1048576)+SUMIF('Общественные пространства'!$F$11:$F$1048576,"На содержании иных лиц",'Общественные пространства'!$EH$11:$EH$1048576)+SUMIF('Общественные пространства'!$F$11:$F$1048576,"На содержании иных лиц",'Общественные пространства'!$EL$11:$EL$1048576)+SUMIF('Общественные пространства'!$F$11:$F$1048576,"На содержании иных лиц",'Общественные пространства'!$EM$11:$EM$1048576)+SUMIF('Общественные пространства'!$F$11:$F$1048576,"На содержании иных лиц",'Общественные пространства'!$EU$11:$EU$1048576)+SUMIF('Общественные пространства'!$F$11:$F$1048576,"На содержании иных лиц",'Общественные пространства'!$EV$11:$EV$1048576)+SUMIF('Общественные пространства'!$F$11:$F$1048576,"На содержании иных лиц",'Общественные пространства'!$FG$11:$FG$1048576)+SUMIF('Общественные пространства'!$F$11:$F$1048576,"На содержании иных лиц",'Общественные пространства'!$FH$11:$FH$1048576)+SUMIF('Общественные пространства'!$F$11:$F$1048576,"На содержании иных лиц",'Общественные пространства'!$FR$11:$FR$1048576)+SUMIF('Общественные пространства'!$F$11:$F$1048576,"На содержании иных лиц",'Общественные пространства'!$FS$11:$FS$1048576)+SUMIF('Общественные пространства'!$F$11:$F$1048576,"На содержании иных лиц",'Общественные пространства'!$GC$11:$GC$1048576)+SUMIF('Общественные пространства'!$F$11:$F$1048576,"На содержании иных лиц",'Общественные пространства'!$GD$11:$GD$1048576)+SUMIF('Общественные пространства'!$F$11:$F$1048576,"На содержании иных лиц",'Общественные пространства'!$HL$11:$HL$1048576)+SUMIF('Общественные пространства'!$F$11:$F$1048576,"На содержании иных лиц",'Общественные пространства'!$HM$11:$HM$1048576) -> 0
A129: 12.8. | B129: Щебень | C129: кв. м | D129: 0 | E129: =SUM(ДТ!FA11,ДТ!FQ11,ДТ!HI11:HK11,ДТ!IM11,ДТ!JN11,ДТ!KR11,ДТ!MI11,'Общественные пространства'!AF10:AH10,'Общественные пространства'!AV10,'Общественные пространства'!BG10,'Общественные пространства'!EP10,'Общественные пространства'!FA10,'Общественные пространства'!FM10,'Общественные пространства'!FX10,'Общественные пространства'!GI10,'Общественные пространства'!GV10,'Общественные пространства'!HR10)-G129 -> 0 | F129: =SUM(ДТ!FB11,ДТ!FR11,ДТ!HL11:HN11,ДТ!IN11,ДТ!JO11,ДТ!KT11,ДТ!MJ11) -> 0 | G129: =SUMIF('Общественные пространства'!$F$11:$F$1048576,"На содержании иных лиц",'Общественные пространства'!$AF$11:$AF$1048576)+SUMIF('Общественные пространства'!$F$11:$F$1048576,"На содержании иных лиц",'Общественные пространства'!$AG$11:$AG$1048576)+SUMIF('Общественные пространства'!$F$11:$F$1048576,"На содержании иных лиц",'Общественные пространства'!$AH$11:$AH$1048576)+SUMIF('Общественные пространства'!$F$11:$F$1048576,"На содержании иных лиц",'Общественные пространства'!$AV$11:$AV$1048576)+SUMIF('Общественные пространства'!$F$11:$F$1048576,"На содержании иных лиц",'Общественные пространства'!$BG$11:$BG$1048576)+SUMIF('Общественные пространства'!$F$11:$F$1048576,"На содержании иных лиц",'Общественные пространства'!$EP$11:$EP$1048576)+SUMIF('Общественные пространства'!$F$11:$F$1048576,"На содержании иных лиц",'Общественные пространства'!$FA$11:$FA$1048576)+SUMIF('Общественные пространства'!$F$11:$F$1048576,"На содержании иных лиц",'Общественные пространства'!$FM$11:$FM$1048576)+SUMIF('Общественные пространства'!$F$11:$F$1048576,"На содержании иных лиц",'Общественные пространства'!$FX$11:$FX$1048576)+SUMIF('Общественные пространства'!$F$11:$F$1048576,"На содержании иных лиц",'Общественные пространства'!$GI$11:$GI$1048576)+SUMIF('Общественные пространства'!$F$11:$F$1048576,"На содержании иных лиц",'Общественные пространства'!$GV$11:$GV$1048576)+SUMIF('Общественные пространства'!$F$11:$F$1048576,"На содержании иных лиц",'Общественные пространства'!$HR$11:$HR$1048576) -> 0
A130: 12.9. | B130: Искусственный газон | C130: кв. м | D130: 0 | E130: =SUM(ДТ!CK11,'Общественные пространства'!DZ10,'Общественные пространства'!FB10,'Общественные пространства'!HT10)-G130 -> 0 | F130: =ДТ!CL11 -> 0 | G130: =SUMIF('Общественные пространства'!$F$11:$F$1048576,"На содержании иных лиц",'Общественные пространства'!$DZ$11:$DZ$1048576)+SUMIF('Общественные пространства'!$F$11:$F$1048576,"На содержании иных лиц",'Общественные пространства'!$FB$11:$FB$1048576)+SUMIF('Общественные пространства'!$F$11:$F$1048576,"На содержании иных лиц",'Общественные пространства'!$HT$11:$HT$1048576) -> 0
A131: 12.10. | B131: Газон (всего), в т. ч.: | C131: кв. м | D131: =SUM(D132:D134) -> 3183594.55 | E131: =SUM(E132:E134) -> 2611475.35 | F131: 572119.2 | G131: 0
A132: 12.10.1. | B132: Луговой | C132: кв. м | D132: 1888511.25 | E132: =SUM(ДТ!CM11,'Общественные пространства'!BK10)-Свод!G132 -> 1321392.05 | F132: =ДТ!CN11 -> 567119.2 | G132: =SUMIF('Общественные пространства'!$F$11:$F$1048576,"На содержании иных лиц",'Общественные пространства'!$BK$11:$BK$1048576) -> 0
A133: 12.10.2. | B133: Мавританский | C133: кв. м | D133: 1295083.3 | E133: =SUM(ДТ!CQ11,'Общественные пространства'!BM10)-Свод!G133 -> 1290083.3 | F133: =ДТ!CR11 -> 5000 | G133: =SUMIF('Общественные пространства'!$F$11:$F$1048576,"На содержании иных лиц",'Общественные пространства'!$BM$11:$BM$1048576) -> 0
A134: 12.10.3. | B134: Иной | C134: кв. м | D134: 0 | E134: =SUM(ДТ!CO11,'Общественные пространства'!BL10)-Свод!G134 -> 0 | F134: =ДТ!CP11 -> 0 | G134: =SUMIF('Общественные пространства'!$F$11:$F$1048576,"На содержании иных лиц",'Общественные пространства'!$BL$11:$BL$1048576) -> 0
A135: 12.11. | B135: Лесные насаждения | C135: кв. м | D135: 584798 | E135: ='Общественные пространства'!BT10-Свод!G135 -> 584798 | F135: 0 | G135: =SUMIF('Общественные пространства'!$F$11:$F$1048576,"На содержании иных лиц",'Общественные пространства'!$BT$11:$BT$1048576) -> 0
A136: 12.12. | B136: Иное покрытие, в т.ч. | C136: кв. м | D136: 21837.9 | E136: =SUM(ДТ!FC11,ДТ!FS11,ДТ!HO11:HQ11,ДТ!IO11,ДТ!JP11,ДТ!LD11,ДТ!LH11,ДТ!LL11,ДТ!MK11,'Общественные пространства'!AI10:AK10,'Общественные пространства'!AW10,'Общественные пространства'!BH10,'Общественные пространства'!BW10,'Общественные пространства'!CA10,'Общественные пространства'!CC10,'Общественные пространства'!EQ10,'Общественные пространства'!FN10,'Общественные пространства'!FY10,'Общественные пространства'!GJ10,'Общественные пространства'!HC10,'Общественные пространства'!HE10,'Общественные пространства'!HG10,'Общественные пространства'!HS10) -> 7174.5 | F136: =ДТ!FD11+ДТ!FT11+SUM(ДТ!HR11:HT11,ДТ!IP11,ДТ!JQ11,ДТ!LF11,ДТ!LJ11,ДТ!LN11,ДТ!ML11) -> 14663.4 | G136: =SUMIF('Общественные пространства'!$F$11:$F$1048576,"На содержании иных лиц",'Общественные пространства'!$AI$11:$AI$1048576)+SUMIF('Общественные пространства'!$F$11:$F$1048576,"На содержании иных лиц",'Общественные пространства'!$AJ$11:$AJ$1048576)+SUMIF('Общественные пространства'!$F$11:$F$1048576,"На содержании иных лиц",'Общественные пространства'!$AK$11:$AK$1048576)+SUMIF('Общественные пространства'!$F$11:$F$1048576,"На содержании иных лиц",'Общественные пространства'!$AW$11:$AW$1048576)+SUMIF('Общественные пространства'!$F$11:$F$1048576,"На содержании иных лиц",'Общественные пространства'!$BH$11:$BH$1048576)+SUMIF('Общественные пространства'!$F$11:$F$1048576,"На содержании иных лиц")+SUMIF('Общественные пространства'!$F$11:$F$1048576,"На содержании иных лиц")+SUMIF('Общественные пространства'!$F$11:$F$1048576,"На содержании иных лиц",'Общественные пространства'!$BW$11:$BW$1048576)+SUMIF('Общественные пространства'!$F$11:$F$1048576,"На содержании иных лиц",'Общественные пространства'!$CA$11:$CA$1048576)+SUMIF('Общественные пространства'!$F$11:$F$1048576,"На содержании иных лиц",'Общественные пространства'!$CC$11:$CC$1048576)+SUMIF('Общественные пространства'!$F$11:$F$1048576,"На содержании иных лиц",'Общественные пространства'!$EQ$11:$EQ$1048576)+SUMIF('Общественные пространства'!$F$11:$F$1048576,"На содержании иных лиц",'Общественные пространства'!$FN$11:$FN$1048576)+SUMIF('Общественные пространства'!$F$11:$F$1048576,"На содержании иных лиц",'Общественные пространства'!$FY$11:$FY$1048576)+SUMIF('Общественные пространства'!$F$11:$F$1048576,"На содержании иных лиц",'Общественные пространства'!$GJ$11:$GJ$1048576)+SUMIF('Общественные пространства'!$F$11:$F$1048576,"На содержании иных лиц",'Общественные пространства'!$HC$11:$HC$1048576)+SUMIF('Общественные пространства'!$F$11:$F$1048576,"На содержании иных лиц",'Общественные пространства'!$HE$11:$HE$1048576)+SUMIF('Общественные пространства'!$F$11:$F$1048576,"На содержании иных лиц",'Общественные пространства'!$HG$11:$HG$1048576)+SUMIF('Общественные пространства'!$F$11:$F$1048576,"На содержании иных лиц",'Общественные пространства'!$HS$11:$HS$1048576) -> 0
A137: 12.12.1. | B137: Иные твердые покрытия | C137: кв. м | D137: 0 | E137: =SUM(ДТ!LH11,ДТ!LL11,'Общественные пространства'!HE10,'Общественные пространства'!HG10)-Свод!G137 -> 0 | F137: =ДТ!LJ11+ДТ!LN11 -> 0 | G137: =SUMIF('Общественные пространства'!$F$11:$F$1048576,"На содержании иных лиц")+SUMIF('Общественные пространства'!$F$11:$F$1048576,"На содержании иных лиц")+SUMIF('Общественные пространства'!$F$11:$F$1048576,"На содержании иных лиц",'Общественные пространства'!$HE$11:$HE$1048576)+SUMIF('Общественные пространства'!$F$11:$F$1048576,"На содержании иных лиц",'Общественные пространства'!$HG$11:$HG$1048576) -> 0
A138: 12.12.2. | B138: Иные покрытия | C138: кв. м | D138: 21837.9 | E138: =E136-E137 -> 7174.5 | F138: =F136-F137 -> 14663.4 | G138: 0

Sheet ДТ
A1: Титульный список
A2: Дворовых территорий
A5: № п/п | B5: ОМСУ | C5: Адрес объекта | D5: Номер ID объекта | E5: Всего уборочная площадь дворовых территорий, кв.м. | J5: Детские площадки | AY5: Спортивные площадки | CM5: Озеленение | DE5: Контейнерные площадки | DP5: Элементы сопряжения поверхностей, п.м. | DR5: Конструкции велопарковок, ед. | DT5: Ограждение, п.м. | DZ5: Средства размещения информации | ED5: Малые архитектурные формы | EL5: Коллективные автостоянки | FE5: Внутридворовые проезды | FY5: Тротуары | HY5: Пешеходные дорожки | IU5: Площадки для отдыха | JT5: Велодорожки | LS5: Иные объекты благоустройства в составе придомовых территорий многоквартирных домов
E6: итого | F6: механизированная | H6: ручная | J6: Количество детских площадок, ед. | M6: Уборочная площадь твердого покрытия кв.м. | U6: Уборочная площадь мягкого покрытия кв.м | AL6: Оборудование детских игровых площадок | AY6: Количество спортивных площадок, ед. | BC6: Уборочная площадь твердого покрытия кв.м. | BK6: Уборочная площадь мягкого покрытия кв.м | CB6: Оборудование спортивных площадок, ед. | CK6: Искусственный газон, кв.м. | CM6: Газон, кв.м. | CS6: Деревья, ед | CU6: Цветники | DC6: Кустарники, ед. | DE6: Количество контейнерных площадок, ед. | DH6: Уборочная площадь территории, кв.м. | DT6: деревянное | DV6: металлическое | DX6: прочее | DZ6: Информационные стенды, ед. | EB6: Иные средства, ед. | ED6: Количество городской мебели, ед. | EF6: Элементы монументально-декоративного оформления, ед | EH6: Устройства для оформления озеленения | EJ6: Урны | EL6: Количество парковочных мест, ед | EO6: Уборочная площадь твердого покрытия, кв.м. | EW6: Уборочная площадь мягкого покрытия кв.м | FE6: Уборочная площадь твердого покрытия, кв.м. | FM6: Уборочная площадь мягкого покрытия, кв.м. | FU6: Длина, п.м. | FW6: Ширина, п.м. | FY6: Уборочная площадь покрытия из асфальтобетона, кв.м. | GK6: Уборочная площадь покрытия из плитки, кв.м. | GW6: Уборочная площадь мягкого покрытия, кв.м. | HU6: Длина, п.м. | HW6: Ширина, п.м. | HY6: Уборочная площадь твердого покрытия, кв.м. | IG6: Уборочная площадь мягкого покрытия, кв.м. | IQ6: Длина, п.м. | IS6: Ширина, п.м. | IU6: Количество площадок для отдыха, ед | IX6: Уборочная площадь твердого покрытия кв.м. | JF6: Уборочная площадь мягкого покрытия кв.м | JR6: Уборочная площадь деревянного покрытия, кв.м. | JT6: Количество велодорожек, шт. | JW6: Протяженность велодорожек, пог. м. | JZ6: Площадь велодорожек (всего), кв. м. | KE6: Асфальтобетон / асфальт / бетон | KM6: Гравийная крошка | KQ6: Щебень | KU6: Резиновое покрытие | LC6: Иные мягкие покрытия | LG6: Иные твердые покрытия | LO6: Конструкции велопарковок, шт. | LR6: Велодорожка используется, как лыжная трасса в зимний период | LS6: Уборочная площадь твердого покрытия кв.м. | MA6: Мягкое покрытие, кв.м
M7: Асфальтобетон | Q7: Плитка | U7: резиновое, синтетическое покрытие | AF7: песчаное | AH7: грунтовое | AJ7: гравийная крошка | BC7: Асфальтобетон | BG7: Плитка | BK7: резиновое, синтетическое покрытие | BV7: песчаное | BX7: грунтовое | BZ7: гравийная крошка | CU7: Однолетники | CY7: Многолетники | DH7: Асфальтобетон | DL7: Плитка | EL7: Всего | EM7: из которых содержится: | EO7: Асфальтобетон | ES7: Плитка | EW7: Грунтовое | EY7: Гравийная крошка | FA7: Щебень | FC7: Иное | FE7: Асфальтобетон | FI7: Плитка | FM7: Грунтовое | FO7: Гравийная крошка | FQ7: Щебень | FS7: Иное | FY7: механизированная | GE7: ручная | GK7: механизированная | GQ7: ручная | GW7: Грунтовое | HC7: Гравийная крошка | HI7: Щебень | HO7: Иное | HY7: Асфальтобетон | IC7: Плитка | IG7: Резиновое, синтетическое | II7: Грунтовое | IK7: Гравийная крошка | IM7: Щебень | IO7: Иное | IU7: Всего | IV7: из которых содержится | IX7: Асфальтобетон | JB7: Плитка | JF7: Резиновое, синтетическое | JH7: Песчаное | JJ7: Грунтовое | JL7: Гравийная крошка | JN7: Щебень | JP7: Иное | JT7: Всего | JU7: из которых содержится: | JW7: Всего | JX7: из которых содержится: | JZ7: Всего | KA7: из которых содержится: | KE7: механизированная | KI7: ручная | LG7: механизированная | LK7: ручная | LO7: Всего | LP7: ОМСУ, МБУ, МКУ | LQ7: ЭО | LS7: Асфальтобетон | LW7: Плитка | MA7: Резиновое, синтетическое | MC7: Песчаное | ME7: Грунтовое | MG7: Гравийная крошка | MI7: Щебень | MK7: Иное
J8: Всего | K8: Площадки содержатся | M8: механизированная | O8: ручная | Q8: механизированная | S8: ручная | U8: Количество,шт. | V8: Площадь, кв. м. | W8: до 3-х лет | Z8: от 3-7 лет | AC8: более 7 лет | AL8: Количество,шт. | AM8: до 3-х лет | AP8: от 3-7 лет | AS8: более 7 лет | AV8: Песочницы | AY8: Всего | BA8: Скейтпарки | BC8: механизированная | BE8: ручная | BG8: механизированная | BI8: ручная | BK8: Количество,шт. | BL8: Площадь, кв. м. | BM8: до 3-х лет | BP8: от 3-7 лет | BS8: более 7 лет | CB8: до 3-х лет | CE8: от 3-7 лет | CH8: более 7 лет | CM8: Луговой | CO8: Иной | CQ8: Мавританский | CU8: Кол-во, ед. | CW8: Площадь, кв.м. | CY8: Кол-во, ед. | DA8: Площадь, кв.м. | DE8: Всего | DF8: из которых содержится: | DH8: механизированная | DJ8: ручная | DL8: механизированная | DN8: ручная | EO8: механизированная | EQ8: ручная | ES8: механизированная | EU8: ручная | FE8: механизированная | FG8: ручная | FI8: механизированная | FK8: ручная | FY8: 1 класс | FZ8: 2 класс | GA8: 3 класс | GB8: 1 класс | GC8: 2 класс | GD8: 3 класс | GE8: 1 класс | GF8: 2 класс | GG8: 3 класс | GH8: 1 класс | GI8: 2 класс | GJ8: 3 класс | GK8: 1 класс | GL8: 2 класс | GM8: 3 класс | GN8: 1 класс | GO8: 2 класс | GP8: 3 класс | GQ8: 1 класс | GR8: 2 класс | GS8: 3 класс | GT8: 1 класс | GU8: 2 класс | GV8: 3 класс | GW8: 1 класс | GX8: 2 класс | GY8: 3 класс | GZ8: 1 класс | HA8: 2 класс | HB8: 3 класс | HC8: 1 класс | HD8: 2 класс | HE8: 3 класс | HF8: 1 класс | HG8: 2 класс | HH8: 3 класс | HI8: 1 класс | HJ8: 2 класс | HK8: 3 класс | HL8: 1 класс | HM8: 2 класс | HN8: 3 класс | HO8: 1 класс | HP8: 2 класс | HQ8: 3 класс | HR8: 1 класс | HS8: 2 класс | HT8: 3 класс | HY8: механизированная | IA8: ручная | IC8: механизированная | IE8: ручная | IX8: механизированная | IZ8: ручная | JB8: механизированная | JD8: ручная | KA8: механизированная | KC8: ручная | KE8: ОМСУ, МБУ, МКУ | KG8: ЭО | KI8: ОМСУ, МБУ, МКУ | KK8: ЭО | KM8: ОМСУ, МБУ, МКУ | KO8: ЭО | KQ8: ОМСУ, МБУ, МКУ | KS8: ЭО | KU8: Протяженность, пог. м. | KV8: Площадь (всего), м2. | KW8: до 3 лет | KY8: 3 - 7 лет | LA8: более 7 лет | LC8: ОМСУ, МБУ, МКУ | LE8: ЭО | LG8: ОМСУ, МБУ, МКУ | LI8: ЭО | LK8: ОМСУ, МБУ, МКУ | LM8: ЭО | LS8: механизированная | LU8: ручная | LW8: механизированная | LY8: ручная
F9: ОМСУ, МБУ, МКУ | G9: ЭО | H9: ОМСУ, МБУ, МКУ | I9: ЭО | K9: ОМСУ, МБУ, МКУ | L9: ЭО | M9: ОМСУ, МБУ, МКУ | N9: ЭО | O9: ОМСУ, МБУ, МКУ | P9: ЭО | Q9: ОМСУ, МБУ, МКУ | R9: ЭО | S9: ОМСУ, МБУ, МКУ | T9: ЭО | W9: Всего | X9: ОМСУ, МБУ, МКУ | Y9: ЭО | Z9: Всего | AA9: ОМСУ, МБУ, МКУ | AB9: ЭО | AC9: Всего | AD9: ОМСУ, МБУ, МКУ | AE9: ЭО | AF9: ОМСУ, МБУ, МКУ | AG9: ЭО | AH9: ОМСУ, МБУ, МКУ | AI9: ЭО | AJ9: ОМСУ, МБУ, МКУ | AK9: ЭО | AM9: Всего | AN9: ОМСУ, МБУ, МКУ | AO9: ЭО | AP9: Всего | AQ9: ОМСУ, МБУ, МКУ | AR9: ЭО | AS9: Всего | AT9: ОМСУ, МБУ, МКУ | AU9: ЭО | AV9: Всего | AW9: ОМСУ, МБУ, МКУ | AX9: ЭО | AY9: ОМСУ, МБУ, МКУ | AZ9: ЭО | BA9: ОМСУ, МБУ, МКУ | BB9: ЭО | BC9: ОМСУ, МБУ, МКУ | BD9: ЭО | BE9: ОМСУ, МБУ, МКУ | BF9: ЭО | BG9: ОМСУ, МБУ, МКУ | BH9: ЭО | BI9: ОМСУ, МБУ, МКУ | BJ9: ЭО | BM9: Всего | BN9: ОМСУ, МБУ, МКУ | BO9: ЭО | BP9: Всего | BQ9: ОМСУ, МБУ, МКУ | BR9: ЭО | BS9: Всего | BT9: ОМСУ, МБУ, МКУ | BU9: ЭО | BV9: ОМСУ, МБУ, МКУ | BW9: ЭО | BX9: ОМСУ, МБУ, МКУ | BY9: ЭО | BZ9: ОМСУ, МБУ, МКУ | CA9: ЭО | CB9: Всего | CC9: ОМСУ, МБУ, МКУ | CD9: ЭО | CE9: Всего | CF9: ОМСУ, МБУ, МКУ | CG9: ЭО | CH9: Всего | CI9: ОМСУ, МБУ, МКУ | CJ9: ЭО | CK9: ОМСУ, МБУ, МКУ | CL9: ЭО | CM9: ОМСУ, МБУ, МКУ | CN9: ЭО | CO9: ОМСУ, МБУ, МКУ | CP9: ЭО | CQ9: ОМСУ, МБУ, МКУ | CR9: ЭО | CS9: ОМСУ, МБУ, МКУ | CT9: ЭО | CU9: ОМСУ, МБУ, МКУ | CV9: ЭО | CW9: ОМСУ, МБУ, МКУ | CX9: ЭО | CY9: ОМСУ, МБУ, МКУ | CZ9: ЭО | DA9: ОМСУ, МБУ, МКУ | DB9: ЭО | DC9: ОМСУ, МБУ, МКУ | DD9: ЭО | DF9: ОМСУ, МБУ, МКУ | DG9: ЭО | DH9: ОМСУ, МБУ, МКУ | DI9: ЭО | DJ9: ОМСУ, МБУ, МКУ | DK9: ЭО | DL9: ОМСУ, МБУ, МКУ | DM9: ЭО | DN9: ОМСУ, МБУ, МКУ | DO9: ЭО | DP9: ОМСУ, МБУ, МКУ | DQ9: ЭО | DR9: ОМСУ, МБУ, МКУ | DS9: ЭО | DT9: ОМСУ, МБУ, МКУ | DU9: ЭО | DV9: ОМСУ, МБУ, МКУ | DW9: ЭО | DX9: ОМСУ, МБУ, МКУ | DY9: ЭО | DZ9: ОМСУ, МБУ, МКУ | EA9: ЭО | EB9: ОМСУ, МБУ, МКУ | EC9: ЭО | ED9: ОМСУ, МБУ, МКУ | EE9: ЭО | EF9: ОМСУ, МБУ, МКУ | EG9: ЭО | EH9: ОМСУ, МБУ, МКУ | EI9: ЭО | EJ9: ОМСУ, МБУ, МКУ | EK9: ЭО | EM9: ОМСУ, МБУ, МКУ | EN9: ЭО | EO9: ОМСУ, МБУ, МКУ | EP9: ЭО | EQ9: ОМСУ, МБУ, МКУ | ER9: ЭО | ES9: ОМСУ, МБУ, МКУ | ET9: ЭО | EU9: ОМСУ, МБУ, МКУ | EV9: ЭО | EW9: ОМСУ, МБУ, МКУ | EX9: ЭО | EY9: ОМСУ, МБУ, МКУ | EZ9: ЭО | FA9: ОМСУ, МБУ, МКУ | FB9: ЭО | FC9: ОМСУ, МБУ, МКУ | FD9: ЭО | FE9: ОМСУ, МБУ, МКУ | FF9: ЭО | FG9: ОМСУ, МБУ, МКУ | FH9: ЭО | FI9: ОМСУ, МБУ, МКУ | FJ9: ЭО | FK9: ОМСУ, МБУ, МКУ | FL9: ЭО | FM9: ОМСУ, МБУ, МКУ | FN9: ЭО | FO9: ОМСУ, МБУ, МКУ | FP9: ЭО | FQ9: ОМСУ, МБУ, МКУ | FR9: ЭО | FS9: ОМСУ, МБУ, МКУ | FT9: ЭО | FU9: ОМСУ, МБУ, МКУ | FV9: ЭО | FW9: ОМСУ, МБУ, МКУ | FX9: ЭО | FY9: ОМСУ, МБУ, МКУ | GB9: ЭО | GE9: ОМСУ, МБУ, МКУ | GH9: ЭО | GK9: ОМСУ, МБУ, МКУ | GN9: ЭО | GQ9: ОМСУ, МБУ, МКУ | GT9: ЭО | GW9: ОМСУ, МБУ, МКУ | GZ9: ЭО | HC9: ОМСУ, МБУ, МКУ | HF9: ЭО | HI9: ОМСУ, МБУ, МКУ | HL9: ЭО | HO9: ОМСУ, МБУ, МКУ | HR9: ЭО | HU9: ОМСУ, МБУ, МКУ | HV9: ЭО | HW9: ОМСУ, МБУ, МКУ | HX9: ЭО | HY9: ОМСУ, МБУ, МКУ | HZ9: ЭО | IA9: ОМСУ, МБУ, МКУ | IB9: ЭО | IC9: ОМСУ, МБУ, МКУ | ID9: ЭО | IE9: ОМСУ, МБУ, МКУ | IF9: ЭО | IG9: ОМСУ, МБУ, МКУ | IH9: ЭО | II9: ОМСУ, МБУ, МКУ | IJ9: ЭО | IK9: ОМСУ, МБУ, МКУ | IL9: ЭО | IM9: ОМСУ, МБУ, МКУ | IN9: ЭО | IO9: ОМСУ, МБУ, МКУ | IP9: ЭО | IQ9: ОМСУ, МБУ, МКУ | IR9: ЭО | IS9: ОМСУ, МБУ, МКУ | IT9: ЭО | IV9: ОМСУ, МБУ, МКУ | IW9: ЭО | IX9: ОМСУ, МБУ, МКУ | IY9: ЭО | IZ9: ОМСУ, МБУ, МКУ | JA9: ЭО | JB9: ОМСУ, МБУ, МКУ | JC9: ЭО | JD9: ОМСУ, МБУ, МКУ | JE9: ЭО | JF9: ОМСУ, МБУ, МКУ | JG9: ЭО | JH9: ОМСУ, МБУ, МКУ | JI9: ЭО | JJ9: ОМСУ, МБУ, МКУ | JK9: ЭО | JL9: ОМСУ, МБУ, МКУ | JM9: ЭО | JN9: ОМСУ, МБУ, МКУ | JO9: ЭО | JP9: ОМСУ, МБУ, МКУ | JQ9: ЭО | JR9: ОМСУ, МБУ, МКУ | JS9: ЭО | JU9: ОМСУ, МБУ, МКУ | JV9: ЭО | JX9: ОМСУ, МБУ, МКУ | JY9: ЭО | KA9: ОМСУ, МБУ, МКУ | KB9: ЭО | KC9: ОМСУ, МБУ, МКУ | KD9: ЭО | KE9: пог. м. | KF9: кв. м. | KG9: пог. м. | KH9: кв. м. | KI9: пог. м. | KJ9: кв. м. | KK9: пог. м. | KL9: кв. м. | KM9: пог. м. | KN9: кв. м. | KO9: пог. м. | KP9: кв. м. | KQ9: пог. м. | KR9: кв. м. | KS9: пог. м. | KT9: кв. м. | KW9: ОМСУ, МБУ, МКУ | KX9: ЭО | KY9: ОМСУ, МБУ, МКУ | KZ9: ЭО | LA9: ОМСУ, МБУ, МКУ | LB9: ЭО | LC9: пог. м. | LD9: кв. м. | LE9: пог. м. | LF9: кв. м. | LG9: пог. м. | LH9: кв. м. | LI9: пог. м. | LJ9: кв. м. | LK9: пог. м. | LL9: кв. м. | LM9: пог. м. | LN9: кв. м. | LS9: ОМСУ, МБУ, МКУ | LT9: ЭО | LU9: ОМСУ, МБУ, МКУ | LV9: ЭО | LW9: ОМСУ, МБУ, МКУ | LX9: ЭО | LY9: ОМСУ, МБУ, МКУ | LZ9: ЭО | MA9: ОМСУ, МБУ, МКУ | MB9: ЭО | MC9: ОМСУ, МБУ, МКУ | MD9: ЭО | ME9: ОМСУ, МБУ, МКУ | MF9: ЭО | MG9: ОМСУ, МБУ, МКУ | MH9: ЭО | MI9: ОМСУ, МБУ, МКУ | MJ9: ЭО | MK9: ОМСУ, МБУ, МКУ | ML9: ЭО
A10: 1 | B10: =A10+1 -> 2 | C10: =B10+1 -> 3 | D10: 4 | E10: 5 | F10: 6 | G10: 7 | H10: 8 | I10: 9 | J10: =I10+1 -> 10 | K10: 11 | L10: 12 | M10: 13 | N10: 14 | O10: 15 | P10: 16 | Q10: 17 | R10: 18 | S10: 19 | T10: 20 | U10: 21 | V10: 22 | W10: 23 | X10: 24 | Y10: 25 | Z10: 26 | AA10: 27 | AB10: 28 | AC10: 29 | AD10: 30 | AE10: 31 | AF10: 32 | AG10: 33 | AH10: 34 | AI10: 35 | AJ10: 36 | AK10: 37 | AL10: 38 | AM10: 39 | AN10: 40 | AO10: 41 | AP10: 42 | AQ10: 43 | AR10: 44 | AS10: 45 | AT10: 46 | AU10: 47 | AV10: 48 | AW10: 49 | AX10: 50 | AY10: 51 | AZ10: 52 | BA10: 53 | BB10: 54 | BC10: 55 | BD10: 56 | BE10: 57 | BF10: 58 | BG10: 59 | BH10: 60 | BI10: 61 | BJ10: 62 | BK10: 63 | BL10: 64 | BM10: 65 | BN10: 66 | BO10: =BN10+1 -> 67 | BP10: 68 | BQ10: 69 | BR10: 70 | BS10: 71 | BT10: 72 | BU10: 73 | BV10: 74 | BW10: 75 | BX10: 76 | BY10: 77 | BZ10: 78 | CA10: 79 | CB10: 80 | CC10: 81 | CD10: 82 | CE10: 83 | CF10: 84 | CG10: 85 | CH10: 86 | CI10: 87 | CJ10: 88 | CK10: 89 | CL10: 90 | CM10: 91 | CN10: 92 | CO10: 93 | CP10: 94 | CQ10: 95 | CR10: 96 | CS10: 97 | CT10: 98 | CU10: 99 | CV10: 100 | CW10: 101 | CX10: 102 | CY10: 103 | CZ10: 104 | DA10: 105 | DB10: 106 | DC10: 107 | DD10: 108 | DE10: 109 | DF10: 110 | DG10: 111 | DH10: 112 | DI10: 113 | DJ10: 114 | DK10: 115 | DL10: 116 | DM10: 117 | DN10: 118 | DO10: 119 | DP10: 120 | DQ10: 121 | DR10: 122 | DS10: 123 | DT10: 124 | DU10: 125 | DV10: 126 | DW10: 127 | DX10: 128 | DY10: 129 | DZ10: 130 | EA10: =DZ10+1 -> 131 | EB10: 132 | EC10: 133 | ED10: 134 | EE10: 135 | EF10: 136 | EG10: 137 | EH10: 138 | EI10: 139 | EJ10: 140 | EK10: 141 | EL10: 142 | EM10: 143 | EN10: 144 | EO10: 145 | EP10: 146 | EQ10: 147 | ER10: 148 | ES10: 149 | ET10: 150 | EU10: 151 | EV10: 152 | EW10: 153 | EX10: 154 | EY10: 155 | EZ10: 156 | FA10: 157 | FB10: 158 | FC10: 159 | FD10: 160 | FE10: 161 | FF10: 162 | FG10: 163 | FH10: 164 | FI10: 165 | FJ10: 166 | FK10: 167 | FL10: 168 | FM10: 169 | FN10: 170 | FO10: 171 | FP10: 172 | FQ10: 173 | FR10: 174 | FS10: 175 | FT10: 176 | FU10: 177 | FV10: 178 | FW10: 179 | FX10: 180 | FY10: 181 | FZ10: 182 | GA10: 183 | GB10: 184 | GC10: 185 | GD10: 186 | GE10: 187 | GF10: 188 | GG10: 189 | GH10: 190 | GI10: 191 | GJ10: 192 | GK10: 193 | GL10: 194 | GM10: =GL10+1 -> 195 | GN10: 196 | GO10: 197 | GP10: 198 | GQ10: 199 | GR10: 200 | GS10: 201 | GT10: 202 | GU10: 203 | GV10: 204 | GW10: 205 | GX10: 206 | GY10: 207 | GZ10: 208 | HA10: 209 | HB10: 210 | HC10: 211 | HD10: 212 | HE10: 213 | HF10: 214 | HG10: 215 | HH10: 216 | HI10: 217 | HJ10: 218 | HK10: 219 | HL10: 220 | HM10: 221 | HN10: 222 | HO10: 223 | HP10: 224 | HQ10: 225 | HR10: 226 | HS10: 227 | HT10: 228 | HU10: 229 | HV10: 230 | HW10: 231 | HX10: 232 | HY10: 233 | HZ10: 234 | IA10: 235 | IB10: 236 | IC10: 237 | ID10: 238 | IE10: 239 | IF10: 240 | IG10: 241 | IH10: 242 | II10: 243 | IJ10: 244 | IK10: 245 | IL10: 246 | IM10: 247 | IN10: 248 | IO10: 249 | IP10: 250 | IQ10: 251 | IR10: 252 | IS10: 253 | IT10: 254 | IU10: 255 | IV10: 256 | IW10: 257 | IX10: 258 | IY10: =IX10+1 -> 259 | IZ10: 260 | JA10: 261 | JB10: 262 | JC10: 263 | JD10: 264 | JE10: 265 | JF10: 266 | JG10: 267 | JH10: 268 | JI10: 269 | JJ10: 270 | JK10: 271 | JL10: 272 | JM10: 273 | JN10: 274 | JO10: 275 | JP10: 276 | JQ10: 277 | JR10: 278 | JS10: 279 | JT10: 280 | JU10: 281 | JV10: 282 | JW10: 283 | JX10: 284 | JY10: 285 | JZ10: 286 | KA10: 287 | KB10: 288 | KC10: 289 | KD10: 290 | KE10: 291 | KF10: 292 | KG10: 293 | KH10: 294 | KI10: 295 | KJ10: 296 | KK10: 297 | KL10: 298 | KM10: 299 | KN10: 300 | KO10: 301 | KP10: 302 | KQ10: 303 | KR10: 304 | KS10: 305 | KT10: 306 | KU10: 307 | KV10: 308 | KW10: 309 | KX10: 310 | KY10: 311 | KZ10: 312 | LA10: 313 | LB10: 314 | LC10: 315 | LD10: 316 | LE10: 317 | LF10: 318 | LG10: 319 | LH10: 320 | LI10: 321 | LJ10: 322 | LK10: =LJ10+1 -> 323 | LL10: 324 | LM10: 325 | LN10: 326 | LO10: 327 | LP10: 328 | LQ10: 329 | LR10: 330 | LS10: 331 | LT10: 332 | LU10: 333 | LV10: 334 | LW10: 335 | LX10: 336 | LY10: 337 | LZ10: 338 | MA10: 339 | MB10: 340 | MC10: 341 | MD10: 342 | ME10: 343 | MF10: 344 | MG10: 345 | MH10: 346 | MI10: 347 | MJ10: 348 | MK10: 349 | ML10: 350
A11: ИТОГО | C11: =COUNTA(C12:C1000001) -> 294 | D11: =COUNTA(D12:D1000001) -> 294 | E11: =SUM(F11,G11,H11,I11) -> 3331223.59 | F11: =SUM(M11,Q11,BC11,BG11,DH11,DL11,EO11,ES11,FE11,FI11,FY11,FZ11,GA11,GK11,GL11,GM11,HY11,IC11,IX11,JB11,LS11,LW11,KF11,LH11) -> 559786.48 | G11: =SUM(N11,R11,BD11,BH11,DI11,DM11,EP11,ET11,FF11,FJ11,GB11,GC11,GD11,GN11,GO11,GP11,HZ11,ID11,IY11,JC11,LT11,LX11,KH11,LJ11) -> 101240.4 | H11: =SUM(O11,S11,AF11,AH11,AJ11,BE11,BI11,BV11,BX11,BZ11,CM11,CO11,CQ11,CK11,GW11,GX11,GY11,HC11,HD11,DJ11,DN11,EQ11,EU11,FG11,FK11,GE11,GF11,GG11,GQ11,GR11,GS11,IA11,IE11,IZ11,JD11,JF11,JH11,JJ11,JL11,LU11,LY11,MA11,MC11,ME11,MG11,HE11,HI11,HJ11,HK11,HO11,HP11,HQ11,IG11,II11,IK11,IM11,IO11,JN11,MI11,MK11,EW11,EY11,FA11,FC11,JR11,FM11,FO11,FQ11,FS11,JP11+X11+AA11+AD11+BN11+BQ11+BT11+KJ11+KR11+KW11+KY11+LA11+LD11+LL11,CW11,DA11,KN11) -> 1948897.03 | I11: =SUM(P11,T11,Y11,AB11,AE11,AG11,AI11,AK11,BF11,BJ11,BO11,BR11,BU11,BW11,BY11,CA11,CL11,CN11,CP11,CR11,CX11,DB11,DK11,DO11,ER11,EV11,EX11,EZ11,FB11,FD11,FH11,FL11,FN11,FP11,FR11,FT11,GH11:GJ11,GT11:GV11,GZ11:HB11,HF11:HH11,HL11:HN11,HR11:HT11,IB11,IF11,IH11,IJ11,IL11,IN11,IP11,JA11,JE11,JG11,JI11,JK11,JM123,JM11,JO11,JQ11,JS11,KL11,KT11,KX11,KZ11,LB11,LF11,LN11,LV11,LZ11,MB11,MD11,MF11,MH11,MJ11,ML11,KP11) -> 721299.68 | J11: =SUM(J12:J1000001) -> 288 | K11: =SUM(K12:K1000001) -> 281 | L11: 7 | M11: 0 | N11: 0 | O11: 2069.94 | P11: 0 | Q11: 0 | R11: 0 | S11: 0 | T11: 0 | U11: 292 | V11: 21542.77 | W11: 21542.77 | X11: 17791.77 | Y11: 3751 | Z11: 0 | AA11: 0 | AB11: 0 | AC11: 0 | AD11: 0 | AE11: 0 | AF11: 360 | AG11: 1857 | AH11: 58281.67 | AI11: 797 | AJ11: 300 | AK11: 0 | AL11: 1371 | AM11: 0 | AN11: 0 | AO11: 0 | AP11: 1371 | AQ11: 1371 | AR11: 0 | AS11: 0 | AT11: 0 | AU11: 0 | AV11: 0 | AW11: 0 | AX11: 0 | AY11: 67 | AZ11: 3 | BA11: 0 | BB11: 0 | BC11: 0 | BD11: 0 | BE11: 11721.72 | BF11: 1350 | BG11: 0 | BH11: 0 | BI11: 0 | BJ11: 0 | BK11: 0 | BL11: 2597 | BM11: 0 | BN11: 0 | BO11: 0 | BP11: 2597 | BQ11: 2597 | BR11: 0 | BS11: 0 | BT11: 0 | BU11: 0 | BV11: 819 | BW11: =SUM(BW12:BW1000001) -> 0 | BX11: 7909.31 | BY11: 0 | BZ11: 0 | CA11: 0 | CB11: 0 | CC11: 0 | CD11: 0 | CE11: 593 | CF11: 593 | CG11: 0 | CH11: 0 | CI11: 0 | CJ11: 0 | CK11: 0 | CL11: 0 | CM11: 724783.25 | CN11: 567119.2 | CO11: 0 | CP11: 0 | CQ11: 1076595.3 | CR11: 5000 | CS11: 18871 | CT11: 3263 | CU11: 0 | CV11: 0 | CW11: 0 | CX11: 2557 | CY11: 0 | CZ11: 0 | DA11: 0 | DB11: 0 | DC11: 0 | DD11: 23701 | DE11: 161 | DF11: 0 | DG11: 161 | DH11: 0 | DI11: 0 | DJ11: 0 | DK11: 5168.5 | DL11: 0 | DM11: 0 | DN11: 0 | DO11: 2255 | DP11: 161844 | DQ11: 46658 | DR11: 0 | DS11: 0 | DT11: 788 | DU11: 164 | DV11: 7839 | DW11: 1206 | DX11: 563 | DY11: 341 | DZ11: 0 | EA11: 293 | EB11: 0 | EC11: 0 | ED11: 0 | EE11: 1273 | EF11: 0 | EG11: 0 | EH11: 0 | EI11: 0 | EJ11: 0 | EK11: 774 | EL11: 18173 | EM11: 11892 | EN11: 6281 | EO11: 168897.7 | EP11: =SUM(EP12:EP1000001) -> 36489 | EQ11: 6122.4 | ER11: 57322.01 | ES11: 0 | ET11: 0 | EU11: 0 | EV11: 0 | EW11: 0 | EX11: 0 | EY11: 0 | EZ11: 0 | FA11: 0 | FB11: 0 | FC11: 0 | FD11: 6138.4 | FE11: 340504.63 | FF11: 64751.4 | FG11: 0 | FH11: 0 | FI11: 0 | FJ11: 0 | FK11: 0 | FL11: 0 | FM11: 220 | FN11: 0 | FO11: 0 | FP11: 0 | FQ11: 0 | FR11: 0 | FS11: 0 | FT11: 7633 | FU11: 89889.064 | FV11: 6483.65 | FW11: 1116 | FX11: 109.5 | FY11: 0 | FZ11: 43928.15 | GA11: 0 | GB11: 0 | GC11: 0 | GD11: 0 | GE11: 0 | GF11: 16937.17 | GG11: 0 | GH11: 0 | GI11: 55925.07 | GJ11: 0 | GK11: 0 | GL11: 0 | GM11: 0 | GN11: 0 | GO11: 0 | GP11: 0 | GQ11: 0 | GR11: 0 | GS11: 0 | GT11: 0 | GU11: 0 | GV11: 0 | GW11: 0 | GX11: 0 | GY11: 0 | GZ11: 0 | HA11: 0 | HB11: =SUM(HB12:HB1000001) -> 0 | HC11: 0 | HD11: 0 | HE11: 0 | HF11: 0 | HG11: 0 | HH11: 0 | HI11: 0 | HJ11: 0 | HK11: 0 | HL11: 0 | HM11: 0 | HN11: 0 | HO11: 0 | HP11: 0 | HQ11: 0 | HR11: 0 | HS11: 669 | HT11: 0 | HU11: 9429.843 | HV11: 5113.418 | HW11: 99.35 | HX11: 346.625 | HY11: 6456 | HZ11: 0 | IA11: 22388.5 | IB11: 2734.5 | IC11: 0 | ID11: 0 | IE11: 0 | IF11: 0 | IG11: 0 | IH11: 0 | II11: 0 | IJ11: 0 | IK11: 0 | IL11: 0 | IM11: 0 | IN11: 0 | IO11: 0 | IP11: 223 | IQ11: 502.33 | IR11: 3.34 | IS11: 57.345 | IT11: 13.925 | IU11: 0 | IV11: 0 | IW11: 0 | IX11: 0 | IY11: 0 | IZ11: 0 | JA11: 0 | JB11: 0 | JC11: 0 | JD11: 0 | JE11: 0 | JF11: 0 | JG11: 0 | JH11: 0 | JI11: 0 | JJ11: 0 | JK11: 0 | JL11: 0 | JM11: 0 | JN11: =SUM(JN12:JN1000001) -> 0 | JO11: 0 | JP11: 0 | JQ11: 0 | JR11: 0 | JS11: 0 | JT11: 0 | JU11: 0 | JV11: 0 | JW11: 0 | JX11: 0 | JY11: 0 | JZ11: 0 | KA11: 0 | KB11: 0 | KC11: 0 | KD11: 0 | KE11: 0 | KF11: 0 | KG11: 0 | KH11: 0 | KI11: 0 | KJ11: 0 | KK11: 0 | KL11: 0 | KM11: 0 | KN11: 0 | KO11: 0 | KP11: 0 | KQ11: 0 | KR11: 0 | KS11: 0 | KT11: 0 | KU11: 0 | KV11: 0 | KW11: 0 | KX11: 0 | KY11: 0 | KZ11: 0 | LA11: 0 | LB11: 0 | LC11: 0 | LD11: 0 | LE11: 0 | LF11: 0 | LG11: 0 | LH11: 0 | LI11: 0 | LJ11: 0 | LK11: 0 | LL11: 0 | LM11: 0 | LN11: 0 | LO11: 0 | LP11: 0 | LQ11: 0 | LR11: =COUNTA(LR12:LR1000001) -> 0 | LS11: 0 | LT11: 0 | LU11: 0 | LV11: 800 | LW11: 0 | LX11: 0 | LY11: 0 | LZ11: 0 | MA11: 0 | MB11: 0 | MC11: 0 | MD11: 0 | ME11: 0 | MF11: 0 | MG11: 0 | MH11: 0 | MI11: 0 | MJ11: 0 | MK11: 0 | ML11: 0
A12: 1 | B12: Воскресенский ГО | C12: г. Белоозерский, ул. 50 лет Октября, д.7, 9 | D12: 1385644726 | E12: =SUM(F12,G12,H12,I12) -> 3211 | F12: =SUM(M12,Q12,BC12,BG12,DH12,DL12,EO12,ES12,FE12,FI12,FY12,FZ12,GA12,GK12,GL12,GM12,HY12,IC12,IX12,JB12,LS12,LW12,KF12,LH12) -> 40 | G12: 0 | H12: =SUM(O12,S12,AF12,AH12,AJ12,BE12,BI12,BV12,BX12,BZ12,CM12,CO12,CQ12,CK12,GW12,GX12,GY12,HC12,HD12,DJ12,DN12,EQ12,EU12,FG12,FK12,GE12,GF12,GG12,GQ12,GR12,GS12,IA12,IE12,IZ12,JD12,JF12,JH12,JJ12,JL12,LU12,LY12,MA12,MC12,ME12,MG12,HE12,HI12,HJ12,HK12,HO12,HP12,HQ12,IG12,II12,IK12,IM12,IO12,JN12,MI12,MK12,EW12,EY12,FA12,FC12,JR12,FM12,FO12,FQ12,FS12,JP12+X12+AA12+AD12+BN12+BQ12+BT12+KJ12+KR12+KW12+KY12+LA12+LD12+LL12,CW12,DA12,KN12) -> 2395 | I12: =SUM(P12,T12,Y12,AB12,AE12,AG12,AI12,AK12,BF12,BJ12,BO12,BR12,BU12,BW12,BY12,CA12,CL12,CN12,CP12,CR12,CX12,DB12,DK12,DO12,ER12,EV12,EX12,EZ12,FB12,FD12,FH12,FL12,FN12,FP12,FR12,FT12,GH12:GJ12,GT12:GV12,GZ12:HB12,HF12:HH12,HL12:HN12,HR12:HT12,IB12,IF12,IH12,IJ12,IL12,IN12,IP12,JA12,JE12,JG12,JI12,JK12,JM12,JO12,JQ12,JS12,KL12,KT12,KX12,KZ12,LB12,LF12,LN12,LV12,LZ12,MB12,MD12,MF12,MH12,MJ12,ML12,KP12) -> 776 | J12: =K12+L12 -> 1 | K12: 1 | O12: 0 | U12: 1 | V12: =SUM(W12,AA12,AD12) -> 195 | W12: =X12+Y12 -> 195 | X12: 195 | Z12: =AA12+AB12 -> 0 | AC12: =AD12+AE12 -> 0 | AF12: 0 | AH12: 0 | AI12: 0 | AJ12: 0 | AL12: =AM12+AP12+AS12 -> 0 | AM12: =AN12+AO12 -> 0 | AP12: =AQ12+AR12 -> 0 | AQ12: 0 | AS12: =AT12+AU12 -> 0 | AV12: =AW12+AX12 -> 0 | AY12: 0 | BE12: 0 | BL12: =BM12+BP12+BS12 -> 0 | BP12: =BQ12+BR12 -> 0 | BQ12: 0 | BS12: =BT12+BU12 -> 0 | BV12: 0 | BX12: 0 | CB12: =CC12+CD12 -> 0 | CE12: =CF12+CG12 -> 0 | CG12: 0 | CH12: =CI12+CJ12 -> 0 | CM12: 2200 | CN12: 400 | CT12: 7 | CX12: 0 | DD12: 30 | DE12: =DF12+DG12 -> 1 | DG12: 1 | DK12: 1 | DO12: 0 | DP12: 122 | DV12: 324 | EA12: 1 | EE12: 2 | EK12: 1 | EL12: =EM12+EN12 -> 4 | EM12: 0 | EN12: 4 | EO12: 0 | FD12: 60 | FE12: 0 | FT12: 275 | FU12: 0 | FV12: 80 | FW12: 0 | FX12: 3.5 | GI12: 40 | HS12: 0 | HU12: 0 | HV12: 0.02 | HW12: 0 | HX12: 2 | HY12: 40 | IB12: 0 | IP12: 0 | IQ12: 0.02 | IS12: 2 | IU12: =IV12+IW12 -> 0 | JT12: =JU12+JV12 -> 0 | JW12: =JX12+JY12 -> 0 | JZ12: =KA12+KB12+KC12+KD12 -> 0 | LO12: =LP12+LQ12 -> 0
A13: 2 | B13: Воскресенский ГО | C13: г. Белоозерский, ул. 50 лет Октября, д.8,15,16,17,19 | D13: 247685984 | E13: 22296 | F13: =SUM(M13,Q13,BC13,BG13,DH13,DL13,EO13,ES13,FE13,FI13,FY13,FZ13,GA13,GK13,GL13,GM13,HY13,IC13,IX13,JB13,LS13,LW13,KF13,LH13) -> 4890 | G13: 0 | H13: =SUM(O13,S13,AF13,AH13,AJ13,BE13,BI13,BV13,BX13,BZ13,CM13,CO13,CQ13,CK13,GW13,GX13,GY13,HC13,HD13,DJ13,DN13,EQ13,EU13,FG13,FK13,GE13,GF13,GG13,GQ13,GR13,GS13,IA13,IE13,IZ13,JD13,JF13,JH13,JJ13,JL13,LU13,LY13,MA13,MC13,ME13,MG13,HE13,HI13,HJ13,HK13,HO13,HP13,HQ13,IG13,II13,IK13,IM13,IO13,JN13,MI13,MK13,EW13,EY13,FA13,FC13,JR13,FM13,FO13,FQ13,FS13,JP13+X13+AA13+AD13+BN13+BQ13+BT13+KJ13+KR13+KW13+KY13+LA13+LD13+LL13,CW13,DA13,KN13) -> 14840 | I13: =SUM(P13,T13,Y13,AB13,AE13,AG13,AI13,AK13,BF13,BJ13,BO13,BR13,BU13,BW13,BY13,CA13,CL13,CN13,CP13,CR13,CX13,DB13,DK13,DO13,ER13,EV13,EX13,EZ13,FB13,FD13,FH13,FL13,FN13,FP13,FR13,FT13,GH13:GJ13,GT13:GV13,GZ13:HB13,HF13:HH13,HL13:HN13,HR13:HT13,IB13,IF13,IH13,IJ13,IL13,IN13,IP13,JA13,JE13,JG13,JI13,JK13,JM13,JO13,JQ13,JS13,KL13,KT13,KX13,KZ13,LB13,LF13,LN13,LV13,LZ13,MB13,MD13,MF13,MH13,MJ13,ML13,KP13) -> 2566 | J13: 2 | K13: 2 | O13: 0 | U13: 2 | V13: =SUM(W13,AA13,AD13) -> 0 | W13: =X13+Y13 -> 0 | X13: 0 | Z13: =AA13+AB13 -> 0 | AC13: =AD13+AE13 -> 0 | AF13: 0 | AH13: 1060 | AJ13: 0 | AL13: =AM13+AP13+AS13 -> 25 | AM13: =AN13+AO13 -> 0 | AP13: =AQ13+AR13 -> 25 | AQ13: 25 | AS13: =AT13+AU13 -> 0 | AV13: =AW13+AX13 -> 0 | AY13: 0 | BE13: 0 | BL13: =BM13+BP13+BS13 -> 0 | BP13: =BQ13+BR13 -> 0 | BQ13: 0 | BS13: =BT13+BU13 -> 0 | BV13: 0 | BX13: 0 | CB13: =CC13+CD13 -> 0 | CE13: =CF13+CG13 -> 0 | CG13: 0 | CH13: =CI13+CJ13 -> 0 | CM13: 3780 | CN13: 2500 | CQ13: 10000 | CR13: 0 | CS13: 80 | CT13: 5 | CX13: 0 | DD13: 60 | DE13: =DF13+DG13 -> 0 | DG13: 0 | DK13: 0 | DO13: 0 | DP13: 456 | DV13: 108 | EA13: 1 | EE13: 6 | EK13: 2 | EL13: =EM13+EN13 -> 48 | EM13: 48 | EO13: 720 | FD13: 0 | FE13: 4038 | FT13: 0 | FU13: 745 | FV13: 0 | FW13: 4 | FX13: 0 | GI13: 66 | HS13: 0 | HU13: 0 | HV13: 0.016 | HW13: 0 | HX13: 3 | HY13: 132 | IB13: 0 | IP13: 0 | IQ13: 0.032 | IS13: 4 | IU13: =IV13+IW13 -> 0 | JT13: =JU13+JV13 -> 0 | JW13: =JX13+JY13 -> 0 | JZ13: =KA13+KB13+KC13+KD13 -> 0 | LO13: =LP13+LQ13 -> 0
A14: 3 | B14: Воскресенский ГО | C14: г. Белоозерский, ул. 60 лет Октября, д.10,11,13,16 | D14: 247686004 | E14: 14687 | F14: 3568 | G14: 0 | H14: 8659 | I14: 2460 | J14: 2 | K14: 2 | O14: 0 | U14: 2 | V14: 0 | W14: =X14+Y14 -> 0 | X14: 0 | Z14: 0 | AC14: 0 | AF14: 0 | AH14: 1419 | AJ14: 0 | AL14: 10 | AM14: 0 | AP14: 10 | AQ14: 10 | AS14: 0 | AV14: 0 | AY14: 0 | BE14: 0 | BL14: 0 | BP14: 0 | BQ14: 0 | BS14: 0 | BV14: 0 | BX14: 0 | CB14: 0 | CE14: 0 | CG14: 0 | CH14: 0 | CM14: 7240 | CN14: 2000 | CS14: 65 | CT14: 6 | CX14: 0 | DD14: 30 | DE14: 1 | DG14: 1 | DK14: 60 | DO14: 0 | DP14: 276 | DV14: 172 | EA14: 1 | EE14: 3 | EK14: 3 | EL14: 35 | EM14: 35 | EO14: 420 | FD14: 0 | FE14: 1200 | FT14: 0 | FU14: 300 | FV14: 0 | FW14: 4 | FX14: 0 | FZ14: 1948 | GI14: 400 | HS14: 0 | HU14: 389 | HV14: 100 | HW14: 5 | HX14: 4 | IA14: 0 | IB14: 0 | IP14: 0 | IQ14: 0 | IR14: 0 | IS14: 0 | IT14: 0 | IU14: 0 | JT14: 0 | JW14: 0 | JZ14: 0 | LO14: 0
A15: 4 | B15: Воскресенский ГО | C15: г. Белоозерский, ул. 60 лет Октября, д.1,3,4,5 | D15: 247686001 | E15: 13455 | F15: 3480 | G15: 0 | H15: 7475 | I15: 2500 | J15: 2 | K15: 2 | O15: 0 | U15: 2 | V15: 0 | W15: 0 | X15: 0 | Z15: 0 | AC15: 0 | AF15: 0 | AH15: 828 | AJ15: 0 | AL15: 8 | AM15: 0 | AP15: 8 | AQ15: 8 | AS15: 0 | AV15: 0 | AY15: 0 | BE15: 0 | BL15: 0 | BP15: 0 | BQ15: 0 | BS15: 0 | BV15: 0 | BX15: 0 | CB15: 0 | CE15: 0 | CG15: 0 | CH15: 0 | CM15: 6162 | CN15: 2010 | CS15: 35 | CT15: 6 | CX15: 0 | DD15: 30 | DE15: 0 | DG15: 0 | DK15: 0 | DO15: 0 | DP15: 544 | DV15: 134 | EA15: 1 | EE15: 1 | EK15: 2 | EL15: 58 | EM15: 58 | EO15: 780 | FD15: 90 | FE15: 2700 | FT15: 0 | FU15: 675 | FV15: 0 | FW15: 4 | FX15: 0 | GF15: 485 | GI15: 400 | HS15: 0 | HU15: 0 | HV15: 0.565 | HW15: 0 | HX15: 1.5 | IA15: 0 | IB15: 0 | IP15: 0 | IQ15: 0 | IR15: 0 | IS15: 0 | IT15: 0 | IU15: 0 | JT15: 0 | JW15: 0 | JZ15: 0 | LO15: 0
A16: 5 | B16: Воскресенский ГО | C16: г. Белоозерский, ул. 60 лет Октября, д.20,21,22 | D16: 247685998 | E16: 25858 | F16: 4601 | G16: 0 | H16: 18897 | I16: 2360 | J16: 2 | K16: 2 | O16: 0 | U16: 2 | V16: 0 | W16: 0 | X16: 0 | Z16: 0 | AC16: 0 | AF16: 0 | AH16: 1529 | AJ16: 0 | AL16: 19 | AM16: 0 | AP16: 19 | AQ16: 19 | AS16: 0 | AV16: 0 | AY16: 1 | BE16: 0 | BL16: 0 | BP16: 0 | BQ16: 0 | BS16: 0 | BV16: 0 | BX16: 1800 | CB16: 0 | CE16: 0 | CG16: 0 | CH16: 0 | CM16: 6378 | CN16: 2000 | CQ16: 9165 | CR16: 0 | CS16: 35 | CT16: 8 | CX16: 0 | DD16: 40 | DE16: 1 | DG16: 1 | DK16: 60 | DO16: 0 | DP16: 190 | EA16: 1 | EE16: 4 | EK16: 3 | EL16: 15 | EM16: 15 | EO16: 200 | EQ16: 25 | FD16: 0 | FE16: 2569 | FT16: 0 | FU16: 642 | FV16: 0 | FW16: 4 | FX16: 0 | FZ16: 1832 | GI16: 300 | HS16: 0 | HU16: 872 | HV16: 100 | HW16: 2.1 | HX16: 3 | IA16: 0 | IB16: 0 | IP16: 0 | IQ16: 0 | IR16: 0 | IS16: 0 | IT16: 0 | IU16: 0 | JT16: 0 | JW16: 0 | JZ16: 0 | LO16: 0
A17: 6 | B17: Воскресенский ГО | C17: г. Белоозерский, ул. 60 лет Октября, д. 2,6,7 | D17: 247686002 | E17: 15867 | F17: 3776 | G17: 0 | H17: 10291 | I17: 1800 | J17: 3 | K17: 3 | O17: 0 | U17: 3 | V17: 0 | W17: 0 | X17: 0 | Z17: 0 | AC17: 0 | AF17: 0 | AH17: 2088.7 | AJ17: 0 | AL17: 5 | AM17: 0 | AP17: 5 | AQ17: 5 | AS17: 0 | AV17: 0 | AY17: 1 | BE17: 0 | BL17: 0 | BP17: 0 | BQ17: 0 | BS17: 0 | BV17: 0 | BX17: 450 | CB17: 0 | CE17: 4 | CF17: 4 | CG17: 0 | CH17: 0 | CM17: 2238 | CN17: 1500 | CQ17: 5469.3 | CR17: 0 | CS17: 80 | CT17: 6 | CX17: 0 | DD17: 70 | DE17: 0 | DG17: 0 | DK17: 0 | DO17: 0 | DP17: 946 | DV17: 156 | EA17: 1 | EE17: 3 | EK17: 4 | EL17: 23 | EM17: 23 | EO17: 300 | EQ17: 45 | FD17: 0 | FE17: 2078 | FT17: 0 | FU17: 415 | FV17: 0 | FW17: 4 | FX17: 0 | FZ17: 1398 | GI17: 300 | HS17: 0 | HU17: 466 | HV17: 100 | HW17: 3 | HX17: 3 | IA17: 0 | IB17: 0 | IP17: 0 | IQ17: 0 | IR17: 0 | IS17: 0 | IT17: 0 | IU17: 0 | JT17: 0 | JW17: 0 | JZ17: 0 | LO17: 0
A18: 7 | B18: Воскресенский ГО | C18: г. Белоозерский, ул. 60 лет Октября, д. 9,12,17 | D18: 247686006 | E18: 22428 | F18: 5350 | G18: 0 | H18: 15578 | I18: 1500 | J18: 1 | K18: 1 | O18: 0 | U18: 1 | V18: 0 | W18: 0 | X18: 0 | Z18: 0 | AC18: 0 | AF18: 0 | AH18: 400 | AJ18: 0 | AL18: 8 | AM18: 0 | AP18: 8 | AQ18: 8 | AS18: 0 | AV18: 0 | AY18: 0 | BE18: 0 | BL18: 0 | BP18: 0 | BQ18: 0 | BS18: 0 | BV18: 0 | BX18: 0 | CB18: 0 | CE18: 0 | CG18: 0 | CH18: 0 | CM18: 2600 | CN18: 1500 | CQ18: 10918 | CR18: 0 | CS18: 55 | CT18: 9 | CX18: 0 | DD18: 90 | DE18: 0 | DG18: 0 | DK18: 0 | DO18: 0 | DP18: 1269 | DV18: 62 | EA18: 1 | EE18: 9 | EK18: 4 | EL18: 229 | EM18: 229 | EO18: 2700 | EQ18: 300 | FD18: 0 | FE18: 2650 | FT18: 0 | FU18: 662.5 | FV18: 0 | FW18: 4 | FX18: 0 | GI18: 0 | HS18: 0 | HU18: 0 | HV18: 0 | HW18: 0 | HX18: 0 | IA18: 1360 | IB18: 0 | IP18: 0 | IQ18: 0.907 | IS18: 1.5 | IU18: 0 | JT18: 0 | JW18: 0 | JZ18: 0 | LO18: 0
A19: 8 | B19: Воскресенский ГО | C19: г. Белоозерский, ул. Комсомольская, д.1,2,3,4,5,7,15 | D19: 247685986 | E19: 17572 | F19: 1500 | G19: 0 | H19: 12362 | I19: 3710 | J19: 1 | K19: 1 | O19: 0 | U19: 1 | V19: 0 | W19: 0 | X19: 0 | Z19: 0 | AC19: 0 | AF19: 0 | AH19: 200 | AJ19: 0 | AL19: 0 | AM19: 0 | AP19: 0 | AQ19: 0 | AS19: 0 | AV19: 0 | AY19: 0 | BE19: 0 | BL19: 0 | BP19: 0 | BQ19: 0 | BS19: 0 | BV19: 0 | BX19: 0 | CB19: 0 | CE19: 0 | CG19: 0 | CH19: 0 | CM19: 1900 | CN19: 1200 | CQ19: 9692 | CR19: 0 | CS19: 60 | CT19: 9 | CX19: 0 | DD19: 90 | DE19: 1 | DG19: 1 | DK19: 60 | DO19: 0 | DP19: 128 | DT19: 150 | DV19: 90 | EA19: 1 | EE19: 5 | EK19: 0 | EL19: 52 | EM19: 52 | EO19: 390 | FC19: 0 | FD19: 390 | FE19: 1110 | FT19: 1500 | FU19: 277.5 | FV19: 375 | FW19: 4 | FX19: 4 | GF19: 570 | GI19: 560 | HS19: 0 | HU19: 0 | HV19: 0.616 | HW19: 0 | HX19: 1.6 | IA19: 0 | IB19: 0 | IP19: 0 | IQ19: 0 | IR19: 0 | IS19: 0 | IT19: 0 | IU19: 0 | JT19: 0 | JW19: 0 | JZ19: 0 | LO19: 0
A20: 9 | B20: Воскресенский ГО | C20: г. Белоозерский, ул. Молодёжная, д. 1,2,2/1,4 | D20: 247685990 | E20: 17607 | F20: 2695 | G20: 0 | H20: 12452 | I20: 2460 | J20: 2 | K20: 2 | O20: 0 | U20: 2 | V20: 0 | W20: 0 | X20: 0 | Z20: 0 | AC20: 0 | AF20: 0 | AH20: 772 | AJ20: 0 | AL20: 4 | AM20: 0 | AP20: 4 | AQ20: 4 | AS20: 0 | AV20: 0 | AY20: 0 | BE20: 0 | BL20: 0 | BP20: 0 | BQ20: 0 | BS20: 0 | BV20: 0 | BX20: 0 | CB20: 0 | CE20: 0 | CG20: 0 | CH20: 0 | CM20: 1800 | CN20: 2000 | CQ20: 9880 | CR20: 0 | CS20: 80 | CT20: 7 | CX20: 0 | DD20: 65 | DE20: 1 | DG20: 1 | DK20: 60 | DO20: 0 | DP20: 60 | DT20: 250 | EA20: 1 | EE20: 1 | EK20: 0 | EL20: 6 | EM20: 6 | EO20: 69 | EQ20: 0 | FD20: 0 | FE20: 1964 | FT20: 0 | FU20: 533 | FV20: 0 | FW20: 4 | FX20: 0 | FZ20: 662 | GI20: 400 | HS20: 0 | HU20: 240 | HV20: 100 | HW20: 2.75 | HX20: 4 | IA20: 0 | IB20: 0 | IP20: 0 | IQ20: 0 | IR20: 0 | IS20: 0 | IT20: 0 | IU20: 0 | JT20: 0 | JW20: 0 | JZ20: 0 | LO20: 0
A21: 10 | B21: Воскресенский ГО | C21: г. Белоозерский, ул. Молодёжная, д. 3,13,16,27 | D21: 247685991 | E21: 13840 | F21: 2805 | G21: 0 | H21: 7275 | I21: 3760 | J21: 1 | K21: 1 | O21: 0 | U21: 1 | V21: 0 | W21: 0 | X21: 0 | Z21: 0 | AC21: 0 | AF21: 0 | AH21: 320 | AJ21: 0 | AL21: 4 | AM21: 0 | AP21: 4 | AQ21: 4 | AS21: 0 | AV21: 0 | AY21: 0 | BE21: 0 | BL21: 0 | BP21: 0 | BQ21: 0 | BS21: 0 | BV21: 0 | BX21: 0 | CB21: 0 | CE21: 0 | CG21: 0 | CH21: 0 | CM21: 1700 | CN21: 3300 | CQ21: 5255 | CR21: 0 | CS21: 60 | CT21: 6 | CX21: 0 | DD21: 76 | DE21: 1 | DG21: 1 | DK21: 60 | DO21: 0 | DP21: 489 | DT21: 184 | EA21: 1 | EE21: 4 | EK21: 2 | EL21: 70 | EM21: 70 | EO21: 843 | FD21: 0 | FE21: 1695 | FT21: 0 | FU21: 463 | FV21: 0 | FW21: 4 | FX21: 0 | FZ21: 267 | GI21: 400 | HS21: 0 | HU21: 89 | HV21: 100 | HW21: 3 | HX21: 4 | IA21: 0 | IB21: 0 | IP21: 0 | IQ21: 0 | IR21: 0 | IS21: 0 | IT21: 0 | IU21: 0 | JT21: 0 | JW21: 0 | JZ21: 0 | LO21: 0
A22: 11 | B22: Воскресенский ГО | C22: г. Белоозерский, ул. Молодёжная, д.8/1,9,10,10/1,11, 15 | D22: 247685994 | E22: 21019.25 | F22: 3397 | G22: 0 | H22: 14198.25 | I22: 3424 | J22: 3 | K22: 3 | O22: 0 | U22: 3 | V22: 0 | W22: 0 | X22: 0 | Z22: 0 | AC22: 0 | AF22: 0 | AH22: 1156.85 | AJ22: 0 | AL22: 6 | AM22: 0 | AP22: 6 | AQ22: 6 | AS22: 0 | AV22: 0 | AY22: 2 | BE22: 1164.4 | BL22: 0 | BP22: 0 | BQ22: 0 | BS22: 0 | BV22: 0 | BX22: 0 | CB22: 0 | CE22: 16 | CF22: 16 | CG22: 0 | CH22: 0 | CM22: 1260 | CN22: 3000 | CQ22: 10617 | CR22: 0 | CS22: 60 | CT22: 8 | CX22: 0 | DD22: 78 | DE22: 1 | DG22: 1 | DK22: 0 | DO22: 60 | DP22: 356 | DT22: 134 | EA22: 1 | EE22: 6 | EK22: 2 | EL22: 65 | EM22: 65 | EO22: 1017 | FD22: 0 | FE22: 2380 | FT22: 0 | FU22: 517.5 | FV22: 0 | FW22: 4 | FX22: 0 | GI22: 364 | HS22: 0 | HU22: 0 | HV22: 0.132 | HW22: 0 | HX22: 3.25 | IA22: 0 | IB22: 0 | IP22: 0 | IQ22: 0 | IR22: 0 | IS22: 0 | IT22: 0 | IU22: 0 | JT22: 0 | JW22: 0 | JZ22: 0 | LO22: 0
A23: 12 | B23: Воскресенский ГО | C23: г. Белоозерский, ул. Юбилейная, д. 11,12,13 | D23: 247686003 | E23: 26760 | F23: 0 | G23: 3118 | H23: 1012 | I23: 22630 | J23: 2 | K23: 2 | O23: 0 | U23: 2 | V23: 0 | W23: 0 | X23: 0 | Z23: 0 | AC23: 0 | AF23: 0 | AH23: 1012 | AJ23: 0 | AL23: 10 | AM23: 0 | AP23: 10 | AQ23: 10 | AS23: 0 | AV23: 0 | AY23: 0 | BE23: 0 | BL23: 0 | BP23: 0 | BQ23: 0 | BS23: 0 | BV23: 0 | BX23: 0 | CB23: 0 | CE23: 0 | CG23: 0 | CH23: 0 | CM23: 0 | CN23: 20300 | CS23: 0 | CT23: 144 | CX23: 0 | DD23: 102 | DE23: 0 | DG23: 0 | DK23: 0 | DO23: 0 | DP23: 0 | DQ23: 1200 | EA23: 1 | EE23: 7 | EK23: 6 | EL23: 175 | EM23: 0 | EN23: 175 | EO23: 0 | EP23: 2625 | FD23: 0 | FE23: 0 | FF23: 493 | FT23: 1015 | FU23: 0 | FV23: 431 | FW23: 0 | FX23: 4 | GI23: 1315 | HS23: 0 | HU23: 0 | HV23: 0.657 | HW23: 0 | HX23: 2 | IB23: 0 | IP23: 0 | IQ23: 0 | IR23: 0 | IS23: 0 | IT23: 0 | IU23: 0 | JT23: 0 | JW23: 0 | JZ23: 0 | LO23: 0
A24: 13 | B24: Воскресенский ГО | C24: г. Белоозерский, ул. Юбилейная, д.1,6,7 | D24: 247685997 | E24: 10430.11 | F24: 4691 | G24: 0 | H24: 3939.11 | I24: 1800 | J24: 1 | K24: 1 | O24: 0 | U24: 1 | V24: 0 | W24: 0 | X24: 0 | Z24: 0 | AC24: 0 | AF24: 0 | AH24: 874.8 | AJ24: 0 | AL24: 0 | AM24: 0 | AP24: 0 | AQ24: 0 | AS24: 0 | AV24: 0 | AY24: 1 | BE24: 0 | BL24: 0 | BP24: 0 | BQ24: 0 | BS24: 0 | BV24: 0 | BX24: 364.31 | CB24: 0 | CE24: 0 | CG24: 0 | CH24: 0 | CM24: 2700 | CN24: 1500 | CS24: 55 | CT24: 7 | CX24: 0 | DD24: 72 | DE24: 0 | DG24: 0 | DK24: 0 | DO24: 0 | DP24: 1898 | EA24: 1 | EE24: 5 | EK24: 5 | EL24: 64 | EM24: 64 | EO24: 960 | FD24: 0 | FE24: 3138 | FT24: 0 | FU24: 897 | FV24: 0 | FW24: 4 | FX24: 0 | FZ24: 593 | GI24: 300 | HS24: 0 | HU24: 296.5 | HV24: 100 | HW24: 2 | HX24: 3 | IB24: 0 | IP24: 0 | IQ24: 0 | IR24: 0 | IS24: 0 | IT24: 0 | IU24: 0 | JT24: 0 | JW24: 0 | JZ24: 0 | LO24: 0
A25: 14 | B25: Воскресенский ГО | C25: г. Белоозерский, ул. Юбилейная, д.2,3,5,9,10 | D25: 8065019866 | E25: 27276 | F25: 7435 | G25: 0 | H25: 12141 | I25: 7700 | J25: 1 | K25: 1 | O25: 0 | U25: 1 | V25: 320 | W25: 320 | X25: 320 | Z25: 0 | AC25: 0 | AF25: 0 | AH25: 0 | AJ25: 0 | AL25: 0 | AM25: 0 | AP25: 0 | AQ25: 0 | AS25: 0 | AV25: 0 | AY25: 0 | BE25: 0 | BL25: 0 | BP25: 0 | BQ25: 0 | BS25: 0 | BV25: 0 | BX25: 0 | CB25: 0 | CE25: 0 | CG25: 0 | CH25: 0 | CM25: 6521 | CN25: 2700 | CQ25: 5000 | CR25: 5000 | CT25: 0 | CX25: 0 | DD25: 0 | DE25: 0 | DG25: 0 | DK25: 0 | DO25: 0 | DP25: 0 | DQ25: 2400 | EA25: 1 | EE25: 0 | EK25: 0 | EL25: 80 | EM25: 80 | EO25: 2157 | EQ25: 300 | FD25: 0 | FE25: 5278 | FT25: 0 | FU25: 869 | FV25: 0 | FW25: 4 | FX25: 0 | GI25: 0 | HS25: 0 | HU25: 0 | HV25: 0 | HW25: 0 | HX25: 0 | IB25: 0 | IP25: 0 | IQ25: 0 | IR25: 0 | IS25: 0 | IT25: 0 | IU25: 0 | JT25: 0 | JW25: 0 | JZ25: 0 | LO25: 0
A26: 15 | B26: Воскресенский ГО | C26: г. Белоозерский, ул. Юбилейная, д.4 | D26: 8064537686 | E26: 7223 | F26: 4505 | G26: 0 | H26: 2218 | I26: 500 | J26: 1 | K26: 1 | O26: 0 | U26: 1 | V26: 0 | W26: 0 | X26: 0 | Z26: 0 | AC26: 0 | AF26: 170 | AH26: 0 | AJ26: 0 | AL26: 0 | AM26: 0 | AP26: 0 | AQ26: 0 | AS26: 0 | AV26: 0 | AY26: 0 | BE26: 0 | BL26: 0 | BP26: 0 | BQ26: 0 | BS26: 0 | BV26: 0 | BX26: 0 | CB26: 0 | CE26: 0 | CG26: 0 | CH26: 0 | CM26: 2048 | CN26: 500 | CT26: 0 | CX26: 0 | DD26: 0 | DE26: 0 | DG26: 0 | DK26: 0 | DO26: 0 | DP26: 1026 | EA26: 1 | EE26: 0 | EK26: 0 | EL26: 25 | EM26: 25 | EO26: 692 | FD26: 0 | FE26: 1832 | FT26: 0 | FU26: 341 | FV26: 0 | FW26: 4 | FX26: 0 | FZ26: 1981 | GI26: 0 | HS26: 0 | HU26: 990.5 | HV26: 0 | HW26: 2 | HX26: 0 | IB26: 0 | IP26: 0 | IQ26: 0 | IR26: 0 | IS26: 0 | IT26: 0 | IU26: 0 | JT26: 0 | JW26: 0 | JZ26: 0 | LO26: 0
A27: 16 | B27: Воскресенский ГО | C27: г. Белоозерский, ул. Юбилейная, д.6/1,8 | D27: 5572058094 | E27: 10194.8 | F27: 2629 | G27: 0 | H27: 6365.8 | I27: 1200 | J27: 0 | K27: 0 | O27: 0 | U27: 0 | V27: 0 | W27: 0 | X27: 0 | Z27: 0 | AC27: 0 | AF27: 0 | AH27: 0 | AJ27: 0 | AL27: 0 | AM27: 0 | AP27: 0 | AQ27: 0 | AS27: 0 | AV27: 0 | AY27: 1 | BE27: 0 | BL27: 350 | BP27: 350 | BQ27: 350 | BS27: 0 | BV27: 0 | BX27: 0 | CB27: 0 | CE27: 0 | CG27: 0 | CH27: 0 | CM27: 2814 | CN27: 1000 | CQ27: 3000 | CR27: 0 | CS27: 30 | CT27: 5 | CX27: 0 | DD27: 45 | DE27: 0 | DG27: 0 | DK27: 0 | DO27: 0 | DQ27: 184 | EA27: 1 | EE27: 1 | EK27: 1 | EL27: 15 | EM27: 15 | EO27: 200 | EQ27: 25 | FD27: 0 | FE27: 2429 | FT27: 0 | FU27: 694 | FV27: 0 | FW27: 4 | FX27: 0 | GF27: 176.8 | GI27: 200 | HS27: 0 | HU27: 0 | HV27: 0.374 | HW27: 0 | HX27: 1.2 | IB27: 0 | IP27: 0 | IQ27: 0 | IR27: 0 | IS27: 0 | IT27: 0 | IU27: 0 | JT27: 0 | JW27: 0 | JZ27: 0 | LO27: 0
A28: 17 | B28: Воскресенский ГО | C28: г. Воскресенск, ул. Докторова, д. 16а | D28: 1519226438 | E28: 3512 | F28: 0 | G28: 1475 | H28: 0 | I28: 2037 | J28: 0 | P28: 0 | V28: 0 | W28: 0 | Y28: 0 | Z28: 0 | AC28: 0 | AG28: 120 | AI28: 0 | AL28: 6 | AM28: 0 | AP28: 6 | AQ28: 6 | AS28: 0 | AV28: 0 | AZ28: 0 | BF28: 0 | BL28: 0 | BP28: 0 | BR28: 0 | BS28: 0 | BW28: 0 | BY28: 0 | CB28: 0 | CE28: 0 | CG28: 0 | CH28: 0 | CM28: 0 | CN28: 1893 | CT28: 0 | CX28: 0 | DD28: 0 | DE28: 1 | DG28: 1 | DK28: 24 | DO28: 0 | DQ28: 1114 | EA28: 1 | EE28: 2 | EK28: 3 | EL28: 75 | EM28: 0 | EN28: 75 | EO28: 0 | EP28: 900 | FD28: 0 | FE28: 0 | FF28: 575 | FT28: 0 | FU28: 0 | FV28: 132 | FW28: 0 | FX28: 4 | GI28: 0 | HS28: 0 | HU28: 0 | HV28: 0 | HW28: 0 | HX28: 0 | IB28: 0 | IP28: 0 | IQ28: 0 | IR28: 0 | IS28: 0 | IT28: 0 | IU28: 0 | JT28: 0 | JW28: 0 | JZ28: 0 | LO28: 0
A29: 18 | B29: Воскресенский ГО | C29: г. Воскресенск, ул. Кагана, д. 19 | D29: 1385644680 | E29: 11625 | F29: 0 | G29: 9697 | H29: 0 | I29: 1928 | J29: 1 | L29: 1 | P29: 0 | U29: 1 | V29: 550 | W29: 550 | Y29: 550 | Z29: 0 | AC29: 0 | AG29: 0 | AI29: 0 | AL29: 13 | AM29: 0 | AP29: 13 | AQ29: 13 | AS29: 0 | AV29: 0 | AZ29: 1 | BF29: 300 | BL29: 0 | BP29: 0 | BR29: 0 | BS29: 0 | BW29: 0 | BY29: 0 | CB29: 0 | CE29: 4 | CF29: 4 | CG29: 0 | CH29: 0 | CM29: 0 | CT29: 0 | CX29: 0 | DD29: 0 | DE29: 1 | DG29: 1 | DK29: 60 | DO29: 0 | DQ29: 356 | EA29: 1 | EE29: 2 | EK29: 3 | EL29: 266 | EM29: 0 | EN29: 266 | EO29: 0 | EP29: 3768 | FD29: 0 | FE29: 0 | FF29: 5929 | FT29: 0 | FU29: 0 | FV29: 673.75 | FW29: 0 | FX29: 4 | GI29: 566 | HS29: 0 | HU29: 0 | HV29: 0.128 | HW29: 0 | HX29: 2 | IB29: 452 | IP29: 0 | IQ29: 0 | IR29: 0.226 | IS29: 0 | IT29: 2 | IU29: 0 | JT29: 0 | JW29: 0 | JZ29: 0 | LO29: 0
A30: 19 | B30: Воскресенский ГО | C30: г. Воскресенск, ул.Куйбышева, д. 47 А 1, 47 А 2, 47 А 3 | D30: 1385644729 | E30: 11753 | F30: 0 | G30: 7787 | H30: 0 | I30: 3966 | J30: 1 | L30: 1 | P30: 0 | U30: 1 | V30: 500 | W30: 500 | Y30: 500 | Z30: 0 | AC30: 0 | AG30: 0 | AI30: 0 | AL30: 14 | AM30: 0 | AP30: 14 | AQ30: 14 | AS30: 0 | AV30: 0 | AZ30: 1 | BF30: 450 | BL30: 0 | BP30: 0 | BR30: 0 | BS30: 0 | BW30: 0 | BY30: 0 | CB30: 0 | CE30: 4 | CF30: 4 | CG30: 0 | CH30: 0 | CM30: 0 | CN30: 1366 | CS30: 0 | CT30: 70 | CX30: 0 | DD30: 0 | DE30: 0 | DG30: 0 | DK30: 0 | DO30: 0 | DQ30: 22146 | EA30: 1 | EE30: 2 | EK30: 2 | EL30: 232 | EM30: 0 | EN30: 232 | EO30: 0 | EP30: 3205 | FD30: 0 | FE30: 0 | FF30: 4582 | FT30: 0 | FU30: 0 | FV30: 862.5 | FW30: 4 | FX30: 4 | GI30: 885 | HS30: 0 | HU30: 0 | HV30: 0 | HW30: 0 | HX30: 0 | IB30: 765 | IP30: 0 | IQ30: 0 | IR30: 0.255 | IS30: 0 | IT30: 3 | IU30: 0 | JT30: 0 | JW30: 0 | JZ30: 0 | LO30: 0
A31: 20 | B31: Воскресенский ГО | C31: г. Воскресенск, ул. Ломоносова, д. 119, к. 1, 2, 3 | D31: 1055181990 | E31: 23317.5 | F31: 0 | G31: 18274 | H31: 0 | I31: 5043.5 | J31: 3 | L31: 3 | P31: 0 | U31: 3 | V31: 1850 | W31: 1850 | Y31: 1850 | Z31: 0 | AC31: 0 | AG31: 0 | AI31: 0 | AL31: 40 | AM31: 0 | AP31: 40 | AQ31: 40 | AS31: 0 | AV31: 0 | AZ31: 1 | BF31: 600 | BL31: 0 | BP31: 0 | BR31: 0 | BS31: 0 | BW31: 0 | BY31: 0 | CB31: 0 | CE31: 4 | CF31: 4 | CG31: 0 | CH31: 0 | CM31: 0 | CN31: 1221 | CS31: 0 | CT31: 30 | CX31: 0 | DD31: 50 | DE31: 2 | DG31: 2 | DK31: 40 | DO31: 0 | DP31: 0 | DQ31: 560 | EA31: 1 | EE31: 8 | EK31: 10 | EL31: 294 | EM31: 0 | EN31: 294 | EO31: 0 | EP31: 4368 | ER31: 0 | FD31: 0 | FE31: 0 | FF31: 13906 | FT31: 0 | FU31: 0 | FV31: 1000 | FW31: 0 | FX31: 4 | GI31: 0 | HS31: 0 | HU31: 0 | HV31: 0 | HW31: 0 | HX31: 0 | IB31: 1332.5 | IP31: 0 | IQ31: 0 | IR31: 0.533 | IS31: 0 | IT31: 2.5 | IU31: 0 | JT31: 0 | JW31: 0 | JZ31: 0 | LO31: 0
A32: 21 | B32: Воскресенский ГО | C32: г. Воскресенск ул Победы д. 10,12,14 | D32: 247685915 | E32: 2485 | F32: 480 | G32: 0 | H32: 1150 | I32: 855 | J32: 1 | K32: 1 | O32: 0 | U32: 1 | V32: 0 | W32: 0 | X32: 0 | Z32: 0 | AC32: 0 | AF32: 0 | AH32: 150 | AJ32: 0 | AL32: 8 | AM32: 0 | AP32: 8 | AQ32: 8 | AS32: 0 | AV32: 0 | AY32: 0 | BE32: 0 | BL32: 0 | BP32: 0 | BQ32: 0 | BS32: 0 | BV32: 0 | BX32: 0 | CB32: 0 | CE32: 0 | CG32: 0 | CH32: 0 | CM32: 1000 | CN32: 600 | CS32: 6 | CT32: 5 | CX32: 20 | DD32: 10 | DE32: 1 | DG32: 1 | DK32: 60 | DO32: 0 | DQ32: 518 | EA32: 1 | EE32: 1 | EK32: 1 | EL32: 5 | EM32: 5 | EO32: 0 | ER32: 75 | FD32: 0 | FE32: 480 | FT32: 0 | FU32: 120 | FV32: 0 | FW32: 4 | FX32: 0 | GI32: 100 | HS32: 0 | HU32: 0 | HV32: 0.05 | HW32: 0 | HX32: 2 | IB32: 0 | IP32: 0 | IQ32: 0 | IR32: 0 | IS32: 0 | IT32: 0 | IU32: 0 | JT32: 0 | JW32: 0 | JZ32: 0 | LO32: 0
A33: 22 | B33: Воскресенский ГО | C33: г. Воскресенск, ул. Рабочая, д.117 | D33: 1385644698 | E33: 4619 | F33: 0 | G33: 3140 | H33: 0 | I33: 1479 | J33: 0 | P33: 0 | V33: 0 | W33: 0 | Y33: 0 | Z33: 0 | AC33: 0 | AG33: 220 | AI33: 0 | AL33: 8 | AM33: 0 | AP33: 8 | AQ33: 8 | AS33: 0 | AV33: 0 | AZ33: 0 | BF33: 0 | BL33: 0 | BP33: 0 | BR33: 0 | BS33: 0 | BW33: 0 | BY33: 0 | CB33: 0 | CE33: 0 | CG33: 0 | CH33: 0 | CM33: 0 | CN33: 817 | CS33: 0 | CT33: 43 | CX33: 0 | DD33: 30 | DE33: 1 | DG33: 1 | DK33: 25 | DO33: 0 | DP33: 0 | DQ33: 1104 | DV33: 0 | DW33: 100 | EA33: 1 | EE33: 2 | EK33: 3 | EL33: 82 | EM33: 0 | EN33: 82 | EO33: 0 | EP33: 1371 | FD33: 0 | FE33: 0 | FF33: 1769 | FT33: 0 | FU33: 0 | FV33: 296 | FW33: 0 | FX33: 4 | GI33: 232 | HS33: 0 | HU33: 0 | HV33: 0.094 | HW33: 0 | HX33: 2.5 | IB33: 185 | IP33: 0 | IQ33: 0 | IR33: 0.088 | IS33: 0 | IT33: 2.5 | IU33: 0 | JT33: 0 | JW33: 0 | JZ33: 0 | LO33: 0
A34: 23 | B34: Воскресенский ГО | C34: г. Воскресенск ул. Советская д.3а | D34: 247685905 | E34: 4903 | F34: 534 | G34: 0 | H34: 3723 | I34: 646 | J34: 1 | K34: 1 | O34: 0 | U34: 1 | V34: 81 | W34: 81 | X34: 81 | Z34: 0 | AC34: 0 | AF34: 0 | AH34: 0 | AJ34: 0 | AL34: 0 | AM34: 0 | AP34: 0 | AQ34: 0 | AS34: 0 | AV34: 0 | AY34: 0 | BE34: 0 | BL34: 0 | BP34: 0 | BQ34: 0 | BS34: 0 | BV34: 0 | BX34: 0 | CB34: 0 | CE34: 0 | CG34: 0 | CH34: 0 | CM34: 1157 | CN34: 500 | CQ34: 2459 | CR34: 0 | CS34: 25 | CT34: 9 | CX34: 0 | DD34: 43 | DE34: 1 | DG34: 1 | DK34: 60 | DO34: 0 | DP34: 52 | DQ34: 0 | DW34: 40 | EA34: 1 | EE34: 4 | EK34: 3 | EL34: 29 | EM34: 29 | EO34: 150 | EQ34: 26 | ER34: 86 | FD34: 0 | FE34: 384 | FT34: 0 | FU34: 96 | FV34: 0 | FW34: 4 | FX34: 0 | GI34: 0 | HS34: 0 | HU34: 0 | HV34: 0 | HW34: 0 | HX34: 0 | IB34: 0 | IP34: 0 | IQ34: 0 | IR34: 0 | IS34: 0 | IT34: 0 | IU34: 0 | JT34: 0 | JW34: 0 | JZ34: 0 | LO34: 0
A35: 24 | B35: Воскресенский ГО | C35: г. Воскресенск, ул. Хрипунова, д.1,3 | D35: 1539185138 | E35: 9330 | F35: 0 | G35: 7584 | H35: 0 | I35: 1746 | J35: 0 | P35: 0 | V35: 0 | W35: 0 | Y35: 0 | Z35: 0 | AC35: 0 | AG35: 367 | AI35: 0 | AL35: 15 | AM35: 0 | AP35: 15 | AQ35: 15 | AS35: 0 | AV35: 0 | AZ35: 0 | BF35: 0 | BL35: 0 | BP35: 0 | BR35: 0 | BS35: 0 | BW35: 0 | BY35: 0 | CB35: 0 | CE35: 0 | CG35: 0 | CH35: 0 | CM35: 0 | CN35: 1299 | CS35: 0 | CT35: 27 | CX35: 0 | DD35: 70 | DE35: 2 | DG35: 2 | DK35: 80 | DO35: 0 | DQ35: 552 | DW35: 40 | EA35: 1 | EE35: 1 | EK35: 1 | EL35: 97 | EM35: 0 | EN35: 97 | EO35: 0 | EP35: 1310 | FD35: 0 | FE35: 0 | FF35: 6274 | FT35: 0 | FU35: 0 | FV35: 789 | FW35: 0 | FX35: 4 | GI35: 0 | HS35: 0 | HU35: 0 | HV35: 0 | HW35: 0 | HX35: 0 | IB35: 0 | IP35: 0 | IQ35: 0 | IR35: 0 | IS35: 0 | IT35: 0 | IU35: 0 | JT35: 0 | JW35: 0 | JZ35: 0 | LO35: 0
A36: 25 | B36: Воскресенский ГО | C36: д.Ворщиково, ул. Солнечный Град, д.1, 2,3,4 | D36: 1385644704 | E36: 8649 | F36: 0 | G36: 1378 | H36: 0 | I36: 7271 | J36: 0 | P36: 0 | V36: 0 | W36: 0 | Y36: 0 | Z36: 0 | AC36: 0 | AG36: 0 | AI36: 0 | AL36: 0 | AM36: 0 | AP36: 0 | AQ36: 0 | AS36: 0 | AV36: 0 | AZ36: 0 | BF36: 0 | BL36: 0 | BP36: 0 | BR36: 0 | BS36: 0 | BW36: 0 | BY36: 0 | CB36: 0 | CE36: 0 | CG36: 0 | CH36: 0 | CM36: 0 | CN36: 6724 | CS36: 0 | CT36: 25 | CX36: 0 | DD36: 0 | DE36: 1 | DG36: 1 | DK36: 15 | DO36: 0 | DP36: 0 | EA36: 1 | EE36: 1 | EK36: 1 | EL36: 22 | EM36: 0 | EN36: 22 | EO36: 0 | EP36: 330 | FD36: 0 | FE36: 0 | FF36: 1048 | FT36: 0 | FU36: 0 | FV36: 262 | FW36: 0 | FX36: 4 | GI36: 532 | HS36: 0 | HU36: 0 | HV36: 0.266 | HW36: 0 | HX36: 2 | IB36: 0 | IP36: 0 | IQ36: 0 | IR36: 0 | IS36: 0 | IT36: 0 | IU36: 0 | JT36: 0 | JW36: 0 | JZ36: 0 | LO36: 0
A37: 26 | B37: Воскресенский ГО | C37: д. Городище, ул. Мира, д. 11 | D37: 4718437730 | E37: 724 | F37: 0 | G37: 0 | H37: 0 | I37: 724 | J37: 0 | K37: 0 | O37: 0 | U37: 0 | V37: 0 | W37: 0 | X37: 0 | Z37: 0 | AC37: 0 | AF37: 0 | AH37: 0 | AJ37: 0 | AL37: 0 | AM37: 0 | AP37: 0 | AQ37: 0 | AS37: 0 | AV37: 0 | AY37: 0 | BE37: 0 | BL37: 0 | BP37: 0 | BQ37: 0 | BS37: 0 | BV37: 0 | BX37: 0 | CB37: 0 | CE37: 0 | CG37: 0 | CH37: 0 | CM37: 0 | CN37: 724 | CS37: 5 | CT37: 5 | CX37: 0 | DD37: 0 | DE37: 0 | DG37: 0 | DK37: 0 | DO37: 0 | DP37: 0 | DV37: 24 | EA37: 1 | EE37: 0 | EK37: 0 | EL37: 0 | EM37: 0 | EO37: 0 | FD37: 0 | FE37: 0 | FT37: 0 | FU37: 0 | FV37: 0 | FW37: 4 | FX37: 0 | GI37: 0 | HS37: 0 | HU37: 0 | HV37: 0 | HW37: 0 | HX37: 0 | IB37: 0 | IP37: 0 | IQ37: 0 | IR37: 0 | IS37: 0 | IT37: 0 | IU37: 0 | JT37: 0 | JW37: 0 | JZ37: 0 | LO37: 0
A38: 27 | B38: Воскресенский ГО | C38: д. Городище, ул. Мира, д. 29 | D38: 4718445650 | E38: 866 | F38: 0 | G38: 0 | H38: 0 | I38: 866 | J38: 0 | K38: 0 | O38: 0 | U38: 0 | V38: 0 | W38: 0 | X38: 0 | Z38: 0 | AC38: 0 | AF38: 0 | AH38: 0 | AJ38: 0 | AL38: 0 | AM38: 0 | AP38: 0 | AQ38: 0 | AS38: 0 | AV38: 0 | AY38: 0 | BE38: 0 | BL38: 0 | BP38: 0 | BQ38: 0 | BS38: 0 | BV38: 0 | BX38: 0 | CB38: 0 | CE38: 0 | CG38: 0 | CH38: 0 | CM38: 0 | CN38: 866 | CS38: 10 | CT38: 5 | CX38: 0 | DD38: 0 | DE38: 0 | DG38: 0 | DK38: 0 | DO38: 0 | DP38: 0 | EA38: 1 | EE38: 0 | EK38: 0 | EL38: 0 | EM38: 0 | EO38: 0 | FD38: 0 | FE38: 0 | FT38: 0 | FU38: 0 | FV38: 0 | FW38: 4 | FX38: 0 | GI38: 0 | HS38: 0 | HU38: 0 | HV38: 0 | HW38: 0 | HX38: 0 | IB38: 0 | IP38: 0 | IQ38: 0 | IR38: 0 | IS38: 0 | IT38: 0 | IU38: 0 | JT38: 0 | JW38: 0 | JZ38: 0 | LO38: 0
A39: 28 | B39: Воскресенский ГО | C39: д. Городище, ул. Мира, д. 6 | D39: 4718430090 | E39: 473 | F39: 0 | G39: 0 | H39: 0 | I39: 473 | J39: 0 | K39: 0 | O39: 0 | U39: 0 | V39: 0 | W39: 0 | X39: 0 | Z39: 0 | AC39: 0 | AF39: 0 | AH39: 0 | AJ39: 0 | AL39: 0 | AM39: 0 | AP39: 0 | AQ39: 0 | AS39: 0 | AV39: 0 | AY39: 0 | BE39: 0 | BL39: 0 | BP39: 0 | BQ39: 0 | BS39: 0 | BV39: 0 | BX39: 0 | CB39: 0 | CE39: 0 | CG39: 0 | CH39: 0 | CM39: 0 | CN39: 473 | CS39: 5 | CT39: 4 | CX39: 0 | DD39: 0 | DE39: 0 | DG39: 0 | DK39: 0 | DO39: 0 | DP39: 0 | EA39: 1 | EE39: 0 | EK39: 0 | EL39: 0 | EM39: 0 | EO39: 0 | FD39: 0 | FE39: 0 | FT39: 0 | FU39: 0 | FV39: 0 | FW39: 4 | FX39: 0 | GI39: 0 | HS39: 0 | HU39: 0 | HV39: 0 | HW39: 0 | HX39: 0 | IB39: 0 | IP39: 0 | IQ39: 0 | IR39: 0 | IS39: 0 | IT39: 0 | IU39: 0 | JT39: 0 | JW39: 0 | JZ39: 0 | LO39: 0
A40: 29 | B40: Воскресенский ГО | C40: д. Золотово ул. Московская д. 6,7 | D40: 247685979 | E40: 4315 | F40: 1260 | G40: 0 | H40: 2540 | I40: 515 | J40: 1 | K40: 1 | O40: 0 | U40: 1 | V40: 0 | W40: 0 | X40: 0 | Z40: 0 | AC40: 0 | AF40: 0 | AH40: 284 | AJ40: 0 | AL40: 7 | AM40: 0 | AP40: 7 | AQ40: 7 | AS40: 0 | AV40: 0 | AY40: 0 | BE40: 0 | BL40: 0 | BP40: 0 | BQ40: 0 | BS40: 0 | BV40: 0 | BX40: 0 | CB40: 0 | CE40: 0 | CG40: 0 | CH40: 0 | CM40: 1256 | CN40: 400 | CQ40: 1000 | CR40: 0 | CS40: 7 | CT40: 5 | CX40: 0 | DD40: 50 | DE40: 1 | DG40: 1 | DK40: 0 | DO40: 15 | DP40: 172 | EA40: 1 | EE40: 0 | EK40: 0 | EL40: 84 | EM40: 84 | EO40: 1260 | FD40: 0 | FE40: 0 | FT40: 0 | FU40: 0 | FV40: 0 | FW40: 0 | FX40: 0 | GI40: 100 | HS40: 0 | HU40: 0 | HV40: 0.05 | HW40: 0 | HX40: 2 | IB40: 0 | IP40: 0 | IQ40: 0 | IR40: 0 | IS40: 0 | IT40: 0 | IU40: 0 | JT40: 0 | JW40: 0 | JZ40: 0 | LO40: 0
A41: 30 | B41: Воскресенский ГО | C41: д. Золотово ул Моховая. д.51 | D41: 247685980 | E41: 3317 | F41: 344 | G41: 0 | H41: 2773 | I41: 200 | J41: 1 | K41: 1 | O41: 0 | U41: 1 | V41: 0 | W41: 0 | X41: 0 | Z41: 0 | AC41: 0 | AF41: 0 | AH41: 122 | AJ41: 0 | AL41: 5 | AM41: 0 | AP41: 5 | AQ41: 5 | AS41: 0 | AV41: 0 | AY41: 0 | BE41: 0 | BL41: 0 | BP41: 0 | BQ41: 0 | BS41: 0 | BV41: 0 | BX41: 0 | CB41: 0 | CE41: 0 | CG41: 0 | CH41: 0 | CM41: 1651 | CN41: 200 | CQ41: 1000 | CR41: 0 | CS41: 10 | CT41: 4 | CX41: 0 | DD41: 6 | DE41: 0 | DG41: 0 | DK41: 0 | DO41: 0 | DP41: 114 | EA41: 1 | EE41: 3 | EK41: 0 | EL41: 0 | EM41: 0 | EO41: 0 | FD41: 0 | FE41: 344 | FT41: 0 | FU41: 86 | FV41: 0 | FW41: 4 | FX41: 0 | GI41: 0 | HS41: 0 | HU41: 0 | HV41: 0 | HW41: 0 | HX41: 0 | IB41: 0 | IP41: 0 | IQ41: 0 | IR41: 0 | IS41: 0 | IT41: 0 | IU41: 0 | JT41: 0 | JW41: 0 | JZ41: 0 | LO41: 0
A42: 31 | B42: Воскресенский ГО | C42: д. Золотово ул Фабричная д.1,3,9,10,13,14,15,16 | D42: 247685981 | E42: 8839 | F42: 160 | G42: 0 | H42: 7059 | I42: 1620 | J42: 1 | K42: 1 | O42: 0 | U42: 1 | V42: 0 | W42: 0 | X42: 0 | Z42: 0 | AC42: 0 | AF42: 0 | AH42: 300 | AJ42: 0 | AL42: 6 | AM42: 0 | AP42: 6 | AQ42: 6 | AS42: 0 | AV42: 0 | AY42: 0 | BE42: 0 | BL42: 0 | BP42: 0 | BQ42: 0 | BS42: 0 | BV42: 0 | BX42: 0 | CB42: 0 | CE42: 0 | CG42: 0 | CH42: 0 | CM42: 1900 | CN42: 1600 | CQ42: 4859 | CR42: 0 | CS42: 30 | CT42: 4 | CX42: 0 | DD42: 50 | DE42: 1 | DG42: 1 | DK42: 20 | DO42: 0 | DP42: 0 | EA42: 1 | EE42: 2 | EK42: 2 | EL42: 0 | EM42: 0 | EO42: 0 | FD42: 0 | FE42: 160 | FT42: 0 | FU42: 40 | FV42: 0 | FW42: 4 | FX42: 0 | GI42: 0 | HS42: 0 | HU42: 0 | HV42: 0 | HW42: 0 | HX42: 0 | IB42: 0 | IP42: 0 | IQ42: 0 | IR42: 0 | IS42: 0 | IT42: 0 | IU42: 0 | JT42: 0 | JW42: 0 | JZ42: 0 | LO42: 0
A43: 32 | B43: Воскресенский ГО | C43: д. Маришкино, ул. Отдыха, д. 1,3 | D43: 4718558790 | E43: 3738 | F43: 0 | G43: 0 | H43: 3338 | I43: 400 | J43: 0 | K43: 0 | O43: 0 | U43: 0 | V43: 0 | W43: 0 | X43: 0 | Z43: 0 | AC43: 0 | AF43: 0 | AH43: 0 | AJ43: 0 | AL43: 0 | AM43: 0 | AP43: 0 | AQ43: 0 | AS43: 0 | AV43: 0 | AY43: 0 | BE43: 0 | BL43: 0 | BP43: 0 | BQ43: 0 | BS43: 0 | BV43: 0 | BX43: 0 | CB43: 0 | CE43: 0 | CG43: 0 | CH43: 0 | CM43: 1000 | CN43: 400 | CQ43: 2338 | CR43: 0 | CS43: 6 | CT43: 4 | CX43: 0 | DD43: 20 | DE43: 0 | DG43: 0 | DK43: 0 | DO43: 0 | DP43: 0 | EA43: 1 | EE43: 0 | EK43: 0 | EL43: 0 | EM43: 0 | EO43: 0 | FD43: 0 | FE43: 0 | FT43: 0 | FU43: 0 | FV43: 0 | FW43: 4 | FX43: 0 | GI43: 0 | HS43: 0 | HU43: 0 | HV43: 0 | HW43: 0 | HX43: 0 | IB43: 0 | IP43: 0 | IQ43: 0 | IR43: 0 | IS43: 0 | IT43: 0 | IU43: 0 | JT43: 0 | JW43: 0 | JZ43: 0 | LO43: 0
A44: 33 | B44: Воскресенский ГО | C44: д. Ратмирово, ул. Железнодорожная, 1 | D44: 1520104638 | E44: 2486.1 | F44: 692 | G44: 0 | H44: 1074.1 | I44: 720 | J44: 1 | K44: 1 | O44: 0 | U44: 1 | V44: 0 | W44: 0 | X44: 0 | Z44: 0 | AC44: 0 | AF44: 0 | AH44: 240 | AJ44: 0 | AL44: 6 | AM44: 0 | AP44: 6 | AQ44: 6 | AS44: 0 | AV44: 0 | AY44: 0 | BE44: 0 | BL44: 0 | BP44: 0 | BQ44: 0 | BS44: 0 | BV44: 0 | BX44: 0 | CB44: 0 | CE44: 0 | CG44: 0 | CH44: 0 | CM44: 700 | CN44: 500 | CS44: 30 | CT44: 4 | CX44: 0 | DD44: 0 | DE44: 1 | DG44: 1 | DK44: 50 | DO44: 0 | DP44: 448 | DV44: 66 | EA44: 1 | EE44: 0 | EK44: 2 | EL44: 37 | EM44: 37 | EO44: 300 | EQ44: 43.4 | FD44: 90 | FE44: 392 | FT44: 0 | FU44: 112 | FV44: 0 | FW44: 4 | FX44: 0 | GF44: 90.7 | GI44: 80 | HS44: 0 | HU44: 0 | HV44: 0.467 | HW44: 0 | HX44: 1.35 | IB44: 0 | IP44: 0 | IQ44: 0 | IR44: 0 | IS44: 0 | IT44: 0 | IU44: 0 | JT44: 0 | JW44: 0 | JZ44: 0 | LO44: 0
A45: 34 | B45: Воскресенский ГО | C45: д. Ратчино, ул. Некрасова, 10,15 | D45: 1520151578 | E45: 6743 | F45: 1420 | G45: 0 | H45: 4923 | I45: 400 | J45: 1 | K45: 1 | O45: 0 | U45: 1 | V45: 0 | W45: 0 | X45: 0 | Z45: 0 | AC45: 0 | AF45: 0 | AH45: 750 | AJ45: 0 | AL45: 4 | AM45: 0 | AP45: 4 | AQ45: 4 | AS45: 0 | AV45: 0 | AY45: 0 | BE45: 0 | BL45: 0 | BP45: 0 | BQ45: 0 | BS45: 0 | BV45: 0 | BX45: 0 | CB45: 0 | CE45: 0 | CG45: 0 | CH45: 0 | CM45: 1173 | CN45: 400 | CQ45: 3000 | CR45: 0 | CS45: 20 | CT45: 5 | CX45: 0 | DD45: 20 | DE45: 0 | DG45: 0 | DK45: 0 | DO45: 0 | DP45: 255 | EA45: 1 | EE45: 0 | EK45: 0 | EL45: 30 | EM45: 30 | EO45: 360 | FD45: 0 | FE45: 1060 | FT45: 0 | FU45: 265 | FV45: 0 | FW45: 4 | FX45: 0 | GI45: 0 | HS45: 0 | HU45: 0 | HV45: 0 | HW45: 0 | HX45: 0 | IB45: 0 | IP45: 0 | IQ45: 0 | IR45: 0 | IS45: 0 | IT45: 0 | IU45: 0 | JT45: 0 | JW45: 0 | JZ45: 0 | LO45: 0
A46: 35 | B46: Воскресенский ГО | C46: д. Ратчино, ул. Некрасова, д. 11 | D46: 4016873678 | E46: 799 | F46: 230 | G46: 0 | H46: 369 | I46: 200 | J46: 0 | K46: 0 | O46: 0 | U46: 0 | V46: 0 | W46: 0 | X46: 0 | Z46: 0 | AC46: 0 | AF46: 0 | AH46: 0 | AJ46: 0 | AL46: 0 | AM46: 0 | AP46: 0 | AQ46: 0 | AS46: 0 | AV46: 0 | AY46: 0 | BE46: 0 | BL46: 0 | BP46: 0 | BQ46: 0 | BS46: 0 | BV46: 0 | BX46: 0 | CB46: 0 | CE46: 0 | CG46: 0 | CH46: 0 | CM46: 369 | CN46: 200 | CS46: 3 | CT46: 2 | CX46: 0 | DD46: 15 | DE46: 0 | DG46: 0 | DK46: 0 | DO46: 0 | DP46: 1100 | DV46: 116 | EA46: 1 | EE46: 0 | EK46: 0 | EL46: 0 | EM46: 0 | EO46: 0 | FD46: 0 | FE46: 230 | FT46: 0 | FU46: 58 | FV46: 0 | FW46: 4 | FX46: 0 | GI46: 0 | HS46: 0 | HU46: 0 | HV46: 0 | HW46: 0 | HX46: 0 | IB46: 0 | IP46: 0 | IQ46: 0 | IR46: 0 | IS46: 0 | IT46: 0 | IU46: 0 | JT46: 0 | JW46: 0 | JZ46: 0 | LO46: 0
A47: 36 | B47: Воскресенский ГО | C47: д. Ратчино, ул. Некрасова, д. 12, 13, 14 | D47: 247685960 | E47: 8700 | F47: 1752 | G47: 0 | H47: 6348 | I47: 600 | J47: 1 | K47: 1 | O47: 0 | U47: 1 | V47: 0 | W47: 0 | X47: 0 | Z47: 0 | AC47: 0 | AF47: 0 | AH47: 200 | AJ47: 0 | AL47: 2 | AM47: 0 | AP47: 2 | AQ47: 2 | AS47: 0 | AV47: 0 | AY47: 0 | BE47: 0 | BL47: 0 | BP47: 0 | BQ47: 0 | BS47: 0 | BV47: 0 | BX47: 0 | CB47: 0 | CE47: 7 | CF47: 7 | CG47: 0 | CH47: 0 | CM47: 1148 | CN47: 600 | CQ47: 5000 | CR47: 0 | CS47: 10 | CT47: 4 | CX47: 0 | DD47: 40 | DE47: 0 | DG47: 0 | DK47: 0 | DO47: 0 | DP47: 118 | DV47: 77 | EA47: 1 | EE47: 9 | EK47: 9 | EL47: 64 | EM47: 64 | EO47: 772 | FD47: 0 | FE47: 980 | FT47: 0 | FU47: 245 | FV47: 0 | FW47: 4 | FX47: 0 | GI47: 0 | HS47: 0 | HU47: 0 | HV47: 0 | HW47: 0 | HX47: 0 | IB47: 0 | IP47: 0 | IQ47: 0 | IR47: 0 | IS47: 0 | IT47: 0 | IU47: 0 | JT47: 0 | JW47: 0 | JZ47: 0 | LO47: 0
A48: 37 | B48: Воскресенский ГО | C48: д. Ратчино, ул. Некрасова, д.1, 2, 3, 4, 5, 16, 17, 18 | D48: 247685962 | E48: 23587 | F48: 2112 | G48: 0 | H48: 18700 | I48: 2775 | J48: 1 | K48: 1 | O48: 0 | U48: 1 | V48: 450 | W48: 450 | X48: 450 | Z48: 0 | AC48: 0 | AF48: 0 | AH48: 0 | AJ48: 0 | AL48: 16 | AM48: 0 | AP48: 16 | AQ48: 16 | AS48: 0 | AV48: 0 | AY48: 1 | BE48: 0 | BL48: 0 | BP48: 0 | BQ48: 0 | BS48: 0 | BV48: 0 | BX48: 350 | CB48: 0 | CE48: 0 | CG48: 0 | CH48: 0 | CM48: 2900 | CN48: 1600 | CQ48: 15000 | CR48: 0 | CS48: 55 | CT48: 5 | CX48: 0 | DD48: 80 | DE48: 2 | DG48: 2 | DK48: 120 | DO48: 0 | DP48: 360 | DV48: 104 | EA48: 1 | EE48: 16 | EK48: 16 | EL48: 103 | EM48: 94 | EN48: 9 | EO48: 1132 | ER48: 135 | FD48: 0 | FE48: 980 | FT48: 0 | FU48: 245 | FV48: 0 | FW48: 4 | FX48: 0 | GI48: 400 | HS48: 520 | HU48: 0 | HV48: 0.25 | HW48: 0 | HX48: 2 | IB48: 0 | IP48: 0 | IQ48: 0 | IR48: 0 | IS48: 0 | IT48: 0 | IU48: 0 | JT48: 0 | JW48: 0 | JZ48: 0 | LO48: 0
A49: 38 | B49: Воскресенский ГО | C49: д. Ратчино, ул. Некрасова, д.19,6,7,8,9 | D49: 1385644721 | E49: 15000 | F49: 2570 | G49: 0 | H49: 11390 | I49: 1040 | J49: 0 | K49: 0 | O49: 0 | U49: 0 | V49: 0 | W49: 0 | X49: 0 | Z49: 0 | AC49: 0 | AF49: 0 | AH49: 0 | AJ49: 0 | AL49: 0 | AM49: 0 | AP49: 0 | AQ49: 0 | AS49: 0 | AV49: 0 | AY49: 0 | BE49: 0 | BL49: 0 | BP49: 0 | BQ49: 0 | BS49: 0 | BV49: 0 | BX49: 0 | CB49: 0 | CE49: 0 | CG49: 0 | CH49: 0 | CM49: 2390 | CN49: 1000 | CQ49: 9000 | CR49: 0 | CS49: 35 | CT49: 8 | CX49: 0 | DD49: 70 | DE49: 1 | DG49: 1 | DK49: 40 | DO49: 0 | DP49: 1521 | EA49: 1 | EE49: 1 | EK49: 1 | EL49: 24 | EM49: 24 | EO49: 370 | FD49: 0 | FE49: 2200 | FT49: 0 | FU49: 550 | FV49: 0 | FW49: 4 | FX49: 0 | GI49: 0 | HS49: 0 | HU49: 0 | HV49: 0 | HW49: 0 | HX49: 0 | IB49: 0 | IP49: 0 | IQ49: 0 | IR49: 0 | IS49: 0 | IT49: 0 | IU49: 0 | JT49: 0 | JW49: 0 | JZ49: 0 | LO49: 0
A50: 39 | B50: Воскресенский ГО | C50: д. Степанщино, ул.ДРП-5, д. 2 | D50: 1520184658 | E50: 7000 | F50: 1380 | G50: 0 | H50: 5370 | I50: 250 | J50: 1 | K50: 1 | O50: 0 | U50: 1 | V50: 0 | W50: 0 | X50: 0 | Z50: 0 | AC50: 0 | AF50: 0 | AH50: 370 | AJ50: 0 | AL50: 7 | AM50: 0 | AP50: 7 | AQ50: 7 | AS50: 0 | AV50: 0 | AY50: 0 | BE50: 0 | BL50: 0 | BP50: 0 | BQ50: 0 | BS50: 0 | BV50: 0 | BX50: 0 | CB50: 0 | CE50: 0 | CG50: 0 | CH50: 0 | CM50: 1000 | CN50: 200 | CQ50: 4000 | CR50: 0 | CS50: 7 | CT50: 4 | CX50: 0 | DD50: 30 | DE50: 1 | DG50: 1 | DK50: 50 | DO50: 0 | DP50: 530 | DV50: 14 | EA50: 1 | EE50: 0 | EK50: 3 | EL50: 26 | EM50: 26 | EO50: 400 | FD50: 0 | FE50: 980 | FT50: 0 | FU50: 245 | FV50: 0 | FW50: 4 | FX50: 0 | GI50: 0 | HS50: 0 | HU50: 0 | HV50: 0 | HW50: 0 | HX50: 0 | IB50: 0 | IP50: 0 | IQ50: 0 | IR50: 0 | IS50: 0 | IT50: 0 | IU50: 0 | JT50: 0 | JW50: 0 | JZ50: 0 | LO50: 0
A51: 40 | B51: Воскресенский ГО | C51: д. Степанщино, ул. Суворова, д. 1, 2, 3 | D51: 247685978 | E51: 11000 | F51: 2100 | G51: 0 | H51: 8126 | I51: 774 | J51: 1 | K51: 1 | O51: 0 | U51: 1 | V51: 200 | W51: 200 | X51: 200 | Z51: 0 | AC51: 0 | AF51: 0 | AH51: 0 | AJ51: 0 | AL51: 15 | AM51: 0 | AP51: 15 | AQ51: 15 | AS51: 0 | AV51: 0 | AY51: 0 | BE51: 0 | BL51: 0 | BP51: 0 | BQ51: 0 | BS51: 0 | BV51: 0 | BX51: 0 | CB51: 0 | CE51: 0 | CG51: 0 | CH51: 0 | CM51: 1926 | CN51: 600 | CQ51: 6000 | CR51: 0 | CS51: 6 | CT51: 4 | CX51: 0 | DD51: 20 | DE51: 1 | DG51: 1 | DK51: 0 | DO51: 24 | DP51: 0 | EA51: 1 | EE51: 9 | EK51: 9 | EL51: 68 | EM51: 58 | EN51: 10 | EO51: 700 | ER51: 150 | FD51: 0 | FE51: 1400 | FT51: 0 | FU51: 350 | FV51: 0 | FW51: 4 | FX51: 0 | GI51: 0 | HS51: 0 | HU51: 0 | HV51: 0 | HW51: 0 | HX51: 0 | IB51: 0 | IP51: 0 | IQ51: 0 | IR51: 0 | IS51: 0 | IT51: 0 | IU51: 0 | JT51: 0 | JW51: 0 | JZ51: 0 | LO51: 0
A52: 41 | B52: Воскресенский ГО | C52: д. Степанщино, ул. Суворова, д. 4 | D52: 4999852674 | E52: 1804 | F52: 890 | G52: 0 | H52: 702 | I52: 212 | J52: 0 | K52: 0 | O52: 0 | U52: 0 | V52: 0 | W52: 0 | X52: 0 | Z52: 0 | AC52: 0 | AF52: 0 | AH52: 0 | AJ52: 0 | AL52: 0 | AM52: 0 | AP52: 0 | AQ52: 0 | AS52: 0 | AV52: 0 | AY52: 0 | BE52: 0 | BL52: 0 | BP52: 0 | BQ52: 0 | BS52: 0 | BV52: 0 | BX52: 0 | CB52: 0 | CE52: 8 | CF52: 8 | CG52: 0 | CH52: 0 | CM52: 702 | CN52: 200 | CS52: 6 | CT52: 4 | CX52: 0 | DD52: 10 | DE52: 1 | DG52: 1 | DK52: 12 | DO52: 0 | DP52: 650 | DV52: 104 | EA52: 1 | EE52: 0 | EK52: 0 | EL52: 26 | EM52: 26 | EO52: 400 | FD52: 0 | FE52: 490 | FT52: 0 | FU52: 122.5 | FV52: 0 | FW52: 4 | FX52: 0 | GI52: 0 | HS52: 0 | HU52: 0 | HV52: 0 | HW52: 0 | HX52: 0 | IB52: 0 | IP52: 0 | IQ52: 0 | IR52: 0 | IS52: 0 | IT52: 0 | IU52: 0 | JT52: 0 | JW52: 0 | JZ52: 0 | LO52: 0
A53: 42 | B53: Воскресенский ГО | C53: д. Цибино, Школьный пер., д.11 | D53: 1385644715 | E53: 4667.8 | F53: 741.3 | G53: 0 | H53: 3363 | I53: 563.5 | J53: 0 | K53: 0 | O53: 0 | U53: 0 | V53: 0 | W53: 0 | X53: 0 | Z53: 0 | AC53: 0 | AF53: 0 | AH53: 0 | AJ53: 0 | AL53: 0 | AM53: 0 | AP53: 0 | AQ53: 0 | AS53: 0 | AV53: 0 | AY53: 1 | BE53: 63 | BL53: 0 | BP53: 0 | BQ53: 0 | BS53: 0 | BV53: 0 | BX53: 0 | CB53: 0 | CE53: 10 | CF53: 10 | CG53: 0 | CH53: 0 | CM53: 2300 | CN53: 200 | CQ53: 1000 | CR53: 0 | CS53: 10 | CT53: 9 | CX53: 0 | DD53: 30 | DE53: 1 | DG53: 1 | DK53: 60 | DO53: 0 | DP53: 2248 | EA53: 1 | EE53: 1 | EK53: 1 | EL53: 14 | EM53: 0 | EN53: 14 | EO53: 0 | ER53: 178 | FD53: 0 | FE53: 741.3 | FT53: 0 | FU53: 133.7 | FV53: 0 | FW53: 4 | FX53: 0 | GI53: 125.5 | HS53: 0 | HU53: 0 | HV53: 0.053 | HW53: 0 | HX53: 2.8 | IB53: 0 | IP53: 0 | IQ53: 0 | IR53: 0 | IS53: 0 | IT53: 0 | IU53: 0 | JT53: 0 | JW53: 0 | JZ53: 0 | LO53: 0
A54: 43 | B54: Воскресенский ГО | C54: д. Чемодурово ул. Центральная д.10,11,13 | D54: 247685927 | E54: 10025.8 | F54: 2801 | G54: 1788.4 | H54: 2841 | I54: 2595.4 | J54: 1 | K54: 1 | O54: 0 | U54: 1 | V54: 250 | W54: 250 | X54: 250 | Z54: 0 | AC54: 0 | AF54: 0 | AH54: 0 | AJ54: 0 | AL54: 14 | AM54: 0 | AP54: 14 | AQ54: 14 | AS54: 0 | AV54: 0 | AY54: 1 | BE54: 120 | BL54: 0 | BP54: 0 | BQ54: 0 | BS54: 0 | BV54: 0 | BX54: 0 | CB54: 0 | CE54: 10 | CF54: 10 | CG54: 0 | CH54: 0 | CM54: 2345 | CN54: 2055.4 | CS54: 25 | CT54: 6 | CX54: 0 | DD54: 10 | DE54: 0 | DG54: 0 | DK54: 0 | DO54: 0 | DP54: 434 | EA54: 1 | EE54: 23 | EK54: 6 | EL54: 196 | EM54: 180 | EN54: 16 | EO54: 2043 | EQ54: 126 | ER54: 240 | FD54: 0 | FE54: 531.6 | FF54: 1788.4 | FT54: 0 | FU54: 580 | FV54: 0 | FW54: 4 | FX54: 0 | FZ54: 226.4 | GI54: 300 | HS54: 0 | HU54: 67 | HV54: 100 | HW54: 3.375 | HX54: 3 | IB54: 0 | IP54: 0 | IQ54: 0 | IR54: 0 | IS54: 0 | IT54: 0 | IU54: 0 | JT54: 0 | JW54: 0 | JZ54: 0 | LO54: 0
A55: 44 | B55: Воскресенский ГО | C55: д.Чемодурово, ул .Центральная д. 1,2,3 | D55: 247685926 | E55: 21653 | F55: 1932 | G55: 0 | H55: 17506 | I55: 2215 | J55: 1 | K55: 1 | O55: 0 | U55: 1 | V55: 0 | W55: 0 | X55: 0 | Z55: 0 | AC55: 0 | AF55: 0 | AH55: 553 | AJ55: 0 | AL55: 19 | AM55: 0 | AP55: 19 | AQ55: 19 | AS55: 0 | AV55: 0 | AY55: 1 | BE55: 0 | BL55: 0 | BP55: 0 | BQ55: 0 | BS55: 0 | BV55: 0 | BX55: 340 | CB55: 0 | CE55: 0 | CG55: 0 | CH55: 0 | CM55: 2003 | CN55: 1500 | CQ55: 14000 | CR55: 0 | CS55: 183 | CT55: 20 | CX55: 0 | DD55: 90 | DE55: 1 | DG55: 1 | DK55: 60 | DO55: 0 | DP55: 216 | EA55: 1 | EE55: 33 | EK55: 2 | EL55: 124 | EM55: 80 | EN55: 44 | EO55: 1010 | ER55: 655 | FD55: 0 | FE55: 922 | FT55: 0 | FU55: 230.5 | FV55: 0 | FW55: 4 | FX55: 0 | GI55: 0 | HS55: 0 | HU55: 0 | HV55: 0 | HW55: 0 | HX55: 0 | IA55: 610 | IB55: 0 | IP55: 0 | IQ55: 0.31 | IS55: 1.8 | IT55: 0 | IU55: 0 | JT55: 0 | JW55: 0 | JZ55: 0 | LO55: 0
A56: 45 | B56: Воскресенский ГО | C56: д. Чемодурово, ул.Центральная, д.4,5,6,7,9 | D56: 247685925 | E56: 13000 | F56: 2100 | G56: 0 | H56: 7850 | I56: 3050 | J56: 1 | K56: 1 | O56: 0 | U56: 1 | V56: 0 | W56: 0 | X56: 0 | Z56: 0 | AC56: 0 | AF56: 0 | AH56: 150 | AJ56: 0 | AL56: 8 | AM56: 0 | AP56: 8 | AQ56: 8 | AS56: 0 | AV56: 0 | AY56: 0 | BE56: 0 | BL56: 0 | BP56: 0 | BQ56: 0 | BS56: 0 | BV56: 0 | BX56: 0 | CB56: 0 | CE56: 0 | CG56: 0 | CH56: 0 | CM56: 2700 | CN56: 2276 | CQ56: 5000 | CR56: 0 | CS56: 60 | CT56: 8 | CX56: 0 | DD56: 16 | DE56: 1 | DG56: 1 | DK56: 0 | DO56: 60 | DP56: 0 | DV56: 170 | EA56: 1 | EE56: 12 | EK56: 0 | EL56: 90 | EM56: 61 | EN56: 29 | EO56: 960 | ER56: 430 | FD56: 0 | FE56: 1140 | FT56: 0 | FU56: 285 | FV56: 0 | FW56: 4 | FX56: 0 | GI56: 284 | HS56: 0 | HU56: 0 | HV56: 0.142 | HW56: 0 | HX56: 2 | IB56: 0 | IP56: 0 | IQ56: 0 | IR56: 0 | IS56: 0 | IT56: 0 | IU56: 0 | JT56: 0 | JW56: 0 | JZ56: 0 | LO56: 0
A57: 46 | B57: Воскресенский ГО | C57: д.Чемодурово, ул.Центральная, д.8 | D57: 7679829890 | E57: 3000 | F57: 770 | G57: 0 | H57: 1730 | I57: 500 | J57: 0 | K57: 0 | O57: 0 | U57: 0 | V57: 0 | W57: 0 | X57: 0 | Z57: 0 | AC57: 0 | AF57: 0 | AH57: 0 | AJ57: 0 | AL57: 0 | AM57: 0 | AP57: 0 | AQ57: 0 | AS57: 0 | AV57: 0 | AY57: 0 | BE57: 0 | BL57: 0 | BP57: 0 | BQ57: 0 | BS57: 0 | BV57: 0 | BX57: 0 | CB57: 0 | CE57: 0 | CG57: 0 | CH57: 0 | CM57: 1730 | CN57: 500 | CS57: 20 | CT57: 4 | CX57: 0 | DD57: 30 | DE57: 0 | DG57: 0 | DK57: 0 | DO57: 0 | DP57: 0 | EA57: 1 | EE57: 0 | EK57: 0 | EL57: 24 | EM57: 24 | EO57: 360 | FD57: 0 | FE57: 410 | FT57: 0 | FU57: 102.5 | FV57: 0 | FW57: 4 | FX57: 0 | GI57: 0 | HS57: 0 | HU57: 0 | HV57: 0 | HW57: 0 | HX57: 0 | IB57: 0 | IP57: 0 | IQ57: 0 | IR57: 0 | IS57: 0 | IT57: 0 | IU57: 0 | JT57: 0 | JW57: 0 | JZ57: 0 | LO57: 0
A58: 47 | B58: Воскресенский ГО | C58: д. Щербово ул. Малага, 2,3,4,5 | D58: 247685894 | E58: 3800 | F58: 0 | G58: 0 | H58: 2940 | I58: 860 | J58: 1 | K58: 1 | O58: 0 | U58: 1 | V58: 0 | W58: 0 | X58: 0 | Z58: 0 | AC58: 0 | AF58: 0 | AH58: 230 | AJ58: 0 | AL58: 5 | AM58: 0 | AP58: 5 | AQ58: 5 | AS58: 0 | AV58: 0 | AY58: 0 | BE58: 0 | BL58: 0 | BP58: 0 | BQ58: 0 | BS58: 0 | BV58: 0 | BX58: 0 | CB58: 0 | CE58: 0 | CG58: 0 | CH58: 0 | CM58: 2710 | CN58: 800 | CS58: 15 | CT58: 7 | CX58: 0 | DD58: 0 | DE58: 1 | DG58: 1 | DK58: 60 | DO58: 0 | DP58: 1260 | DV58: 104 | EA58: 1 | EE58: 0 | EK58: 0 | EL58: 0 | EM58: 0 | EO58: 0 | ER58: 0 | FD58: 0 | FE58: 0 | FT58: 0 | FU58: 0 | FV58: 0 | FW58: 4 | FX58: 0 | GI58: 0 | HS58: 0 | HU58: 0 | HV58: 0 | HW58: 0 | HX58: 0 | IB58: 0 | IP58: 0 | IQ58: 0 | IR58: 0 | IS58: 0 | IT58: 0 | IU58: 0 | JT58: 0 | JW58: 0 | JZ58: 0 | LO58: 0
A59: 48 | B59: Воскресенский ГО | C59: д.Щербово, ул.Малага, д.1 | D59: 7229117710 | E59: 1213 | F59: 0 | G59: 0 | H59: 1013 | I59: 200 | J59: 0 | K59: 0 | O59: 0 | U59: 0 | V59: 0 | W59: 0 | X59: 0 | Z59: 0 | AC59: 0 | AF59: 0 | AH59: 0 | AJ59: 0 | AL59: 0 | AM59: 0 | AP59: 0 | AQ59: 0 | AS59: 0 | AV59: 0 | AY59: 0 | BE59: 0 | BL59: 0 | BP59: 0 | BQ59: 0 | BS59: 0 | BV59: 0 | BX59: 0 | CB59: 0 | CE59: 0 | CG59: 0 | CH59: 0 | CM59: 1013 | CN59: 200 | CT59: 4 | CX59: 0 | DD59: 0 | DE59: 0 | DG59: 0 | DK59: 0 | DO59: 0 | DP59: 850 | DV59: 78 | EA59: 1 | EE59: 0 | EK59: 0 | EL59: 0 | EM59: 0 | EO59: 0 | FD59: 0 | FE59: 0 | FT59: 0 | FU59: 0 | FV59: 0 | FW59: 4 | FX59: 0 | GI59: 0 | HS59: 0 | HU59: 0 | HV59: 0 | HW59: 0 | HX59: 0 | IB59: 0 | IP59: 0 | IQ59: 0 | IR59: 0 | IS59: 0 | IT59: 0 | IU59: 0 | JT59: 0 | JW59: 0 | JZ59: 0 | LO59: 0
A60: 49 | B60: Воскресенский ГО | C60: Октябрьская, д. 14,ул Пионерская, д. 15 | D60: 247685916 | E60: 4445 | F60: 275 | G60: 0 | H60: 3540 | I60: 630 | J60: 1 | K60: 1 | O60: 0 | U60: 1 | V60: 150 | W60: 150 | X60: 150 | Z60: 0 | AC60: 0 | AF60: 0 | AH60: 0 | AJ60: 0 | AL60: 0 | AM60: 0 | AP60: 0 | AQ60: 0 | AS60: 0 | AV60: 0 | AY60: 0 | BE60: 0 | BL60: 0 | BP60: 0 | BQ60: 0 | BS60: 0 | BV60: 0 | BX60: 0 | CB60: 0 | CE60: 7 | CF60: 7 | CG60: 0 | CH60: 0 | CM60: 2490 | CN60: 400 | CS60: 45 | CT60: 6 | CX60: 0 | DD60: 44 | DE60: 1 | DG60: 1 | DK60: 0 | DO60: 60 | DP60: 344 | EA60: 1 | EE60: 0 | EK60: 0 | EL60: 14 | EM60: 0 | EN60: 14 | EO60: 0 | ER60: 170 | FD60: 0 | FE60: 275 | FT60: 0 | FU60: 78.5 | FV60: 0 | FW60: 4 | FX60: 0 | GI60: 0 | HS60: 0 | HU60: 0 | HV60: 0 | HW60: 0 | HX60: 0 | IA60: 900 | IB60: 0 | IP60: 0 | IQ60: 0.9 | IR60: 0 | IS60: 1 | IT60: 0 | IU60: 0 | JT60: 0 | JW60: 0 | JZ60: 0 | LO60: 0
A61: 50 | B61: Воскресенский ГО | C61: п. Белоозерский, ул. 50 лет Октября, д.10,11,12,13,14,18. | D61: 247685987 | E61: 19447 | F61: 4016 | G61: 0 | H61: 13932 | I61: 1499 | J61: 2 | K61: 2 | O61: 0 | U61: 2 | V61: 0 | W61: 0 | X61: 0 | Z61: 0 | AC61: 0 | AF61: 0 | AH61: 1026 | AJ61: 0 | AL61: 10 | AM61: 0 | AP61: 10 | AQ61: 10 | AS61: 0 | AV61: 0 | AY61: 0 | BE61: 0 | BL61: 0 | BP61: 0 | BQ61: 0 | BS61: 0 | BV61: 0 | BX61: 0 | CB61: 0 | CE61: 0 | CG61: 0 | CH61: 0 | CM61: 2800 | CN61: 1200 | CQ61: 10000 | CR61: 0 | CS61: 25 | CT61: 5 | CX61: 0 | DD61: 40 | DE61: 2 | DG61: 2 | DK61: 120 | DO61: 0 | DP61: 32 | DV61: 50 | EA61: 1 | EE61: 10 | EK61: 4 | EL61: 153 | EM61: 153 | EO61: 2200 | EQ61: 106 | FD61: 0 | FE61: 1816 | FT61: 0 | FU61: 454 | FV61: 0 | FW61: 4 | FX61: 0 | GI61: 179 | HS61: 0 | HU61: 0 | HV61: 0.044 | HW61: 0 | HX61: 3 | IB61: 0 | IP61: 0 | IQ61: 0 | IR61: 0 | IS61: 0 | IT61: 0 | IU61: 0 | JT61: 0 | JW61: 0 | JZ61: 0 | LO61: 0
A62: 51 | B62: Воскресенский ГО | C62: п. Белоозерский, ул. Комсомольская, д.11,12,13,14 | D62: 247685989 | E62: 22409.94 | F62: 2079 | G62: 0 | H62: 19104.94 | I62: 1226 | J62: 3 | K62: 3 | O62: 0 | U62: 3 | V62: 0 | W62: 0 | X62: 0 | Z62: 0 | AC62: 0 | AF62: 0 | AH62: 1769.94 | AJ62: 0 | AL62: 0 | AM62: 0 | AP62: 0 | AQ62: 0 | AS62: 0 | AV62: 0 | AY62: 2 | BE62: 0 | BL62: 100 | BP62: 100 | BQ62: 100 | BS62: 0 | BV62: 0 | BX62: 1800 | CB62: 0 | CE62: 10 | CF62: 10 | CG62: 0 | CH62: 0 | CM62: 3840 | CN62: 800 | CQ62: 11575 | CR62: 0 | CS62: 80 | CT62: 7 | CX62: 0 | DD62: 50 | DE62: 1 | DG62: 1 | DK62: 26 | DO62: 0 | DP62: 58 | DV62: 46 | EA62: 1 | EE62: 12 | EK62: 4 | EL62: 17 | EM62: 17 | EO62: 235 | EQ62: 20 | FD62: 0 | FE62: 1600 | FT62: 0 | FU62: 400 | FV62: 0 | FW62: 4 | FX62: 0 | FZ62: 244 | GI62: 400 | HS62: 0 | HU62: 67 | HV62: 100 | HW62: 3.6 | HX62: 4 | IB62: 0 | IP62: 0 | IQ62: 0 | IR62: 0 | IS62: 0 | IT62: 0 | IU62: 0 | JT62: 0 | JW62: 0 | JZ62: 0 | LO62: 0
A63: 52 | B63: Воскресенский ГО | C63: п. Белоозерский, ул. Комсомольская, д.6,8,10 | D63: 247685985 | E63: 12178 | F63: 3839 | G63: 0 | H63: 7709 | I63: 630 | J63: 1 | K63: 1 | O63: 0 | U63: 1 | V63: 0 | W63: 0 | X63: 0 | Z63: 0 | AC63: 0 | AF63: 0 | AH63: 544 | AJ63: 0 | AL63: 10 | AM63: 0 | AP63: 10 | AQ63: 10 | AS63: 0 | AV63: 0 | AY63: 0 | BE63: 0 | BL63: 0 | BP63: 0 | BQ63: 0 | BS63: 0 | BV63: 0 | BX63: 0 | CB63: 0 | CE63: 0 | CG63: 0 | CH63: 0 | CM63: 1700 | CN63: 600 | CQ63: 5245 | CR63: 0 | CS63: 45 | CT63: 6 | CX63: 0 | DD63: 40 | DE63: 1 | DG63: 1 | DK63: 30 | DO63: 0 | DP63: 133 | EA63: 1 | EE63: 8 | EK63: 3 | EL63: 77 | EM63: 77 | EO63: 1016 | FD63: 0 | FE63: 2823 | FT63: 0 | FU63: 634.3 | FV63: 0 | FW63: 4 | FX63: 0 | GI63: 0 | HS63: 0 | HU63: 0 | HV63: 0 | HW63: 0 | HX63: 0 | IA63: 220 | IB63: 0 | IP63: 0 | IQ63: 0.137 | IR63: 0 | IS63: 1.6 | IT63: 0 | IU63: 0 | JT63: 0 | JW63: 0 | JZ63: 0 | LO63: 0
A64: 53 | B64: Воскресенский ГО | C64: п. Белоозерский, ул. Комсомольская, д.9 | D64: 247685988 | E64: 6589.07 | F64: 760 | G64: 0 | H64: 5231 | I64: 598.07 | J64: 1 | K64: 1 | O64: 0 | U64: 1 | V64: 0 | W64: 0 | X64: 0 | Z64: 0 | AC64: 0 | AF64: 0 | AH64: 631 | AJ64: 0 | AL64: 19 | AM64: 0 | AP64: 19 | AQ64: 19 | AS64: 0 | AV64: 0 | AY64: 0 | BE64: 0 | BL64: 0 | BP64: 0 | BQ64: 0 | BS64: 0 | BV64: 0 | BX64: 0 | CB64: 0 | CE64: 0 | CG64: 0 | CH64: 0 | CM64: 1800 | CN64: 200 | CQ64: 2800 | CR64: 0 | CS64: 25 | CT64: 9 | CX64: 0 | DD64: 10 | DE64: 0 | DG64: 0 | DK64: 0 | DO64: 0 | DP64: 62 | DV64: 56 | EA64: 1 | EE64: 5 | EK64: 2 | EL64: 18 | EM64: 18 | EO64: 0 | FD64: 270 | FE64: 760 | FT64: 0 | FU64: 190 | FV64: 0 | FW64: 4 | FX64: 0 | GI64: 128.07 | HS64: 0 | HU64: 0 | HV64: 0.024 | HW64: 0 | HX64: 3 | IB64: 0 | IP64: 0 | IQ64: 0 | IR64: 0 | IS64: 0 | IT64: 0 | IU64: 0 | JT64: 0 | JW64: 0 | JZ64: 0 | LO64: 0
A65: 54 | B65: Воскресенский ГО | C65: п. Белоозерский, ул. Лесная, д. 57,58,59,60 | D65: 250112738 | E65: 8552 | F65: 1170 | G65: 0 | H65: 6388 | I65: 994 | J65: 1 | K65: 1 | O65: 0 | U65: 1 | V65: 0 | W65: 0 | X65: 0 | Z65: 0 | AC65: 0 | AF65: 0 | AH65: 375 | AJ65: 0 | AL65: 5 | AM65: 0 | AP65: 5 | AQ65: 5 | AS65: 0 | AV65: 0 | AY65: 0 | BE65: 0 | BL65: 0 | BP65: 0 | BQ65: 0 | BS65: 0 | BV65: 0 | BX65: 0 | CB65: 0 | CE65: 0 | CG65: 0 | CH65: 0 | CM65: 1000 | CN65: 800 | CQ65: 5013 | CR65: 0 | CS65: 140 | CT65: 28 | CX65: 0 | DD65: 10 | DE65: 1 | DG65: 1 | DK65: 0 | DO65: 30 | DP65: 109 | DV65: 138 | EA65: 1 | EE65: 4 | EK65: 8 | EL65: 0 | EM65: 0 | EO65: 0 | FD65: 0 | FE65: 1170 | FT65: 0 | FU65: 292 | FV65: 0 | FW65: 4 | FX65: 0 | GI65: 164 | HS65: 0 | HU65: 0 | HV65: 0.08 | HW65: 0 | HX65: 2 | IB65: 0 | IP65: 0 | IQ65: 0 | IR65: 0 | IS65: 0 | IT65: 0 | IU65: 0 | JT65: 0 | JW65: 0 | JZ65: 0 | LO65: 0
A66: 55 | B66: Воскресенский ГО | C66: п. Белоозерский, ул. Молодёжная, д.14,19,20,21,25,26 | D66: 247685995 | E66: 18325 | F66: 2097 | G66: 273 | H66: 12355 | I66: 3600 | J66: 2 | K66: 2 | O66: 0 | U66: 2 | V66: 0 | W66: 0 | X66: 0 | Z66: 0 | AC66: 0 | AF66: 0 | AH66: 1218 | AJ66: 0 | AL66: 8 | AM66: 0 | AP66: 8 | AQ66: 8 | AS66: 0 | AV66: 0 | AY66: 0 | BE66: 0 | BL66: 0 | BP66: 0 | BQ66: 0 | BS66: 0 | BV66: 0 | BX66: 0 | CB66: 0 | CE66: 0 | CG66: 0 | CH66: 0 | CM66: 1900 | CN66: 3000 | CQ66: 9207 | CR66: 0 | CS66: 75 | CT66: 6 | CX66: 0 | DD66: 50 | DE66: 0 | DG66: 0 | DK66: 0 | DO66: 0 | DP66: 183 | DV66: 64 | EA66: 1 | EE66: 8 | EK66: 8 | EL66: 38 | EM66: 19 | EN66: 19 | EO66: 207 | EP66: 273 | EQ66: 30 | FD66: 0 | FE66: 1270 | FT66: 0 | FU66: 317.5 | FV66: 0 | FW66: 4 | FX66: 0 | FZ66: 620 | GI66: 600 | HS66: 0 | HU66: 206 | HV66: 200 | HW66: 3 | HX66: 3 | IB66: 0 | IP66: 0 | IQ66: 0 | IR66: 0 | IS66: 0 | IT66: 0 | IU66: 0 | JT66: 0 | JW66: 0 | JZ66: 0 | LO66: 0
A67: 56 | B67: Воскресенский ГО | C67: п. Белоозерский, ул. Молодёжная, д.17,18,24 | D67: 247685996 | E67: 16234 | F67: 2406 | G67: 0 | H67: 11965 | I67: 1863 | J67: 1 | K67: 1 | O67: 0 | U67: 1 | V67: 0 | W67: 0 | X67: 0 | Z67: 0 | AC67: 0 | AF67: 0 | AH67: 1709 | AJ67: 0 | AL67: 13 | AM67: 0 | AP67: 13 | AQ67: 13 | AS67: 0 | AV67: 0 | AY67: 0 | BE67: 0 | BL67: 0 | BP67: 0 | BQ67: 0 | BS67: 0 | BV67: 0 | BX67: 0 | CB67: 0 | CE67: 0 | CG67: 0 | CH67: 0 | CM67: 10256 | CN67: 1500 | CS67: 45 | CT67: 8 | CX67: 0 | DD67: 69 | DE67: 0 | DG67: 0 | DK67: 0 | DO67: 0 | DP67: 209 | DV67: 155 | EA67: 1 | EE67: 15 | EK67: 2 | EL67: 5 | EM67: 0 | EN67: 5 | EO67: 0 | ER67: 63 | FD67: 0 | FE67: 1790 | FT67: 0 | FU67: 447.5 | FV67: 0 | FW67: 4 | FX67: 0 | FZ67: 616 | GI67: 300 | HS67: 0 | HU67: 154 | HV67: 100 | HW67: 4 | HX67: 3 | IB67: 0 | IP67: 0 | IQ67: 0 | IR67: 0 | IS67: 0 | IT67: 0 | IU67: 0 | JT67: 0 | JW67: 0 | JZ67: 0 | LO67: 0
A68: 57 | B68: Воскресенский ГО | C68: п. Белоозерский, ул. Молодёжная, д.22,23,28,29 | D68: 247685993 | E68: 10947 | F68: 1736 | G68: 0 | H68: 6631 | I68: 2580 | J68: 1 | K68: 1 | O68: 0 | U68: 1 | V68: 0 | W68: 0 | X68: 0 | Z68: 0 | AC68: 0 | AF68: 0 | AH68: 376 | AJ68: 0 | AL68: 15 | AM68: 0 | AP68: 15 | AQ68: 15 | AS68: 0 | AV68: 0 | AY68: 0 | BE68: 0 | BL68: 0 | BP68: 0 | BQ68: 0 | BS68: 0 | BV68: 0 | BX68: 0 | CB68: 0 | CE68: 0 | CG68: 0 | CH68: 0 | CM68: 6255 | CN68: 2000 | CS68: 100 | CT68: 26 | CX68: 0 | DD68: 115 | DE68: 1 | DG68: 1 | DK68: 60 | DO68: 0 | DP68: 215 | DV68: 194 | EA68: 1 | EE68: 5 | EK68: 2 | EL68: 10 | EM68: 0 | EN68: 10 | EO68: 0 | ER68: 120 | FD68: 0 | FE68: 1345 | FT68: 0 | FU68: 315 | FV68: 0 | FW68: 4 | FX68: 0 | FZ68: 391 | GI68: 400 | HS68: 0 | HU68: 130 | HV68: 100 | HW68: 3 | HX68: 4 | IB68: 0 | IP68: 0 | IQ68: 0 | IR68: 0 | IS68: 0 | IT68: 0 | IU68: 0 | JT68: 0 | JW68: 0 | JZ68: 0 | LO68: 0
A69: 58 | B69: Воскресенский ГО | C69: п. Белоозерский, ул. Молодёжная, д.30,32,33 | D69: 247685999 | E69: 5497.7 | F69: 2574 | G69: 0 | H69: 625 | I69: 2298.7 | J69: 1 | K69: 1 | O69: 0 | U69: 1 | V69: 0 | W69: 0 | X69: 0 | Z69: 0 | AC69: 0 | AF69: 0 | AH69: 625 | AJ69: 0 | AL69: 5 | AM69: 0 | AP69: 5 | AQ69: 5 | AS69: 0 | AV69: 0 | AY69: 0 | BE69: 0 | BL69: 0 | BP69: 0 | BQ69: 0 | BS69: 0 | BV69: 0 | BX69: 0 | CB69: 0 | CE69: 0 | CG69: 0 | CH69: 0 | CM69: 0 | CN69: 1998.7 | CS69: 80 | CT69: 11 | CX69: 0 | DD69: 49 | DE69: 0 | DG69: 0 | DK69: 0 | DO69: 0 | DP69: 188 | DQ69: 0 | DW69: 100 | DY69: 61 | EA69: 1 | EE69: 0 | EK69: 0 | EL69: 76 | EM69: 64 | EN69: 12 | EO69: 1023 | ER69: 0 | FD69: 0 | FE69: 1088 | FT69: 0 | FU69: 260 | FV69: 0 | FW69: 0 | FX69: 4 | FZ69: 463 | GI69: 300 | HS69: 0 | HU69: 107 | HV69: 100 | HW69: 4.3 | HX69: 4.3 | IB69: 0 | IP69: 0 | IQ69: 0 | IR69: 0 | IS69: 0 | IT69: 0 | IU69: 0 | JT69: 0 | JW69: 0 | JZ69: 0 | LO69: 0
A70: 59 | B70: Воскресенский ГО | C70: п. Белоозерский,ул. Молодёжная, д.5,6,7,8 | D70: 247685992 | E70: 12561 | F70: 2652 | G70: 0 | H70: 6930 | I70: 2979 | J70: 1 | K70: 1 | O70: 0 | U70: 1 | V70: 0 | W70: 0 | X70: 0 | Z70: 0 | AC70: 0 | AF70: 0 | AH70: 780 | AJ70: 0 | AL70: 5 | AM70: 0 | AP70: 5 | AQ70: 5 | AS70: 0 | AV70: 0 | AY70: 0 | BE70: 0 | BL70: 0 | BP70: 0 | BQ70: 0 | BS70: 0 | BV70: 0 | BX70: 0 | CB70: 0 | CE70: 0 | CG70: 0 | CH70: 0 | CM70: 6150 | CN70: 2379 | CS70: 80 | CT70: 19 | CX70: 0 | DD70: 50 | DE70: 0 | DG70: 0 | DK70: 0 | DO70: 0 | DP70: 0 | DV70: 38 | DX70: 150 | EA70: 1 | EE70: 9 | EK70: 2 | EL70: 58 | EM70: 44 | EN70: 14 | EO70: 523 | ER70: 200 | FD70: 0 | FE70: 1560 | FT70: 0 | FU70: 336 | FV70: 0 | FW70: 4 | FX70: 0 | FZ70: 569 | GI70: 400 | HS70: 0 | HU70: 203 | HV70: 100 | HW70: 2.8 | HX70: 4 | IB70: 0 | IP70: 0 | IQ70: 0 | IR70: 0 | IS70: 0 | IT70: 0 | IU70: 0 | JT70: 0 | JW70: 0 | JZ70: 0 | LO70: 0
A71: 60 | B71: Воскресенский ГО | C71: п. Белоозерский, ул. Российская, д. 1 | D71: 247686005 | E71: 7800 | F71: 0 | G71: 674 | H71: 0 | I71: 7126 | J71: 2 | L71: 2 | P71: 0 | U71: 2 | V71: 501 | W71: 501 | Y71: 501 | Z71: 0 | AC71: 0 | AG71: 0 | AI71: 451 | AL71: 13 | AM71: 0 | AP71: 13 | AQ71: 13 | AS71: 0 | AV71: 0 | AZ71: 0 | BF71: 0 | BL71: 0 | BP71: 0 | BR71: 0 | BS71: 0 | BW71: 0 | BY71: 0 | CB71: 0 | CE71: 0 | CG71: 0 | CH71: 0 | CM71: 0 | CN71: 5626 | CS71: 0 | CT71: 104 | CX71: 0 | DD71: 20 | DE71: 0 | DG71: 0 | DK71: 0 | DO71: 0 | DP71: 0 | EA71: 1 | EE71: 1 | EK71: 4 | EL71: 38 | EM71: 0 | EN71: 38 | EO71: 0 | EP71: 250 | ER71: 255 | FD71: 0 | FE71: 0 | FF71: 424 | FT71: 0 | FU71: 106 | FV71: 0 | FW71: 4 | FX71: 0 | GI71: 293 | HS71: 0 | HU71: 0 | HV71: 0.094 | HW71: 0 | HX71: 2 | IB71: 0 | IP71: 0 | IQ71: 0 | IR71: 0 | IS71: 0 | IT71: 0 | IU71: 0 | JT71: 0 | JW71: 0 | JZ71: 0 | LO71: 0
A72: 61 | B72: Воскресенский ГО | C72: п.Виноградово, ул.Заводская, 10 | D72: 7227318370 | E72: 2300 | F72: 0 | G72: 0 | H72: 2100 | I72: 200 | J72: 0 | K72: 0 | O72: 0 | U72: 0 | V72: 0 | W72: 0 | X72: 0 | Z72: 0 | AC72: 0 | AF72: 0 | AH72: 0 | AJ72: 0 | AL72: 0 | AM72: 0 | AP72: 0 | AQ72: 0 | AS72: 0 | AV72: 0 | AY72: 0 | BE72: 0 | BL72: 0 | BP72: 0 | BQ72: 0 | BS72: 0 | BV72: 0 | BX72: 0 | CB72: 0 | CE72: 0 | CG72: 0 | CH72: 0 | CM72: 2100 | CN72: 200 | CT72: 6 | CX72: 0 | DD72: 0 | DE72: 0 | DG72: 0 | DK72: 0 | DO72: 0 | DP72: 0 | EA72: 1 | EE72: 0 | EK72: 0 | EL72: 0 | EM72: 0 | EO72: 0 | FD72: 0 | FE72: 0 | FT72: 0 | FU72: 0 | FV72: 0 | FW72: 4 | FX72: 0 | GI72: 0 | HS72: 0 | HU72: 0 | HV72: 0 | HW72: 0 | HX72: 0 | IB72: 0 | IP72: 0 | IQ72: 0 | IR72: 0 | IS72: 0 | IT72: 0 | IU72: 0 | JT72: 0 | JW72: 0 | JZ72: 0 | LO72: 0
A73: 62 | B73: Воскресенский ГО | C73: п.Виноградово, ул.Заводская, 4,6 | D73: 7227156670 | E73: 3339 | F73: 0 | G73: 0 | H73: 2879 | I73: 460 | J73: 0 | K73: 0 | O73: 0 | U73: 0 | V73: 0 | W73: 0 | X73: 0 | Z73: 0 | AC73: 0 | AF73: 0 | AH73: 0 | AJ73: 0 | AL73: 0 | AM73: 0 | AP73: 0 | AQ73: 0 | AS73: 0 | AV73: 0 | AY73: 0 | BE73: 0 | BL73: 0 | BP73: 0 | BQ73: 0 | BS73: 0 | BV73: 0 | BX73: 0 | CB73: 0 | CE73: 0 | CG73: 0 | CH73: 0 | CM73: 2879 | CN73: 400 | CT73: 0 | CX73: 0 | DD73: 0 | DE73: 1 | DG73: 1 | DK73: 60 | DO73: 0 | DP73: 0 | EA73: 1 | EE73: 0 | EK73: 0 | EL73: 0 | EM73: 0 | EO73: 0 | FD73: 0 | FE73: 0 | FT73: 0 | FU73: 0 | FV73: 0 | FW73: 4 | FX73: 0 | GI73: 0 | HS73: 0 | HU73: 0 | HV73: 0 | HW73: 0 | HX73: 0 | IB73: 0 | IP73: 0 | IQ73: 0 | IR73: 0 | IS73: 0 | IT73: 0 | IU73: 0 | JT73: 0 | JW73: 0 | JZ73: 0 | LO73: 0
A74: 63 | B74: Воскресенский ГО | C74: п. Виноградово ул. Заводская д. 7, 9, 12, 13 | D74: 247685977 | E74: 6000 | F74: 0 | G74: 0 | H74: 5150 | I74: 850 | J74: 0 | K74: 0 | O74: 0 | U74: 0 | V74: 0 | W74: 0 | X74: 0 | Z74: 0 | AC74: 0 | AF74: 0 | AH74: 0 | AJ74: 0 | AL74: 0 | AM74: 0 | AP74: 0 | AQ74: 0 | AS74: 0 | AV74: 0 | AY74: 0 | BE74: 0 | BL74: 0 | BP74: 0 | BQ74: 0 | BS74: 0 | BV74: 0 | BX74: 0 | CB74: 0 | CE74: 6 | CF74: 6 | CG74: 0 | CH74: 0 | CM74: 1150 | CN74: 800 | CQ74: 4000 | CR74: 0 | CS74: 45 | CT74: 10 | CX74: 0 | DD74: 10 | DE74: 0 | DG74: 0 | DK74: 0 | DO74: 0 | DP74: 1534 | EA74: 1 | EE74: 0 | EK74: 0 | EL74: 4 | EM74: 4 | EO74: 0 | FD74: 50 | FE74: 0 | FT74: 0 | FU74: 0 | FV74: 0 | FW74: 4 | FX74: 0 | GI74: 0 | HS74: 0 | HU74: 0 | HV74: 0 | HW74: 0 | HX74: 0 | IB74: 0 | IP74: 0 | IQ74: 0 | IR74: 0 | IS74: 0 | IT74: 0 | IU74: 0 | JT74: 0 | JW74: 0 | JZ74: 0 | LO74: 0
A75: 64 | B75: Воскресенский ГО | C75: п. Виноградово, ул. Заводская, д. 8 | D75: 4043273098 | E75: 2700 | F75: =SUM(M75,Q75,BC75,BG75,DH75,DL75,EO75,ES75,FE75,FI75,FY75,FZ75,GA75,GK75,GL75,GM75,HY75,IC75,IX75,JB75,LS75,LW75,KF75,LH75) -> 200 | G75: =SUM(N75,R75,BD75,BH75,DI75,DM75,EP75,ET75,FF75,FJ75,GB75,GC75,GD75,GN75,GO75,GP75,HZ75,ID75,IY75,JC75,LT75,LX75,KH75,LJ75) -> 0 | H75: =SUM(O75,S75,AF75,AH75,AJ75,BE75,BI75,BV75,BX75,BZ75,CM75,CO75,CQ75,CK75,GW75,GX75,GY75,HC75,HD75,DJ75,DN75,EQ75,EU75,FG75,FK75,GE75,GF75,GG75,GQ75,GR75,GS75,IA75,IE75,IZ75,JD75,JF75,JH75,JJ75,JL75,LU75,LY75,MA75,MC75,ME75,MG75,HE75,HI75,HJ75,HK75,HO75,HP75,HQ75,IG75,II75,IK75,IM75,IO75,JN75,MI75,MK75,EW75,EY75,FA75,FC75,JR75,FM75,FO75,FQ75,FS75,JP75+X75+AA75+AD75+BN75+BQ75+BT75+KJ75+KR75+KW75+KY75+LA75+LD75+LL75,CW75,DA75,KN75) -> 2300 | I75: 200 | J75: 0 | K75: 0 | O75: 0 | U75: 0 | V75: 0 | W75: 0 | X75: 0 | Z75: 0 | AC75: 0 | AF75: 0 | AH75: 0 | AJ75: 0 | AL75: 0 | AM75: 0 | AP75: 0 | AQ75: 0 | AS75: 0 | AV75: 0 | AY75: 0 | BE75: 0 | BL75: 0 | BP75: 0 | BQ75: 0 | BS75: 0 | BV75: 0 | BX75: 0 | CB75: 0 | CE75: 0 | CG75: 0 | CH75: 0 | CM75: 1300 | CN75: 200 | CQ75: 1000 | CR75: 0 | CT75: 9 | CX75: 0 | DD75: 40 | DE75: 0 | DG75: 0 | DK75: 0 | DO75: 0 | DP75: 260 | EA75: 1 | EE75: 0 | EK75: 0 | EL75: 0 | EM75: 0 | EO75: 0 | FD75: 0 | FE75: 200 | FT75: 0 | FU75: 50 | FV75: 0 | FW75: 4 | FX75: 0 | GI75: 0 | HS75: 0 | HU75: 0 | HV75: 0 | HW75: 0 | HX75: 0 | IB75: 0 | IP75: 0 | IQ75: 0 | IR75: 0 | IS75: 0 | IT75: 0 | IU75: 0 | JT75: 0 | JW75: 0 | JZ75: 0 | LO75: 0
A76: 65 | B76: Воскресенский ГО | C76: п. Виноградово, ул. Зеленая д. 1,2,3,4,5,6,7,8,9 | D76: 247685975 | E76: =SUM(F76,G76,H76,I76) -> 25575 | F76: 4020 | G76: 0 | H76: 16201 | I76: 5354 | J76: =K76+L76 -> 2 | K76: 2 | O76: 0 | U76: 2 | V76: 150 | W76: 150 | X76: 150 | Z76: 0 | AC76: 0 | AF76: 0 | AH76: 286 | AJ76: 0 | AL76: 0 | AM76: 0 | AP76: 0 | AQ76: 0 | AS76: 0 | AV76: 0 | AY76: 1 | BE76: 558 | BL76: 0 | BP76: 0 | BQ76: 0 | BS76: 0 | BV76: 0 | BX76: 0 | CB76: 0 | CE76: 0 | CG76: 0 | CH76: 0 | CM76: 4770 | CN76: 4500 | CQ76: 10437 | CR76: 0 | CS76: 90 | CT76: 12 | CX76: 0 | DD76: 30 | DE76: 2 | DG76: 2 | DK76: 120 | DO76: 0 | EA76: 1 | EE76: 1 | EK76: 0 | EL76: 68 | EM76: 59 | EN76: 9 | EO76: 692 | ER76: 135 | FD76: 0 | FE76: 3240 | FT76: 0 | FU76: 606 | FV76: 0 | FW76: 4 | FX76: 0 | GI76: 599 | HS76: 0 | HU76: 0 | HV76: 0.442 | HW76: 0 | HX76: 1.6 | HY76: 88 | IA76: 0 | IB76: 0 | IP76: 0 | IQ76: 0.021 | IS76: 2 | IT76: 0 | IU76: 0 | JT76: 0 | JW76: 0 | JZ76: 0 | LO76: 0
A77: 66 | B77: Воскресенский ГО | C77: п. Виноградово, ул. Зеленая, д. 1а | D77: 247685976 | E77: 2457 | F77: 359 | G77: 0 | H77: 1898 | I77: =SUM(P77,T77,Y77,AB77,AE77,AG77,AI77,AK77,BF77,BJ77,BO77,BR77,BU77,BW77,BY77,CA77,CL77,CN77,CP77,CR77,CX77,DB77,DK77,DO77,ER77,EV77,EX77,EZ77,FB77,FD77,FH77,FL77,FN77,FP77,FR77,FT77,GH77:GJ77,GT77:GV77,GZ77:HB77,HF77:HH77,HL77:HN77,HR77:HT77,IB77,IF77,IH77,IJ77,IL77,IN77,IP77,JA77,JE77,JG77,JI77,JK77,JM77,JO77,JQ77,JS77,KL77,KT77,KX77,KZ77,LB77,LF77,LN77,LV77,LZ77,MB77,MD77,MF77,MH77,MJ77,ML77,KP77) -> 200 | J77: 1 | K77: 1 | O77: 0 | U77: 1 | V77: =SUM(W77,AA77,AD77) -> 0 | W77: 0 | X77: 0 | Z77: =AA77+AB77 -> 0 | AC77: =AD77+AE77 -> 0 | AF77: 0 | AH77: 50 | AJ77: 0 | AL77: =AM77+AP77+AS77 -> 5 | AM77: =AN77+AO77 -> 0 | AP77: =AQ77+AR77 -> 5 | AQ77: 5 | AS77: =AT77+AU77 -> 0 | AV77: =AW77+AX77 -> 0 | AY77: 0 | BE77: 0 | BL77: =BM77+BP77+BS77 -> 0 | BP77: =BQ77+BR77 -> 0 | BQ77: 0 | BS77: =BT77+BU77 -> 0 | BV77: 0 | BX77: 0 | CB77: =CC77+CD77 -> 0 | CE77: =CF77+CG77 -> 0 | CG77: 0 | CH77: =CI77+CJ77 -> 0 | CM77: 1848 | CN77: 200 | CT77: 7 | CX77: 0 | DD77: 5 | DE77: =DF77+DG77 -> 0 | DG77: 0 | DK77: 0 | DO77: 0 | EA77: 1 | EE77: 2 | EK77: 0 | EL77: =EM77+EN77 -> 0 | EM77: 0 | EO77: 0 | FD77: 0 | FE77: 359 | FT77: 0 | FU77: 130 | FV77: 0 | FW77: 4 | FX77: 0 | GI77: 0 | HS77: 0 | HU77: 0 | HV77: 0 | HW77: 0 | HX77: 0 | IB77: 0 | IP77: 0 | IQ77: 0 | IR77: 0 | IS77: 0 | IT77: 0 | IU77: =IV77+IW77 -> 0 | JT77: =JU77+JV77 -> 0 | JW77: =JX77+JY77 -> 0 | JZ77: =KA77+KB77+KC77+KD77 -> 0 | LO77: =LP77+LQ77 -> 0
A78: 67 | B78: Воскресенский ГО | C78: п.Виноградово, ул.Новозаводская, д.3,4,5 | D78: 7227511990 | E78: 2000 | F78: 0 | G78: 0 | H78: 1400 | I78: 600 | J78: 0 | K78: 0 | O78: 0 | U78: 0 | V78: 0 | W78: =X78+Y78 -> 0 | X78: 0 | Z78: 0 | AC78: 0 | AF78: 0 | AH78: 0 | AJ78: 0 | AL78: 0 | AM78: 0 | AP78: 0 | AQ78: 0 | AS78: 0 | AV78: 0 | AY78: 0 | BE78: 0 | BL78: 0 | BP78: 0 | BQ78: 0 | BS78: 0 | BV78: 0 | BX78: 0 | CB78: 0 | CE78: 0 | CG78: 0 | CH78: 0 | CM78: 1400 | CN78: 600 | CT78: 5 | CX78: 0 | DD78: 0 | DE78: 0 | DG78: 0 | DK78: 0 | DO78: 0 | DP78: 524 | EA78: 1 | EE78: 0 | EK78: 0 | EL78: 0 | EM78: 0 | EO78: 0 | FD78: 0 | FE78: 0 | FT78: 0 | FU78: 0 | FV78: 0 | FW78: 4 | FX78: 0 | GI78: 0 | HS78: 0 | HU78: 0 | HV78: 0 | HW78: 0 | HX78: 0 | IB78: 0 | IP78: 0 | IQ78: 0 | IR78: 0 | IS78: 0 | IT78: 0 | IU78: 0 | JT78: 0 | JW78: 0 | JZ78: 0 | LO78: 0
A79: 68 | B79: Воскресенский ГО | C79: п. Виноградово, ул. Новозаводская, д. 4а, 6 | D79: 4043313978 | E79: 2402 | F79: 0 | G79: 0 | H79: 1600 | I79: 802 | J79: 1 | K79: 1 | O79: 0 | U79: 1 | V79: 0 | W79: 0 | X79: 0 | Z79: 0 | AC79: 0 | AF79: 0 | AH79: 604 | AJ79: 0 | AL79: 7 | AM79: 0 | AP79: 7 | AQ79: 7 | AS79: 0 | AV79: 0 | AY79: 0 | BE79: 0 | BL79: 0 | BP79: 0 | BQ79: 0 | BS79: 0 | BV79: 0 | BX79: 0 | CB79: 0 | CE79: 8 | CF79: 8 | CG79: 0 | CH79: 0 | CM79: 996 | CN79: 802 | CS79: 30 | CT79: 10 | CX79: 0 | DD79: 22 | DE79: 0 | DG79: 0 | DK79: 0 | DO79: 0 | DP79: 1910 | EA79: 1 | EE79: 0 | EK79: 0 | EL79: 0 | EM79: 0 | EO79: 0 | FD79: 0 | FE79: 0 | FT79: 0 | FU79: 0 | FV79: 0 | FW79: 4 | FX79: 0 | GI79: 0 | HS79: 0 | HU79: 0 | HV79: 0 | HW79: 0 | HX79: 0 | IB79: 0 | IP79: 0 | IQ79: 0 | IR79: 0 | IS79: 0 | IT79: 0 | IU79: 0 | JT79: 0 | JW79: 0 | JZ79: 0 | LO79: 0
A80: 69 | B80: Воскресенский ГО | C80: пер.1-й Школьный 1, ул.Некрасова 14,18,16,пер.2-й Школьный 4 | D80: 247685860 | E80: 5922.8 | F80: 60 | G80: 0 | H80: 4612.8 | I80: 1250 | J80: 0 | K80: 0 | O80: 0 | U80: 0 | V80: 0 | W80: 0 | X80: 0 | Z80: 0 | AC80: 0 | AF80: 0 | AH80: 0 | AJ80: 0 | AL80: 0 | AM80: 0 | AP80: 0 | AQ80: 0 | AS80: 0 | AV80: 0 | AY80: 0 | BE80: 0 | BL80: 0 | BP80: 0 | BQ80: 0 | BS80: 0 | BV80: 0 | BX80: 0 | CB80: 0 | CE80: 0 | CG80: 0 | CH80: 0 | CM80: 4280 | CN80: 1120 | CS80: 41 | CT80: 10 | CX80: 0 | DD80: 39 | DE80: 0 | DG80: 0 | DK80: 0 | DO80: 0 | DP80: 1004 | EA80: 1 | EE80: 0 | EK80: 0 | EL80: 5 | EM80: 0 | EN80: 5 | EO80: 0 | ER80: 70 | FD80: 0 | FE80: 60 | FT80: 0 | FU80: 20 | FV80: 0 | FW80: 4 | FX80: 0 | GI80: 60 | HS80: 0 | HU80: 0 | HV80: 0.05 | HW80: 0 | HX80: 1.2 | IA80: 332.8 | IB80: 0 | IP80: 0 | IQ80: 0.294 | IR80: 0 | IS80: 1.1 | IT80: 0 | IU80: 0 | JT80: 0 | JW80: 0 | JZ80: 0 | LO80: 0
A81: 70 | B81: Воскресенский ГО | C81: пер.1-й Школьный 2а,6а,6б, ул.Московская 21в,21,21б,21а ул.Некрасова 12 | D81: 247685857 | E81: 28094 | F81: 4960 | G81: 0 | H81: 19431 | I81: 3703 | J81: 3 | K81: 3 | O81: 0 | U81: 3 | V81: 0 | W81: 0 | X81: 0 | Z81: 0 | AC81: 0 | AF81: 0 | AH81: 596 | AJ81: 0 | AL81: 0 | AM81: 0 | AP81: 0 | AQ81: 0 | AS81: 0 | AV81: 0 | AY81: 1 | BE81: 0 | BL81: 0 | BP81: 0 | BQ81: 0 | BS81: 0 | BV81: 20 | BX81: 0 | CB81: 0 | CE81: 2 | CF81: 2 | CG81: 0 | CH81: 0 | CM81: 3500 | CN81: 1600 | CQ81: 15000 | CR81: 0 | CS81: 220 | CT81: 21 | CX81: 0 | DD81: 67 | DE81: 0 | DG81: 0 | DK81: 0 | DO81: 0 | DP81: 980 | EA81: 1 | EE81: 13 | EK81: 8 | EL81: 194 | EM81: 85 | EN81: 109 | EO81: 1000 | ER81: 1623 | FD81: 0 | FE81: 2460 | FT81: 0 | FU81: 615 | FV81: 0 | FW81: 4 | FX81: 0 | FZ81: 1500 | GF81: 315 | GI81: 480 | HS81: 0 | HU81: 1116 | HV81: 100 | HW81: 1.625 | HX81: 4 | IB81: 0 | IP81: 0 | IQ81: 0 | IR81: 0 | IS81: 0 | IT81: 0 | IU81: 0 | JT81: 0 | JW81: 0 | JZ81: 0 | LO81: 0
A82: 71 | B82: Воскресенский ГО | C82: пер.2-й Школьный 3, ул.Некрасова 20,22,24,26 | D82: 5572482514 | E82: 6891.5 | F82: 1331.5 | G82: 0 | H82: 4185 | I82: 1375 | J82: 1 | K82: 1 | O82: 0 | U82: 1 | V82: 0 | W82: 0 | X82: 0 | Z82: 0 | AC82: 0 | AF82: 0 | AH82: 70 | AJ82: 0 | AL82: 0 | AM82: 0 | AP82: 0 | AQ82: 0 | AS82: 0 | AV82: 0 | AY82: 0 | BE82: 0 | BL82: 0 | BP82: 0 | BQ82: 0 | BS82: 0 | BV82: 0 | BX82: 0 | CB82: 0 | CE82: 5 | CF82: 5 | CG82: 0 | CH82: 0 | CM82: 3930 | CN82: 1000 | CS82: 50 | CT82: 10 | CX82: 0 | DD82: 70 | DE82: 0 | DG82: 0 | DK82: 0 | DO82: 0 | DP82: 1410 | DT82: 70 | EA82: 1 | EE82: 1 | EK82: 1 | EL82: 17 | EM82: 0 | EN82: 17 | EO82: 0 | ER82: 255 | FD82: 0 | FE82: 831.5 | FT82: 0 | FU82: 115 | FV82: 0 | FW82: 4 | FX82: 0 | FZ82: 500 | GF82: 185 | GI82: 120 | HS82: 0 | HU82: 0.587 | HV82: 100 | HW82: 1.2 | HX82: 1.2 | IB82: 0 | IP82: 0 | IQ82: 0 | IR82: 0 | IS82: 0 | IT82: 0 | IU82: 0 | JT82: 0 | JW82: 0 | JZ82: 0 | LO82: 0
A83: 72 | B83: Воскресенский ГО | C83: пер.Зеленый ,2,4 ул.Светлая д.7, ул.Центральная д.6,8 | D83: 247685884 | E83: 27027 | F83: 5088 | G83: 0 | H83: 19017 | I83: 2922 | J83: 1 | K83: 1 | O83: 0 | U83: 1 | V83: 353 | W83: 353 | X83: 353 | Z83: 0 | AC83: 0 | AF83: 0 | AH83: 0 | AJ83: 0 | AL83: 19 | AM83: 0 | AP83: 19 | AQ83: 19 | AS83: 0 | AV83: 0 | AY83: 2 | BE83: 396 | BL83: 0 | BP83: 0 | BQ83: 0 | BS83: 0 | BV83: 0 | BX83: 0 | CB83: 0 | CE83: 4 | CF83: 4 | CG83: 0 | CH83: 0 | CM83: 7800 | CN83: 2500 | CQ83: 10000 | CR83: 0 | CS83: 100 | CT83: 15 | CX83: 70 | DD83: 244 | DE83: 0 | DG83: 0 | DK83: 0 | DO83: 0 | DP83: 0 | DQ83: 232 | DU83: 88 | EA83: 1 | EE83: 5 | EK83: 0 | EL83: 226 | EM83: 226 | EO83: 2498 | EQ83: 98 | ER83: 352 | FD83: 0 | FE83: 2590 | FT83: 0 | FU83: 647.5 | FV83: 0 | FW83: 4 | FX83: 0 | GI83: 0 | HS83: 0 | HU83: 0 | HV83: 0 | HW83: 0 | HX83: 0 | IA83: 370 | IB83: 0 | IP83: 0 | IQ83: 0.37 | IR83: 0 | IS83: 1 | IT83: 0 | IU83: 0 | JT83: 0 | JW83: 0 | JZ83: 0 | LO83: 0
A84: 73 | B84: Воскресенский ГО | C84: пер.Юбилейный 10,12 | D84: 247685883 | E84: 7117 | F84: 0 | G84: 1238 | H84: 0 | I84: 5879 | J84: 0 | P84: 0 | V84: 0 | W84: 0 | Y84: 0 | Z84: 0 | AC84: 0 | AG84: 0 | AI84: 150 | AL84: 0 | AM84: 0 | AP84: 0 | AQ84: 0 | AS84: 0 | AV84: 0 | AZ84: 0 | BF84: 0 | BL84: 0 | BP84: 0 | BR84: 0 | BS84: 0 | BW84: 0 | BY84: 0 | CB84: 0 | CE84: 5 | CF84: 5 | CG84: 0 | CH84: 0 | CM84: 0 | CN84: 4460 | CS84: 0 | CT84: 201 | CX84: 0 | DD84: 118 | DE84: 2 | DG84: 2 | DK84: 42 | DO84: 22 | DP84: 0 | DQ84: 1410 | DT84: 0 | DU84: 76 | DV84: 0 | DW84: 34 | EA84: 1 | EE84: 0 | EK84: 5 | EL84: 101 | EM84: 0 | EN84: 101 | EO84: 0 | EP84: 1238 | FD84: 0 | FE84: 0 | FT84: 0 | FU84: 0 | FV84: 0 | FW84: 4 | FX84: 0 | GI84: 1205 | HS84: 0 | HU84: 0 | HV84: 0.803 | HW84: 0 | HX84: 1.5 | IB84: 0 | IP84: 0 | IQ84: 0 | IR84: 0 | IS84: 0 | IT84: 0 | IU84: 0 | JT84: 0 | JW84: 0 | JZ84: 0 | LO84: 0
A85: 74 | B85: Воскресенский ГО | C85: пер.Юбилейный, 7, ул. Светлая д. 1,3,5 | D85: 247685887 | E85: 14060 | F85: 2103 | G85: 0 | H85: 9310 | I85: 2647 | J85: 2 | K85: 2 | O85: 0 | U85: 2 | V85: 0 | W85: 0 | X85: 0 | Z85: 0 | AC85: 0 | AF85: 0 | AH85: 301 | AJ85: 0 | AL85: 0 | AM85: 0 | AP85: 0 | AQ85: 0 | AS85: 0 | AV85: 0 | AY85: 2 | BE85: 0 | BL85: 90 | BP85: 90 | BQ85: 90 | BS85: 0 | BV85: 0 | BW85: 0 | BX85: 220 | CB85: 0 | CE85: 10 | CF85: 10 | CG85: 0 | CH85: 0 | CM85: 3579 | CN85: 2000 | CQ85: 5000 | CR85: 0 | CS85: 440 | CT85: 12 | CX85: 60 | DD85: 570 | DE85: 1 | DG85: 1 | DK85: 0 | DO85: 30 | DP85: 135 | DV85: 82 | EA85: 1 | EE85: 8 | EK85: 1 | EL85: 79 | EM85: 43 | EN85: 36 | EO85: 424 | ER85: 533 | FD85: 24 | FE85: 1679 | FT85: 0 | FU85: 419.8 | FV85: 0 | FW85: 4 | FX85: 0 | GI85: 0 | HS85: 0 | HU85: 0 | HV85: 0 | HW85: 0 | HX85: 0 | IA85: 120 | IB85: 0 | IP85: 0 | IQ85: 0.077 | IR85: 0 | IS85: 1.5 | IT85: 0 | IU85: 0 | JT85: 0 | JW85: 0 | JZ85: 0 | LO85: 0
A86: 75 | B86: Воскресенский ГО | C86: пос. им. Цюрупы, ул. Октябрьская, д. 51, 52 | D86: 247685959 | E86: 4184 | F86: 550 | G86: 0 | H86: 2459 | I86: 1175 | J86: 1 | K86: 1 | O86: 0 | U86: 1 | V86: 300 | W86: 300 | X86: 300 | Z86: 0 | AC86: 0 | AF86: 0 | AH86: 0 | AJ86: 0 | AL86: 16 | AM86: 0 | AP86: 16 | AQ86: 16 | AS86: 0 | AV86: 0 | AY86: 0 | BE86: 0 | BL86: 0 | BP86: 0 | BQ86: 0 | BS86: 0 | BV86: 0 | BX86: 0 | CB86: 0 | CE86: 0 | CG86: 0 | CH86: 0 | CM86: 2159 | CN86: 1000 | CT86: 4 | CX86: 0 | DD86: 50 | DE86: 0 | DG86: 0 | DK86: 0 | DO86: 0 | DP86: 0 | EA86: 1 | EE86: 0 | EK86: 0 | EL86: 41 | EM86: 41 | EO86: 550 | FD86: 0 | FE86: 0 | FT86: 0 | FU86: 0 | FV86: 0 | FW86: 4 | FX86: 0 | GI86: 175 | HS86: 0 | HU86: 0 | HV86: 0.112 | HW86: 0 | HX86: 1.4 | IB86: 0 | IP86: 0 | IQ86: 0 | IR86: 0 | IS86: 0 | IT86: 0 | IU86: 0 | JT86: 0 | JW86: 0 | JZ86: 0 | LO86: 0
A87: 76 | B87: Воскресенский ГО | C87: пос. им. Цюрупы, ул. Октябрьская, д.71, 73, 74, д. 76 | D87: 247685955 | E87: 7000 | F87: 1055 | G87: 0 | H87: 4204 | I87: 1741 | J87: 1 | K87: 1 | O87: 0 | U87: 1 | V87: 420 | W87: 420 | X87: 420 | Z87: 0 | AC87: 0 | AF87: 0 | AH87: 0 | AJ87: 0 | AL87: 19 | AM87: 0 | AP87: 19 | AQ87: 19 | AS87: 0 | AV87: 0 | AY87: 0 | BE87: 0 | BL87: 0 | BP87: 0 | BQ87: 0 | BS87: 0 | BV87: 0 | BX87: 0 | CB87: 0 | CE87: 7 | CF87: 7 | CG87: 0 | CH87: 0 | CM87: 3784 | CN87: 1400 | CT87: 5 | CX87: 0 | DD87: 60 | DE87: 1 | DG87: 1 | DK87: 60 | DO87: 0 | DP87: 132 | EA87: 1 | EE87: 3 | EK87: 0 | EL87: 56 | EM87: 47 | EN87: 9 | EO87: 715 | ER87: 135 | FD87: 0 | FE87: 340 | FT87: 0 | FU87: 85 | FV87: 0 | FW87: 4 | FX87: 0 | GI87: 146 | HS87: 0 | HU87: 0 | HV87: 0.097 | HW87: 0 | HX87: 1.5 | IB87: 0 | IP87: 0 | IQ87: 0 | IR87: 0 | IS87: 0 | IT87: 0 | IU87: 0 | JT87: 0 | JW87: 0 | JZ87: 0 | LO87: 0
A88: 77 | B88: Воскресенский ГО | C88: пос. им. Цюрупы, ул. Рабочий городок, д. 1, 2, 14, 12, 10, 11, ул. Центральная, д. 18, 20, 24 | D88: 247685961 | E88: 22000 | F88: 4490 | G88: 0 | H88: 12377 | I88: 5133 | J88: 2 | K88: 2 | O88: 0 | U88: 2 | V88: 300 | W88: 300 | X88: 300 | Z88: 0 | AC88: 0 | AF88: 0 | AH88: 100 | AJ88: 0 | AL88: 10 | AM88: 0 | AP88: 10 | AQ88: 10 | AS88: 0 | AV88: 0 | AY88: 1 | BE88: 0 | BL88: 320 | BP88: 320 | BQ88: 320 | BS88: 0 | BV88: 0 | BX88: 0 | CB88: 0 | CE88: 14 | CF88: 14 | CG88: 0 | CH88: 0 | CM88: 2657 | CN88: 4500 | CQ88: 9000 | CR88: 0 | CT88: 5 | CX88: 0 | DD88: 70 | DE88: 0 | DG88: 0 | DK88: 0 | DO88: 0 | DP88: 360 | EA88: 1 | EE88: 14 | EK88: 0 | EL88: 113 | EM88: 85 | EN88: 28 | EO88: 1290 | ER88: 410 | FD88: 0 | FE88: 3200 | FT88: 0 | FU88: 800 | FV88: 0 | FW88: 4 | FX88: 0 | GI88: 0 | HS88: 0 | HU88: 0 | HV88: 0 | HW88: 0 | HX88: 0 | IB88: 0 | IP88: 223 | IQ88: 0 | IR88: 0 | IS88: 0 | IT88: 0 | IU88: 0 | JT88: 0 | JW88: 0 | JZ88: 0 | LO88: 0
A89: 78 | B89: Воскресенский ГО | C89: пос. им. Цюрупы, ул. Рабочий городок, д. 3, 5, 15, 13, 7, 8 | D89: 247685963 | E89: 21000 | F89: 2690 | G89: 0 | H89: 13840 | I89: 4470 | J89: 1 | K89: 1 | O89: 0 | U89: 1 | V89: 450 | W89: 450 | X89: 450 | Z89: 0 | AC89: 0 | AF89: 0 | AH89: 0 | AJ89: 0 | AL89: 14 | AM89: 0 | AP89: 14 | AQ89: 14 | AS89: 0 | AV89: 0 | AY89: 0 | BE89: 0 | BL89: 0 | BP89: 0 | BQ89: 0 | BS89: 0 | BV89: 0 | BX89: 0 | CB89: 0 | CE89: 0 | CG89: 0 | CH89: 0 | CM89: 3390 | CN89: 3000 | CQ89: 10000 | CR89: 0 | CT89: 12 | CX89: 0 | DD89: 65 | DE89: 0 | DG89: 0 | DK89: 0 | DO89: 0 | DP89: 174 | EA89: 1 | EE89: 9 | EK89: 0 | EL89: 97 | EM89: 97 | EO89: 1370 | FD89: 0 | FE89: 1320 | FT89: 1300 | FU89: 330 | FV89: 370 | FW89: 4 | FX89: 4 | GI89: 170 | HS89: 0 | HU89: 0 | HV89: 0.113 | HW89: 0 | HX89: 1.5 | IB89: 0 | IP89: 0 | IQ89: 0 | IR89: 0 | IS89: 0 | IT89: 0 | IU89: 0 | JT89: 0 | JW89: 0 | JZ89: 0 | LO89: 0
A90: 79 | B90: Воскресенский ГО | C90: пос. им. Цюрупы, ул.Центральная, д. 1, 3, 5 | D90: 1590434818 | E90: 5500 | F90: 306 | G90: 0 | H90: 4594 | I90: 600 | J90: 0 | K90: 0 | O90: 0 | U90: 0 | V90: 0 | W90: 0 | X90: 0 | Z90: 0 | AC90: 0 | AF90: 0 | AH90: 0 | AJ90: 0 | AL90: 0 | AM90: 0 | AP90: 0 | AQ90: 0 | AS90: 0 | AV90: 0 | AY90: 0 | BE90: 0 | BL90: 0 | BP90: 0 | BQ90: 0 | BS90: 0 | BV90: 0 | BX90: 0 | CB90: 0 | CE90: 0 | CG90: 0 | CH90: 0 | CM90: 2594 | CN90: 600 | CQ90: 2000 | CR90: 0 | CS90: 10 | CT90: 10 | CX90: 0 | DD90: 40 | DE90: 0 | DG90: 0 | DK90: 0 | DO90: 0 | DP90: 504 | DV90: 50 | EA90: 1 | EE90: 0 | EK90: 0 | EL90: 0 | EM90: 0 | EO90: 0 | FD90: 0 | FE90: 306 | FT90: 0 | FU90: 87 | FV90: 0 | FW90: 4 | FX90: 0 | GI90: 0 | HS90: 0 | HU90: 0 | HV90: 0 | HW90: 0 | HX90: 0 | IB90: 0 | IP90: 0 | IQ90: 0 | IR90: 0 | IS90: 0 | IT90: 0 | IU90: 0 | JT90: 0 | JW90: 0 | JZ90: 0 | LO90: 0
A91: 80 | B91: Воскресенский ГО | C91: пос. им. Цюрупы, ул. Центральная, д. 14, ул. Гражданская, д. 70 | D91: 1590521118 | E91: 5900 | F91: 1740 | G91: 0 | H91: 3760 | I91: 400 | J91: 0 | K91: 0 | O91: 0 | U91: 0 | V91: 0 | W91: 0 | X91: 0 | Z91: 0 | AC91: 0 | AF91: 0 | AH91: 0 | AJ91: 0 | AL91: 0 | AM91: 0 | AP91: 0 | AQ91: 0 | AS91: 0 | AV91: 0 | AY91: 0 | BE91: 0 | BL91: 0 | BP91: 0 | BQ91: 0 | BS91: 0 | BV91: 0 | BX91: 0 | CB91: 0 | CE91: 0 | CG91: 0 | CH91: 0 | CM91: 1760 | CN91: 400 | CQ91: 2000 | CR91: 0 | CT91: 10 | CX91: 0 | DD91: 30 | DE91: 0 | DG91: 0 | DK91: 0 | DO91: 0 | DP91: 62 | DV91: 250 | EA91: 1 | EE91: 0 | EK91: 0 | EL91: 30 | EM91: 30 | EO91: 360 | FD91: 0 | FE91: 1380 | FT91: 0 | FU91: 345 | FV91: 0 | FW91: 4 | FX91: 0 | GI91: 0 | HS91: 0 | HU91: 0 | HV91: 0 | HW91: 0 | HX91: 0 | IB91: 0 | IP91: 0 | IQ91: 0 | IR91: 0 | IS91: 0 | IT91: 0 | IU91: 0 | JT91: 0 | JW91: 0 | JZ91: 0 | LO91: 0
A92: 81 | B92: Воскресенский ГО | C92: пос. им. Цюрупы, ул. Центральная, д.9, 11 , 13 | D92: 1590454498 | E92: 4300 | F92: 410 | G92: 0 | H92: 3190 | I92: 700 | J92: 0 | K92: 0 | O92: 0 | U92: 0 | V92: 0 | W92: 0 | X92: 0 | Z92: 0 | AC92: 0 | AF92: 0 | AH92: 0 | AJ92: 0 | AL92: 0 | AM92: 0 | AP92: 0 | AQ92: 0 | AS92: 0 | AV92: 0 | AY92: 0 | BE92: 0 | BL92: 0 | BP92: 0 | BQ92: 0 | BS92: 0 | BV92: 0 | BX92: 0 | CB92: 0 | CE92: 0 | CG92: 0 | CH92: 0 | CM92: 1190 | CN92: 600 | CQ92: 2000 | CR92: 0 | CS92: 13 | CT92: 10 | CX92: 0 | DD92: 20 | DE92: 0 | DG92: 0 | DK92: 0 | DO92: 0 | DP92: 362 | EA92: 1 | EE92: 0 | EK92: 0 | EL92: 0 | EM92: 0 | EO92: 0 | FD92: 0 | FE92: 410 | FT92: 0 | FU92: 131 | FV92: 0 | FW92: 4 | FX92: 0 | GI92: 100 | HS92: 0 | HU92: 0 | HV92: 0.01 | HW92: 0 | HX92: 1 | IB92: 0 | IP92: 0 | IQ92: 0 | IR92: 0 | IS92: 0 | IT92: 0 | IU92: 0 | JT92: 0 | JW92: 0 | JZ92: 0 | LO92: 0
A93: 82 | B93: Воскресенский ГО | C93: пос. Станция Берендино д.1,2. | D93: 247685823 | E93: 5300 | F93: 1115 | G93: 0 | H93: 3125 | I93: 1060 | J93: 1 | K93: 1 | O93: 0 | U93: 1 | V93: 0 | W93: 0 | X93: 0 | Z93: 0 | AC93: 0 | AF93: 0 | AH93: 150 | AJ93: 0 | AL93: 0 | AM93: 0 | AP93: 0 | AQ93: 0 | AS93: 0 | AV93: 0 | AY93: 0 | BE93: 0 | BL93: 0 | BP93: 0 | BQ93: 0 | BS93: 0 | BV93: 0 | BX93: 0 | CB93: 0 | CE93: 0 | CG93: 0 | CH93: 0 | CM93: 2975 | CN93: 1000 | CS93: 12 | CT93: 10 | CX93: 0 | DD93: 80 | DE93: 1 | DG93: 1 | DK93: 60 | DO93: 0 | DP93: 196 | EA93: 1 | EE93: 5 | EK93: 5 | EL93: 27 | EM93: 27 | EO93: 415 | FD93: 0 | FE93: 700 | FT93: 0 | FU93: 175 | FV93: 0 | FW93: 4 | FX93: 0 | GI93: 0 | HS93: 0 | HU93: 0 | HV93: 0 | HW93: 0 | HX93: 0 | IB93: 0 | IP93: 0 | IQ93: 0 | IR93: 0 | IS93: 0 | IT93: 0 | IU93: 0 | JT93: 0 | JW93: 0 | JZ93: 0 | LO93: 0
A94: 83 | B94: Воскресенский ГО | C94: пос. Хорлово, Парковый проезд, д. 2, 6, 4, 8 | D94: 247685816 | E94: 7000 | F94: 703 | G94: 0 | H94: 5347 | I94: 950 | J94: 1 | K94: 1 | O94: 0 | U94: 1 | V94: 0 | W94: 0 | X94: 0 | Z94: 0 | AC94: 0 | AF94: 0 | AH94: 300 | AJ94: 0 | AL94: 8 | AM94: 0 | AP94: 8 | AQ94: 8 | AS94: 0 | AV94: 0 | AY94: 0 | BE94: 0 | BL94: 0 | BP94: 0 | BQ94: 0 | BS94: 0 | BV94: 0 | BX94: 0 | CB94: 0 | CE94: 0 | CG94: 0 | CH94: 0 | CM94: 2047 | CN94: 800 | CQ94: 3000 | CR94: 0 | CS94: 20 | CT94: 10 | CX94: 0 | DD94: 40 | DE94: 1 | DG94: 1 | DK94: 60 | DO94: 0 | DP94: 0 | DW94: 450 | EA94: 1 | EE94: 2 | EK94: 1 | EL94: 6 | EM94: 0 | EN94: 6 | EO94: 0 | ER94: 90 | FD94: 0 | FE94: 703 | FT94: 0 | FU94: 175.75 | FV94: 0 | FW94: 4 | FX94: 0 | GI94: 0 | HS94: 0 | HU94: 0 | HV94: 0 | HW94: 0 | HX94: 0 | IB94: 0 | IP94: 0 | IQ94: 0 | IR94: 0 | IS94: 0 | IT94: 0 | IU94: 0 | JT94: 0 | JW94: 0 | JZ94: 0 | LO94: 0
A95: 84 | B95: Воскресенский ГО | C95: пос. Хорлово, ул. Зайцева, д.12 | D95: 1055106534 | E95: 466 | F95: 0 | G95: 0 | H95: 0 | I95: 466 | J95: 0 | K95: 0 | O95: 0 | U95: 0 | V95: 0 | W95: 0 | X95: 0 | Z95: 0 | AC95: 0 | AF95: 0 | AH95: 0 | AJ95: 0 | AL95: 0 | AM95: 0 | AP95: 0 | AQ95: 0 | AS95: 0 | AV95: 0 | AY95: 0 | BE95: 0 | BL95: 0 | BP95: 0 | BQ95: 0 | BS95: 0 | BV95: 0 | BX95: 0 | CB95: 0 | CE95: 0 | CG95: 0 | CH95: 0 | CM95: 0 | CN95: 454 | CT95: 6 | CX95: 0 | DD95: 0 | DE95: 1 | DG95: 1 | DK95: 0 | DO95: 12 | DP95: 0 | DW95: 240 | EA95: 1 | EE95: 0 | EK95: 0 | EL95: 0 | EM95: 0 | EO95: 0 | FD95: 0 | FE95: 0 | FT95: 0 | FU95: 0 | FV95: 0 | FW95: 4 | FX95: 0 | GI95: 0 | HS95: 0 | HU95: 0 | HV95: 0 | HW95: 0 | HX95: 0 | IB95: 0 | IP95: 0 | IQ95: 0 | IR95: 0 | IS95: 0 | IT95: 0 | IU95: 0 | JT95: 0 | JW95: 0 | JZ95: 0 | LO95: 0
A96: 85 | B96: Воскресенский ГО | C96: пос. Хорлово, ул. Зайцева, д.19 | D96: 1055106077 | E96: 1700 | F96: 0 | G96: 0 | H96: 1460 | I96: 240 | J96: 0 | K96: 0 | O96: 0 | U96: 0 | V96: 0 | W96: 0 | X96: 0 | Z96: 0 | AC96: 0 | AF96: 0 | AH96: 0 | AJ96: 0 | AL96: 0 | AM96: 0 | AP96: 0 | AQ96: 0 | AS96: 0 | AV96: 0 | AY96: 0 | BE96: 0 | BL96: 0 | BP96: 0 | BQ96: 0 | BS96: 0 | BV96: 0 | BX96: 0 | CB96: 0 | CE96: 0 | CG96: 0 | CH96: 0 | CM96: 1460 | CN96: 200 | CT96: 0 | CX96: 0 | DD96: 0 | DE96: 1 | DG96: 1 | DK96: 40 | DO96: 0 | DP96: 0 | EA96: 1 | EE96: 0 | EK96: 0 | EL96: 0 | EM96: 0 | EO96: 0 | FD96: 0 | FE96: 0 | FT96: 0 | FU96: 0 | FV96: 0 | FW96: 4 | FX96: 0 | GI96: 0 | HS96: 0 | HU96: 0 | HV96: 0 | HW96: 0 | HX96: 0 | IB96: 0 | IP96: 0 | IQ96: 0 | IR96: 0 | IS96: 0 | IT96: 0 | IU96: 0 | JT96: 0 | JW96: 0 | JZ96: 0 | LO96: 0
A97: 86 | B97: Воскресенский ГО | C97: пос. Хорлово, ул. Интернатская, д.3-а | D97: 1055106538 | E97: 2900 | F97: 0 | G97: 0 | H97: 2480 | I97: 420 | J97: 1 | K97: 1 | O97: 0 | U97: 1 | V97: 0 | W97: 0 | X97: 0 | Z97: 0 | AC97: 0 | AF97: 0 | AH97: 150 | AJ97: 0 | AL97: 0 | AM97: 0 | AP97: 0 | AQ97: 0 | AS97: 0 | AV97: 0 | AY97: 0 | BE97: 0 | BL97: 0 | BP97: 0 | BQ97: 0 | BS97: 0 | BV97: 0 | BX97: 0 | CB97: 0 | CE97: 0 | CG97: 0 | CH97: 0 | CM97: 2330 | CN97: 200 | CT97: 10 | CX97: 0 | DD97: 20 | DE97: 0 | DG97: 0 | DK97: 0 | DO97: 0 | DP97: 1172 | EA97: 1 | EE97: 15 | EK97: 0 | EL97: 8 | EM97: 0 | EN97: 8 | EO97: 0 | ER97: 120 | FD97: 0 | FE97: 0 | FT97: 0 | FU97: 0 | FV97: 0 | FW97: 4 | FX97: 0 | GI97: 100 | HS97: 0 | HU97: 0 | HV97: 0.05 | HW97: 0 | HX97: 2 | IB97: 0 | IP97: 0 | IQ97: 0 | IR97: 0 | IS97: 0 | IT97: 0 | IU97: 0 | JT97: 0 | JW97: 0 | JZ97: 0 | LO97: 0
A98: 87 | B98: Воскресенский ГО | C98: пос. Хорлово, ул. Интернатская, дома6,7,8,9,10,11 | D98: 1055106071 | E98: 13096 | F98: 751 | G98: 0 | H98: 10522 | I98: 1823 | J98: 1 | K98: 1 | O98: 0 | U98: 1 | V98: 0 | W98: 0 | X98: 0 | Z98: 0 | AC98: 0 | AF98: 0 | AH98: 250 | AJ98: 0 | AL98: 14 | AM98: 0 | AP98: 14 | AQ98: 14 | AS98: 0 | AV98: 0 | AY98: 0 | BE98: 0 | BL98: 0 | BP98: 0 | BQ98: 0 | BS98: 0 | BV98: 0 | BX98: 0 | CB98: 0 | CE98: 0 | CG98: 0 | CH98: 0 | CM98: 2855 | CN98: 1200 | CQ98: 7000 | CR98: 0 | CS98: 40 | CT98: 10 | CX98: 0 | DD98: 555 | DE98: 2 | DG98: 2 | DK98: 192 | DO98: 0 | DP98: 0 | EA98: 1 | EE98: 15 | EK98: 0 | EL98: 10 | EM98: 0 | EN98: 10 | EO98: 0 | ER98: 131 | FD98: 0 | FE98: 751 | FT98: 0 | FU98: 187.75 | FV98: 0 | FW98: 4 | FX98: 0 | GF98: 163 | GI98: 300 | HS98: 0 | HU98: 0.348 | HV98: 100 | HW98: 1.8 | HX98: 1.8 | IA98: 254 | IB98: 0 | IP98: 0 | IQ98: 0.193 | IR98: 0 | IS98: 1.8 | IT98: 0 | IU98: 0 | JT98: 0 | JW98: 0 | JZ98: 0 | LO98: 0
A99: 88 | B99: Воскресенский ГО | C99: пос. Хорлово, ул. Семилетка, д. 6 | D99: 4750093370 | E99: 550 | F99: 0 | G99: 0 | H99: 0 | I99: 550 | J99: 0 | K99: 0 | O99: 0 | U99: 0 | V99: 0 | W99: 0 | X99: 0 | Z99: 0 | AC99: 0 | AF99: 0 | AH99: 0 | AJ99: 0 | AL99: 0 | AM99: 0 | AP99: 0 | AQ99: 0 | AS99: 0 | AV99: 0 | AY99: 0 | BE99: 0 | BL99: 0 | BP99: 0 | BQ99: 0 | BS99: 0 | BV99: 0 | BX99: 0 | CB99: 0 | CE99: 0 | CG99: 0 | CH99: 0 | CM99: 0 | CN99: 550 | CS99: 10 | CT99: 10 | CX99: 0 | DD99: 10 | DE99: 0 | DG99: 0 | DK99: 0 | DO99: 0 | DP99: 2100 | DV99: 165 | EA99: 1 | EE99: 0 | EK99: 0 | EL99: 0 | EM99: 0 | EO99: 0 | FD99: 0 | FE99: 0 | FT99: 0 | FU99: 0 | FV99: 0 | FW99: 4 | FX99: 0 | GI99: 0 | HS99: 0 | HU99: 0 | HV99: 0 | HW99: 0 | HX99: 0 | IB99: 0 | IP99: 0 | IQ99: 0 | IR99: 0 | IS99: 0 | IT99: 0 | IU99: 0 | JT99: 0 | JW99: 0 | JZ99: 0 | LO99: 0
A100: 89 | B100: Воскресенский ГО | C100: п. Хорлово, 1-я Пятилетка, д. 1,1а | D100: 247685821 | E100: 3351 | F100: 486 | G100: 0 | H100: 2465 | I100: 400 | J100: 1 | K100: 1 | O100: 0 | U100: 1 | V100: 0 | W100: 0 | X100: 0 | Z100: 0 | AC100: 0 | AF100: 0 | AH100: 240 | AJ100: 0 | AL100: 7 | AM100: 0 | AP100: 7 | AQ100: 7 | AS100: 0 | AV100: 0 | AY100: 0 | BE100: 0 | BL100: 0 | BP100: 0 | BQ100: 0 | BS100: 0 | BV100: 0 | BX100: 0 | CB100: 0 | CE100: 0 | CG100: 0 | CH100: 0 | CM100: 2225 | CN100: 400 | CT100: 0 | CX100: 0 | DD100: 40 | DE100: 0 | DG100: 0 | DK100: 0 | DO100: 0 | DP100: 3388 | DV100: 165 | EA100: 1 | EE100: 0 | EK100: 1 | EL100: 0 | EM100: 0 | EO100: 0 | FD100: 0 | FE100: 486 | FT100: 0 | FU100: 121.5 | FV100: 0 | FW100: 4 | FX100: 0 | GI100: 0 | HS100: 0 | HU100: 0 | HV100: 0 | HW100: 0 | HX100: 0 | IB100: 0 | IP100: 0 | IQ100: 0 | IR100: 0 | IS100: 0 | IT100: 0 | IU100: 0 | JT100: 0 | JW100: 0 | JZ100: 0 | LO100: 0
A101: 90 | B101: Воскресенский ГО | C101: п.Хорлово, Парковая, дома 7,8,9,10,11; ул. Новая , дома 16,17 | D101: 247685814 | E101: 13000 | F101: 1900 | G101: 0 | H101: 9526 | I101: 1574 | J101: 0 | K101: 0 | O101: 0 | U101: 0 | V101: 0 | W101: 0 | X101: 0 | Z101: 0 | AC101: 0 | AF101: 0 | AH101: 0 | AJ101: 0 | AL101: 0 | AM101: 0 | AP101: 0 | AQ101: 0 | AS101: 0 | AV101: 0 | AY101: 0 | BE101: 0 | BL101: 0 | BP101: 0 | BQ101: 0 | BS101: 0 | BV101: 0 | BX101: 0 | CB101: 0 | CE101: 0 | CG101: 0 | CH101: 0 | CM101: 2381 | CN101: 1400 | CQ101: 7000 | CR101: 0 | CS101: 15 | CT101: 10 | CX101: 0 | DD101: 35 | DE101: 1 | DG101: 1 | DK101: 30 | DO101: 0 | DP101: 0 | DV101: 582 | EA101: 1 | EE101: 0 | EK101: 0 | EL101: 12 | EM101: 0 | EN101: 12 | EO101: 0 | ER101: 144 | FD101: 0 | FE101: 1900 | FT101: 0 | FU101: 475 | FV101: 0 | FW101: 4 | FX101: 0 | GI101: 0 | HS101: 0 | HU101: 0 | HV101: 0 | HW101: 0 | HX101: 0 | IA101: 145 | IB101: 0 | IP101: 0 | IQ101: 0.145 | IR101: 0 | IS101: 1 | IT101: 0 | IU101: 0 | JT101: 0 | JW101: 0 | JZ101: 0 | LO101: 0
A102: 91 | B102: Воскресенский ГО | C102: п. Хорлово,пл. Ленина , дома 6,8 | D102: 247685819 | E102: 3624.89 | F102: 272.89 | G102: 0 | H102: 2678 | I102: 674 | J102: 1 | K102: 1 | O102: 0 | U102: 1 | V102: 0 | W102: 0 | X102: 0 | Z102: 0 | AC102: 0 | AF102: 0 | AH102: 170 | AJ102: 0 | AL102: 5 | AM102: 0 | AP102: 5 | AQ102: 5 | AS102: 0 | AV102: 0 | AY102: 0 | BE102: 0 | BL102: 0 | BP102: 0 | BQ102: 0 | BS102: 0 | BV102: 0 | BX102: 0 | CB102: 0 | CE102: 0 | CG102: 0 | CH102: 0 | CM102: 2394 | CN102: 400 | CT102: 10 | CX102: 0 | DD102: 12 | DE102: 0 | DG102: 0 | DK102: 0 | DO102: 0 | DP102: 1040 | DV102: 330 | EA102: 1 | EE102: 0 | EK102: 0 | EL102: 15 | EM102: 0 | EN102: 15 | EO102: 0 | ER102: 174 | FD102: 0 | FE102: 272.89 | FT102: 0 | FU102: 68 | FV102: 0 | FW102: 4 | FX102: 0 | GF102: 114 | GI102: 100 | HS102: 0 | HU102: 0.108 | HV102: 50 | HW102: 1.8 | HX102: 1.8 | IB102: 0 | IP102: 0 | IQ102: 0 | IR102: 0 | IS102: 0 | IT102: 0 | IU102: 0 | JT102: 0 | JW102: 0 | JZ102: 0 | LO102: 0
A103: 1275 | B103: Воскресенский ГО | C103: п.Хорлово , ул. Воинской славы, дома 1,2 | D103: 247685807 | E103: 16985 | F103: 3431 | G103: 0 | H103: 12554 | I103: 1000 | J103: 1 | K103: 1 | O103: 200 | U103: 1 | V103: 0 | W103: 0 | X103: 0 | Z103: 0 | AC103: 0 | AF103: 0 | AH103: 0 | AJ103: 0 | AL103: 8 | AM103: 0 | AP103: 8 | AQ103: 8 | AS103: 0 | AV103: 0 | AY103: 0 | BE103: 0 | BL103: 0 | BP103: 0 | BQ103: 0 | BS103: 0 | BV103: 0 | BX103: 0 | CB103: 0 | CE103: 7 | CF103: 7 | CG103: 0 | CH103: 0 | CM103: 2354 | CN103: 1000 | CQ103: 10000 | CR103: 0 | CS103: 41 | CT103: 10 | CX103: 0 | DD103: 20 | DE103: 0 | DG103: 0 | DK103: 0 | DO103: 0 | DP103: 1160 | DW103: 150 | EA103: 1 | EE103: 8 | EK103: 0 | EL103: 87 | EM103: 87 | EO103: 1134 | FD103: 0 | FE103: 1480 | FT103: 0 | FU103: 370 | FV103: 0 | FW103: 4 | FX103: 3 | GI103: 0 | HS103: 0 | HU103: 0 | HV103: 0 | HW103: 0 | HX103: 0 | HY103: 817 | IA103: 0 | IB103: 0 | IP103: 0 | IQ103: 0.458 | IR103: 0 | IS103: 3.76 | IT103: 0 | IU103: 0 | JT103: 0 | JW103: 0 | JZ103: 0 | LO103: 0
A104: 93 | B104: Воскресенский ГО | C104: п.Хорлово , ул. Воинской славы, дома 3,7 | D104: 247685806 | E104: 15948 | F104: 3335 | G104: 0 | H104: 11106 | I104: 1507 | J104: 1 | K104: 1 | O104: 200 | U104: 1 | V104: 0 | W104: 0 | X104: 0 | Z104: 0 | AC104: 0 | AF104: 0 | AH104: 0 | AJ104: 0 | AL104: 8 | AM104: 0 | AP104: 8 | AQ104: 8 | AS104: 0 | AV104: 0 | AY104: 1 | BE104: 350 | BL104: 0 | BP104: 0 | BQ104: 0 | BS104: 0 | BV104: 0 | BX104: 0 | CB104: 0 | CE104: 3 | CF104: 3 | CG104: 0 | CH104: 0 | CM104: 3370 | CN104: 1000 | CQ104: 7000 | CR104: 0 | CS104: 21 | CT104: 10 | CX104: 0 | DD104: 10 | DE104: 0 | DG104: 0 | DK104: 0 | DO104: 0 | DP104: 1200 | EA104: 1 | EE104: 5 | EK104: 0 | EL104: 85 | EM104: 76 | EN104: 9 | EO104: 1275 | ER104: 127 | FD104: 0 | FE104: 1560 | FT104: 180 | FU104: 390 | FV104: 60 | FW104: 4 | FX104: 4 | FZ104: 500 | GF104: 186 | GI104: 200 | HS104: 0 | HU104: 0 | HV104: 0.615 | HW104: 0 | HX104: 1.425 | IB104: 0 | IP104: 0 | IQ104: 0 | IR104: 0 | IS104: 0 | IT104: 0 | IU104: 0 | JT104: 0 | JW104: 0 | JZ104: 0 | LO104: 0
A105: 94 | B105: Воскресенский ГО | C105: п.Хорлово , ул. Воинской славы, дома 4,5,6 | D105: 247685813 | E105: 11419 | F105: 2850 | G105: 0 | H105: 5961 | I105: 2608 | J105: 1 | K105: 1 | O105: 0 | U105: 1 | V105: 450 | W105: 450 | X105: 450 | Z105: 0 | AC105: 0 | AF105: 0 | AH105: 0 | AJ105: 0 | AL105: 11 | AM105: 0 | AP105: 11 | AQ105: 11 | AS105: 0 | AV105: 0 | AY105: 0 | BE105: 0 | BL105: 0 | BP105: 0 | BQ105: 0 | BS105: 0 | BV105: 0 | BX105: 0 | CB105: 0 | CE105: 0 | CG105: 0 | CH105: 0 | CM105: 5511 | CN105: 2563 | CS105: 66 | CT105: 10 | CX105: 0 | DD105: 36 | DE105: 1 | DG105: 1 | DK105: 0 | DO105: 45 | DP105: 730 | DV105: 750 | EA105: 1 | EE105: 4 | EK105: 0 | EL105: 68 | EM105: 68 | EO105: 1049 | FD105: 0 | FE105: 1440 | FT105: 0 | FU105: 360 | FV105: 0 | FW105: 4 | FX105: 0 | GI105: 0 | HS105: 0 | HU105: 0 | HV105: 0 | HW105: 0 | HX105: 0 | HY105: 361 | IA105: 0 | IB105: 0 | IP105: 0 | IQ105: 0.116 | IR105: 0 | IS105: 2.4 | IT105: 0 | IU105: 0 | JT105: 0 | JW105: 0 | JZ105: 0 | LO105: 0
A106: 95 | B106: Воскресенский ГО | C106: п. Хорлово, ул. Интернациональная, дома 6а, 8а, 10а | D106: 247685805 | E106: 8839 | F106: 1391 | G106: 0 | H106: 6608 | I106: 840 | J106: 1 | K106: 1 | O106: 0 | U106: 1 | V106: 0 | W106: 0 | X106: 0 | Z106: 0 | AC106: 0 | AF106: 0 | AH106: 331 | AJ106: 0 | AL106: 9 | AM106: 0 | AP106: 9 | AQ106: 9 | AS106: 0 | AV106: 0 | AY106: 0 | BE106: 0 | BL106: 0 | BP106: 0 | BQ106: 0 | BS106: 0 | BV106: 0 | BX106: 0 | CB106: 0 | CE106: 0 | CG106: 0 | CH106: 0 | CM106: 1200 | CN106: 600 | CQ106: 4833 | CR106: 0 | CS106: 11 | CT106: 10 | CX106: 0 | DD106: 25 | DE106: 1 | DG106: 1 | DK106: 0 | DO106: 60 | DP106: 188 | DV106: 360 | EA106: 1 | EE106: 0 | EK106: 0 | EL106: 45 | EM106: 45 | EO106: 675 | FD106: 0 | FE106: 416 | FT106: 0 | FU106: 104 | FV106: 0 | FW106: 4 | FX106: 0 | FZ106: 300 | GF106: 244 | GI106: 180 | HS106: 0 | HU106: 0 | HV106: 0.261 | HW106: 0 | HX106: 1.8 | IB106: 0 | IP106: 0 | IQ106: 0 | IR106: 0 | IS106: 0 | IT106: 0 | IU106: 0 | JT106: 0 | JW106: 0 | JZ106: 0 | LO106: 0
A107: 96 | B107: Воскресенский ГО | C107: п. Хорлово, ул. Парковая, д.6 | D107: 247685815 | E107: 3384 | F107: 655 | G107: 0 | H107: 2376 | I107: 353 | J107: 1 | K107: 1 | O107: 0 | U107: 1 | V107: 0 | W107: 0 | X107: 0 | Z107: 0 | AC107: 0 | AF107: 0 | AH107: 150 | AJ107: 0 | AL107: 8 | AM107: 0 | AP107: 8 | AQ107: 8 | AS107: 0 | AV107: 0 | AY107: 0 | BE107: 0 | BL107: 0 | BP107: 0 | BQ107: 0 | BS107: 0 | BV107: 0 | BX107: 0 | CB107: 0 | CE107: 0 | CG107: 0 | CH107: 0 | CM107: 2208 | CN107: 200 | CS107: 10 | CT107: 5 | CX107: 0 | DD107: 30 | DE107: 0 | DG107: 0 | DK107: 0 | DO107: 0 | DP107: 486 | DV107: 300 | EA107: 1 | EE107: 0 | EK107: 0 | EL107: 23 | EM107: 20 | EN107: 3 | EO107: 245 | EQ107: 18 | ER107: 75 | FD107: 0 | FE107: 410 | FT107: 0 | FU107: 102.5 | FV107: 0 | FW107: 4 | FX107: 0 | GI107: 78 | HS107: 0 | HU107: 0 | HV107: 0.065 | HW107: 0 | HX107: 12 | IB107: 0 | IP107: 0 | IQ107: 0 | IR107: 0 | IS107: 0 | IT107: 0 | IU107: 0 | JT107: 0 | JW107: 0 | JZ107: 0 | LO107: 0
A108: 97 | B108: Воскресенский ГО | C108: п. Хорлово, ул. Парковая, дома 1, 2 | D108: 247685818 | E108: 2560.5 | F108: 729 | G108: 0 | H108: 1143 | I108: 688.5 | J108: 1 | K108: 1 | O108: 0 | U108: 1 | V108: 0 | W108: 0 | X108: 0 | Z108: 0 | AC108: 0 | AF108: 0 | AH108: 180 | AJ108: 0 | AL108: 6 | AM108: 0 | AP108: 6 | AQ108: 6 | AS108: 0 | AV108: 0 | AY108: 0 | BE108: 0 | BL108: 0 | BP108: 0 | BQ108: 0 | BS108: 0 | BV108: 0 | BX108: 0 | CB108: 0 | CE108: 0 | CG108: 0 | CH108: 0 | CM108: 963 | CN108: 581 | CS108: 6 | CT108: 5 | CX108: 0 | DD108: 16 | DE108: 1 | DG108: 1 | DK108: 53.5 | DO108: 0 | DP108: 1620 | DV108: 150 | EA108: 1 | EE108: 1 | EK108: 0 | EL108: 5 | EM108: 0 | EN108: 5 | EO108: 0 | ER108: 54 | FD108: 0 | FE108: 729 | FT108: 0 | FU108: 243 | FV108: 0 | FW108: 4 | FX108: 0 | GI108: 0 | HS108: 0 | HU108: 0 | HV108: 0 | HW108: 0 | HX108: 0 | IB108: 0 | IP108: 0 | IQ108: 0 | IR108: 0 | IS108: 0 | IT108: 0 | IU108: 0 | JT108: 0 | JW108: 0 | JZ108: 0 | LO108: 0
A109: 98 | B109: Воскресенский ГО | C109: п.Хорлово, ул.Победы, д.5,6 | D109: 7518558050 | E109: 12000 | F109: 2330 | G109: 0 | H109: 7807 | I109: 1863 | J109: 1 | K109: 1 | O109: 0 | U109: 1 | V109: 0 | W109: 0 | X109: 0 | Z109: 0 | AC109: 0 | AF109: 0 | AH109: 200 | AJ109: 0 | AL109: 0 | AM109: 0 | AP109: 0 | AQ109: 0 | AS109: 0 | AV109: 0 | AY109: 0 | BE109: 0 | BL109: 0 | BP109: 0 | BQ109: 0 | BS109: 0 | BV109: 0 | BX109: 0 | CB109: 0 | CE109: 0 | CG109: 0 | CH109: 0 | CM109: 5348 | CN109: 1000 | CQ109: 2000 | CR109: 0 | CT109: 0 | CX109: 0 | DD109: 0 | DE109: 1 | DG109: 1 | DK109: 80 | DO109: 0 | DP109: 676 | DV109: 300 | EA109: 1 | EE109: 0 | EK109: 0 | EL109: 127 | EM109: 88 | EN109: 39 | EO109: 1187 | ER109: 583 | FD109: 0 | FE109: 1143 | FT109: 0 | FU109: 285.7 | FV109: 0 | FW109: 4 | FX109: 4 | GF109: 119 | GI109: 200 | HS109: 0 | HU109: 0 | HV109: 0.212 | HW109: 0 | HX109: 1.5 | IA109: 140 | IB109: 0 | IP109: 0 | IQ109: 0.093 | IR109: 0 | IS109: 1.5 | IT109: 0 | IU109: 0 | JT109: 0 | JW109: 0 | JZ109: 0 | LO109: 0
A110: 99 | B110: Воскресенский ГО | C110: п. Хорлово, ул. Победы, дома 1,2,3,4,4-а | D110: 247685824 | E110: 19070 | F110: 1933 | G110: 0 | H110: 13805 | I110: 3332 | J110: 4 | K110: 4 | O110: 0 | U110: 4 | V110: 450 | W110: 450 | X110: 450 | Z110: 0 | AC110: 0 | AF110: 0 | AH110: 350 | AJ110: 0 | AL110: 15 | AM110: 0 | AP110: 15 | AQ110: 15 | AS110: 0 | AV110: 0 | AY110: 0 | BE110: 0 | BL110: 0 | BP110: 0 | BQ110: 0 | BS110: 0 | BV110: 0 | BX110: 0 | CB110: 0 | CE110: 0 | CG110: 0 | CH110: 0 | CM110: 2751.73 | CN110: 2000 | CQ110: 10000 | CR110: 0 | CT110: 0 | CX110: 0 | DD110: 0 | DE110: 0 | DG110: 0 | DK110: 0 | DO110: 0 | DP110: 180 | DV110: 300 | EA110: 1 | EE110: 17 | EK110: 0 | EL110: 101 | EM110: 50 | EN110: 51 | EO110: 800 | ER110: 832 | FD110: 0 | FE110: 933 | FT110: 0 | FU110: 233.25 | FV110: 0 | FW110: 4 | FX110: 0 | FZ110: 200 | GF110: 253.27 | GI110: 500 | HS110: 0 | HU110: 0 | HV110: 0.509 | HW110: 0 | HX110: 1.7 | IB110: 0 | IP110: 0 | IQ110: 0 | IR110: 0 | IS110: 0 | IT110: 0 | IU110: 0 | JT110: 0 | JW110: 0 | JZ110: 0 | LO110: 0
A111: 100 | B111: Воскресенский ГО | C111: п.Хорлово, ул. Советская,д.125 | D111: 247685817 | E111: 9197 | F111: 1368 | G111: 0 | H111: 5101 | I111: 2728 | J111: 1 | K111: 1 | O111: 0 | U111: 1 | V111: 0 | W111: 0 | X111: 0 | Z111: 0 | AC111: 0 | AF111: 0 | AH111: 205 | AJ111: 0 | AL111: 12 | AM111: 0 | AP111: 12 | AQ111: 12 | AS111: 0 | AV111: 0 | AY111: 0 | BE111: 0 | BL111: 0 | BP111: 0 | BQ111: 0 | BS111: 0 | BV111: 0 | BX111: 0 | CB111: 0 | CE111: 0 | CG111: 0 | CH111: 0 | CM111: 4896 | CN111: 500 | CS111: 10 | CT111: 10 | CX111: 0 | DD111: 65 | DE111: 1 | DG111: 1 | DK111: 60 | DO111: 0 | DP111: 960 | DV111: 253 | EA111: 1 | EE111: 0 | EK111: 0 | EL111: 4 | EM111: 0 | EN111: 4 | EO111: 0 | ER111: 60 | FD111: 0 | FE111: 1368 | FT111: 1808 | FU111: 342 | FV111: 452 | FW111: 4 | FX111: 4 | GI111: 0 | HS111: 0 | HU111: 0 | HV111: 0 | HW111: 0 | HX111: 0 | IB111: 0 | IP111: 0 | IQ111: 0 | IR111: 0 | IS111: 0 | IT111: 0 | IU111: 0 | JT111: 0 | JW111: 0 | JZ111: 0 | LO111: 0 | LV111: 300
A112: 101 | B112: Воскресенский ГО | C112: п.Хорлово, ул. Советская,д.81 | D112: 247685820 | E112: 1338 | F112: 0 | G112: 0 | H112: 1018 | I112: 320 | J112: 1 | K112: 1 | O112: 0 | U112: 1 | V112: 0 | W112: 0 | X112: 0 | Z112: 0 | AC112: 0 | AF112: 0 | AH112: 181 | AJ112: 0 | AL112: 4 | AM112: 0 | AP112: 4 | AQ112: 4 | AS112: 0 | AV112: 0 | AY112: 0 | BE112: 0 | BL112: 0 | BP112: 0 | BQ112: 0 | BS112: 0 | BV112: 0 | BX112: 0 | CB112: 0 | CE112: 0 | CG112: 0 | CH112: 0 | CM112: 837 | CN112: 200 | CT112: 10 | CX112: 0 | DD112: 120 | DE112: 1 | DG112: 1 | DK112: 30 | DO112: 0 | DP112: 1180 | DV112: 187 | EA112: 1 | EE112: 0 | EK112: 0 | EL112: 6 | EM112: 0 | EN112: 6 | EO112: 0 | ER112: 90 | FD112: 0 | FE112: 0 | FT112: 0 | FU112: 0 | FV112: 0 | FW112: 4 | FX112: 0 | GI112: 0 | HS112: 0 | HU112: 0 | HV112: 0 | HW112: 0 | HX112: 0 | IB112: 0 | IP112: 0 | IQ112: 0 | IR112: 0 | IS112: 0 | IT112: 0 | IU112: 0 | JT112: 0 | JW112: 0 | JZ112: 0 | LO112: 0
A113: 102 | B113: Воскресенский ГО | C113: п. Хорлово, ул. Школьная, д. 7,9, 11 | D113: 247685809 | E113: 12878 | F113: 2816.5 | G113: 0 | H113: 8761.5 | I113: 1300 | J113: 1 | K113: 1 | O113: 0 | U113: 1 | V113: 0 | W113: 0 | X113: 0 | Z113: 0 | AC113: 0 | AF113: 0 | AH113: 300 | AJ113: 0 | AL113: 9 | AM113: 0 | AP113: 9 | AQ113: 9 | AS113: 0 | AV113: 0 | AY113: 0 | BE113: 0 | BL113: 0 | BP113: 0 | BQ113: 0 | BS113: 0 | BV113: 0 | BX113: 0 | CB113: 0 | CE113: 0 | CG113: 0 | CH113: 0 | CM113: 2383.5 | CN113: 1000 | CQ113: 6000 | CR113: 0 | CS113: 10 | CT113: 6 | CX113: 0 | DD113: 20 | DE113: 1 | DG113: 1 | DK113: 60 | DO113: 0 | DP113: 1274 | DW113: 52 | DY113: 280 | EA113: 1 | EE113: 6 | EK113: 0 | EL113: 139 | EM113: 139 | EO113: 1912.5 | EQ113: 78 | FD113: 0 | FE113: 780 | FT113: 0 | FU113: 210 | FV113: 0 | FW113: 4 | FX113: 0 | FZ113: 124 | GI113: 240 | HS113: 0 | HU113: 62 | HV113: 100 | HW113: 2 | HX113: 2.4 | IB113: 0 | IP113: 0 | IQ113: 0 | IR113: 0 | IS113: 0 | IT113: 0 | IU113: 0 | JT113: 0 | JW113: 0 | JZ113: 0 | LO113: 0
A114: 103 | B114: Воскресенский ГО | C114: п.Хорлово, ул. Школьная, дома 1 ; ул. Зайцева, д.22-а,22-б. | D114: 247685812 | E114: 12960 | F114: 2332 | G114: 0 | H114: 8728 | I114: 1900 | J114: 1 | K114: 1 | O114: 0 | U114: 1 | V114: 300 | W114: 300 | X114: 300 | Z114: 0 | AC114: 0 | AF114: 0 | AH114: 0 | AJ114: 0 | AL114: 7 | AM114: 0 | AP114: 7 | AQ114: 7 | AS114: 0 | AV114: 0 | AY114: 0 | BE114: 0 | BL114: 0 | BP114: 0 | BQ114: 0 | BS114: 0 | BV114: 0 | BX114: 0 | CB114: 0 | CE114: 0 | CG114: 0 | CH114: 0 | CM114: 8111 | CN114: 1500 | CS114: 44 | CT114: 10 | CX114: 0 | DD114: 17 | DE114: 1 | DG114: 1 | DK114: 60 | DO114: 0 | DP114: 1852 | DV114: 52 | DX114: 60 | EA114: 1 | EE114: 6 | EK114: 3 | EL114: 72 | EM114: 60 | EN114: 12 | EO114: 900 | ER114: 180 | FD114: 0 | FE114: 1432 | FT114: 0 | FU114: 424 | FV114: 0 | FW114: 4 | FX114: 0 | GF114: 317 | GI114: 160 | HS114: 0 | HU114: 0 | HV114: 0.213 | HW114: 0 | HX114: 1.8 | IB114: 0 | IP114: 0 | IQ114: 0 | IR114: 0 | IS114: 0 | IT114: 0 | IU114: 0 | JT114: 0 | JW114: 0 | JZ114: 0 | LO114: 0
A115: 104 | B115: Воскресенский ГО | C115: п.Хорлово, ул. Школьная, дома 4,6 | D115: 247685808 | E115: =SUM(F115,G115,H115,I115) -> 13620 | F115: =SUM(M115,Q115,BC115,BG115,DH115,DL115,EO115,ES115,FE115,FI115,FY115,FZ115,GA115,GK115,GL115,GM115,HY115,IC115,IX115,JB115,LS115,LW115,KF115,LH115) -> 1886 | G115: =SUM(N115,R115,BD115,BH115,DI115,DM115,EP115,ET115,FF115,FJ115,GB115,GC115,GD115,GN115,GO115,GP115,HZ115,ID115,IY115,JC115,LT115,LX115,KH115,LJ115) -> 0 | H115: =SUM(O115,S115,AF115,AH115,AJ115,BE115,BI115,BV115,BX115,BZ115,CM115,CO115,CQ115,CK115,GW115,GX115,GY115,HC115,HD115,DJ115,DN115,EQ115,EU115,FG115,FK115,GE115,GF115,GG115,GQ115,GR115,GS115,IA115,IE115,IZ115,JD115,JF115,JH115,JJ115,JL115,LU115,LY115,MA115,MC115,ME115,MG115,HE115,HI115,HJ115,HK115,HO115,HP115,HQ115,IG115,II115,IK115,IM115,IO115,JN115,MI115,MK115,EW115,EY115,FA115,FC115,JR115,FM115,FO115,FQ115,FS115,JP115+X115+AA115+AD115+BN115+BQ115+BT115+KJ115+KR115+KW115+KY115+LA115+LD115+LL115,CW115,DA115,KN115) -> 9924 | I115: 1810 | J115: 1 | K115: 1 | O115: 0 | U115: 1 | V115: 0 | W115: 0 | X115: 0 | Z115: 0 | AC115: 0 | AF115: 0 | AH115: 200 | AJ115: 0 | AL115: 10 | AM115: 0 | AP115: 10 | AQ115: 10 | AS115: 0 | AV115: 0 | AY115: 0 | BE115: 0 | BL115: 0 | BP115: 0 | BQ115: 0 | BS115: 0 | BV115: 0 | BX115: 0 | CB115: 0 | CE115: 0 | CG115: 0 | CH115: 0 | CM115: 2400 | CN115: 1500 | CQ115: 7040 | CR115: 0 | CS115: 53 | CT115: 10 | CX115: 0 | DD115: 40 | DE115: 0 | DG115: 0 | DK115: 0 | DO115: 0 | DP115: 0 | DV115: 52 | DX115: 0 | EA115: 1 | EE115: 4 | EK115: 0 | EL115: 10 | EM115: 0 | EN115: 10 | EO115: 0 | ER115: 150 | FD115: 0 | FE115: 1386 | FT115: 0 | FU115: 290.5 | FV115: 0 | FW115: 4 | FX115: 0 | FZ115: 500 | GF115: 284 | GI115: 160 | HS115: 0 | HU115: 0 | HV115: 0.424 | HW115: 0 | HX115: 1.9 | IB115: 0 | IP115: 0 | IQ115: 0 | IR115: 0 | IS115: 0 | IT115: 0 | IU115: 0 | JT115: 0 | JW115: 0 | JZ115: 0 | LO115: 0
A116: 105 | B116: Воскресенский ГО | C116: р.п.Фосфоритный, ул.Садовая, д.29,30,27,28,26,25,13,15 | D116: 7241277690 | E116: 13010 | F116: 819 | G116: 0 | H116: 10121 | I116: 2070 | J116: 0 | K116: 0 | O116: 0 | U116: 0 | V116: 0 | W116: 0 | X116: 0 | Z116: 0 | AC116: 0 | AF116: 0 | AH116: 0 | AJ116: 0 | AL116: 0 | AM116: 0 | AP116: 0 | AQ116: 0 | AS116: 0 | AV116: 0 | AY116: 0 | BE116: 0 | BL116: 0 | BP116: 0 | BQ116: 0 | BS116: 0 | BV116: 0 | BX116: 0 | CB116: 0 | CE116: 0 | CG116: 0 | CH116: 0 | CM116: 2770 | CN116: 1600 | CQ116: 7000 | CR116: 0 | CS116: 35 | CT116: 10 | CX116: 0 | DD116: 0 | DE116: 1 | DG116: 1 | DK116: 60 | DO116: 0 | DP116: 496 | DV116: 12 | DX116: 48 | EA116: 1 | EE116: 0 | EK116: 0 | EL116: 28 | EM116: 22 | EN116: 6 | EO116: 315 | EQ116: 25 | ER116: 90 | FD116: 0 | FE116: 504 | FT116: 0 | FU116: 126 | FV116: 0 | FW116: 4 | FX116: 0 | GF116: 326 | GI116: 320 | HS116: 0 | HU116: 0 | HV116: 0.43 | HW116: 0 | HX116: 1.5 | IB116: 0 | IP116: 0 | IQ116: 0 | IR116: 0 | IS116: 0 | IT116: 0 | IU116: 0 | JT116: 0 | JW116: 0 | JZ116: 0 | LO116: 0
A117: 106 | B117: Воскресенский ГО | C117: р.п.Фосфоритный , ул. Садовая, дома 17,19,23,21,31,32,33 | D117: 247685804 | E117: 19020 | F117: 690 | G117: 0 | H117: 16270 | I117: 2060 | J117: 1 | K117: 1 | O117: 0 | U117: 1 | V117: 450 | W117: 450 | X117: 450 | Z117: 0 | AC117: 0 | AF117: 0 | AH117: 0 | AJ117: 0 | AL117: 0 | AM117: 0 | AP117: 0 | AQ117: 0 | AS117: 0 | AV117: 0 | AY117: 0 | BE117: 0 | BL117: 0 | BP117: 0 | BQ117: 0 | BS117: 0 | BV117: 0 | BX117: 0 | CB117: 0 | CE117: 0 | CG117: 0 | CH117: 0 | CM117: 5355 | CN117: 1420 | CQ117: 10000 | CR117: 0 | CS117: 66 | CT117: 10 | CX117: 0 | DD117: 100 | DE117: 0 | DG117: 0 | DK117: 0 | DO117: 0 | DP117: 0 | DV117: 20 | DX117: 0 | EA117: 1 | EE117: 3 | EK117: 0 | EL117: 66 | EM117: 42 | EN117: 24 | EO117: 640 | ER117: 360 | FD117: 0 | FE117: 50 | FT117: 0 | FU117: 12 | FV117: 0 | FW117: 4 | FX117: 3 | GF117: 465 | GI117: 280 | HS117: 0 | HU117: 0 | HV117: 0.488 | HW117: 0 | HX117: 1.7 | IB117: 0 | IP117: 0 | IQ117: 0 | IR117: 0 | IS117: 0 | IT117: 0 | IU117: 0 | JT117: 0 | JW117: 0 | JZ117: 0 | LO117: 0
A118: 107 | B118: Воскресенский ГО | C118: р.п. Фосфоритный, ул. Школьная, дома 2,3,5 | D118: 247685810 | E118: 12221 | F118: 2976 | G118: 0 | H118: 7540 | I118: 1705 | J118: 1 | K118: 1 | O118: 0 | U118: 1 | V118: 0 | W118: 0 | X118: 0 | Z118: 0 | AC118: 0 | AF118: 0 | AH118: 253 | AJ118: 0 | AL118: 7 | AM118: 0 | AP118: 7 | AQ118: 7 | AS118: 0 | AV118: 0 | AY118: 0 | BE118: 0 | BL118: 0 | BP118: 0 | BQ118: 0 | BS118: 0 | BV118: 0 | BX118: 0 | CB118: 0 | CE118: 0 | CG118: 0 | CH118: 0 | CM118: 2287 | CN118: 1500 | CQ118: 5000 | CR118: 0 | CS118: 23 | CT118: 10 | CX118: 0 | DD118: 30 | DE118: 1 | DG118: 1 | DK118: 0 | DO118: 25 | DP118: 1353 | DV118: 0 | DX118: 120 | EA118: 1 | EE118: 3 | EK118: 0 | EL118: 59 | EM118: 59 | EO118: 716.7 | FD118: 0 | FE118: 1674 | FT118: 0 | FU118: 450 | FV118: 0 | FW118: 4 | FX118: 0 | FZ118: 585.3 | GI118: 180 | HS118: 0 | HU118: 153.9 | HV118: 100 | HW118: 3.8 | HX118: 1.8 | IB118: 0 | IP118: 0 | IQ118: 0 | IR118: 0 | IS118: 0 | IT118: 0 | IU118: 0 | JT118: 0 | JW118: 0 | JZ118: 0 | LO118: 0
A119: 108 | B119: Воскресенский ГО | C119: р.п.Хорлово, ул.1-ая Пятилетка, д.2,3 | D119: 7234842610 | E119: 3100 | F119: 0 | G119: 0 | H119: 2269 | I119: 831 | J119: 0 | K119: 0 | O119: 0 | U119: 0 | V119: 0 | W119: 0 | X119: 0 | Z119: 0 | AC119: 0 | AF119: 0 | AH119: 0 | AJ119: 0 | AL119: 0 | AM119: 0 | AP119: 0 | AQ119: 0 | AS119: 0 | AV119: 0 | AY119: 0 | BE119: 0 | BL119: 0 | BP119: 0 | BQ119: 0 | BS119: 0 | BV119: 0 | BX119: 0 | CB119: 0 | CE119: 0 | CG119: 0 | CH119: 0 | CM119: 2269 | CN119: 400 | CT119: 0 | CX119: 0 | DD119: 0 | DE119: 1 | DG119: 1 | DK119: 0 | DO119: 60 | DP119: 0 | DV119: 52 | EA119: 1 | EE119: 0 | EK119: 0 | EL119: 0 | EM119: 0 | EO119: 0 | FD119: 0 | FE119: 0 | FT119: 371 | FU119: 0 | FV119: 123 | FW119: 4 | FX119: 4 | GI119: 0 | HS119: 0 | HU119: 0 | HV119: 0 | HW119: 0 | HX119: 0 | IB119: 0 | IP119: 0 | IQ119: 0 | IR119: 0 | IS119: 0 | IT119: 0 | IU119: 0 | JT119: 0 | JW119: 0 | JZ119: 0 | LO119: 0
A120: 109 | B120: Воскресенский ГО | C120: р.п.Хорлово, ул.Интернатская, д.3,4,5 | D120: 7231194690 | E120: 5210 | F120: 0 | G120: 0 | H120: 4490 | I120: 720 | J120: 0 | K120: 0 | O120: 0 | U120: 0 | V120: 0 | W120: 0 | X120: 0 | Z120: 0 | AC120: 0 | AF120: 0 | AH120: 0 | AJ120: 0 | AL120: 0 | AM120: 0 | AP120: 0 | AQ120: 0 | AS120: 0 | AV120: 0 | AY120: 0 | BE120: 0 | BL120: 0 | BP120: 0 | BQ120: 0 | BS120: 0 | BV120: 0 | BX120: 0 | CB120: 0 | CE120: 0 | CG120: 0 | CH120: 0 | CM120: 1400 | CN120: 600 | CQ120: 3000 | CR120: 0 | CT120: 0 | CX120: 0 | DD120: 0 | DE120: 0 | DG120: 0 | DK120: 0 | DO120: 0 | DP120: 1760 | DV120: 100 | EA120: 1 | EE120: 0 | EK120: 0 | EL120: 0 | EM120: 0 | EO120: 0 | FD120: 0 | FE120: 0 | FT120: 0 | FU120: 0 | FV120: 0 | FW120: 4 | FX120: 0 | GF120: 90 | GI120: 120 | HS120: 0 | HU120: 0 | HV120: 0.14 | HW120: 0 | HX120: 1.5 | IB120: 0 | IP120: 0 | IQ120: 0 | IR120: 0 | IS120: 0 | IT120: 0 | IU120: 0 | JT120: 0 | JW120: 0 | JZ120: 0 | LO120: 0
A121: 110 | B121: Воскресенский ГО | C121: р.п.Хорлово, ул.Парковый проезд д.7 | D121: 7271512750 | E121: 1200 | F121: 0 | G121: 0 | H121: 1000 | I121: 200 | J121: 0 | K121: 0 | O121: 0 | U121: 0 | V121: 0 | W121: 0 | X121: 0 | Z121: 0 | AC121: 0 | AF121: 0 | AH121: 0 | AJ121: 0 | AL121: 0 | AM121: 0 | AP121: 0 | AQ121: 0 | AS121: 0 | AV121: 0 | AY121: 0 | BE121: 0 | BL121: 0 | BP121: 0 | BQ121: 0 | BS121: 0 | BV121: 0 | BX121: 0 | CB121: 0 | CE121: 0 | CG121: 0 | CH121: 0 | CM121: 1000 | CN121: 200 | CT121: 5 | CX121: 0 | DD121: 0 | DE121: 0 | DG121: 0 | DK121: 0 | DO121: 0 | DP121: 0 | DV121: 52 | EA121: 1 | EE121: 0 | EK121: 0 | EL121: 0 | EM121: 0 | EO121: 0 | FD121: 0 | FE121: 0 | FT121: 0 | FU121: 0 | FV121: 0 | FW121: 4 | FX121: 0 | GI121: 0 | HS121: 0 | HU121: 0 | HV121: 0 | HW121: 0 | HX121: 0 | IB121: 0 | IP121: 0 | IQ121: 0 | IR121: 0 | IS121: 0 | IT121: 0 | IU121: 0 | JT121: 0 | JW121: 0 | JZ121: 0 | LO121: 0
A122: 111 | B122: Воскресенский ГО | C122: с. Ашитковo ул. Юбилейная д.12,14,16, ул .Парковая д.11 | D122: 247685973 | E122: 14229 | F122: 4156 | G122: 0 | H122: 7596 | I122: 2477 | J122: 2 | K122: 2 | O122: 0 | U122: 2 | V122: 400 | W122: 400 | X122: 400 | Z122: 0 | AC122: 0 | AF122: 0 | AH122: 140 | AJ122: 0 | AL122: 0 | AM122: 0 | AP122: 0 | AQ122: 0 | AS122: 0 | AV122: 0 | AY122: 0 | BE122: 0 | BL122: 0 | BP122: 0 | BQ122: 0 | BS122: 0 | BV122: 0 | BX122: 0 | CB122: 0 | CE122: 0 | CG122: 0 | CH122: 0 | CM122: 7056 | CN122: 2000 | CS122: 33 | CT122: 10 | CX122: 0 | DD122: 50 | DE122: 0 | DG122: 0 | DK122: 0 | DO122: 0 | DP122: 0 | DV122: 16 | EA122: 1 | EE122: 10 | EK122: 1 | EL122: 127 | EM122: 113 | EN122: 14 | EO122: 1766 | ER122: 207 | FD122: 0 | FE122: 2390 | FT122: 0 | FU122: 597.5 | FV122: 0 | FW122: 4 | FX122: 0 | GI122: 270 | HS122: 0 | HU122: 0 | HV122: 0.146 | HW122: 0 | HX122: 1.75 | IB122: 0 | IP122: 0 | IQ122: 0 | IR122: 0 | IS122: 0 | IT122: 0 | IU122: 0 | JT122: 0 | JW122: 0 | JZ122: 0 | LO122: 0
A123: 112 | B123: Воскресенский ГО | C123: с. Ашитково, ул. Новая, д. 8 | D123: 4718578770 | E123: 349 | F123: 0 | G123: 0 | H123: 0 | I123: 349 | J123: 0 | K123: 0 | O123: 0 | U123: 0 | V123: 0 | W123: 0 | X123: 0 | Z123: 0 | AC123: 0 | AF123: 0 | AH123: 0 | AJ123: 0 | AL123: 0 | AM123: 0 | AP123: 0 | AQ123: 0 | AS123: 0 | AV123: 0 | AY123: 0 | BE123: 0 | BL123: 0 | BP123: 0 | BQ123: 0 | BS123: 0 | BV123: 0 | BX123: 0 | CB123: 0 | CE123: 0 | CG123: 0 | CH123: 0 | CM123: 0 | CN123: 289 | CT123: 10 | CX123: 0 | DD123: 0 | DE123: 1 | DG123: 1 | DK123: 60 | DO123: 0 | DP123: 0 | DV123: 100 | EA123: 1 | EE123: 0 | EK123: 0 | EL123: 0 | EM123: 0 | EO123: 0 | FD123: 0 | FE123: 0 | FT123: 0 | FU123: 0 | FV123: 0 | FW123: 4 | FX123: 0 | GI123: 0 | HS123: 0 | HU123: 0 | HV123: 0 | HW123: 0 | HX123: 0 | IB123: 0 | IP123: 0 | IQ123: 0 | IR123: 0 | IS123: 0 | IT123: 0 | IU123: 0 | JT123: 0 | JW123: 0 | JZ123: 0 | LO123: 0
A124: 113 | B124: Воскресенский ГО | C124: с. Ашитково ул. Парковая 18 | D124: 247685974 | E124: 2883 | F124: 1087 | G124: 0 | H124: 1064 | I124: 732 | J124: 1 | K124: 1 | O124: 0 | U124: 1 | V124: 0 | W124: 0 | X124: 0 | Z124: 0 | AC124: 0 | AF124: 0 | AH124: 225 | AJ124: 0 | AL124: 6 | AM124: 0 | AP124: 6 | AQ124: 6 | AS124: 0 | AV124: 0 | AY124: 0 | BE124: 0 | BL124: 0 | BP124: 0 | BQ124: 0 | BS124: 0 | BV124: 0 | BX124: 0 | CB124: 0 | CE124: 6 | CF124: 6 | CG124: 0 | CH124: 0 | CM124: 612 | CN124: 500 | CS124: 10 | CT124: 10 | CX124: 0 | DD124: 276 | DE124: 0 | DG124: 0 | DK124: 0 | DO124: 0 | DP124: 948 | DV124: 0 | EA124: 1 | EE124: 1 | EK124: 1 | EL124: 39 | EM124: 30 | EN124: 9 | EO124: 327 | EQ124: 23 | ER124: 132 | FD124: 0 | FE124: 260 | FT124: 0 | FU124: 65 | FV124: 0 | FW124: 4 | FX124: 0 | FZ124: 500 | GF124: 204 | GI124: 100 | HS124: 0 | HU124: 0 | HV124: 0.804 | HW124: 0 | HX124: 1 | IB124: 0 | IP124: 0 | IQ124: 0 | IR124: 0 | IS124: 0 | IT124: 0 | IU124: 0 | JT124: 0 | JW124: 0 | JZ124: 0 | LO124: 0
A125: 114 | B125: Воскресенский ГО | C125: с. Ашитково ул. Парковая д. 20,21 | D125: 247685970 | E125: 6500 | F125: 755 | G125: 0 | H125: 4400 | I125: 1345 | J125: 1 | K125: 1 | O125: 0 | U125: 1 | V125: 0 | W125: 0 | X125: 0 | Z125: 0 | AC125: 0 | AF125: 0 | AH125: 300 | AJ125: 0 | AL125: 8 | AM125: 0 | AP125: 8 | AQ125: 8 | AS125: 0 | AV125: 0 | AY125: 0 | BE125: 0 | BL125: 0 | BP125: 0 | BQ125: 0 | BS125: 0 | BV125: 0 | BX125: 0 | CB125: 0 | CE125: 0 | CG125: 0 | CH125: 0 | CM125: 4100 | CN125: 1000 | CT125: 5 | CX125: 0 | DD125: 40 | DE125: 0 | DG125: 0 | DK125: 0 | DO125: 0 | DP125: 210 | DV125: 48 | EA125: 1 | EE125: 3 | EK125: 0 | EL125: 25 | EM125: 0 | EN125: 25 | EO125: 0 | ER125: 345 | FD125: 0 | FE125: 755 | FT125: 0 | FU125: 188.7 | FV125: 0 | FW125: 4 | FX125: 0 | GI125: 0 | HS125: 0 | HU125: 0 | HV125: 0 | HW125: 0 | HX125: 0 | IB125: 0 | IP125: 0 | IQ125: 0 | IR125: 0 | IS125: 0 | IT125: 0 | IU125: 0 | JT125: 0 | JW125: 0 | JZ125: 0 | LO125: 0
... 156 more rows

Sheet Общественные пространства
A1: Титульный список | W1: Муниципальный заказ | IA1: да | IB1: Зона отдыха
A2: Территорий общего пользования, ПКиО | W2: На балансе муниципального бюджетного учреждения | IA2: нет | IB2: Парк
IB3: ПКиО
IB4: Сад
A5: № п/п | B5: ОМСУ | C5: Адрес объекта | D5: Номер ID объекта | E5: Тип объекта (по списку) | F5: Муниципальный заказ/ на балансе муниципального бюджетного учреждения/ содержат иные лица (по списку) | G5: Всего уборочная площадь территории , кв.м. | J5: Площади | N5: Тротуары | AN5: Пешеходные дорожки | BA5: Проезды общественных территорий, ПКиО | BK5: Озеленение | BT5: Лесные насаждения | BU5: Лыжные трассы | BX5: Хоккейные площадки | CD5: Элементы сопряжения поверхностей, п.м. | CE5: Ограждение, п.м. | CH5: Малые архитектурные формы | CM5: Водные устройства | CP5: Водные объекты, ед | CQ5: Средства размещения информации | CS5: Некапитальные строения, сооружения | CW5: Конструкции велопарковок, ед. | CX5: Иные устройства и оборудования, ед. | CY5: Детские площадки | DN5: Спортивные площадки | ED5: Контейнерные площадки | EI5: Площадки для размещения автотранспорта, парковки | ER5: Площадки для отдыха | FD5: Площадки для выгула животных | FO5: Площадки для дрессировки собак | GA5: Пляж | GL5: Велодорожки | HJ5: Иные объекты благоустройства общественной территории, ПКиО | IB5: Бульвар
J6: Уборочная площадь территории, кв.м. | N6: Уборочная площадь покрытия из асфальтобетона, кв.м. | T6: Уборочная площадь покрытия из плитки, кв.м. | Z6: Уборочная площадь мягкого покрытия, кв.м. | AL6: Длина, п.м. | AM6: Ширина, п.м. | AN6: Уборочная площадь твердого покрытия, кв.м. | AR6: Уборочная площадь мягкого покрытия кв.м | AX6: Уборочная площадь дорожек из дерева и имитации дерева (настил, декинг), кв.м. | AY6: длина, п.м. | AZ6: ширина, п.м. | BA6: Уборочная площадь твердого территории, кв.м. | BE6: Уборочная площадь мягкого покрытия кв.м | BI6: Длина, п.м. | BJ6: Ширина, п.м. | BK6: Газон, кв.м | BN6: Деревья, ед | BO6: Цветники, кв.м | BS6: Кустарники, ед. | BT6: Площадь всего, кв.м. | BU6: Количество лыжных трасс (всего) шт. | BV6: Протяженность лыжных трасс (всего), пог. м. | BW6: Площадь лыжных трасс (всего), кв. м. | BX6: Количество,шт. | BY6: Площадь, кв. м. | BZ6: Сборно-разборные хоккейные площадки | CB6: Стационарные хоккейные площадки | CE6: деревянное | CF6: металлическое | CG6: прочее | CH6: Городская мебель, ед | CI6: Элементы монументально-декоративного оформления | CJ6: Элементы для отдыха и защиты от осадков, ед | CK6: Устройства для оформленя озеленения, ед | CL6: Урны, ед | CM6: Фонтаны | CO6: Питьевые фонтанчики, ед | CQ6: Информационные стенды, ед. | CR6: Иные средства, ед. | CS6: Нестационарные торговые объекты, ед. | CT6: Сцены, эстрады (летние кинотеатры, зеленые театры) , ед. | CU6: Амфитеатры, ед. | CV6: Мобильные туалетные кабины, ед. | CY6: Количество детских площадок, ед. | CZ6: Уборочная площадь твердого покрытия, кв.м. | DD6: Уборочная площадь территории, с резиновым покрытием кв.м. | DG6: Уборочная площадь мягкого покрытия кв.м | DJ6: Оборудование детских игровых площадок, ед. | DN6: Количество спортивных площадок, ед: | DP6: Уборочная площадь твердого покрытия, кв.м. | DT6: Уборочная площадь территории, с резиновым покрытием кв.м. | DW6: Уборочная площадь мягкого покрытия, кв.м. | DZ6: Уборочная площадь искусственного газона, кв.м. | EA6: Оборудование спортивных площадок, ед. | ED6: Количество контейнерных площадок, ед. | EE6: Уборочная площадь покрытия, кв.м. | EI6: Количество парковочных мест, ед. | EJ6: Уборочная площадь твердого покрытия, кв.м. | EN6: Уборочная площадь мягкого покрытия кв.м | ER6: Количество площадок для отдыха, ед | ES6: Уборочная площадь твердого покрытия, кв.м. | EW6: Уборочная площадь мягкого покрытия кв.м | FB6: Уборочная площадь искусственного газона, кв.м. | FC6: Уборочная площадь деревянного покрытия, кв.м. | FD6: Кол-во площадок, ед. | FE6: Уборочная площадь твердого покрытия, кв.м. | FI6: Уборочная площадь мягкого покрытия кв.м | FO6: Кол-во площадок, ед. | FP6: Уборочная площадь твердого покрытия, кв.м. | FT6: Уборочная площадь мягкого покрытия кв.м | FZ6: Специальное тренировочное оборудование для дрессировки собак, ед. | GA6: Уборочная площадь твердого покрытия, кв.м. | GE6: Уборочная площадь мягкого покрытия кв.м | GK6: Уборочная площадь деревянного покрытия, кв.м. | GL6: Количество велодорожек (всего), шт. | GM6: Протяженность велодорожек (всего), пог. м. | GN6: Площадь велодорожек (всего), кв. м. | GO6: Асфальтобетон / асфальт / бетон | GS6: Гравийная крошка | GU6: Щебень | GW6: Резиновое покрытие | HB6: Иные мягкие покрытия | HD6: Иные твердые покрытия | HH6: Конструкции велопарковок, шт. | HI6: Велодорожка используется, как лыжная трасса в зимний период | HJ6: Уборочная площадь твердого покрытия кв.м. | HN6: Мягкое покрытие, кв.м | HT6: Уборочная площадь искусственного газона, кв.м. | HU6: Уборочна площадь деревянного покрытия, кв.м. | IB6: Сквер
J7: Асфальтобетон | L7: Плитка | N7: механизированная | Q7: ручная | T7: механизированная | W7: ручная | Z7: Грунтовое | AC7: Гравийная крошка | AF7: Щебень | AI7: Иное | AN7: Асфальтобетон | AP7: Плитка | AR7: Резиновое, синтетическое | AS7: Песчаное | AT7: Грунтовое | AU7: Гравийная крошка | AV7: Щебень | AW7: Иное | BA7: Асфальтобетон | BC7: Плитка | BK7: Луговой | BL7: Иной | BM7: Мавританский | BO7: Кол-во, ед. | BQ7: Площадь, кв.м. | CZ7: Асфальтобетон | DB7: Плитка | DP7: Асфальтобетон | DR7: Плитка | DT7: до 3-х лет | DU7: от 3-7 лет | DV7: более 7 лет | DW7: песчаное | DX7: грунтовое | DY7: гравийная крошка | EA7: до 3-х лет | EB7: от 3-7 лет | EC7: более 7 лет | EE7: Асфальтобетон | EG7: Плитка | EJ7: Асфальтобетон | EL7: Плитка | EN7: Грунтовое | EO7: Гравийная крошка | EP7: Щебень | EQ7: Иное | ES7: Асфальтобетон | EU7: Плитка | EW7: резиновое, синтетическое | EX7: песчаное | EY7: грунтовое | EZ7: гравийная крошка | FA7: щебень | FE7: Асфальтобетон | FG7: Плитка | FP7: Асфальтобетон | FR7: Плитка | GA7: Асфальтобетон, асфальт | GC7: Плитка | GE7: резиновое, синтетическое | GF7: песчаное | GG7: грунтовое | GH7: гравийная крошка | GI7: щебень | GJ7: Иное | GO7: механизированная | GQ7: ручная | HD7: механизированная | HF7: ручная | HJ7: Асфальтобетон | HL7: Плитка | HN7: резиновое, синтетическое | HO7: песчаное | HP7: грунтовое | HQ7: гравийная крошка | HR7: щебень | HS7: Иное | IB7: Площадь
G8: механизированная | H8: ручная | I8: итого | J8: механизированная | K8: ручная | L8: механизированная | M8: ручная | N8: 1 класс | O8: 2 класс | P8: 3 класс | Q8: 1 класс | R8: 2 класс | S8: 3 класс | T8: 1 класс | U8: 2 класс | V8: 3 класс | W8: 1 класс | X8: 2 класс | Y8: 3 класс | Z8: 1 класс | AA8: 2 класс | AB8: 3 класс | AC8: 1 класс | AD8: 2 класс | AE8: 3 класс | AF8: 1 класс | AG8: 2 класс | AH8: 3 класс | AI8: 1 класс | AJ8: 2 класс | AK8: 3 класс | AN8: механизированная | AO8: ручная | AP8: механизированная | AQ8: ручная | BA8: механизированная | BB8: ручная | BC8: механизированная | BD8: ручная | BE8: Грунтовое | BF8: Гравийная крошка | BG8: Щебень | BH8: Иное | BO8: однолетники | BP8: многолетники | BQ8: однолетники | BR8: многолетники | BZ8: шт. | CA8: кв.м. | CB8: шт. | CC8: кв.м. | CM8: Количетво фонтанов, ед | CN8: Площадь чаши, кв.м. | CZ8: механизированная | DA8: ручная | DB8: механизированная | DC8: ручная | DD8: до 3-х лет | DE8: от 3-7 лет | DF8: более 7 лет | DG8: песчаное | DH8: грунтовое | DI8: гравийная крошка | DJ8: до 3-х лет | DK8: от 3-7 лет | DL8: более 7 лет | DM8: песочницы | DN8: Всего | DO8: Скейтпарков | DP8: механизированная | DQ8: ручная | DR8: механизированная | DS8: ручная | EE8: механизированная | EF8: ручная | EG8: механизированная | EH8: ручная | EJ8: механизированная | EK8: ручная | EL8: механизированная | EM8: ручная | ES8: механизированная | ET8: ручная | EU8: механизированная | EV8: ручная | FE8: механизированная | FF8: ручная | FG8: механизированная | FH8: ручная | FI8: резиновое, синтетическое | FJ8: песчаное | FK8: грунтовое | FL8: гравийная крошка | FM8: щебень | FN8: иное | FP8: механизированная | FQ8: ручная | FR8: механизированная | FS8: ручная | FT8: резиновое, синтетическое | FU8: песчаное | FV8: грунтовое | FW8: гравийная крошка | FX8: щебень | FY8: иное | GA8: механизированная | GB8: ручная | GC8: механизированная | GD8: ручная | GO8: пог. м. | GP8: кв. м | GQ8: пог. м. | GR8: кв. м | GS8: пог. м. | GT8: кв. м | GU8: пог. м. | GV8: кв. м | GW8: Протяженность, пог. м. | GX8: Площадь (всего), м2. | GY8: до 3 лет | GZ8: 3 - 7 лет | HA8: более 7 лет | HB8: пог. м. | HC8: кв. м | HD8: пог. м. | HE8: кв. м | HF8: пог. м. | HG8: кв. м | HJ8: механизированная | HK8: ручная | HL8: механизированная | HM8: ручная | IB8: Аллея
A9: 1 | B9: =A9+1 -> 2 | C9: =B9+1 -> 3 | D9: 4 | E9: 5 | F9: 6 | G9: 7 | H9: 8 | I9: 9 | J9: =I9+1 -> 10 | K9: 11 | L9: 12 | M9: 13 | N9: 14 | O9: 15 | P9: 16 | Q9: 17 | R9: 18 | S9: 19 | T9: 20 | U9: 21 | V9: 22 | W9: 23 | X9: 24 | Y9: 25 | Z9: 26 | AA9: 27 | AB9: 28 | AC9: 29 | AD9: 30 | AE9: 31 | AF9: 32 | AG9: 33 | AH9: 34 | AI9: 35 | AJ9: 36 | AK9: 37 | AL9: 38 | AM9: 39 | AN9: 40 | AO9: 41 | AP9: 42 | AQ9: 43 | AR9: 44 | AS9: 45 | AT9: 46 | AU9: 47 | AV9: 48 | AW9: 49 | AX9: 50 | AY9: 51 | AZ9: 52 | BA9: 53 | BB9: 54 | BC9: 55 | BD9: 56 | BE9: 57 | BF9: 58 | BG9: 59 | BH9: 60 | BI9: 61 | BJ9: 62 | BK9: 63 | BL9: 64 | BM9: 65 | BN9: 66 | BO9: =BN9+1 -> 67 | BP9: 68 | BQ9: 69 | BR9: 70 | BS9: 71 | BT9: 72 | BU9: 73 | BV9: 74 | BW9: 75 | BX9: 76 | BY9: 77 | BZ9: 78 | CA9: 79 | CB9: 80 | CC9: 81 | CD9: 82 | CE9: 83 | CF9: 84 | CG9: 85 | CH9: 86 | CI9: 87 | CJ9: 88 | CK9: 89 | CL9: 90 | CM9: 91 | CN9: 92 | CO9: 93 | CP9: 94 | CQ9: 95 | CR9: 96 | CS9: 97 | CT9: 98 | CU9: 99 | CV9: 100 | CW9: 101 | CX9: 102 | CY9: 103 | CZ9: 104 | DA9: 105 | DB9: 106 | DC9: 107 | DD9: 108 | DE9: 109 | DF9: 110 | DG9: 111 | DH9: 112 | DI9: 113 | DJ9: 114 | DK9: 115 | DL9: 116 | DM9: 117 | DN9: 118 | DO9: 119 | DP9: 120 | DQ9: 121 | DR9: 122 | DS9: 123 | DT9: 124 | DU9: 125 | DV9: 126 | DW9: 127 | DX9: 128 | DY9: 129 | DZ9: 130 | EA9: =DZ9+1 -> 131 | EB9: 132 | EC9: 133 | ED9: 134 | EE9: 135 | EF9: 136 | EG9: 137 | EH9: 138 | EI9: 139 | EJ9: 140 | EK9: 141 | EL9: 142 | EM9: 143 | EN9: 144 | EO9: 145 | EP9: 146 | EQ9: 147 | ER9: 148 | ES9: 149 | ET9: 150 | EU9: 151 | EV9: 152 | EW9: 153 | EX9: 154 | EY9: 155 | EZ9: 156 | FA9: 157 | FB9: 158 | FC9: 159 | FD9: 160 | FE9: 161 | FF9: 162 | FG9: 163 | FH9: 164 | FI9: 165 | FJ9: 166 | FK9: 167 | FL9: 168 | FM9: 169 | FN9: 170 | FO9: 171 | FP9: 172 | FQ9: 173 | FR9: 174 | FS9: 175 | FT9: 176 | FU9: 177 | FV9: 178 | FW9: 179 | FX9: 180 | FY9: 181 | FZ9: 182 | GA9: 183 | GB9: 184 | GC9: 185 | GD9: 186 | GE9: 187 | GF9: 188 | GG9: 189 | GH9: 190 | GI9: 191 | GJ9: 192 | GK9: 193 | GL9: 194 | GM9: =GL9+1 -> 195 | GN9: 196 | GO9: 197 | GP9: 198 | GQ9: 199 | GR9: 200 | GS9: 201 | GT9: 202 | GU9: 203 | GV9: 204 | GW9: 205 | GX9: 206 | GY9: 207 | GZ9: 208 | HA9: 209 | HB9: 210 | HC9: 211 | HD9: 212 | HE9: 213 | HF9: 214 | HG9: 215 | HH9: 216 | HI9: 217 | HJ9: 218 | HK9: 219 | HL9: 220 | HM9: 221 | HN9: 222 | HO9: 223 | HP9: 224 | HQ9: 225 | HR9: 226 | HS9: 227 | HT9: 228 | HU9: 229 | IB9: Набережная
A10: ИТОГО | C10: =COUNTA(C11:C980998) -> 162 | D10: =COUNTA(D11:D980998) -> 162 | E10: =COUNTA(E11:E980998) -> 162 | F10: =COUNTA(F11:F980998) -> 162 | G10: =J10+L10+N10+O10+P10+T10+U10+V10+AN10+AP10+BA10+BC10+DP10+DR10+EE10+EG10+EJ10+EL10+ES10+EU10+FE10+FG10+FP10+GA10+GC10+HJ10+HL10+CZ10+DB10+FR10+GP10+HE10+BW10 -> 119457.9 | H10: =SUM(K10,M10,Q10,R10,S10,W10,X10,Y10,AO10,AQ10,AR10,AS10,AU10,AX10,BB10,BD10,BK10,BL10,BM10,BQ10,BR10,BT10,DG10,DH10,DI10,DQ10,DS10,DW10,DX10,DY10,,EF10,EH10,EK10,EM10,ET10,EV10,EW10,EX10,EY10,FW10,GB10,GD10,GE10,GF10,GG10,GH10,GI10,GK10,HK10,HM10,HN10,HO10,HP10,HQ10,HR10,HU10,FF10,FH10,FI10,FJ10,FK10,FN10,FQ10,FS10,FT10,FU10,FV10,FX10,AT10,AV10,AW10,BE10,BF10,BG10,BH10,GJ10,FL10,DZ10,EN10,EO10,EP10,EQ10,EZ10,FA10,FC10,FB10,FM10,FY10,Z10,AA10,AB10,AC10,AD10,AE10,AF10,AG10,AH10,AI10,AJ10,AK10,HS10,HT10,BY10,DA10,DC10,DD10,DE10,DF10,DT10,DU10,DV10,GR10,GV10,GY10,GZ10,HA10,HC10,HG10,GT10) -> 1478707 | I10: =G10+H10 -> 1598164.9 | J10: =SUM(J11:J1048576) -> 0 | K10: 0 | L10: 0 | M10: 0 | N10: 0 | O10: 19840 | P10: 0 | Q10: 0 | R10: 7314.2 | S10: 0 | T10: 0 | U10: 0 | V10: 0 | W10: 0 | X10: 70 | Y10: 0 | Z10: 0 | AA10: 407 | AB10: 0 | AC10: 0 | AD10: 0 | AE10: 0 | AF10: 0 | AG10: 0 | AH10: 0 | AI10: 0 | AJ10: 235 | AK10: 0 | AL10: 32.739 | AM10: 84.5 | AN10: 60000.4 | AO10: 26041.2 | AP10: 13137.7 | AQ10: 95 | AR10: 0 | AS10: 0 | AT10: 15507 | AU10: 0 | AV10: 0 | AW10: 5000.5 | AX10: 0 | AY10: 1732.765 | AZ10: 142.2 | BA10: 13427.8 | BB10: 0 | BC10: 0 | BD10: 0 | BE10: 0 | BF10: 0 | BG10: 0 | BH10: 1431 | BI10: 1134.555 | BJ10: 228.35 | BK10: 596608.8 | BL10: 0 | BM10: 213488 | BN10: 18015 | BO10: 408 | BP10: 413 | BQ10: 191 | BR10: 322 | BS10: 12629 | BT10: 584798 | BU10: 0 | BV10: =SUM(BV11:BV1048576) -> 0 | BW10: 0 | BX10: 1 | BY10: 1357 | BZ10: 0 | CA10: 0 | CB10: 0 | CC10: 0 | CD10: 47206.04 | CE10: 0 | CF10: 3861 | CG10: 468 | CH10: 408 | CI10: 71 | CJ10: 5 | CK10: 4 | CL10: 291 | CM10: 3 | CN10: 941.4 | CO10: 0 | CP10: 1 | CQ10: 29 | CR10: 0 | CS10: 0 | CT10: 2 | CU10: 0 | CV10: 1 | CW10: 0 | CX10: 0 | CY10: 45 | CZ10: 0 | DA10: 641 | DB10: 0 | DC10: 0 | DD10: 2426.3 | DE10: 4908 | DF10: 0 | DG10: 0 | DH10: 6463 | DI10: 0 | DJ10: 28 | DK10: 119 | DL10: 132 | DM10: 2 | DN10: 12 | DO10: 0 | DP10: 0 | DQ10: 1619 | DR10: 0 | DS10: 0 | DT10: 222 | DU10: 1570 | DV10: 0 | DW10: 531 | DX10: 4095 | DY10: 0 | DZ10: 0 | EA10: 10 | EB10: 20 | EC10: 26 | ED10: 6 | EE10: 0 | EF10: 125 | EG10: 0 | EH10: =SUM(EH11:EH1048576) -> 0 | EI10: 56 | EJ10: 5052 | EK10: 0 | EL10: 0 | EM10: 0 | EN10: 0 | EO10: 0 | EP10: 0 | EQ10: 0 | ER10: 0 | ES10: 0 | ET10: 0 | EU10: 0 | EV10: 0 | EW10: 0 | EX10: 0 | EY10: 0 | EZ10: 0 | FA10: 0 | FB10: 0 | FC10: 0 | FD10: 0 | FE10: 0 | FF10: 0 | FG10: 0 | FH10: 0 | FI10: 0 | FJ10: 0 | FK10: 0 | FL10: 0 | FM10: 0 | FN10: 0 | FO10: 1 | FP10: 0 | FQ10: 0 | FR10: 0 | FS10: 0 | FT10: 0 | FU10: 0 | FV10: 0 | FW10: 0 | FX10: 0 | FY10: 508 | FZ10: 6 | GA10: 0 | GB10: 0 | GC10: 0 | GD10: 0 | GE10: 0 | GF10: 2733 | GG10: 0 | GH10: 0 | GI10: 0 | GJ10: 0 | GK10: 0 | GL10: 0 | GM10: 0 | GN10: 0 | GO10: 0 | GP10: 0 | GQ10: 0 | GR10: 0 | GS10: 0 | GT10: =SUM(GT11:GT1048576) -> 0 | GU10: 0 | GV10: 0 | GW10: 0 | GX10: 0 | GY10: 0 | GZ10: 0 | HA10: 0 | HB10: 0 | HC10: 0 | HD10: 0 | HE10: 0 | HF10: 0 | HG10: 0 | HH10: 1 | HI10: =COUNTA(HI11:HI980998) -> 125 | HJ10: =SUM(HJ11:HJ1048576) -> 8000 | HK10: 0 | HL10: 0 | HM10: 0 | HN10: 0 | HO10: 0 | HP10: 0 | HQ10: 0 | HR10: 0 | HS10: 0 | HT10: 0 | HU10: 0 | IB10: Пляж
A11: 1 | B11: Воскресенский ГО | C11: Набережная г. Воскресенск, ул. Докторова (набережная вблизи частного сектора) | D11: 1389512122 | E11: Набережная | F11: Муниципальный заказ | G11: =J11+L11+N11+O11+P11+T11+U11+V11+AN11+AP11+BA11+BC11+DP11+DR11+EE11+EG11+EJ11+EL11+ES11+EU11+FE11+FG11+FP11+GA11+GC11+HJ11+HL11+CZ11+DB11+FR11+GP11+HE11+BW11 -> 0 | H11: =SUM(K11,M11,Q11,R11,S11,W11,X11,Y11,AO11,AQ11,AR11,AS11,AU11,AX11,BB11,BD11,BK11,BL11,BM11,BQ11,BR11,BT11,DG11,DH11,DI11,DQ11,DS11,DW11,DX11,DY11,,EF11,EH11,EK11,EM11,ET11,EV11,EW11,EX11,EY11,FW11,GB11,GD11,GE11,GF11,GG11,GH11,GI11,GK11,HK11,HM11,HN11,HO11,HP11,HQ11,HR11,HU11,FF11,FH11,FI11,FJ11,FK11,FN11,FQ11,FS11,FT11,FU11,FV11,FX11,AT11,AV11,AW11,BE11,BF11,BG11,BH11,GJ11,FL11,DZ11,EN11,EO11,EP11,EQ11,EZ11,FA11,FC11,FB11,FM11,FY11,Z11,AA11,AB11,AC11,AD11,AE11,AF11,AG11,AH11,AI11,AJ11,AK11,HS11,HT11,BY11,DA11,DC11,DD11,DE11,DF11,DT11,DU11,DV11,GR11,GV11,GY11,GZ11,HA11,HC11,HG11,GT11) -> 158217 | I11: =G11+H11 -> 158217 | R11: 0 | AA11: 0 | AD11: 0 | AJ11: 0 | AL11: 0 | AM11: 0 | AO11: 0 | AR11: 0 | AS11: 0 | AT11: 4103 | AU11: 0 | AW11: 0 | AY11: 0 | AZ11: 0 | BA11: 0 | BH11: 0 | BI11: 0 | BJ11: 0 | BK11: 4114 | BL11: 0 | BN11: 64 | BO11: 0 | BP11: 0 | BQ11: 0 | BR11: 0 | BS11: 0 | BT11: 150000 | BU11: 0 | BV11: 0 | BW11: 0 | BX11: 0 | BY11: 0 | BZ11: 0 | CA11: 0 | CB11: 0 | CC11: 0 | CD11: 0 | CH11: 0 | CI11: 0 | CJ11: 0 | CK11: 0 | CL11: 0 | CM11: 0 | CN11: 0 | CO11: 0 | CP11: 0 | CQ11: 0 | CR11: 0 | CS11: 0 | CT11: 0 | CU11: 0 | CV11: 0 | CW11: 0 | CX11: 0 | CY11: 0 | CZ11: 0 | DA11: 0 | DB11: 0 | DC11: 0 | DD11: 0 | DE11: 0 | DF11: 0 | DG11: 0 | DH11: 0 | DI11: 0 | DJ11: 0 | DK11: 0 | DL11: 0 | DM11: 0 | DN11: 0 | DO11: 0 | DP11: 0 | DQ11: 0 | DR11: 0 | DS11: 0 | DT11: 0 | DU11: 0 | DV11: 0 | DW11: 0 | DX11: 0 | DY11: 0 | DZ11: 0 | EA11: 0 | EB11: 0 | EC11: 0 | ED11: 0 | EE11: 0 | EF11: 0 | EG11: 0 | EH11: 0 | EI11: 0 | EJ11: 0 | EK11: 0 | EL11: 0 | EM11: 0 | EN11: 0 | EO11: 0 | EP11: 0 | EQ11: 0 | ER11: 0 | ES11: 0 | ET11: 0 | EU11: 0 | EV11: 0 | EW11: 0 | EX11: 0 | EY11: 0 | EZ11: 0 | FA11: 0 | FB11: 0 | FC11: 0 | FD11: 0 | FE11: 0 | FF11: 0 | FG11: 0 | FH11: 0 | FI11: 0 | FJ11: 0 | FK11: 0 | FL11: 0 | FM11: 0 | FN11: 0 | FO11: 0 | FP11: 0 | FQ11: 0 | FR11: 0 | FS11: 0 | FT11: 0 | FU11: 0 | FV11: 0 | FW11: 0 | FX11: 0 | FY11: 0 | FZ11: 0 | GA11: 0 | GB11: 0 | GC11: 0 | GD11: 0 | GE11: 0 | GF11: 0 | GG11: 0 | GH11: 0 | GI11: 0 | GJ11: 0 | GK11: 0 | GL11: 0 | GM11: 0 | GN11: 0 | GO11: 0 | GP11: 0 | GQ11: 0 | GR11: 0 | GS11: 0 | GT11: 0 | GU11: 0 | GV11: 0 | GW11: 0 | GX11: 0 | GY11: 0 | GZ11: 0 | HA11: 0 | HB11: 0 | HC11: 0 | HD11: 0 | HE11: 0 | HF11: 0 | HG11: 0 | HH11: 0 | HI11: 0 | HJ11: 0 | HK11: 0 | HL11: 0 | HM11: 0 | HN11: 0 | HO11: 0 | HP11: 0 | HQ11: 0 | HR11: 0 | HS11: 0 | HT11: 0 | HU11: 0 | IB11: Пешеходная улица
A12: 2 | B12: Воскресенский ГО | C12: Набережная г. Воскресенск, ул. Светлая, Озеро Светлое | D12: 1389512124 | E12: Набережная | F12: На балансе муниципального учреждения | G12: 5779 | H12: 88318 | I12: =G12+H12 -> 94097 | R12: 0 | AA12: 0 | AD12: 0 | AJ12: 0 | AL12: 0 | AM12: 0 | AN12: 4879 | AR12: 0 | AS12: 0 | AT12: 0 | AU12: 0 | AW12: 0 | AY12: 1626 | AZ12: 3 | BA12: 0 | BH12: 0 | BI12: 0 | BJ12: 0 | BK12: 5828 | BL12: 0 | BM12: 10000 | BN12: 97 | BO12: 0 | BP12: 0 | BQ12: 0 | BR12: 0 | BS12: 54 | BT12: 69000 | BU12: 0 | BV12: 0 | BW12: 0 | BX12: 0 | BY12: 0 | BZ12: 0 | CA12: 0 | CB12: 0 | CC12: 0 | CD12: 960 | CE12: 0 | CF12: 0 | CG12: 0 | CH12: 10 | CI12: 0 | CJ12: 0 | CK12: 0 | CL12: 10 | CM12: 0 | CN12: 0 | CO12: 0 | CP12: 0 | CQ12: 1 | CR12: 0 | CS12: 0 | CT12: 0 | CU12: 0 | CV12: 0 | CW12: 0 | CX12: 0 | CY12: 1 | CZ12: 0 | DA12: 0 | DB12: 0 | DC12: 0 | DD12: 0 | DE12: 226 | DF12: 0 | DG12: 0 | DH12: 0 | DI12: 0 | DJ12: 0 | DK12: 7 | DL12: 0 | DM12: 0 | DN12: 1 | DO12: 0 | DP12: 0 | DQ12: 0 | DR12: 0 | DS12: 0 | DT12: 0 | DU12: 0 | DV12: 0 | DW12: 531 | DX12: 0 | DY12: 0 | DZ12: 0 | EA12: 0 | EB12: 0 | EC12: 7 | ED12: 0 | EE12: 0 | EF12: 0 | EG12: 0 | EH12: 0 | EI12: 1 | EJ12: 900 | EK12: 0 | EL12: 0 | EM12: 0 | EN12: 0 | EO12: 0 | EP12: 0 | EQ12: 0 | ER12: 0 | ES12: 0 | ET12: 0 | EU12: 0 | EV12: 0 | EW12: 0 | EX12: 0 | EY12: 0 | EZ12: 0 | FA12: 0 | FB12: 0 | FC12: 0 | FD12: 0 | FE12: 0 | FF12: 0 | FG12: 0 | FH12: 0 | FI12: 0 | FJ12: 0 | FK12: 0 | FL12: 0 | FM12: 0 | FN12: 0 | FO12: 0 | FP12: 0 | FQ12: 0 | FR12: 0 | FS12: 0 | FT12: 0 | FU12: 0 | FV12: 0 | FW12: 0 | FX12: 0 | FY12: 0 | FZ12: 0 | GA12: 0 | GB12: 0 | GC12: 0 | GD12: 0 | GE12: 0 | GF12: 2733 | GG12: 0 | GH12: 0 | GI12: 0 | GJ12: 0 | GK12: 0 | GL12: 0 | GM12: 0 | GN12: 0 | GO12: 0 | GP12: 0 | GQ12: 0 | GR12: 0 | GS12: 0 | GT12: 0 | GU12: 0 | GV12: 0 | GW12: 0 | GX12: 0 | GY12: 0 | GZ12: 0 | HA12: 0 | HB12: 0 | HC12: 0 | HD12: 0 | HE12: 0 | HF12: 0 | HG12: 0 | HH12: 0 | HI12: 0 | HJ12: 0 | HK12: 0 | HL12: 0 | HM12: 0 | HN12: 0 | HO12: 0 | HP12: 0 | HQ12: 0 | HR12: 0 | HS12: 0 | HT12: 0 | HU12: 0 | IA12: Муниципальный заказ | IB12: Пешеходная зона
A13: 3 | B13: Воскресенский ГО | C13: Набережная г. Воскресенск, ул. Московская, р. Семиславка - Часть1 | D13: 1389512123 | E13: Набережная | F13: Муниципальный заказ | G13: 0 | H13: 84595 | I13: 84595 | R13: 0 | AA13: 0 | AD13: 0 | AJ13: 0 | AL13: 0 | AM13: 0 | AO13: 0 | AR13: 0 | AS13: 0 | AT13: 2160 | AU13: 0 | AW13: 0 | AY13: 0 | AZ13: 0 | BA13: 0 | BH13: 916 | BI13: 0 | BJ13: 0 | BK13: 6509 | BL13: 0 | BM13: 0 | BN13: 60 | BO13: 0 | BP13: 0 | BQ13: 0 | BR13: 0 | BS13: 911 | BT13: 75000 | BU13: 0 | BV13: 0 | BW13: 0 | BX13: 0 | BY13: 0 | BZ13: 0 | CA13: 0 | CB13: 0 | CC13: 0 | CD13: 0 | CH13: 0 | CI13: 0 | CJ13: 0 | CK13: 0 | CL13: 0 | CM13: 0 | CN13: 0 | CO13: 0 | CP13: 0 | CQ13: 0 | CR13: 0 | CS13: 0 | CT13: 0 | CU13: 0 | CV13: 0 | CW13: 0 | CX13: 0 | CY13: 0 | CZ13: 0 | DA13: 0 | DB13: 0 | DC13: 0 | DD13: 0 | DE13: 0 | DF13: 0 | DG13: 0 | DH13: 0 | DI13: 0 | DJ13: 0 | DK13: 0 | DL13: 0 | DM13: 0 | DN13: 0 | DO13: 0 | DP13: 0 | DQ13: 0 | DR13: 0 | DS13: 0 | DT13: 0 | DU13: 0 | DV13: 0 | DW13: 0 | DX13: 0 | DY13: 0 | DZ13: 0 | EA13: 0 | EB13: 0 | EC13: 0 | ED13: 1 | EE13: 0 | EF13: 10 | EG13: 0 | EH13: 0 | EI13: 0 | EJ13: 0 | EK13: 0 | EL13: 0 | EM13: 0 | EN13: 0 | EO13: 0 | EP13: 0 | EQ13: 0 | ER13: 0 | ES13: 0 | ET13: 0 | EU13: 0 | EV13: 0 | EW13: 0 | EX13: 0 | EY13: 0 | EZ13: 0 | FA13: 0 | FB13: 0 | FC13: 0 | FD13: 0 | FE13: 0 | FF13: 0 | FG13: 0 | FH13: 0 | FI13: 0 | FJ13: 0 | FK13: 0 | FL13: 0 | FM13: 0 | FN13: 0 | FO13: 0 | FP13: 0 | FQ13: 0 | FR13: 0 | FS13: 0 | FT13: 0 | FU13: 0 | FV13: 0 | FW13: 0 | FX13: 0 | FY13: 0 | FZ13: 0 | GA13: 0 | GB13: 0 | GC13: 0 | GD13: 0 | GE13: 0 | GF13: 0 | GG13: 0 | GH13: 0 | GI13: 0 | GJ13: 0 | GK13: 0 | GL13: 0 | GM13: 0 | GN13: 0 | GO13: 0 | GP13: 0 | GQ13: 0 | GR13: 0 | GS13: 0 | GT13: 0 | GU13: 0 | GV13: 0 | GW13: 0 | GX13: 0 | GY13: 0 | GZ13: 0 | HA13: 0 | HB13: 0 | HC13: 0 | HD13: 0 | HE13: 0 | HF13: 0 | HG13: 0 | HH13: 0 | HI13: 0 | HJ13: 0 | HK13: 0 | HL13: 0 | HM13: 0 | HN13: 0 | HO13: 0 | HP13: 0 | HQ13: 0 | HR13: 0 | HS13: 0 | HT13: 0 | HU13: 0 | IA13: На балансе муниципального учреждения | IB13: Береговые полосы водных объектов
A14: 4 | B14: Воскресенский ГО | C14: 7_Снегосвалка | D14: 7163420230 | E14: Иные объекты благоустройства | F14: На балансе муниципального учреждения | G14: 0 | H14: 67953 | I14: 67953 | R14: 0 | AA14: 0 | AD14: 0 | AJ14: 0 | AL14: 0 | AM14: 0 | AO14: 0 | AR14: 0 | AS14: 0 | AT14: 0 | AU14: 0 | AW14: 0 | AY14: 0 | AZ14: 0 | BA14: 0 | BH14: 0 | BI14: 0 | BJ14: 0 | BK14: 7953 | BL14: 0 | BM14: 0 | BN14: 0 | BO14: 0 | BP14: 0 | BQ14: 0 | BR14: 0 | BS14: 0 | BT14: 60000 | BU14: 0 | BV14: 0 | BW14: 0 | BX14: 0 | BY14: 0 | BZ14: 0 | CA14: 0 | CB14: 0 | CC14: 0 | CD14: 0 | CH14: 0 | CI14: 0 | CJ14: 0 | CK14: 0 | CL14: 0 | CM14: 0 | CN14: 0 | CO14: 0 | CP14: 0 | CQ14: 0 | CR14: 0 | CS14: 0 | CT14: 0 | CU14: 0 | CV14: 0 | CW14: 0 | CX14: 0 | CY14: 0 | CZ14: 0 | DA14: 0 | DB14: 0 | DC14: 0 | DD14: 0 | DE14: 0 | DF14: 0 | DG14: 0 | DH14: 0 | DI14: 0 | DJ14: 0 | DK14: 0 | DL14: 0 | DM14: 0 | DN14: 0 | DO14: 0 | DP14: 0 | DQ14: 0 | DR14: 0 | DS14: 0 | DT14: 0 | DU14: 0 | DV14: 0 | DW14: 0 | DX14: 0 | DY14: 0 | DZ14: 0 | EA14: 0 | EB14: 0 | EC14: 0 | ED14: 0 | EE14: 0 | EF14: 0 | EG14: 0 | EH14: 0 | EI14: 0 | EJ14: 0 | EK14: 0 | EL14: 0 | EM14: 0 | EN14: 0 | EO14: 0 | EP14: 0 | EQ14: 0 | ER14: 0 | ES14: 0 | ET14: 0 | EU14: 0 | EV14: 0 | EW14: 0 | EX14: 0 | EY14: 0 | EZ14: 0 | FA14: 0 | FB14: 0 | FC14: 0 | FD14: 0 | FE14: 0 | FF14: 0 | FG14: 0 | FH14: 0 | FI14: 0 | FJ14: 0 | FK14: 0 | FL14: 0 | FM14: 0 | FN14: 0 | FO14: 0 | FP14: 0 | FQ14: 0 | FR14: 0 | FS14: 0 | FT14: 0 | FU14: 0 | FV14: 0 | FW14: 0 | FX14: 0 | FY14: 0 | FZ14: 0 | GA14: 0 | GB14: 0 | GC14: 0 | GD14: 0 | GE14: 0 | GF14: 0 | GG14: 0 | GH14: 0 | GI14: 0 | GJ14: 0 | GK14: 0 | GL14: 0 | GM14: 0 | GN14: 0 | GO14: 0 | GP14: 0 | GQ14: 0 | GR14: 0 | GS14: 0 | GT14: 0 | GU14: 0 | GV14: 0 | GW14: 0 | GX14: 0 | GY14: 0 | GZ14: 0 | HA14: 0 | HB14: 0 | HC14: 0 | HD14: 0 | HE14: 0 | HF14: 0 | HG14: 0 | HH14: 0 | HI14: 0 | HJ14: 0 | HK14: 0 | HL14: 0 | HM14: 0 | HN14: 0 | HO14: 0 | HP14: 0 | HQ14: 0 | HR14: 0 | HS14: 0 | HT14: 0 | HU14: 0 | IA14: На содержании иных лиц | IB14: Площадка для выгула животных
A15: 5 | B15: Воскресенский ГО | C15: Набережная озеро Голубое д. Золотово | D15: 1389512120 | E15: Набережная | F15: Муниципальный заказ | G15: 0 | H15: 67503 | I15: 67503 | R15: 0 | AA15: 407 | AD15: 0 | AJ15: 0 | AL15: 0 | AM15: 0 | AO15: 0 | AR15: 0 | AS15: 0 | AT15: 1292 | AU15: 0 | AW15: 0 | AY15: 0 | AZ15: 0 | BA15: 0 | BH15: 0 | BI15: 0 | BJ15: 0 | BK15: 7804 | BL15: 0 | BN15: 209 | BO15: 0 | BP15: 0 | BQ15: 0 | BR15: 0 | BS15: 0 | BT15: 58000 | BU15: 0 | BV15: 0 | BW15: 0 | BX15: 0 | BY15: 0 | BZ15: 0 | CA15: 0 | CB15: 0 | CC15: 0 | CD15: 0 | CE15: 0 | CF15: 0 | CG15: 0 | CH15: 0 | CI15: 0 | CJ15: 0 | CK15: 0 | CL15: 0 | CM15: 0 | CN15: 0 | CO15: 0 | CP15: 0 | CQ15: 0 | CR15: 0 | CS15: 0 | CT15: 0 | CU15: 0 | CV15: 0 | CW15: 0 | CX15: 0 | CY15: 0 | CZ15: 0 | DA15: 0 | DB15: 0 | DC15: 0 | DD15: 0 | DE15: 0 | DF15: 0 | DG15: 0 | DH15: 0 | DI15: 0 | DJ15: 0 | DK15: 0 | DL15: 0 | DM15: 0 | DN15: 0 | DO15: 0 | DP15: 0 | DQ15: 0 | DR15: 0 | DS15: 0 | DT15: 0 | DU15: 0 | DV15: 0 | DW15: 0 | DX15: 0 | DY15: 0 | DZ15: 0 | EA15: 0 | EB15: 0 | EC15: 0 | ED15: 0 | EE15: 0 | EF15: 0 | EG15: 0 | EH15: 0 | EI15: 0 | EJ15: 0 | EK15: 0 | EL15: 0 | EM15: 0 | EN15: 0 | EO15: 0 | EP15: 0 | EQ15: 0 | ER15: 0 | ES15: 0 | ET15: 0 | EU15: 0 | EV15: 0 | EW15: 0 | EX15: 0 | EY15: 0 | EZ15: 0 | FA15: 0 | FB15: 0 | FC15: 0 | FD15: 0 | FE15: 0 | FF15: 0 | FG15: 0 | FH15: 0 | FI15: 0 | FJ15: 0 | FK15: 0 | FL15: 0 | FM15: 0 | FN15: 0 | FO15: 0 | FP15: 0 | FQ15: 0 | FR15: 0 | FS15: 0 | FT15: 0 | FU15: 0 | FV15: 0 | FW15: 0 | FX15: 0 | FY15: 0 | FZ15: 0 | GA15: 0 | GB15: 0 | GC15: 0 | GD15: 0 | GE15: 0 | GF15: 0 | GG15: 0 | GH15: 0 | GI15: 0 | GJ15: 0 | GK15: 0 | GL15: 0 | GM15: 0 | GN15: 0 | GO15: 0 | GP15: 0 | GQ15: 0 | GR15: 0 | GS15: 0 | GT15: 0 | GU15: 0 | GV15: 0 | GW15: 0 | GX15: 0 | GY15: 0 | GZ15: 0 | HA15: 0 | HB15: 0 | HC15: 0 | HD15: 0 | HE15: 0 | HF15: 0 | HG15: 0 | HH15: 0 | HI15: 0 | HJ15: 0 | HK15: 0 | HL15: 0 | HM15: 0 | HN15: 0 | HO15: 0 | HP15: 0 | HQ15: 0 | HR15: 0 | HS15: 0 | HT15: 0 | HU15: 0 | IB15: Площадка для дрессировки собак
A16: 6 | B16: Воскресенский ГО | C16: Набережная г. Воскресенск, ул. Докторова (Докторовские пруды) | D16: 1389512127 | E16: Набережная | F16: Муниципальный заказ | G16: 11529.9 | H16: 51733.1 | I16: 63263 | R16: 0 | AA16: 0 | AD16: 0 | AJ16: 0 | AL16: 0 | AM16: 0 | AN16: 10623.9 | AO16: 4553.1 | AR16: 0 | AS16: 0 | AT16: 0 | AU16: 0 | AW16: 0 | AY16: 2.17 | AZ16: 3 | BA16: 475 | BH16: 0 | BI16: 71 | BJ16: 4 | BK16: 12180 | BL16: 0 | BM16: 35000 | BN16: 1412 | BO16: 0 | BP16: 0 | BQ16: 0 | BR16: 0 | BS16: 563 | BT16: 0 | BU16: 0 | BV16: 0 | BW16: 0 | BX16: 0 | BY16: 0 | BZ16: 0 | CA16: 0 | CB16: 0 | CC16: 0 | CD16: 400 | CH16: 20 | CI16: 0 | CJ16: 0 | CK16: 0 | CL16: 20 | CM16: 0 | CN16: 0 | CO16: 0 | CP16: 0 | CQ16: 1 | CR16: 0 | CS16: 0 | CT16: 0 | CU16: 0 | CV16: 0 | CW16: 0 | CX16: 0 | CY16: 0 | CZ16: 0 | DA16: 0 | DB16: 0 | DC16: 0 | DD16: 0 | DE16: 0 | DF16: 0 | DG16: 0 | DH16: 0 | DI16: 0 | DJ16: 0 | DK16: 0 | DL16: 0 | DM16: 0 | DN16: 0 | DO16: 0 | DP16: 0 | DQ16: 0 | DR16: 0 | DS16: 0 | DT16: 0 | DU16: 0 | DV16: 0 | DW16: 0 | DX16: 0 | DY16: 0 | DZ16: 0 | EA16: 0 | EB16: 0 | EC16: 0 | ED16: 0 | EE16: 0 | EF16: 0 | EG16: 0 | EH16: 0 | EI16: 1 | EJ16: 431 | EK16: 0 | EL16: 0 | EM16: 0 | EN16: 0 | EO16: 0 | EP16: 0 | EQ16: 0 | ER16: 0 | ES16: 0 | ET16: 0 | EU16: 0 | EV16: 0 | EW16: 0 | EX16: 0 | EY16: 0 | EZ16: 0 | FA16: 0 | FB16: 0 | FC16: 0 | FD16: 0 | FE16: 0 | FF16: 0 | FG16: 0 | FH16: 0 | FI16: 0 | FJ16: 0 | FK16: 0 | FL16: 0 | FM16: 0 | FN16: 0 | FO16: 0 | FP16: 0 | FQ16: 0 | FR16: 0 | FS16: 0 | FT16: 0 | FU16: 0 | FV16: 0 | FW16: 0 | FX16: 0 | FY16: 0 | FZ16: 0 | GA16: 0 | GB16: 0 | GC16: 0 | GD16: 0 | GE16: 0 | GF16: 0 | GG16: 0 | GH16: 0 | GI16: 0 | GJ16: 0 | GK16: 0 | GL16: 0 | GM16: 0 | GN16: 0 | GO16: 0 | GP16: 0 | GQ16: 0 | GR16: 0 | GS16: 0 | GT16: 0 | GU16: 0 | GV16: 0 | GW16: 0 | GX16: 0 | GY16: 0 | GZ16: 0 | HA16: 0 | HB16: 0 | HC16: 0 | HD16: 0 | HE16: 0 | HF16: 0 | HG16: 0 | HH16: 0 | HI16: 0 | HJ16: 0 | HK16: 0 | HL16: 0 | HM16: 0 | HN16: 0 | HO16: 0 | HP16: 0 | HQ16: 0 | HR16: 0 | HS16: 0 | HT16: 0 | HU16: 0 | IB16: Площадка для размещения автотранспорта, парковка
A17: 7 | B17: Воскресенский ГО | C17: Набережная г. Воскресенск, ул. Чкалова и ул. Кольцова (озеро) | D17: 1389512126 | E17: Набережная | F17: Муниципальный заказ | G17: 0 | H17: 62172 | I17: 62172 | R17: 0 | AA17: 0 | AD17: 0 | AJ17: 0 | AL17: 0 | AM17: 0 | AO17: 0 | AR17: 0 | AS17: 0 | AT17: 1988 | AU17: 0 | AW17: 0 | AY17: 0 | AZ17: 0 | BA17: 0 | BH17: 0 | BI17: 0 | BJ17: 0 | BK17: 0 | BL17: 0 | BM17: 13184 | BN17: 147 | BO17: 0 | BP17: 0 | BQ17: 0 | BR17: 0 | BS17: 35 | BT17: 47000 | BU17: 0 | BV17: 0 | BW17: 0 | BX17: 0 | BY17: 0 | BZ17: 0 | CA17: 0 | CB17: 0 | CC17: 0 | CD17: 0 | CE17: 0 | CF17: 0 | CG17: 0 | CH17: 0 | CI17: 0 | CJ17: 0 | CK17: 0 | CL17: 0 | CM17: 0 | CN17: 0 | CO17: 0 | CP17: 0 | CQ17: 0 | CR17: 0 | CS17: 0 | CT17: 0 | CU17: 0 | CV17: 0 | CW17: 0 | CX17: 0 | CY17: 0 | CZ17: 0 | DA17: 0 | DB17: 0 | DC17: 0 | DD17: 0 | DE17: 0 | DF17: 0 | DG17: 0 | DH17: 0 | DI17: 0 | DJ17: 0 | DK17: 0 | DL17: 0 | DM17: 0 | DN17: 0 | DO17: 0 | DP17: 0 | DQ17: 0 | DR17: 0 | DS17: 0 | DT17: 0 | DU17: 0 | DV17: 0 | DW17: 0 | DX17: 0 | DY17: 0 | DZ17: 0 | EA17: 0 | EB17: 0 | EC17: 0 | ED17: 0 | EE17: 0 | EF17: 0 | EG17: 0 | EH17: 0 | EI17: 0 | EJ17: 0 | EK17: 0 | EL17: 0 | EM17: 0 | EN17: 0 | EO17: 0 | EP17: 0 | EQ17: 0 | ER17: 0 | ES17: 0 | ET17: 0 | EU17: 0 | EV17: 0 | EW17: 0 | EX17: 0 | EY17: 0 | EZ17: 0 | FA17: 0 | FB17: 0 | FC17: 0 | FD17: 0 | FE17: 0 | FF17: 0 | FG17: 0 | FH17: 0 | FI17: 0 | FJ17: 0 | FK17: 0 | FL17: 0 | FM17: 0 | FN17: 0 | FO17: 0 | FP17: 0 | FQ17: 0 | FR17: 0 | FS17: 0 | FT17: 0 | FU17: 0 | FV17: 0 | FW17: 0 | FX17: 0 | FY17: 0 | FZ17: 0 | GA17: 0 | GB17: 0 | GC17: 0 | GD17: 0 | GE17: 0 | GF17: 0 | GG17: 0 | GH17: 0 | GI17: 0 | GJ17: 0 | GK17: 0 | GL17: 0 | GM17: 0 | GN17: 0 | GO17: 0 | GP17: 0 | GQ17: 0 | GR17: 0 | GS17: 0 | GT17: 0 | GU17: 0 | GV17: 0 | GW17: 0 | GX17: 0 | GY17: 0 | GZ17: 0 | HA17: 0 | HB17: 0 | HC17: 0 | HD17: 0 | HE17: 0 | HF17: 0 | HG17: 0 | HH17: 0 | HI17: 0 | HJ17: 0 | HK17: 0 | HL17: 0 | HM17: 0 | HN17: 0 | HO17: 0 | HP17: 0 | HQ17: 0 | HR17: 0 | HS17: 0 | HT17: 0 | HU17: 0 | IB17: Внутриквартальная улица, проезды местного значения
A18: 8 | B18: Воскресенский ГО | C18: Набережная г. Воскресенск, ул. Новлянская (Новлянская ривьера) | D18: 1389512129 | E18: Сквер | F18: Муниципальный заказ | G18: 13068 | H18: 42701 | I18: 55769 | O18: 13068 | R18: 0 | AA18: 0 | AD18: 0 | AJ18: 0 | AL18: 4.59 | AM18: 2 | AO18: 0 | AR18: 0 | AS18: 0 | AT18: 0 | AU18: 0 | AW18: 0 | AY18: 0 | AZ18: 0 | BA18: 0 | BH18: 0 | BI18: 0 | BJ18: 0 | BK18: 22156 | BL18: 0 | BM18: 17615 | BN18: 64 | BO18: 0 | BP18: 0 | BQ18: 0 | BR18: 0 | BS18: 2950 | BT18: 0 | BU18: 0 | BV18: 0 | BW18: 0 | BX18: 0 | BY18: 0 | BZ18: 0 | CA18: 0 | CB18: 0 | CC18: 0 | CD18: 2760 | CE18: 0 | CF18: 0 | CG18: 0 | CH18: 80 | CI18: 0 | CJ18: 0 | CK18: 0 | CL18: 40 | CM18: 0 | CN18: 0 | CO18: 0 | CP18: 0 | CQ18: 1 | CR18: 0 | CS18: 0 | CT18: 0 | CU18: 0 | CV18: 0 | CW18: 0 | CX18: 0 | CY18: 1 | CZ18: 0 | DA18: 641 | DB18: 0 | DC18: 0 | DD18: 0 | DE18: 0 | DF18: 0 | DG18: 0 | DH18: 0 | DI18: 0 | DJ18: 0 | DK18: 7 | DL18: 0 | DM18: 0 | DN18: 5 | DO18: 0 | DP18: 0 | DQ18: 1089 | DR18: 0 | DS18: 0 | DT18: 0 | DU18: 1200 | DV18: 0 | DW18: 0 | DX18: 0 | DY18: 0 | DZ18: 0 | EA18: 0 | EB18: 10 | EC18: 0 | ED18: 0 | EE18: 0 | EF18: 0 | EG18: 0 | EH18: 0 | EI18: 0 | EJ18: 0 | EK18: 0 | EL18: 0 | EM18: 0 | EN18: 0 | EO18: 0 | EP18: 0 | EQ18: 0 | ER18: 0 | ES18: 0 | ET18: 0 | EU18: 0 | EV18: 0 | EW18: 0 | EX18: 0 | EY18: 0 | EZ18: 0 | FA18: 0 | FB18: 0 | FC18: 0 | FD18: 0 | FE18: 0 | FF18: 0 | FG18: 0 | FH18: 0 | FI18: 0 | FJ18: 0 | FK18: 0 | FL18: 0 | FM18: 0 | FN18: 0 | FO18: 0 | FP18: 0 | FQ18: 0 | FR18: 0 | FS18: 0 | FT18: 0 | FU18: 0 | FV18: 0 | FW18: 0 | FX18: 0 | FY18: 0 | FZ18: 0 | GA18: 0 | GB18: 0 | GC18: 0 | GD18: 0 | GE18: 0 | GF18: 0 | GG18: 0 | GH18: 0 | GI18: 0 | GJ18: 0 | GK18: 0 | GL18: 0 | GM18: 0 | GN18: 0 | GO18: 0 | GP18: 0 | GQ18: 0 | GR18: 0 | GS18: 0 | GT18: 0 | GU18: 0 | GV18: 0 | GW18: 0 | GX18: 0 | GY18: 0 | GZ18: 0 | HA18: 0 | HB18: 0 | HC18: 0 | HD18: 0 | HE18: 0 | HF18: 0 | HG18: 0 | HH18: 1 | HI18: 0 | HJ18: 0 | HK18: 0 | HL18: 0 | HM18: 0 | HN18: 0 | HO18: 0 | HP18: 0 | HQ18: 0 | HR18: 0 | HS18: 0 | HT18: 0 | HU18: 0 | IB18: Пешеходная дорожка
A19: 9 | B19: Воскресенский ГО | C19: Парк д. Ратчино | D19: 1389512134 | E19: Парк | F19: Муниципальный заказ | G19: 0 | H19: 40883 | I19: 40883 | R19: 0 | AA19: 0 | AD19: 0 | AJ19: 0 | AL19: 0 | AM19: 0 | AO19: 490 | AR19: 0 | AS19: 0 | AT19: 0 | AU19: 0 | AW19: 0 | AY19: 0.331 | AZ19: 1.5 | BA19: 0 | BH19: 0 | BI19: 0 | BJ19: 0 | BK19: 3513 | BL19: 0 | BM19: 0 | BN19: 738 | BO19: 0 | BP19: 0 | BQ19: 0 | BR19: 0 | BS19: 55 | BT19: 36300 | BU19: 0 | BV19: 0 | BW19: 0 | BX19: 0 | BY19: 0 | BZ19: 0 | CA19: 0 | CB19: 0 | CC19: 0 | CD19: 0 | CE19: 0 | CF19: 0 | CG19: 0 | CH19: 0 | CI19: 0 | CJ19: 0 | CK19: 0 | CL19: 3 | CM19: 0 | CN19: 0 | CO19: 0 | CP19: 1 | CQ19: 1 | CR19: 0 | CS19: 0 | CT19: 0 | CU19: 0 | CV19: 0 | CW19: 0 | CX19: 0 | CY19: 1 | CZ19: 0 | DA19: 0 | DB19: 0 | DC19: 0 | DD19: 0 | DE19: 580 | DF19: 0 | DG19: 0 | DH19: 0 | DI19: 0 | DJ19: 0 | DK19: 7 | DL19: 0 | DM19: 0 | DN19: 0 | DO19: 0 | DP19: 0 | DQ19: 0 | DR19: 0 | DS19: 0 | DT19: 0 | DU19: 0 | DV19: 0 | DW19: 0 | DX19: 0 | DY19: 0 | DZ19: 0 | EA19: 0 | EB19: 0 | EC19: 0 | ED19: 0 | EE19: 0 | EF19: 0 | EG19: 0 | EH19: 0 | EI19: 0 | EJ19: 0 | EK19: 0 | EL19: 0 | EM19: 0 | EN19: 0 | EO19: 0 | EP19: 0 | EQ19: 0 | ER19: 0 | ES19: 0 | ET19: 0 | EU19: 0 | EV19: 0 | EW19: 0 | EX19: 0 | EY19: 0 | EZ19: 0 | FA19: 0 | FB19: 0 | FC19: 0 | FD19: 0 | FE19: 0 | FF19: 0 | FG19: 0 | FH19: 0 | FI19: 0 | FJ19: 0 | FK19: 0 | FL19: 0 | FM19: 0 | FN19: 0 | FO19: 0 | FP19: 0 | FQ19: 0 | FR19: 0 | FS19: 0 | FT19: 0 | FU19: 0 | FV19: 0 | FW19: 0 | FX19: 0 | FY19: 0 | FZ19: 0 | GA19: 0 | GB19: 0 | GC19: 0 | GD19: 0 | GE19: 0 | GF19: 0 | GG19: 0 | GH19: 0 | GI19: 0 | GJ19: 0 | GK19: 0 | GL19: 0 | GM19: 0 | GN19: 0 | GO19: 0 | GP19: 0 | GQ19: 0 | GR19: 0 | GS19: 0 | GT19: 0 | GU19: 0 | GV19: 0 | GW19: 0 | GX19: 0 | GY19: 0 | GZ19: 0 | HA19: 0 | HB19: 0 | HC19: 0 | HD19: 0 | HE19: 0 | HF19: 0 | HG19: 0 | HH19: 0 | HI19: 0 | HJ19: 0 | HK19: 0 | HL19: 0 | HM19: 0 | HN19: 0 | HO19: 0 | HP19: 0 | HQ19: 0 | HR19: 0 | HS19: 0 | HT19: 0 | HU19: 0 | IB19: Тротуар
A20: 10 | B20: Воскресенский ГО | C20: Сквер "Березовая роща" | D20: 1389512131 | E20: Сквер | F20: На балансе муниципального учреждения | G20: 5130.3 | H20: 39829.7 | I20: 44960 | R20: 0 | AA20: 0 | AD20: 0 | AJ20: 0 | AL20: 0 | AM20: 0 | AN20: 5130.3 | AO20: 2198.7 | AR20: 0 | AS20: 0 | AT20: 0 | AU20: 0 | AW20: 0 | AY20: 1.32 | AZ20: 2 | BA20: 0 | BH20: 0 | BI20: 0 | BJ20: 0 | BK20: 28013 | BL20: 0 | BM20: 8000 | BN20: 114 | BO20: 0 | BP20: 0 | BQ20: 0 | BR20: 0 | BS20: 0 | BT20: 0 | BU20: 0 | BV20: 0 | BW20: 0 | BX20: 0 | BY20: 0 | BZ20: 0 | CA20: 0 | CB20: 0 | CC20: 0 | CD20: 1280 | CH20: 30 | CI20: 0 | CJ20: 1 | CK20: 0 | CL20: 15 | CM20: 0 | CN20: 0 | CO20: 0 | CP20: 0 | CQ20: 1 | CR20: 0 | CS20: 0 | CT20: 0 | CU20: 0 | CV20: 0 | CW20: 0 | CX20: 0 | CY20: 2 | CZ20: 0 | DA20: 0 | DB20: 0 | DC20: 0 | DD20: 0 | DE20: 580 | DF20: 0 | DG20: 0 | DH20: 0 | DI20: 0 | DJ20: 0 | DK20: 10 | DL20: 0 | DM20: 0 | DN20: 1 | DO20: 0 | DP20: 0 | DQ20: 530 | DR20: 0 | DS20: 0 | DT20: 0 | DU20: 0 | DV20: 0 | DW20: 0 | DX20: 0 | DY20: 0 | DZ20: 0 | EA20: 0 | EB20: 5 | EC20: 0 | ED20: 0 | EE20: 0 | EF20: 0 | EG20: 0 | EH20: 0 | EI20: 0 | EJ20: 0 | EK20: 0 | EL20: 0 | EM20: 0 | EN20: 0 | EO20: 0 | EP20: 0 | EQ20: 0 | ER20: 0 | ES20: 0 | ET20: 0 | EU20: 0 | EV20: 0 | EW20: 0 | EX20: 0 | EY20: 0 | EZ20: 0 | FA20: 0 | FB20: 0 | FC20: 0 | FD20: 0 | FE20: 0 | FF20: 0 | FG20: 0 | FH20: 0 | FI20: 0 | FJ20: 0 | FK20: 0 | FL20: 0 | FM20: 0 | FN20: 0 | FO20: 1 | FP20: 0 | FQ20: 0 | FR20: 0 | FS20: 0 | FT20: 0 | FU20: 0 | FV20: 0 | FW20: 0 | FX20: 0 | FY20: 508 | FZ20: 6 | GA20: 0 | GB20: 0 | GC20: 0 | GD20: 0 | GE20: 0 | GF20: 0 | GG20: 0 | GH20: 0 | GI20: 0 | GJ20: 0 | GK20: 0 | GL20: 0 | GM20: 0 | GN20: 0 | GO20: 0 | GP20: 0 | GQ20: 0 | GR20: 0 | GS20: 0 | GT20: 0 | GU20: 0 | GV20: 0 | GW20: 0 | GX20: 0 | GY20: 0 | GZ20: 0 | HA20: 0 | HB20: 0 | HC20: 0 | HD20: 0 | HE20: 0 | HF20: 0 | HG20: 0 | HH20: 0 | HI20: 0 | HJ20: 0 | HK20: 0 | HL20: 0 | HM20: 0 | HN20: 0 | HO20: 0 | HP20: 0 | HQ20: 0 | HR20: 0 | HS20: 0 | HT20: 0 | HU20: 0 | IB20: Иные объекты благоустройства
A21: 11 | B21: Воскресенский ГО | C21: Набережная г. Воскресенск, ул. Благодатная (сеть озер за Воскресенской храмом) | D21: 1389512130 | E21: Набережная | F21: Муниципальный заказ | G21: 0 | H21: 43942 | I21: 43942 | R21: 0 | AA21: 0 | AD21: 0 | AJ21: 0 | AL21: 0 | AM21: 0 | AO21: 0 | AR21: 0 | AS21: 0 | AT21: 1588 | AU21: 0 | AW21: 0 | AY21: 0 | AZ21: 0 | BA21: 0 | BH21: 0 | BI21: 0 | BJ21: 0 | BK21: 2354 | BL21: 0 | BN21: 91 | BO21: 0 | BP21: 0 | BQ21: 0 | BR21: 0 | BS21: 0 | BT21: 40000 | BU21: 0 | BV21: 0 | BW21: 0 | BX21: 0 | BY21: 0 | BZ21: 0 | CA21: 0 | CB21: 0 | CC21: 0 | CD21: 0 | CH21: 0 | CI21: 0 | CJ21: 0 | CK21: 0 | CL21: 0 | CM21: 0 | CN21: 0 | CO21: 0 | CP21: 0 | CQ21: 0 | CR21: 0 | CS21: 0 | CT21: 0 | CU21: 0 | CV21: 0 | CW21: 0 | CX21: 0 | CY21: 0 | CZ21: 0 | DA21: 0 | DB21: 0 | DC21: 0 | DD21: 0 | DE21: 0 | DF21: 0 | DG21: 0 | DH21: 0 | DI21: 0 | DJ21: 0 | DK21: 0 | DL21: 0 | DM21: 0 | DN21: 0 | DO21: 0 | DP21: 0 | DQ21: 0 | DR21: 0 | DS21: 0 | DT21: 0 | DU21: 0 | DV21: 0 | DW21: 0 | DX21: 0 | DY21: 0 | DZ21: 0 | EA21: 0 | EB21: 0 | EC21: 0 | ED21: 0 | EE21: 0 | EF21: 0 | EG21: 0 | EH21: 0 | EI21: 0 | EJ21: 0 | EK21: 0 | EL21: 0 | EM21: 0 | EN21: 0 | EO21: 0 | EP21: 0 | EQ21: 0 | ER21: 0 | ES21: 0 | ET21: 0 | EU21: 0 | EV21: 0 | EW21: 0 | EX21: 0 | EY21: 0 | EZ21: 0 | FA21: 0 | FB21: 0 | FC21: 0 | FD21: 0 | FE21: 0 | FF21: 0 | FG21: 0 | FH21: 0 | FI21: 0 | FJ21: 0 | FK21: 0 | FL21: 0 | FM21: 0 | FN21: 0 | FO21: 0 | FP21: 0 | FQ21: 0 | FR21: 0 | FS21: 0 | FT21: 0 | FU21: 0 | FV21: 0 | FW21: 0 | FX21: 0 | FY21: 0 | FZ21: 0 | GA21: 0 | GB21: 0 | GC21: 0 | GD21: 0 | GE21: 0 | GF21: 0 | GG21: 0 | GH21: 0 | GI21: 0 | GJ21: 0 | GK21: 0 | GL21: 0 | GM21: 0 | GN21: 0 | GO21: 0 | GP21: 0 | GQ21: 0 | GR21: 0 | GS21: 0 | GT21: 0 | GU21: 0 | GV21: 0 | GW21: 0 | GX21: 0 | GY21: 0 | GZ21: 0 | HA21: 0 | HB21: 0 | HC21: 0 | HD21: 0 | HE21: 0 | HF21: 0 | HG21: 0 | HH21: 0 | HI21: 0 | HJ21: 0 | HK21: 0 | HL21: 0 | HM21: 0 | HN21: 0 | HO21: 0 | HP21: 0 | HQ21: 0 | HR21: 0 | HS21: 0 | HT21: 0 | HU21: 0
A22: 12 | B22: Воскресенский ГО | C22: Сквер г. Воскресенск, ул. К.Маркса | D22: 1389512136 | E22: Сквер | F22: Муниципальный заказ | G22: 3584 | H22: 36578 | I22: 40162 | R22: 0 | AA22: 0 | AD22: 0 | AJ22: 0 | AL22: 0 | AM22: 0 | AN22: 3584 | AR22: 0 | AS22: 0 | AT22: 0 | AU22: 0 | AW22: 0 | AY22: 1.752 | AZ22: 1 | BA22: 0 | BH22: 0 | BI22: 0 | BJ22: 0 | BK22: 25561 | BL22: 0 | BM22: 9800 | BN22: 875 | BO22: 0 | BP22: 0 | BQ22: 0 | BR22: 0 | BS22: 0 | BT22: 0 | BU22: 0 | BV22: 0 | BW22: 0 | BX22: 0 | BY22: 0 | BZ22: 0 | CA22: 0 | CB22: 0 | CC22: 0 | CD22: 1792 | CH22: 10 | CI22: 2 | CJ22: 0 | CK22: 0 | CL22: 8 | CM22: 0 | CN22: 0 | CO22: 0 | CP22: 0 | CQ22: 1 | CR22: 0 | CS22: 0 | CT22: 0 | CU22: 0 | CV22: 0 | CW22: 0 | CX22: 0 | CY22: 2 | CZ22: 0 | DA22: 0 | DB22: 0 | DC22: 0 | DD22: 0 | DE22: 1217 | DF22: 0 | DG22: 0 | DH22: 0 | DI22: 0 | DJ22: 0 | DK22: 16 | DL22: 0 | DM22: 0 | DN22: 0 | DO22: 0 | DP22: 0 | DQ22: 0 | DR22: 0 | DS22: 0 | DT22: 0 | DU22: 0 | DV22: 0 | DW22: 0 | DX22: 0 | DY22: 0 | DZ22: 0 | EA22: 0 | EB22: 0 | EC22: 0 | ED22: 0 | EE22: 0 | EF22: 0 | EG22: 0 | EH22: 0 | EI22: 0 | EJ22: 0 | EK22: 0 | EL22: 0 | EM22: 0 | EN22: 0 | EO22: 0 | EP22: 0 | EQ22: 0 | ER22: 0 | ES22: 0 | ET22: 0 | EU22: 0 | EV22: 0 | EW22: 0 | EX22: 0 | EY22: 0 | EZ22: 0 | FA22: 0 | FB22: 0 | FC22: 0 | FD22: 0 | FE22: 0 | FF22: 0 | FG22: 0 | FH22: 0 | FI22: 0 | FJ22: 0 | FK22: 0 | FL22: 0 | FM22: 0 | FN22: 0 | FO22: 0 | FP22: 0 | FQ22: 0 | FR22: 0 | FS22: 0 | FT22: 0 | FU22: 0 | FV22: 0 | FW22: 0 | FX22: 0 | FY22: 0 | FZ22: 0 | GA22: 0 | GB22: 0 | GC22: 0 | GD22: 0 | GE22: 0 | GF22: 0 | GG22: 0 | GH22: 0 | GI22: 0 | GJ22: 0 | GK22: 0 | GL22: 0 | GM22: 0 | GN22: 0 | GO22: 0 | GP22: 0 | GQ22: 0 | GR22: 0 | GS22: 0 | GT22: 0 | GU22: 0 | GV22: 0 | GW22: 0 | GX22: 0 | GY22: 0 | GZ22: 0 | HA22: 0 | HB22: 0 | HC22: 0 | HD22: 0 | HE22: 0 | HF22: 0 | HG22: 0 | HH22: 0 | HI22: 0 | HJ22: 0 | HK22: 0 | HL22: 0 | HM22: 0 | HN22: 0 | HO22: 0 | HP22: 0 | HQ22: 0 | HR22: 0 | HS22: 0 | HT22: 0 | HU22: 0
A23: 13 | B23: Воскресенский ГО | C23: Усадебный парк Федино | D23: 3513119418 | E23: Сквер | F23: Муниципальный заказ | G23: 0 | H23: 34050 | I23: 34050 | R23: 0 | AA23: 0 | AJ23: 0 | AL23: 0 | AM23: 0 | AO23: 0 | AR23: 0 | AS23: 0 | AT23: 0 | AU23: 0 | AW23: 0 | AY23: 0 | AZ23: 0 | BA23: 0 | BH23: 0 | BI23: 0 | BJ23: 0 | BK23: 14050 | BL23: 0 | BM23: 20000 | BN23: 0 | BO23: 0 | BP23: 0 | BQ23: 0 | BR23: 0 | BS23: 0 | BT23: 0 | BU23: 0 | BV23: 0 | BW23: 0 | BX23: 0 | BY23: 0 | BZ23: 0 | CA23: 0 | CB23: 0 | CC23: 0 | CD23: 0 | CF23: 0 | CH23: 0 | CI23: 0 | CJ23: 0 | CK23: 0 | CL23: 0 | CM23: 0 | CN23: 0 | CO23: 0 | CP23: 0 | CQ23: 0 | CR23: 0 | CS23: 0 | CT23: 0 | CU23: 0 | CV23: 0 | CW23: 0 | CX23: 0 | CY23: 0 | CZ23: 0 | DA23: 0 | DB23: 0 | DC23: 0 | DD23: 0 | DE23: 0 | DF23: 0 | DG23: 0 | DH23: 0 | DI23: 0 | DJ23: 0 | DK23: 0 | DL23: 0 | DM23: 0 | DN23: 0 | DO23: 0 | DP23: 0 | DQ23: 0 | DR23: 0 | DS23: 0 | DT23: 0 | DU23: 0 | DV23: 0 | DW23: 0 | DX23: 0 | DY23: 0 | DZ23: 0 | EA23: 0 | EB23: 0 | EC23: 0 | ED23: 0 | EE23: 0 | EF23: 0 | EG23: 0 | EH23: 0 | EI23: 0 | EJ23: 0 | EK23: 0 | EL23: 0 | EM23: 0 | EN23: 0 | EO23: 0 | EP23: 0 | EQ23: 0 | ER23: 0 | ES23: 0 | ET23: 0 | EU23: 0 | EV23: 0 | EW23: 0 | EX23: 0 | EY23: 0 | EZ23: 0 | FA23: 0 | FB23: 0 | FC23: 0 | FD23: 0 | FE23: 0 | FF23: 0 | FG23: 0 | FH23: 0 | FI23: 0 | FJ23: 0 | FK23: 0 | FL23: 0 | FM23: 0 | FN23: 0 | FO23: 0 | FP23: 0 | FQ23: 0 | FR23: 0 | FS23: 0 | FT23: 0 | FU23: 0 | FV23: 0 | FW23: 0 | FX23: 0 | FY23: 0 | FZ23: 0 | GA23: 0 | GB23: 0 | GC23: 0 | GD23: 0 | GE23: 0 | GF23: 0 | GG23: 0 | GH23: 0 | GI23: 0 | GJ23: 0 | GK23: 0 | GL23: 0 | GM23: 0 | GN23: 0 | GO23: 0 | GP23: 0 | GQ23: 0 | GR23: 0 | GS23: 0 | GT23: 0 | GU23: 0 | GV23: 0 | GW23: 0 | GX23: 0 | GY23: 0 | GZ23: 0 | HA23: 0 | HB23: 0 | HC23: 0 | HD23: 0 | HE23: 0 | HF23: 0 | HG23: 0 | HH23: 0 | HI23: 0 | HJ23: 0 | HK23: 0 | HL23: 0 | HM23: 0 | HN23: 0 | HO23: 0 | HP23: 0 | HQ23: 0 | HR23: 0 | HS23: 0 | HT23: 0 | HU23: 0
A24: 14 | B24: Воскресенский ГО | C24: Сквер пл. Ленина д.1, территория у Дворца Культуры | D24: 1389512170 | E24: Сквер | F24: На балансе муниципального учреждения | G24: 5395 | H24: 22174 | I24: 27569 | R24: 0 | AA24: 0 | AD24: 0 | AJ24: 0 | AL24: 0 | AM24: 0 | AN24: 2795 | AR24: 0 | AS24: 0 | AT24: 0 | AU24: 0 | AW24: 0 | AY24: 0.75 | AZ24: 3.6 | BA24: 2600 | BH24: 0 | BI24: 437 | BJ24: 4.35 | BK24: 12162 | BL24: 0 | BM24: 10000 | BN24: 44 | BO24: 0 | BP24: 0 | BQ24: 0 | BR24: 0 | BS24: 0 | BT24: 0 | BU24: 0 | BV24: 0 | BW24: 0 | BX24: 0 | BY24: 0 | BZ24: 0 | CA24: 0 | CB24: 0 | CC24: 0 | CD24: 1600 | CF24: 0 | CH24: 0 | CI24: 1 | CJ24: 0 | CK24: 0 | CL24: 6 | CM24: 0 | CN24: 0 | CO24: 0 | CP24: 0 | CQ24: 0 | CR24: 0 | CS24: 0 | CT24: 0 | CU24: 0 | CV24: 0 | CW24: 0 | CX24: 0 | CY24: 0 | CZ24: 0 | DA24: 0 | DB24: 0 | DC24: 0 | DD24: 0 | DE24: 0 | DF24: 0 | DG24: 0 | DH24: 0 | DI24: 0 | DJ24: 0 | DK24: 0 | DL24: 0 | DM24: 0 | DN24: 0 | DO24: 0 | DP24: 0 | DQ24: 0 | DR24: 0 | DS24: 0 | DT24: 0 | DU24: 0 | DV24: 0 | DW24: 0 | DX24: 0 | DY24: 0 | DZ24: 0 | EA24: 0 | EB24: 0 | EC24: 0 | ED24: 1 | EE24: 0 | EF24: 12 | EG24: 0 | EH24: 0 | EI24: 0 | EJ24: 0 | EK24: 0 | EL24: 0 | EM24: 0 | EN24: 0 | EO24: 0 | EP24: 0 | EQ24: 0 | ER24: 0 | ES24: 0 | ET24: 0 | EU24: 0 | EV24: 0 | EW24: 0 | EX24: 0 | EY24: 0 | EZ24: 0 | FA24: 0 | FB24: 0 | FC24: 0 | FD24: 0 | FE24: 0 | FF24: 0 | FG24: 0 | FH24: 0 | FI24: 0 | FJ24: 0 | FK24: 0 | FL24: 0 | FM24: 0 | FN24: 0 | FO24: 0 | FP24: 0 | FQ24: 0 | FR24: 0 | FS24: 0 | FT24: 0 | FU24: 0 | FV24: 0 | FW24: 0 | FX24: 0 | FY24: 0 | FZ24: 0 | GA24: 0 | GB24: 0 | GC24: 0 | GD24: 0 | GE24: 0 | GF24: 0 | GG24: 0 | GH24: 0 | GI24: 0 | GJ24: 0 | GK24: 0 | GL24: 0 | GM24: 0 | GN24: 0 | GO24: 0 | GP24: 0 | GQ24: 0 | GR24: 0 | GS24: 0 | GT24: 0 | GU24: 0 | GV24: 0 | GW24: 0 | GX24: 0 | GY24: 0 | GZ24: 0 | HA24: 0 | HB24: 0 | HC24: 0 | HD24: 0 | HE24: 0 | HF24: 0 | HG24: 0 | HH24: 0 | HI24: 0 | HJ24: 0 | HK24: 0 | HL24: 0 | HM24: 0 | HN24: 0 | HO24: 0 | HP24: 0 | HQ24: 0 | HR24: 0 | HS24: 0 | HT24: 0 | HU24: 0
A25: 15 | B25: Воскресенский ГО | C25: Набережная г. Воскресенск, ул. Московская, р. Семиславка - Часть2 | D25: 7860414726 | E25: Набережная | F25: На балансе муниципального учреждения | G25: 0 | H25: 24571 | I25: 24571 | R25: 0 | S25: 0 | AA25: 0 | AD25: 0 | AJ25: 0 | AL25: 0 | AM25: 0 | AO25: 0 | AR25: 0 | AS25: 0 | AT25: 0 | AU25: 0 | AW25: 0 | AY25: 0 | AZ25: 0 | BA25: 0 | BH25: 0 | BI25: 0 | BJ25: 0 | BK25: 4571 | BL25: 0 | BM25: 20000 | BN25: 0 | BO25: 0 | BP25: 0 | BQ25: 0 | BR25: 0 | BS25: 0 | BT25: 0 | BU25: 0 | BV25: 0 | BW25: 0 | BX25: 0 | BY25: 0 | BZ25: 0 | CA25: 0 | CB25: 0 | CC25: 0 | CD25: 0 | CE25: 0 | CF25: 0 | CG25: 0 | CH25: 0 | CI25: 0 | CJ25: 0 | CK25: 0 | CL25: 0 | CM25: 0 | CN25: 0 | CO25: 0 | CP25: 0 | CQ25: 0 | CR25: 0 | CS25: 0 | CT25: 0 | CU25: 0 | CV25: 0 | CW25: 0 | CX25: 0 | CY25: 0 | CZ25: 0 | DA25: 0 | DB25: 0 | DC25: 0 | DD25: 0 | DE25: 0 | DF25: 0 | DG25: 0 | DH25: 0 | DI25: 0 | DJ25: 0 | DK25: 0 | DL25: 0 | DM25: 0 | DN25: 0 | DO25: 0 | DP25: 0 | DQ25: 0 | DR25: 0 | DS25: 0 | DT25: 0 | DU25: 0 | DV25: 0 | DW25: 0 | DX25: 0 | DY25: 0 | DZ25: 0 | EA25: 0 | EB25: 0 | EC25: 0 | ED25: 0 | EE25: 0 | EF25: 0 | EG25: 0 | EH25: 0 | EI25: 0 | EJ25: 0 | EK25: 0 | EL25: 0 | EM25: 0 | EN25: 0 | EO25: 0 | EP25: 0 | EQ25: 0 | ER25: 0 | ES25: 0 | ET25: 0 | EU25: 0 | EV25: 0 | EW25: 0 | EX25: 0 | EY25: 0 | EZ25: 0 | FA25: 0 | FB25: 0 | FC25: 0 | FD25: 0 | FE25: 0 | FF25: 0 | FG25: 0 | FH25: 0 | FI25: 0 | FJ25: 0 | FK25: 0 | FL25: 0 | FM25: 0 | FN25: 0 | FO25: 0 | FP25: 0 | FQ25: 0 | FR25: 0 | FS25: 0 | FT25: 0 | FU25: 0 | FV25: 0 | FW25: 0 | FX25: 0 | FY25: 0 | FZ25: 0 | GA25: 0 | GB25: 0 | GC25: 0 | GD25: 0 | GE25: 0 | GF25: 0 | GG25: 0 | GH25: 0 | GI25: 0 | GJ25: 0 | GK25: 0 | GL25: 0 | GM25: 0 | GN25: 0 | GO25: 0 | GP25: 0 | GQ25: 0 | GR25: 0 | GS25: 0 | GT25: 0 | GU25: 0 | GV25: 0 | GW25: 0 | GX25: 0 | GY25: 0 | GZ25: 0 | HA25: 0 | HB25: 0 | HC25: 0 | HD25: 0 | HE25: 0 | HF25: 0 | HG25: 0 | HH25: 0 | HI25: 0 | HJ25: 0 | HK25: 0 | HL25: 0 | HM25: 0 | HN25: 0 | HO25: 0 | HP25: 0 | HQ25: 0 | HR25: 0 | HS25: 0 | HT25: 0 | HU25: 0
A26: 16 | B26: Воскресенский ГО | C26: Парк Московская область, Воскресенский муниципальный район, рп Хорлово, ул. Парковая | D26: 1389512137 | E26: Парк | F26: Муниципальный заказ | G26: 2958 | H26: 20955 | I26: 23913 | O26: 2958 | AA26: 0 | AD26: 0 | AJ26: 0 | AL26: 0.685 | AM26: 2 | AO26: 0 | AR26: 0 | AS26: 0 | AT26: 0 | AU26: 0 | AW26: 0 | AY26: 0 | AZ26: 0 | BA26: 0 | BH26: 0 | BI26: 0 | BJ26: 0 | BK26: 10955 | BL26: 0 | BM26: 10000 | BN26: 700 | BO26: 0 | BP26: 0 | BQ26: 0 | BR26: 0 | BS26: 0 | BT26: 0 | BU26: 0 | BV26: 0 | BW26: 0 | BX26: 0 | BY26: 0 | BZ26: 0 | CA26: 0 | CB26: 0 | CC26: 0 | CD26: 0 | CH26: 15 | CI26: 0 | CJ26: 0 | CK26: 0 | CL26: 0 | CM26: 0 | CN26: 0 | CO26: 0 | CP26: 0 | CQ26: 0 | CR26: 0 | CS26: 0 | CT26: 0 | CU26: 0 | CV26: 0 | CW26: 0 | CX26: 0 | CY26: 0 | CZ26: 0 | DA26: 0 | DB26: 0 | DC26: 0 | DD26: 0 | DE26: 0 | DF26: 0 | DG26: 0 | DH26: 0 | DI26: 0 | DJ26: 0 | DK26: 0 | DL26: 0 | DM26: 0 | DN26: 0 | DO26: 0 | DP26: 0 | DQ26: 0 | DR26: 0 | DS26: 0 | DT26: 0 | DU26: 0 | DV26: 0 | DW26: 0 | DX26: 0 | DY26: 0 | DZ26: 0 | EA26: 0 | EB26: 0 | EC26: 0 | ED26: 0 | EE26: 0 | EF26: 0 | EG26: 0 | EH26: 0 | EI26: 0 | EJ26: 0 | EK26: 0 | EL26: 0 | EM26: 0 | EN26: 0 | EO26: 0 | EP26: 0 | EQ26: 0 | ER26: 0 | ES26: 0 | ET26: 0 | EU26: 0 | EV26: 0 | EW26: 0 | EX26: 0 | EY26: 0 | EZ26: 0 | FA26: 0 | FB26: 0 | FC26: 0 | FD26: 0 | FE26: 0 | FF26: 0 | FG26: 0 | FH26: 0 | FI26: 0 | FJ26: 0 | FK26: 0 | FL26: 0 | FM26: 0 | FN26: 0 | FO26: 0 | FP26: 0 | FQ26: 0 | FR26: 0 | FS26: 0 | FT26: 0 | FU26: 0 | FV26: 0 | FW26: 0 | FX26: 0 | FY26: 0 | FZ26: 0 | GA26: 0 | GB26: 0 | GC26: 0 | GD26: 0 | GE26: 0 | GF26: 0 | GG26: 0 | GH26: 0 | GI26: 0 | GJ26: 0 | GK26: 0 | GL26: 0 | GM26: 0 | GN26: 0 | GO26: 0 | GP26: 0 | GQ26: 0 | GR26: 0 | GS26: 0 | GT26: 0 | GU26: 0 | GV26: 0 | GW26: 0 | GX26: 0 | GY26: 0 | GZ26: 0 | HA26: 0 | HB26: 0 | HC26: 0 | HD26: 0 | HE26: 0 | HF26: 0 | HG26: 0 | HH26: 0 | HI26: 0 | HJ26: 0 | HK26: 0 | HL26: 0 | HM26: 0 | HN26: 0 | HO26: 0 | HP26: 0 | HQ26: 0 | HR26: 0 | HS26: 0 | HT26: 0 | HU26: 0
A27: 17 | B27: Воскресенский ГО | C27: Набережная г. Воскресенск, ул. Чапаева, озёра мкр. Цемгигант 2 | D27: 1389512132 | E27: Набережная | F27: Муниципальный заказ | G27: 0 | H27: 23148 | I27: 23148 | R27: 0 | AA27: 0 | AD27: 0 | AJ27: 0 | AL27: 0 | AM27: 0 | AO27: 2177 | AR27: 0 | AS27: 0 | AT27: 0 | AU27: 0 | AW27: 0 | AY27: 1.626 | AZ27: 1.5 | BA27: 0 | BH27: 0 | BI27: 0 | BJ27: 0 | BK27: 16671 | BL27: 0 | BM27: 4300 | BN27: 1807 | BO27: 0 | BP27: 0 | BQ27: 0 | BR27: 0 | BS27: 287 | BT27: 0 | BU27: 0 | BV27: 0 | BW27: 0 | BX27: 0 | BY27: 0 | BZ27: 0 | CA27: 0 | CB27: 0 | CC27: 0 | CD27: 0 | CE27: 0 | CF27: 0 | CG27: 0 | CH27: 0 | CI27: 0 | CJ27: 0 | CK27: 0 | CL27: 0 | CM27: 0 | CN27: 0 | CO27: 0 | CP27: 0 | CQ27: 0 | CR27: 0 | CS27: 0 | CT27: 0 | CU27: 0 | CV27: 0 | CW27: 0 | CX27: 0 | CY27: 0 | CZ27: 0 | DA27: 0 | DB27: 0 | DC27: 0 | DD27: 0 | DE27: 0 | DF27: 0 | DG27: 0 | DH27: 0 | DI27: 0 | DJ27: 0 | DK27: 0 | DL27: 0 | DM27: 0 | DN27: 0 | DO27: 0 | DP27: 0 | DQ27: 0 | DR27: 0 | DS27: 0 | DT27: 0 | DU27: 0 | DV27: 0 | DW27: 0 | DX27: 0 | DY27: 0 | DZ27: 0 | EA27: 0 | EB27: 0 | EC27: 0 | ED27: 0 | EE27: 0 | EF27: 0 | EG27: 0 | EH27: 0 | EI27: 0 | EJ27: 0 | EK27: 0 | EL27: 0 | EM27: 0 | EN27: 0 | EO27: 0 | EP27: 0 | EQ27: 0 | ER27: 0 | ES27: 0 | ET27: 0 | EU27: 0 | EV27: 0 | EW27: 0 | EX27: 0 | EY27: 0 | EZ27: 0 | FA27: 0 | FB27: 0 | FC27: 0 | FD27: 0 | FE27: 0 | FF27: 0 | FG27: 0 | FH27: 0 | FI27: 0 | FJ27: 0 | FK27: 0 | FL27: 0 | FM27: 0 | FN27: 0 | FO27: 0 | FP27: 0 | FQ27: 0 | FR27: 0 | FS27: 0 | FT27: 0 | FU27: 0 | FV27: 0 | FW27: 0 | FX27: 0 | FY27: 0 | FZ27: 0 | GA27: 0 | GB27: 0 | GC27: 0 | GD27: 0 | GE27: 0 | GF27: 0 | GG27: 0 | GH27: 0 | GI27: 0 | GJ27: 0 | GK27: 0 | GL27: 0 | GM27: 0 | GN27: 0 | GO27: 0 | GP27: 0 | GQ27: 0 | GR27: 0 | GS27: 0 | GT27: 0 | GU27: 0 | GV27: 0 | GW27: 0 | GX27: 0 | GY27: 0 | GZ27: 0 | HA27: 0 | HB27: 0 | HC27: 0 | HD27: 0 | HE27: 0 | HF27: 0 | HG27: 0 | HH27: 0 | HI27: 0 | HJ27: 0 | HK27: 0 | HL27: 0 | HM27: 0 | HN27: 0 | HO27: 0 | HP27: 0 | HQ27: 0 | HR27: 0 | HS27: 0 | HT27: 0 | HU27: 0
A28: 18 | B28: Воскресенский ГО | C28: Сквер г. Воскресенск, территория вблизи ул. Благодатная и дороги Химкомбината | D28: 1389512159 | E28: Сквер | F28: На балансе муниципального учреждения | G28: 0 | H28: 20718 | I28: 20718 | R28: 0 | AA28: 0 | AD28: 0 | AJ28: 0 | AL28: 0 | AM28: 0 | AO28: 0 | AR28: 0 | AS28: 0 | AT28: 0 | AU28: 0 | AW28: 0 | AY28: 0 | AZ28: 0 | BA28: 0 | BH28: 0 | BI28: 0 | BJ28: 0 | BK28: 9361 | BL28: 0 | BM28: 11357 | BN28: 18 | BO28: 0 | BP28: 0 | BQ28: 0 | BR28: 0 | BS28: 5 | BT28: 0 | BU28: 0 | BV28: 0 | BW28: 0 | BX28: 0 | BY28: 0 | BZ28: 0 | CA28: 0 | CB28: 0 | CC28: 0 | CD28: 0 | CH28: 0 | CI28: 0 | CJ28: 0 | CK28: 0 | CL28: 0 | CM28: 0 | CN28: 0 | CO28: 0 | CP28: 0 | CQ28: 0 | CR28: 0 | CS28: 0 | CT28: 0 | CU28: 0 | CV28: 0 | CW28: 0 | CX28: 0 | CY28: 0 | CZ28: 0 | DA28: 0 | DB28: 0 | DC28: 0 | DD28: 0 | DE28: 0 | DF28: 0 | DG28: 0 | DH28: 0 | DI28: 0 | DJ28: 0 | DK28: 0 | DL28: 0 | DM28: 0 | DN28: 0 | DO28: 0 | DP28: 0 | DQ28: 0 | DR28: 0 | DS28: 0 | DT28: 0 | DU28: 0 | DV28: 0 | DW28: 0 | DX28: 0 | DY28: 0 | DZ28: 0 | EA28: 0 | EB28: 0 | EC28: 0 | ED28: 0 | EE28: 0 | EF28: 0 | EG28: 0 | EH28: 0 | EI28: 0 | EJ28: 0 | EK28: 0 | EL28: 0 | EM28: 0 | EN28: 0 | EO28: 0 | EP28: 0 | EQ28: 0 | ER28: 0 | ES28: 0 | ET28: 0 | EU28: 0 | EV28: 0 | EW28: 0 | EX28: 0 | EY28: 0 | EZ28: 0 | FA28: 0 | FB28: 0 | FC28: 0 | FD28: 0 | FE28: 0 | FF28: 0 | FG28: 0 | FH28: 0 | FI28: 0 | FJ28: 0 | FK28: 0 | FL28: 0 | FM28: 0 | FN28: 0 | FO28: 0 | FP28: 0 | FQ28: 0 | FR28: 0 | FS28: 0 | FT28: 0 | FU28: 0 | FV28: 0 | FW28: 0 | FX28: 0 | FY28: 0 | FZ28: 0 | GA28: 0 | GB28: 0 | GC28: 0 | GD28: 0 | GE28: 0 | GF28: 0 | GG28: 0 | GH28: 0 | GI28: 0 | GJ28: 0 | GK28: 0 | GL28: 0 | GM28: 0 | GN28: 0 | GO28: 0 | GP28: 0 | GQ28: 0 | GR28: 0 | GS28: 0 | GT28: 0 | GU28: 0 | GV28: 0 | GW28: 0 | GX28: 0 | GY28: 0 | GZ28: 0 | HA28: 0 | HB28: 0 | HC28: 0 | HD28: 0 | HE28: 0 | HF28: 0 | HG28: 0 | HH28: 0 | HI28: 0 | HJ28: 0 | HK28: 0 | HL28: 0 | HM28: 0 | HN28: 0 | HO28: 0 | HP28: 0 | HQ28: 0 | HR28: 0 | HS28: 0 | HT28: 0 | HU28: 0
A29: 19 | B29: Воскресенский ГО | C29: Сквер г. Воскресенск, на пересечении ул. Ленинская и ул. Чапаева "Сквер встреч" | D29: 1389512158 | E29: Сквер | F29: Муниципальный заказ | G29: 3602 | H29: 16558 | I29: =G29+H29 -> 20160 | R29: 0 | AA29: 0 | AD29: 0 | AJ29: 0 | AL29: 0 | AM29: 0 | AN29: 3602 | AR29: 0 | AS29: 0 | AT29: 0 | AU29: 0 | AW29: 0 | AY29: 2.021 | AZ29: 1.5 | BA29: 0 | BH29: 0 | BI29: 0 | BJ29: 0 | BK29: 14977 | BL29: 0 | BM29: 1561 | BN29: 1040 | BO29: 125 | BP29: 0 | BQ29: 20 | BR29: 0 | BS29: 228 | BT29: 0 | BU29: 0 | BV29: 0 | BW29: 0 | BX29: 0 | BY29: 0 | BZ29: 0 | CA29: 0 | CB29: 0 | CC29: 0 | CD29: 1800 | CF29: 660 | CH29: 0 | CI29: 0 | CJ29: 0 | CK29: 0 | CL29: 8 | CM29: 0 | CN29: 0 | CO29: 0 | CP29: 0 | CQ29: 0 | CR29: 0 | CS29: 0 | CT29: 0 | CU29: 0 | CV29: 0 | CW29: 0 | CX29: 0 | CY29: 0 | CZ29: 0 | DA29: 0 | DB29: 0 | DC29: 0 | DD29: 0 | DE29: 0 | DF29: 0 | DG29: 0 | DH29: 0 | DI29: 0 | DJ29: 0 | DK29: 0 | DL29: 0 | DM29: 0 | DN29: 0 | DO29: 0 | DP29: 0 | DQ29: 0 | DR29: 0 | DS29: 0 | DT29: 0 | DU29: 0 | DV29: 0 | DW29: 0 | DX29: 0 | DY29: 0 | DZ29: 0 | EA29: 0 | EB29: 0 | EC29: 0 | ED29: 0 | EE29: 0 | EF29: 0 | EG29: 0 | EH29: 0 | EI29: 0 | EJ29: 0 | EK29: 0 | EL29: 0 | EM29: 0 | EN29: 0 | EO29: 0 | EP29: 0 | EQ29: 0 | ER29: 0 | ES29: 0 | ET29: 0 | EU29: 0 | EV29: 0 | EW29: 0 | EX29: 0 | EY29: 0 | EZ29: 0 | FA29: 0 | FB29: 0 | FC29: 0 | FD29: 0 | FE29: 0 | FF29: 0 | FG29: 0 | FH29: 0 | FI29: 0 | FJ29: 0 | FK29: 0 | FL29: 0 | FM29: 0 | FN29: 0 | FO29: 0 | FP29: 0 | FQ29: 0 | FR29: 0 | FS29: 0 | FT29: 0 | FU29: 0 | FV29: 0 | FW29: 0 | FX29: 0 | FY29: 0 | FZ29: 0 | GA29: 0 | GB29: 0 | GC29: 0 | GD29: 0 | GE29: 0 | GF29: 0 | GG29: 0 | GH29: 0 | GI29: 0 | GJ29: 0 | GK29: 0 | GL29: 0 | GM29: 0 | GN29: 0 | GO29: 0 | GP29: 0 | GQ29: 0 | GR29: 0 | GS29: 0 | GT29: 0 | GU29: 0 | GV29: 0 | GW29: 0 | GX29: 0 | GY29: 0 | GZ29: 0 | HA29: 0 | HB29: 0 | HC29: 0 | HD29: 0 | HE29: 0 | HF29: 0 | HG29: 0 | HH29: 0 | HI29: 0 | HJ29: 0 | HK29: 0 | HL29: 0 | HM29: 0 | HN29: 0 | HO29: 0 | HP29: 0 | HQ29: 0 | HR29: 0 | HS29: 0 | HT29: 0 | HU29: 0
A30: 20 | B30: Воскресенский ГО | C30: Парк Липовый сад | D30: 3513288818 | E30: Парк | F30: Муниципальный заказ | G30: 0 | H30: 18351 | I30: 18351 | R30: 0 | AA30: 0 | AD30: 0 | AJ30: 0 | AL30: 0 | AM30: 0 | AO30: 0 | AR30: 0 | AS30: 0 | AT30: 0 | AU30: 0 | AW30: 0 | AY30: 0 | AZ30: 0 | BA30: 0 | BH30: 391 | BI30: 0 | BJ30: 0 | BK30: 0 | BL30: 0 | BM30: 7960 | BN30: 2010 | BO30: 0 | BP30: 0 | BQ30: 0 | BR30: 0 | BS30: 540 | BT30: 10000 | BU30: 0 | BV30: 0 | BW30: 0 | BX30: 0 | BY30: 0 | BZ30: 0 | CA30: 0 | CB30: 0 | CC30: 0 | CD30: 0 | CH30: 0 | CI30: 0 | CJ30: 0 | CK30: 0 | CL30: 0 | CM30: 0 | CN30: 0 | CO30: 0 | CP30: 0 | CQ30: 0 | CR30: 0 | CS30: 0 | CT30: 0 | CU30: 0 | CV30: 0 | CW30: 0 | CX30: 0 | CY30: 0 | CZ30: 0 | DA30: 0 | DB30: 0 | DC30: 0 | DD30: 0 | DE30: 0 | DF30: 0 | DG30: 0 | DH30: 0 | DI30: 0 | DJ30: 0 | DK30: 0 | DL30: 0 | DM30: 0 | DN30: 0 | DO30: 0 | DP30: 0 | DQ30: 0 | DR30: 0 | DS30: 0 | DT30: 0 | DU30: 0 | DV30: 0 | DW30: 0 | DX30: 0 | DY30: 0 | DZ30: 0 | EA30: 0 | EB30: 0 | EC30: 0 | ED30: 0 | EE30: 0 | EF30: 0 | EG30: 0 | EH30: 0 | EI30: 0 | EJ30: 0 | EK30: 0 | EL30: 0 | EM30: 0 | EN30: 0 | EO30: 0 | EP30: 0 | EQ30: 0 | ER30: 0 | ES30: 0 | ET30: 0 | EU30: 0 | EV30: 0 | EW30: 0 | EX30: 0 | EY30: 0 | EZ30: 0 | FA30: 0 | FB30: 0 | FC30: 0 | FD30: 0 | FE30: 0 | FF30: 0 | FG30: 0 | FH30: 0 | FI30: 0 | FJ30: 0 | FK30: 0 | FL30: 0 | FM30: 0 | FN30: 0 | FO30: 0 | FP30: 0 | FQ30: 0 | FR30: 0 | FS30: 0 | FT30: 0 | FU30: 0 | FV30: 0 | FW30: 0 | FX30: 0 | FY30: 0 | FZ30: 0 | GA30: 0 | GB30: 0 | GC30: 0 | GD30: 0 | GE30: 0 | GF30: 0 | GG30: 0 | GH30: 0 | GI30: 0 | GJ30: 0 | GK30: 0 | GL30: 0 | GM30: 0 | GN30: 0 | GO30: 0 | GP30: 0 | GQ30: 0 | GR30: 0 | GS30: 0 | GT30: 0 | GU30: 0 | GV30: 0 | GW30: 0 | GX30: 0 | GY30: 0 | GZ30: 0 | HA30: 0 | HB30: 0 | HC30: 0 | HD30: 0 | HE30: 0 | HF30: 0 | HG30: 0 | HH30: 0 | HI30: 0 | HJ30: 0 | HK30: 0 | HL30: 0 | HM30: 0 | HN30: 0 | HO30: 0 | HP30: 0 | HQ30: 0 | HR30: 0 | HS30: 0 | HT30: 0 | HU30: 0
A31: 21 | B31: Воскресенский ГО | C31: Сквер г. Воскресенск, ул. Гражданская, сквер вблизи ШК №17 | D31: 1389512160 | E31: Сквер | F31: Муниципальный заказ | G31: 0 | H31: 17864 | I31: 17864 | R31: 0 | AA31: 0 | AD31: 0 | AJ31: 0 | AL31: 0 | AM31: 0 | AO31: 398 | AR31: 0 | AS31: 0 | AT31: 0 | AU31: 0 | AW31: 0 | AY31: 0.193 | AZ31: 2 | BA31: 0 | BH31: 0 | BI31: 0 | BJ31: 0 | BK31: 5016 | BL31: 0 | BM31: 0 | BN31: 296 | BO31: 0 | BP31: 0 | BQ31: 0 | BR31: 0 | BS31: 0 | BT31: 12000 | BU31: 0 | BV31: 0 | BW31: 0 | BX31: 0 | BY31: 0 | BZ31: 0 | CA31: 0 | CB31: 0 | CC31: 0 | CD31: 0 | CH31: 0 | CI31: 0 | CJ31: 0 | CK31: 0 | CL31: 0 | CM31: 0 | CN31: 0 | CO31: 0 | CP31: 0 | CQ31: 0 | CR31: 0 | CS31: 0 | CT31: 0 | CU31: 0 | CV31: 0 | CW31: 0 | CX31: 0 | CY31: 1 | CZ31: 0 | DA31: 0 | DB31: 0 | DC31: 0 | DD31: 450 | DE31: 0 | DF31: 0 | DG31: 0 | DH31: 0 | DI31: 0 | DJ31: 7 | DK31: 0 | DL31: 0 | DM31: 0 | DN31: 0 | DO31: 0 | DP31: 0 | DQ31: 0 | DR31: 0 | DS31: 0 | DT31: 0 | DU31: 0 | DV31: 0 | DW31: 0 | DX31: 0 | DY31: 0 | DZ31: 0 | EA31: 0 | EB31: 0 | EC31: 0 | ED31: 0 | EE31: 0 | EF31: 0 | EG31: 0 | EH31: 0 | EI31: 0 | EJ31: 0 | EK31: 0 | EL31: 0 | EM31: 0 | EN31: 0 | EO31: 0 | EP31: 0 | EQ31: 0 | ER31: 0 | ES31: 0 | ET31: 0 | EU31: 0 | EV31: 0 | EW31: 0 | EX31: 0 | EY31: 0 | EZ31: 0 | FA31: 0 | FB31: 0 | FC31: 0 | FD31: 0 | FE31: 0 | FF31: 0 | FG31: 0 | FH31: 0 | FI31: 0 | FJ31: 0 | FK31: 0 | FL31: 0 | FM31: 0 | FN31: 0 | FO31: 0 | FP31: 0 | FQ31: 0 | FR31: 0 | FS31: 0 | FT31: 0 | FU31: 0 | FV31: 0 | FW31: 0 | FX31: 0 | FY31: 0 | FZ31: 0 | GA31: 0 | GB31: 0 | GC31: 0 | GD31: 0 | GE31: 0 | GF31: 0 | GG31: 0 | GH31: 0 | GI31: 0 | GJ31: 0 | GK31: 0 | GL31: 0 | GM31: 0 | GN31: 0 | GO31: 0 | GP31: 0 | GQ31: 0 | GR31: 0 | GS31: 0 | GT31: 0 | GU31: 0 | GV31: 0 | GW31: 0 | GX31: 0 | GY31: 0 | GZ31: 0 | HA31: 0 | HB31: 0 | HC31: 0 | HD31: 0 | HE31: 0 | HF31: 0 | HG31: 0 | HH31: 0 | HI31: 0 | HJ31: 0 | HK31: 0 | HL31: 0 | HM31: 0 | HN31: 0 | HO31: 0 | HP31: 0 | HQ31: 0 | HR31: 0 | HS31: 0 | HT31: 0 | HU31: 0
A32: 22 | B32: Воскресенский ГО | C32: Сквер Московская область, Воскресенский муниципальный район, г/пос. Хорлово, п. Хорлово, ул. Школьная, аллея "Горняков" | D32: 1389512161 | E32: Сквер | F32: На балансе муниципального учреждения | G32: 4974 | H32: 12441 | I32: 17415 | R32: 0 | AA32: 0 | AD32: 0 | AJ32: 0 | AL32: 0 | AM32: 0 | AN32: 4974 | AR32: 0 | AS32: 0 | AT32: 0 | AU32: 0 | AW32: 0 | AY32: 1.243 | AZ32: 4 | BA32: 0 | BH32: 0 | BI32: 0 | BJ32: 0 | BK32: 12191 | BL32: 0 | BM32: 0 | BN32: 45 | BO32: 0 | BP32: 0 | BQ32: 0 | BR32: 0 | BS32: 112 | BT32: 0 | BU32: 0 | BV32: 0 | BW32: 0 | BX32: 0 | BY32: 0 | BZ32: 0 | CA32: 0 | CB32: 0 | CC32: 0 | CD32: 2487 | CF32: 50 | CH32: 12 | CI32: 0 | CJ32: 0 | CK32: 0 | CL32: 12 | CM32: 0 | CN32: 0 | CO32: 0 | CP32: 0 | CQ32: 1 | CR32: 0 | CS32: 0 | CT32: 0 | CU32: 0 | CV32: 0 | CW32: 0 | CX32: 0 | CY32: 1 | CZ32: 0 | DA32: 0 | DB32: 0 | DC32: 0 | DD32: 0 | DE32: 250 | DF32: 0 | DG32: 0 | DH32: 0 | DI32: 0 | DJ32: 0 | DK32: 7 | DL32: 0 | DM32: 1 | DN32: 0 | DO32: 0 | DP32: 0 | DQ32: 0 | DR32: 0 | DS32: 0 | DT32: 0 | DU32: 0 | DV32: 0 | DW32: 0 | DX32: 0 | DY32: 0 | DZ32: 0 | EA32: 0 | EB32: 0 | EC32: 0 | ED32: 0 | EE32: 0 | EF32: 0 | EG32: 0 | EH32: 0 | EI32: 0 | EJ32: 0 | EK32: 0 | EL32: 0 | EM32: 0 | EN32: 0 | EO32: 0 | EP32: 0 | EQ32: 0 | ER32: 0 | ES32: 0 | ET32: 0 | EU32: 0 | EV32: 0 | EW32: 0 | EX32: 0 | EY32: 0 | EZ32: 0 | FA32: 0 | FB32: 0 | FC32: 0 | FD32: 0 | FE32: 0 | FF32: 0 | FG32: 0 | FH32: 0 | FI32: 0 | FJ32: 0 | FK32: 0 | FL32: 0 | FM32: 0 | FN32: 0 | FO32: 0 | FP32: 0 | FQ32: 0 | FR32: 0 | FS32: 0 | FT32: 0 | FU32: 0 | FV32: 0 | FW32: 0 | FX32: 0 | FY32: 0 | FZ32: 0 | GA32: 0 | GB32: 0 | GC32: 0 | GD32: 0 | GE32: 0 | GF32: 0 | GG32: 0 | GH32: 0 | GI32: 0 | GJ32: 0 | GK32: 0 | GL32: 0 | GM32: 0 | GN32: 0 | GO32: 0 | GP32: 0 | GQ32: 0 | GR32: 0 | GS32: 0 | GT32: 0 | GU32: 0 | GV32: 0 | GW32: 0 | GX32: 0 | GY32: 0 | GZ32: 0 | HA32: 0 | HB32: 0 | HC32: 0 | HD32: 0 | HE32: 0 | HF32: 0 | HG32: 0 | HH32: 0 | HI32: 0 | HJ32: 0 | HK32: 0 | HL32: 0 | HM32: 0 | HN32: 0 | HO32: 0 | HP32: 0 | HQ32: 0 | HR32: 0 | HS32: 0 | HT32: 0 | HU32: 0
A33: 23 | B33: Воскресенский ГО | C33: Сквер г. Воскресенск, сквер от ул. Андреса до ул. Радонежская | D33: 1389512135 | E33: Сквер | F33: Муниципальный заказ | G33: 890 | H33: 15650 | I33: 16540 | R33: 0 | AA33: 0 | AD33: 0 | AJ33: 0 | AL33: 0 | AM33: 0 | AO33: 217 | AR33: 0 | AS33: 0 | AT33: 0 | AU33: 0 | AW33: 0 | AY33: 0.117 | AZ33: 2 | BA33: 0 | BH33: 0 | BI33: 0 | BJ33: 0 | BK33: 11733 | BL33: 0 | BM33: 3700 | BN33: 53 | BO33: 0 | BP33: 0 | BQ33: 0 | BR33: 0 | BS33: 0 | BT33: 0 | BU33: 0 | BV33: 0 | BW33: 0 | BX33: 0 | BY33: 0 | BZ33: 0 | CA33: 0 | CB33: 0 | CC33: 0 | CD33: 960 | CH33: 0 | CI33: 0 | CJ33: 0 | CK33: 0 | CL33: 0 | CM33: 0 | CN33: 0 | CO33: 0 | CP33: 0 | CQ33: 0 | CR33: 0 | CS33: 0 | CT33: 0 | CU33: 0 | CV33: 0 | CW33: 0 | CX33: 0 | CY33: 0 | CZ33: 0 | DA33: 0 | DB33: 0 | DC33: 0 | DD33: 0 | DE33: 0 | DF33: 0 | DG33: 0 | DH33: 0 | DI33: 0 | DJ33: 0 | DK33: 0 | DL33: 0 | DM33: 0 | DN33: 0 | DO33: 0 | DP33: 0 | DQ33: 0 | DR33: 0 | DS33: 0 | DT33: 0 | DU33: 0 | DV33: 0 | DW33: 0 | DX33: 0 | DY33: 0 | DZ33: 0 | EA33: 0 | EB33: 0 | EC33: 0 | ED33: 0 | EE33: 0 | EF33: 0 | EG33: 0 | EH33: 0 | EI33: 1 | EJ33: 890 | EK33: 0 | EL33: 0 | EM33: 0 | EN33: 0 | EO33: 0 | EP33: 0 | EQ33: 0 | ER33: 0 | ES33: 0 | ET33: 0 | EU33: 0 | EV33: 0 | EW33: 0 | EX33: 0 | EY33: 0 | EZ33: 0 | FA33: 0 | FB33: 0 | FC33: 0 | FD33: 0 | FE33: 0 | FF33: 0 | FG33: 0 | FH33: 0 | FI33: 0 | FJ33: 0 | FK33: 0 | FL33: 0 | FM33: 0 | FN33: 0 | FO33: 0 | FP33: 0 | FQ33: 0 | FR33: 0 | FS33: 0 | FT33: 0 | FU33: 0 | FV33: 0 | FW33: 0 | FX33: 0 | FY33: 0 | FZ33: 0 | GA33: 0 | GB33: 0 | GC33: 0 | GD33: 0 | GE33: 0 | GF33: 0 | GG33: 0 | GH33: 0 | GI33: 0 | GJ33: 0 | GK33: 0 | GL33: 0 | GM33: 0 | GN33: 0 | GO33: 0 | GP33: 0 | GQ33: 0 | GR33: 0 | GS33: 0 | GT33: 0 | GU33: 0 | GV33: 0 | GW33: 0 | GX33: 0 | GY33: 0 | GZ33: 0 | HA33: 0 | HB33: 0 | HC33: 0 | HD33: 0 | HE33: 0 | HF33: 0 | HG33: 0 | HH33: 0 | HI33: 0 | HJ33: 0 | HK33: 0 | HL33: 0 | HM33: 0 | HN33: 0 | HO33: 0 | HP33: 0 | HQ33: 0 | HR33: 0 | HS33: 0 | HT33: 0 | HU33: 0
A34: 24 | B34: Воскресенский ГО | C34: Сквер г. Воскресенск, по ул. Чапаева, вблизи ДК "Цементник" "Сквер Юность" | D34: 1389512163 | E34: Сквер | F34: Муниципальный заказ | G34: 0 | H34: 15868 | I34: 15868 | R34: 0 | AA34: 0 | AD34: 0 | AJ34: 0 | AL34: 0 | AM34: 0 | AO34: 0 | AR34: 0 | AS34: 0 | AT34: 88 | AU34: 0 | AW34: 0 | AY34: 0 | AZ34: 0 | BA34: 0 | BH34: 0 | BI34: 0 | BJ34: 0 | BK34: 10074 | BL34: 0 | BM34: 5700 | BN34: 490 | BO34: 0 | BP34: 0 | BQ34: 0 | BR34: 0 | BS34: 0 | BT34: 0 | BU34: 0 | BV34: 0 | BW34: 0 | BX34: 0 | BY34: 0 | BZ34: 0 | CA34: 0 | CB34: 0 | CC34: 0 | CD34: 0 | CH34: 0 | CI34: 0 | CJ34: 0 | CK34: 0 | CL34: 0 | CM34: 0 | CN34: 0 | CO34: 0 | CP34: 0 | CQ34: 0 | CR34: 0 | CS34: 0 | CT34: 0 | CU34: 0 | CV34: 0 | CW34: 0 | CX34: 0 | CY34: 0 | CZ34: 0 | DA34: 0 | DB34: 0 | DC34: 0 | DD34: 0 | DE34: 0 | DF34: 0 | DG34: 0 | DH34: 0 | DI34: 0 | DJ34: 0 | DK34: 0 | DL34: 0 | DM34: 0 | DN34: 0 | DO34: 0 | DP34: 0 | DQ34: 0 | DR34: 0 | DS34: 0 | DT34: 0 | DU34: 0 | DV34: 0 | DW34: 0 | DX34: 0 | DY34: 0 | DZ34: 0 | EA34: 0 | EB34: 0 | EC34: 0 | ED34: 1 | EE34: 0 | EF34: 6 | EG34: 0 | EH34: 0 | EI34: 0 | EJ34: 0 | EK34: 0 | EL34: 0 | EM34: 0 | EN34: 0 | EO34: 0 | EP34: 0 | EQ34: 0 | ER34: 0 | ES34: 0 | ET34: 0 | EU34: 0 | EV34: 0 | EW34: 0 | EX34: 0 | EY34: 0 | EZ34: 0 | FA34: 0 | FB34: 0 | FC34: 0 | FD34: 0 | FE34: 0 | FF34: 0 | FG34: 0 | FH34: 0 | FI34: 0 | FJ34: 0 | FK34: 0 | FL34: 0 | FM34: 0 | FN34: 0 | FO34: 0 | FP34: 0 | FQ34: 0 | FR34: 0 | FS34: 0 | FT34: 0 | FU34: 0 | FV34: 0 | FW34: 0 | FX34: 0 | FY34: 0 | FZ34: 0 | GA34: 0 | GB34: 0 | GC34: 0 | GD34: 0 | GE34: 0 | GF34: 0 | GG34: 0 | GH34: 0 | GI34: 0 | GJ34: 0 | GK34: 0 | GL34: 0 | GM34: 0 | GN34: 0 | GO34: 0 | GP34: 0 | GQ34: 0 | GR34: 0 | GS34: 0 | GT34: 0 | GU34: 0 | GV34: 0 | GW34: 0 | GX34: 0 | GY34: 0 | GZ34: 0 | HA34: 0 | HB34: 0 | HC34: 0 | HD34: 0 | HE34: 0 | HF34: 0 | HG34: 0 | HH34: 0 | HI34: 0 | HJ34: 0 | HK34: 0 | HL34: 0 | HM34: 0 | HN34: 0 | HO34: 0 | HP34: 0 | HQ34: 0 | HR34: 0 | HS34: 0 | HT34: 0 | HU34: 0
A35: 25 | B35: Воскресенский ГО | C35: Набережная г. Воскресенск, ул. Чапаева, озёра мкр. Цемгигант 1 ; | D35: 7864165566 | E35: Набережная | F35: Муниципальный заказ | G35: 0 | H35: 15679 | I35: 15679 | R35: 1321 | AA35: 0 | AD35: 0 | AJ35: 0 | AL35: 0.503 | AM35: 2 | AO35: 0 | AR35: 0 | AS35: 0 | AT35: 0 | AU35: 0 | AW35: 0 | AY35: 0 | AZ35: 0 | BA35: 0 | BH35: 0 | BI35: 0 | BJ35: 0 | BK35: 2358 | BL35: 0 | BM35: 0 | BN35: 0 | BO35: 0 | BP35: 0 | BQ35: 0 | BR35: 0 | BS35: 0 | BT35: 12000 | BU35: 0 | BV35: 0 | BW35: 0 | BX35: 0 | BY35: 0 | BZ35: 0 | CA35: 0 | CB35: 0 | CC35: 0 | CD35: 0 | CE35: 0 | CF35: 0 | CG35: 0 | CH35: 0 | CI35: 0 | CJ35: 0 | CK35: 0 | CL35: 0 | CM35: 0 | CN35: 0 | CO35: 0 | CP35: 0 | CQ35: 1 | CR35: 0 | CS35: 0 | CT35: 0 | CU35: 0 | CV35: 0 | CW35: 0 | CX35: 0 | CY35: 0 | CZ35: 0 | DA35: 0 | DB35: 0 | DC35: 0 | DD35: 0 | DE35: 0 | DF35: 0 | DG35: 0 | DH35: 0 | DI35: 0 | DJ35: 0 | DK35: 0 | DL35: 0 | DM35: 0 | DN35: 0 | DO35: 0 | DP35: 0 | DQ35: 0 | DR35: 0 | DS35: 0 | DT35: 0 | DU35: 0 | DV35: 0 | DW35: 0 | DX35: 0 | DY35: 0 | DZ35: 0 | EA35: 0 | EB35: 0 | EC35: 0 | ED35: 0 | EE35: 0 | EF35: 0 | EG35: 0 | EH35: 0 | EI35: 0 | EJ35: 0 | EK35: 0 | EL35: 0 | EM35: 0 | EN35: 0 | EO35: 0 | EP35: 0 | EQ35: 0 | ER35: 0 | ES35: 0 | ET35: 0 | EU35: 0 | EV35: 0 | EW35: 0 | EX35: 0 | EY35: 0 | EZ35: 0 | FA35: 0 | FB35: 0 | FC35: 0 | FD35: 0 | FE35: 0 | FF35: 0 | FG35: 0 | FH35: 0 | FI35: 0 | FJ35: 0 | FK35: 0 | FL35: 0 | FM35: 0 | FN35: 0 | FO35: 0 | FP35: 0 | FQ35: 0 | FR35: 0 | FS35: 0 | FT35: 0 | FU35: 0 | FV35: 0 | FW35: 0 | FX35: 0 | FY35: 0 | FZ35: 0 | GA35: 0 | GB35: 0 | GC35: 0 | GD35: 0 | GE35: 0 | GF35: 0 | GG35: 0 | GH35: 0 | GI35: 0 | GJ35: 0 | GK35: 0 | GL35: 0 | GM35: 0 | GN35: 0 | GO35: 0 | GP35: 0 | GQ35: 0 | GR35: 0 | GS35: 0 | GT35: 0 | GU35: 0 | GV35: 0 | GW35: 0 | GX35: 0 | GY35: 0 | GZ35: 0 | HA35: 0 | HB35: 0 | HC35: 0 | HD35: 0 | HE35: 0 | HF35: 0 | HG35: 0 | HH35: 0 | HI35: 0 | HJ35: 0 | HK35: 0 | HL35: 0 | HM35: 0 | HN35: 0 | HO35: 0 | HP35: 0 | HQ35: 0 | HR35: 0 | HS35: 0 | HT35: 0 | HU35: 0
A36: 26 | B36: Воскресенский ГО | C36: Сквер г. Воскресенск, ул. Юбилейная (мкр. Медведка) | D36: 1389512162 | E36: Сквер | F36: Муниципальный заказ | G36: 0 | H36: 15416 | I36: 15416 | R36: 0 | AA36: 0 | AD36: 0 | AJ36: 0 | AL36: 0 | AM36: 0 | AO36: 0 | AR36: 0 | AS36: 0 | AT36: 1034 | AU36: 0 | AW36: 0 | AY36: 0 | AZ36: 0 | BA36: 0 | BH36: 0 | BI36: 0 | BJ36: 0 | BK36: 9641 | BL36: 0 | BM36: 2000 | BN36: 13 | BO36: 0 | BP36: 0 | BQ36: 0 | BR36: 0 | BS36: 6 | BT36: 0 | BU36: 0 | BV36: 0 | BW36: 0 | BX36: 0 | BY36: 0 | BZ36: 0 | CA36: 0 | CB36: 0 | CC36: 0 | CD36: 0 | CF36: 16 | CH36: 0 | CI36: 0 | CJ36: 0 | CK36: 0 | CL36: 1 | CM36: 0 | CN36: 0 | CO36: 0 | CP36: 0 | CQ36: 0 | CR36: 0 | CS36: 0 | CT36: 0 | CU36: 0 | CV36: 0 | CW36: 0 | CX36: 0 | CY36: 1 | CZ36: 0 | DA36: 0 | DB36: 0 | DC36: 0 | DD36: 0 | DE36: 0 | DF36: 0 | DG36: 0 | DH36: 806 | DI36: 0 | DJ36: 0 | DK36: 0 | DL36: 7 | DM36: 0 | DN36: 1 | DO36: 0 | DP36: 0 | DQ36: 0 | DR36: 0 | DS36: 0 | DT36: 0 | DU36: 0 | DV36: 0 | DW36: 0 | DX36: 1935 | DY36: 0 | DZ36: 0 | EA36: 0 | EB36: 0 | EC36: 7 | ED36: 0 | EE36: 0 | EF36: 0 | EG36: 0 | EH36: 0 | EI36: 0 | EJ36: 0 | EK36: 0 | EL36: 0 | EM36: 0 | EN36: 0 | EO36: 0 | EP36: 0 | EQ36: 0 | ER36: 0 | ES36: 0 | ET36: 0 | EU36: 0 | EV36: 0 | EW36: 0 | EX36: 0 | EY36: 0 | EZ36: 0 | FA36: 0 | FB36: 0 | FC36: 0 | FD36: 0 | FE36: 0 | FF36: 0 | FG36: 0 | FH36: 0 | FI36: 0 | FJ36: 0 | FK36: 0 | FL36: 0 | FM36: 0 | FN36: 0 | FO36: 0 | FP36: 0 | FQ36: 0 | FR36: 0 | FS36: 0 | FT36: 0 | FU36: 0 | FV36: 0 | FW36: 0 | FX36: 0 | FY36: 0 | FZ36: 0 | GA36: 0 | GB36: 0 | GC36: 0 | GD36: 0 | GE36: 0 | GF36: 0 | GG36: 0 | GH36: 0 | GI36: 0 | GJ36: 0 | GK36: 0 | GL36: 0 | GM36: 0 | GN36: 0 | GO36: 0 | GP36: 0 | GQ36: 0 | GR36: 0 | GS36: 0 | GT36: 0 | GU36: 0 | GV36: 0 | GW36: 0 | GX36: 0 | GY36: 0 | GZ36: 0 | HA36: 0 | HB36: 0 | HC36: 0 | HD36: 0 | HE36: 0 | HF36: 0 | HG36: 0 | HH36: 0 | HI36: 0 | HJ36: 0 | HK36: 0 | HL36: 0 | HM36: 0 | HN36: 0 | HO36: 0 | HP36: 0 | HQ36: 0 | HR36: 0 | HS36: 0 | HT36: 0 | HU36: 0
A37: 27 | B37: Воскресенский ГО | C37: п. Ачкасово, парк | D37: 1389512165 | E37: Парк | F37: Муниципальный заказ | G37: 0 | H37: 14056 | I37: 14056 | R37: 0 | AA37: 0 | AD37: 0 | AJ37: 0 | AL37: 0 | AM37: 0 | AO37: 0 | AR37: 0 | AS37: 0 | AT37: 615 | AU37: 0 | AW37: 0 | AY37: 0 | AZ37: 0 | BA37: 0 | BH37: 0 | BI37: 0 | BJ37: 0 | BK37: 2031 | BL37: 0 | BM37: 3000 | BN37: 186 | BO37: 0 | BP37: 0 | BQ37: 0 | BR37: 0 | BS37: 18 | BT37: 8000 | BU37: 0 | BV37: 0 | BW37: 0 | BX37: 0 | BY37: 0 | BZ37: 0 | CA37: 0 | CB37: 0 | CC37: 0 | CD37: 0 | CH37: 0 | CI37: 0 | CJ37: 0 | CK37: 0 | CL37: 1 | CM37: 0 | CN37: 0 | CO37: 0 | CP37: 0 | CQ37: 0 | CR37: 0 | CS37: 0 | CT37: 0 | CU37: 0 | CV37: 0 | CW37: 0 | CX37: 0 | CY37: 1 | CZ37: 0 | DA37: 0 | DB37: 0 | DC37: 0 | DD37: 0 | DE37: 0 | DF37: 0 | DG37: 0 | DH37: 410 | DI37: 0 | DJ37: 0 | DK37: 0 | DL37: 7 | DM37: 0 | DN37: 0 | DO37: 0 | DP37: 0 | DQ37: 0 | DR37: 0 | DS37: 0 | DT37: 0 | DU37: 0 | DV37: 0 | DW37: 0 | DX37: 0 | DY37: 0 | DZ37: 0 | EA37: 0 | EB37: 0 | EC37: 0 | ED37: 0 | EE37: 0 | EF37: 0 | EG37: 0 | EH37: 0 | EI37: 0 | EJ37: 0 | EK37: 0 | EL37: 0 | EM37: 0 | EN37: 0 | EO37: 0 | EP37: 0 | EQ37: 0 | ER37: 0 | ES37: 0 | ET37: 0 | EU37: 0 | EV37: 0 | EW37: 0 | EX37: 0 | EY37: 0 | EZ37: 0 | FA37: 0 | FB37: 0 | FC37: 0 | FD37: 0 | FE37: 0 | FF37: 0 | FG37: 0 | FH37: 0 | FI37: 0 | FJ37: 0 | FK37: 0 | FL37: 0 | FM37: 0 | FN37: 0 | FO37: 0 | FP37: 0 | FQ37: 0 | FR37: 0 | FS37: 0 | FT37: 0 | FU37: 0 | FV37: 0 | FW37: 0 | FX37: 0 | FY37: 0 | FZ37: 0 | GA37: 0 | GB37: 0 | GC37: 0 | GD37: 0 | GE37: 0 | GF37: 0 | GG37: 0 | GH37: 0 | GI37: 0 | GJ37: 0 | GK37: 0 | GL37: 0 | GM37: 0 | GN37: 0 | GO37: 0 | GP37: 0 | GQ37: 0 | GR37: 0 | GS37: 0 | GT37: 0 | GU37: 0 | GV37: 0 | GW37: 0 | GX37: 0 | GY37: 0 | GZ37: 0 | HA37: 0 | HB37: 0 | HC37: 0 | HD37: 0 | HE37: 0 | HF37: 0 | HG37: 0 | HH37: 0 | HI37: 0 | HJ37: 0 | HK37: 0 | HL37: 0 | HM37: 0 | HN37: 0 | HO37: 0 | HP37: 0 | HQ37: 0 | HR37: 0 | HS37: 0 | HT37: 0 | HU37: 0
A38: 28 | B38: Воскресенский ГО | C38: Сквер г. Воскресенск, ул. Рабочая (сквер) | D38: 1389512164 | E38: Сквер | F38: Муниципальный заказ | G38: 195 | H38: 13828 | I38: 14023 | R38: 0 | AA38: 0 | AD38: 0 | AJ38: 0 | AL38: 0 | AM38: 0 | AO38: 606 | AR38: 0 | AS38: 0 | AT38: 0 | AU38: 0 | AW38: 0 | AY38: 0.222 | AZ38: 1.6 | BA38: 195 | BH38: 0 | BI38: 35 | BJ38: 4 | BK38: 12540 | BL38: 0 | BM38: 0 | BN38: 17 | BO38: 0 | BP38: 0 | BQ38: 0 | BR38: 0 | BS38: 0 | BT38: 0 | BU38: 0 | BV38: 0 | BW38: 0 | BX38: 0 | BY38: 0 | BZ38: 0 | CA38: 0 | CB38: 0 | CC38: 0 | CD38: 390 | CH38: 0 | CI38: 0 | CJ38: 0 | CK38: 0 | CL38: 1 | CM38: 0 | CN38: 0 | CO38: 0 | CP38: 0 | CQ38: 0 | CR38: 0 | CS38: 0 | CT38: 0 | CU38: 0 | CV38: 0 | CW38: 0 | CX38: 0 | CY38: 1 | CZ38: 0 | DA38: 0 | DB38: 0 | DC38: 0 | DD38: 0 | DE38: 312 | DF38: 0 | DG38: 0 | DH38: 0 | DI38: 0 | DJ38: 0 | DK38: 7 | DL38: 0 | DM38: 0 | DN38: 1 | DO38: 0 | DP38: 0 | DQ38: 0 | DR38: 0 | DS38: 0 | DT38: 0 | DU38: 370 | DV38: 0 | DW38: 0 | DX38: 0 | DY38: 0 | DZ38: 0 | EA38: 0 | EB38: 5 | EC38: 0 | ED38: 0 | EE38: 0 | EF38: 0 | EG38: 0 | EH38: 0 | EI38: 0 | EJ38: 0 | EK38: 0 | EL38: 0 | EM38: 0 | EN38: 0 | EO38: 0 | EP38: 0 | EQ38: 0 | ER38: 0 | ES38: 0 | ET38: 0 | EU38: 0 | EV38: 0 | EW38: 0 | EX38: 0 | EY38: 0 | EZ38: 0 | FA38: 0 | FB38: 0 | FC38: 0 | FD38: 0 | FE38: 0 | FF38: 0 | FG38: 0 | FH38: 0 | FI38: 0 | FJ38: 0 | FK38: 0 | FL38: 0 | FM38: 0 | FN38: 0 | FO38: 0 | FP38: 0 | FQ38: 0 | FR38: 0 | FS38: 0 | FT38: 0 | FU38: 0 | FV38: 0 | FW38: 0 | FX38: 0 | FY38: 0 | FZ38: 0 | GA38: 0 | GB38: 0 | GC38: 0 | GD38: 0 | GE38: 0 | GF38: 0 | GG38: 0 | GH38: 0 | GI38: 0 | GJ38: 0 | GK38: 0 | GL38: 0 | GM38: 0 | GN38: 0 | GO38: 0 | GP38: 0 | GQ38: 0 | GR38: 0 | GS38: 0 | GT38: 0 | GU38: 0 | GV38: 0 | GW38: 0 | GX38: 0 | GY38: 0 | GZ38: 0 | HA38: 0 | HB38: 0 | HC38: 0 | HD38: 0 | HE38: 0 | HF38: 0 | HG38: 0 | HH38: 0 | HI38: 0 | HJ38: 0 | HK38: 0 | HL38: 0 | HM38: 0 | HN38: 0 | HO38: 0 | HP38: 0 | HQ38: 0 | HR38: 0 | HS38: 0 | HT38: 0 | HU38: 0
A39: 29 | B39: Воскресенский ГО | C39: Бульвар г. Белоозерский, Бульвар | D39: 1389512167 | E39: Бульвар | F39: На балансе муниципального учреждения | G39: 9913.1 | H39: 22022.1 | I39: 31935.2 | R39: 0 | AA39: 0 | AD39: 0 | AJ39: 0 | AL39: 0 | AM39: 0 | AN39: 3135.1 | AO39: 0 | AP39: 6075.7 | AR39: 0 | AS39: 0 | AT39: 0 | AU39: 0 | AW39: 0 | AY39: 4.606 | AZ39: 2 | BA39: 702.3 | BH39: 0 | BI39: 0.175 | BJ39: 4 | BK39: 21051.8 | BL39: 0 | BN39: 103 | BO39: 0 | BP39: 407 | BQ39: 0 | BR39: 322 | BS39: 2024 | BT39: 0 | BU39: 0 | BV39: 0 | BW39: 0 | BX39: 0 | BY39: 0 | BZ39: 0 | CA39: 0 | CB39: 0 | CC39: 0 | CD39: 6017.04 | CH39: 62 | CI39: 2 | CJ39: 0 | CK39: 0 | CL39: 60 | CM39: 0 | CN39: 0 | CO39: 0 | CP39: 0 | CQ39: 1 | CR39: 0 | CS39: 0 | CT39: 0 | CU39: 0 | CV39: 0 | CW39: 0 | CX39: 0 | CY39: 2 | CZ39: 0 | DA39: 0 | DB39: 0 | DC39: 0 | DD39: 426.3 | DE39: 0 | DF39: 0 | DG39: 0 | DH39: 0 | DI39: 0 | DJ39: 0 | DK39: 15 | DL39: 0 | DM39: 0 | DN39: 1 | DO39: 0 | DP39: 0 | DQ39: 0 | DR39: 0 | DS39: 0 | DT39: 222 | DU39: 0 | DV39: 0 | DW39: 0 | DX39: 0 | DY39: 0 | DZ39: 0 | EA39: 10 | EB39: 0 | EC39: 0 | ED39: 0 | EE39: 0 | EF39: 0 | EG39: 0 | EH39: 0 | EI39: 0 | EJ39: 0 | EK39: 0 | EL39: 0 | EM39: 0 | EN39: 0 | EO39: 0 | EP39: 0 | EQ39: 0 | ER39: 0 | ES39: 0 | ET39: 0 | EU39: 0 | EV39: 0 | EW39: 0 | EX39: 0 | EY39: 0 | EZ39: 0 | FA39: 0 | FB39: 0 | FC39: 0 | FD39: 0 | FE39: 0 | FF39: 0 | FG39: 0 | FH39: 0 | FI39: 0 | FJ39: 0 | FK39: 0 | FL39: 0 | FM39: 0 | FN39: 0 | FO39: 0 | FP39: 0 | FQ39: 0 | FR39: 0 | FS39: 0 | FT39: 0 | FU39: 0 | FV39: 0 | FW39: 0 | FX39: 0 | FY39: 0 | FZ39: 0 | GA39: 0 | GB39: 0 | GC39: 0 | GD39: 0 | GE39: 0 | GF39: 0 | GG39: 0 | GH39: 0 | GI39: 0 | GJ39: 0 | GK39: 0 | GL39: 0 | GM39: 0 | GN39: 0 | GO39: 0 | GP39: 0 | GQ39: 0 | GR39: 0 | GS39: 0 | GT39: 0 | GU39: 0 | GV39: 0 | GW39: 0 | GX39: 0 | GY39: 0 | GZ39: 0 | HA39: 0 | HB39: 0 | HC39: 0 | HD39: 0 | HE39: 0 | HF39: 0 | HG39: 0 | HH39: 0 | HI39: 0 | HJ39: 0 | HK39: 0 | HL39: 0 | HM39: 0 | HN39: 0 | HO39: 0 | HP39: 0 | HQ39: 0 | HR39: 0 | HS39: 0 | HT39: 0 | HU39: 0
A40: 30 | B40: Воскресенский ГО | C40: Сквер г. Воскресенск, ул. Московская | D40: 1389512168 | E40: Сквер | F40: Муниципальный заказ | G40: 1024.1 | H40: 12183.9 | I40: 13208 | R40: 0 | AA40: 0 | AD40: 0 | AJ40: 0 | AL40: 0 | AM40: 0 | AN40: 1024.1 | AO40: 438.9 | AR40: 0 | AS40: 0 | AT40: 0 | AU40: 0 | AW40: 0 | AY40: 0.48 | AZ40: 1.5 | BA40: 0 | BH40: 0 | BI40: 0 | BJ40: 0 | BK40: 11730 | BL40: 0 | BM40: 0 | BN40: 276 | BO40: 0 | BP40: 0 | BQ40: 0 | BR40: 0 | BS40: 24 | BT40: 0 | BU40: 0 | BV40: 0 | BW40: 0 | BX40: 0 | BY40: 0 | BZ40: 0 | CA40: 0 | CB40: 0 | CC40: 0 | CD40: 732 | CH40: 0 | CI40: 0 | CJ40: 0 | CK40: 0 | CL40: 0 | CM40: 0 | CN40: 0 | CO40: 0 | CP40: 0 | CQ40: 0 | CR40: 0 | CS40: 0 | CT40: 0 | CU40: 0 | CV40: 0 | CW40: 0 | CX40: 0 | CY40: 0 | CZ40: 0 | DA40: 0 | DB40: 0 | DC40: 0 | DD40: 0 | DE40: 0 | DF40: 0 | DG40: 0 | DH40: 0 | DI40: 0 | DJ40: 0 | DK40: 0 | DL40: 0 | DM40: 0 | DN40: 0 | DO40: 0 | DP40: 0 | DQ40: 0 | DR40: 0 | DS40: 0 | DT40: 0 | DU40: 0 | DV40: 0 | DW40: 0 | DX40: 0 | DY40: 0 | DZ40: 0 | EA40: 0 | EB40: 0 | EC40: 0 | ED40: 1 | EE40: 0 | EF40: 15 | EG40: 0 | EH40: 0 | EI40: 0 | EJ40: 0 | EK40: 0 | EL40: 0 | EM40: 0 | EN40: 0 | EO40: 0 | EP40: 0 | EQ40: 0 | ER40: 0 | ES40: 0 | ET40: 0 | EU40: 0 | EV40: 0 | EW40: 0 | EX40: 0 | EY40: 0 | EZ40: 0 | FA40: 0 | FB40: 0 | FC40: 0 | FD40: 0 | FE40: 0 | FF40: 0 | FG40: 0 | FH40: 0 | FI40: 0 | FJ40: 0 | FK40: 0 | FL40: 0 | FM40: 0 | FN40: 0 | FO40: 0 | FP40: 0 | FQ40: 0 | FR40: 0 | FS40: 0 | FT40: 0 | FU40: 0 | FV40: 0 | FW40: 0 | FX40: 0 | FY40: 0 | FZ40: 0 | GA40: 0 | GB40: 0 | GC40: 0 | GD40: 0 | GE40: 0 | GF40: 0 | GG40: 0 | GH40: 0 | GI40: 0 | GJ40: 0 | GK40: 0 | GL40: 0 | GM40: 0 | GN40: 0 | GO40: 0 | GP40: 0 | GQ40: 0 | GR40: 0 | GS40: 0 | GT40: 0 | GU40: 0 | GV40: 0 | GW40: 0 | GX40: 0 | GY40: 0 | GZ40: 0 | HA40: 0 | HB40: 0 | HC40: 0 | HD40: 0 | HE40: 0 | HF40: 0 | HG40: 0 | HH40: 0 | HI40: 0 | HJ40: 0 | HK40: 0 | HL40: 0 | HM40: 0 | HN40: 0 | HO40: 0 | HP40: 0 | HQ40: 0 | HR40: 0 | HS40: 0 | HT40: 0 | HU40: 0
A41: 31 | B41: Воскресенский ГО | C41: Сквер г. Воскресенск, ул. Быковского (у Фетровой фабрики) ("Сквер 75-летия Победы") | D41: 1389512172 | E41: Сквер | F41: Муниципальный заказ | G41: 4012 | H41: 9193 | I41: 13205 | R41: 68 | AA41: 0 | AD41: 0 | AJ41: 0 | AL41: 0.027 | AM41: 2.5 | AN41: 2814 | AR41: 0 | AS41: 0 | AT41: 0 | AU41: 0 | AW41: 0 | AY41: 0.476 | AZ41: 2.3 | BA41: 467 | BH41: 0 | BI41: 4 | BJ41: 116 | BK41: 9125 | BL41: 0 | BN41: 140 | BO41: 0 | BP41: 0 | BQ41: 0 | BR41: 0 | BS41: 0 | BT41: 0 | BU41: 0 | BV41: 0 | BW41: 0 | BX41: 0 | BY41: 0 | BZ41: 0 | CA41: 0 | CB41: 0 | CC41: 0 | CD41: 2400 | CF41: 300 | CH41: 30 | CI41: 4 | CJ41: 4 | CK41: 4 | CL41: 25 | CM41: 0 | CN41: 0 | CO41: 0 | CP41: 0 | CQ41: 2 | CR41: 0 | CS41: 0 | CT41: 1 | CU41: 0 | CV41: 1 | CW41: 0 | CX41: 0 | CY41: 0 | CZ41: 0 | DA41: 0 | DB41: 0 | DC41: 0 | DD41: 0 | DE41: 0 | DF41: 0 | DG41: 0 | DH41: 0 | DI41: 0 | DJ41: 0 | DK41: 0 | DL41: 0 | DM41: 0 | DN41: 0 | DO41: 0 | DP41: 0 | DQ41: 0 | DR41: 0 | DS41: 0 | DT41: 0 | DU41: 0 | DV41: 0 | DW41: 0 | DX41: 0 | DY41: 0 | DZ41: 0 | EA41: 0 | EB41: 0 | EC41: 0 | ED41: 0 | EE41: 0 | EF41: 0 | EG41: 0 | EH41: 0 | EI41: 49 | EJ41: 731 | EK41: 0 | EL41: 0 | EM41: 0 | EN41: 0 | EO41: 0 | EP41: 0 | EQ41: 0 | ER41: 0 | ES41: 0 | ET41: 0 | EU41: 0 | EV41: 0 | EW41: 0 | EX41: 0 | EY41: 0 | EZ41: 0 | FA41: 0 | FB41: 0 | FC41: 0 | FD41: 0 | FE41: 0 | FF41: 0 | FG41: 0 | FH41: 0 | FI41: 0 | FJ41: 0 | FK41: 0 | FL41: 0 | FM41: 0 | FN41: 0 | FO41: 0 | FP41: 0 | FQ41: 0 | FR41: 0 | FS41: 0 | FT41: 0 | FU41: 0 | FV41: 0 | FW41: 0 | FX41: 0 | FY41: 0 | FZ41: 0 | GA41: 0 | GB41: 0 | GC41: 0 | GD41: 0 | GE41: 0 | GF41: 0 | GG41: 0 | GH41: 0 | GI41: 0 | GJ41: 0 | GK41: 0 | GL41: 0 | GM41: 0 | GN41: 0 | GO41: 0 | GP41: 0 | GQ41: 0 | GR41: 0 | GS41: 0 | GT41: 0 | GU41: 0 | GV41: 0 | GW41: 0 | GX41: 0 | GY41: 0 | GZ41: 0 | HA41: 0 | HB41: 0 | HC41: 0 | HD41: 0 | HE41: 0 | HF41: 0 | HG41: 0 | HH41: 0 | HI41: 0 | HJ41: 0 | HK41: 0 | HL41: 0 | HM41: 0 | HN41: 0 | HO41: 0 | HP41: 0 | HQ41: 0 | HR41: 0 | HS41: 0 | HT41: 0 | HU41: 0
A42: 32 | B42: Воскресенский ГО | C42: Сквер г. Воскресенск, ул. Цесиса, 17 | D42: 1389512169 | E42: Сквер | F42: На балансе муниципального учреждения | G42: 2378 | H42: 10095 | I42: 12473 | R42: 0 | AA42: 0 | AD42: 0 | AJ42: 0 | AL42: 0 | AM42: 0 | AN42: 2378 | AR42: 0 | AS42: 0 | AT42: 0 | AU42: 0 | AW42: 0 | AY42: 0.3 | AZ42: 2 | BA42: 0 | BH42: 0 | BI42: 0 | BJ42: 0 | BK42: 9950 | BL42: 0 | BM42: 0 | BN42: 289 | BO42: 0 | BP42: 0 | BQ42: 0 | BR42: 0 | BS42: 115 | BT42: 0 | BU42: 0 | BV42: 0 | BW42: 0 | BX42: 0 | BY42: 0 | BZ42: 0 | CA42: 0 | CB42: 0 | CC42: 0 | CD42: 1189 | CF42: 0 | CH42: 0 | CI42: 0 | CJ42: 0 | CK42: 0 | CL42: 1 | CM42: 0 | CN42: 0 | CO42: 0 | CP42: 0 | CQ42: 0 | CR42: 0 | CS42: 0 | CT42: 0 | CU42: 0 | CV42: 0 | CW42: 0 | CX42: 0 | CY42: 1 | CZ42: 0 | DA42: 0 | DB42: 0 | DC42: 0 | DD42: 0 | DE42: 0 | DF42: 0 | DG42: 0 | DH42: 145 | DI42: 0 | DJ42: 0 | DK42: 0 | DL42: 5 | DM42: 0 | DN42: 0 | DO42: 0 | DP42: 0 | DQ42: 0 | DR42: 0 | DS42: 0 | DT42: 0 | DU42: 0 | DV42: 0 | DW42: 0 | DX42: 0 | DY42: 0 | DZ42: 0 | EA42: 0 | EB42: 0 | EC42: 0 | ED42: 0 | EE42: 0 | EF42: 0 | EG42: 0 | EH42: 0 | EI42: 0 | EJ42: 0 | EK42: 0 | EL42: 0 | EM42: 0 | EN42: 0 | EO42: 0 | EP42: 0 | EQ42: 0 | ER42: 0 | ES42: 0 | ET42: 0 | EU42: 0 | EV42: 0 | EW42: 0 | EX42: 0 | EY42: 0 | EZ42: 0 | FA42: 0 | FB42: 0 | FC42: 0 | FD42: 0 | FE42: 0 | FF42: 0 | FG42: 0 | FH42: 0 | FI42: 0 | FJ42: 0 | FK42: 0 | FL42: 0 | FM42: 0 | FN42: 0 | FO42: 0 | FP42: 0 | FQ42: 0 | FR42: 0 | FS42: 0 | FT42: 0 | FU42: 0 | FV42: 0 | FW42: 0 | FX42: 0 | FY42: 0 | FZ42: 0 | GA42: 0 | GB42: 0 | GC42: 0 | GD42: 0 | GE42: 0 | GF42: 0 | GG42: 0 | GH42: 0 | GI42: 0 | GJ42: 0 | GK42: 0 | GL42: 0 | GM42: 0 | GN42: 0 | GO42: 0 | GP42: 0 | GQ42: 0 | GR42: 0 | GS42: 0 | GT42: 0 | GU42: 0 | GV42: 0 | GW42: 0 | GX42: 0 | GY42: 0 | GZ42: 0 | HA42: 0 | HB42: 0 | HC42: 0 | HD42: 0 | HE42: 0 | HF42: 0 | HG42: 0 | HH42: 0 | HI42: 0 | HJ42: 0 | HK42: 0 | HL42: 0 | HM42: 0 | HN42: 0 | HO42: 0 | HP42: 0 | HQ42: 0 | HR42: 0 | HS42: 0 | HT42: 0 | HU42: 0
A43: 33 | B43: Воскресенский ГО | C43: Парк Московская область, Воскресенский район, г/пос. Хорлово, п. Хорлово, ул. Зайцева, Парк "Юность" | D43: 1389512183 | E43: Парк | F43: На балансе муниципального учреждения | G43: 0 | H43: 12050 | I43: 12050 | R43: 0 | AA43: 0 | AD43: 0 | AJ43: 0 | AL43: 0 | AM43: 0 | AO43: 0 | AR43: 0 | AS43: 0 | AT43: 0 | AU43: 0 | AW43: 0 | AY43: 0 | AZ43: 0 | BA43: 0 | BH43: 0 | BI43: 0 | BJ43: 0 | BK43: 10950 | BL43: 0 | BM43: 1100 | BN43: 351 | BO43: 0 | BP43: 0 | BQ43: 0 | BR43: 0 | BS43: 57 | BT43: 0 | BU43: 0 | BV43: 0 | BW43: 0 | BX43: 0 | BY43: 0 | BZ43: 0 | CA43: 0 | CB43: 0 | CC43: 0 | CD43: 0 | CH43: 0 | CI43: 0 | CJ43: 0 | CK43: 0 | CL43: 0 | CM43: 0 | CN43: 0 | CO43: 0 | CP43: 0 | CQ43: 0 | CR43: 0 | CS43: 0 | CT43: 0 | CU43: 0 | CV43: 0 | CW43: 0 | CX43: 0 | CY43: 0 | CZ43: 0 | DA43: 0 | DB43: 0 | DC43: 0 | DD43: 0 | DE43: 0 | DF43: 0 | DG43: 0 | DH43: 0 | DI43: 0 | DJ43: 0 | DK43: 0 | DL43: 0 | DM43: 0 | DN43: 0 | DO43: 0 | DP43: 0 | DQ43: 0 | DR43: 0 | DS43: 0 | DT43: 0 | DU43: 0 | DV43: 0 | DW43: 0 | DX43: 0 | DY43: 0 | DZ43: 0 | EA43: 0 | EB43: 0 | EC43: 0 | ED43: 0 | EE43: 0 | EF43: 0 | EG43: 0 | EH43: 0 | EI43: 0 | EJ43: 0 | EK43: 0 | EL43: 0 | EM43: 0 | EN43: 0 | EO43: 0 | EP43: 0 | EQ43: 0 | ER43: 0 | ES43: 0 | ET43: 0 | EU43: 0 | EV43: 0 | EW43: 0 | EX43: 0 | EY43: 0 | EZ43: 0 | FA43: 0 | FB43: 0 | FC43: 0 | FD43: 0 | FE43: 0 | FF43: 0 | FG43: 0 | FH43: 0 | FI43: 0 | FJ43: 0 | FK43: 0 | FL43: 0 | FM43: 0 | FN43: 0 | FO43: 0 | FP43: 0 | FQ43: 0 | FR43: 0 | FS43: 0 | FT43: 0 | FU43: 0 | FV43: 0 | FW43: 0 | FX43: 0 | FY43: 0 | FZ43: 0 | GA43: 0 | GB43: 0 | GC43: 0 | GD43: 0 | GE43: 0 | GF43: 0 | GG43: 0 | GH43: 0 | GI43: 0 | GJ43: 0 | GK43: 0 | GL43: 0 | GM43: 0 | GN43: 0 | GO43: 0 | GP43: 0 | GQ43: 0 | GR43: 0 | GS43: 0 | GT43: 0 | GU43: 0 | GV43: 0 | GW43: 0 | GX43: 0 | GY43: 0 | GZ43: 0 | HA43: 0 | HB43: 0 | HC43: 0 | HD43: 0 | HE43: 0 | HF43: 0 | HG43: 0 | HH43: 0 | HI43: 0 | HJ43: 0 | HK43: 0 | HL43: 0 | HM43: 0 | HN43: 0 | HO43: 0 | HP43: 0 | HQ43: 0 | HR43: 0 | HS43: 0 | HT43: 0 | HU43: 0
A44: 34 | B44: Воскресенский ГО | C44: сквер ул.Школьная | D44: 4687611350 | E44: Сквер | F44: Муниципальный заказ | G44: 0 | H44: 11479 | I44: 11479 | R44: 0 | AA44: 0 | AJ44: 0 | AL44: 0 | AM44: 0 | AO44: 0 | AR44: 0 | AS44: 0 | AT44: 0 | AU44: 0 | AW44: 0 | AY44: 0 | AZ44: 0 | BA44: 0 | BH44: 0 | BI44: 0 | BJ44: 0 | BK44: 0 | BL44: 0 | BM44: 11479 | BN44: 400 | BO44: 0 | BP44: 0 | BQ44: 0 | BR44: 0 | BS44: 0 | BT44: 0 | BU44: 0 | BV44: 0 | BW44: 0 | BX44: 0 | BY44: 0 | BZ44: 0 | CA44: 0 | CB44: 0 | CC44: 0 | CD44: 0 | CF44: 0 | CH44: 0 | CI44: 0 | CJ44: 0 | CK44: 0 | CL44: 0 | CM44: 0 | CN44: 0 | CO44: 0 | CP44: 0 | CQ44: 0 | CR44: 0 | CS44: 0 | CT44: 0 | CU44: 0 | CV44: 0 | CW44: 0 | CX44: 0 | CY44: 0 | CZ44: 0 | DA44: 0 | DB44: 0 | DC44: 0 | DD44: 0 | DE44: 0 | DF44: 0 | DG44: 0 | DH44: 0 | DI44: 0 | DJ44: 0 | DK44: 0 | DL44: 0 | DM44: 0 | DN44: 0 | DO44: 0 | DP44: 0 | DQ44: 0 | DR44: 0 | DS44: 0 | DT44: 0 | DU44: 0 | DV44: 0 | DW44: 0 | DX44: 0 | DY44: 0 | DZ44: 0 | EA44: 0 | EB44: 0 | EC44: 0 | ED44: 0 | EE44: 0 | EF44: 0 | EG44: 0 | EH44: 0 | EI44: 0 | EJ44: 0 | EK44: 0 | EL44: 0 | EM44: 0 | EN44: 0 | EO44: 0 | EP44: 0 | EQ44: 0 | ER44: 0 | ES44: 0 | ET44: 0 | EU44: 0 | EV44: 0 | EW44: 0 | EX44: 0 | EY44: 0 | EZ44: 0 | FA44: 0 | FB44: 0 | FC44: 0 | FD44: 0 | FE44: 0 | FF44: 0 | FG44: 0 | FH44: 0 | FI44: 0 | FJ44: 0 | FK44: 0 | FL44: 0 | FM44: 0 | FN44: 0 | FO44: 0 | FP44: 0 | FQ44: 0 | FR44: 0 | FS44: 0 | FT44: 0 | FU44: 0 | FV44: 0 | FW44: 0 | FX44: 0 | FY44: 0 | FZ44: 0 | GA44: 0 | GB44: 0 | GC44: 0 | GD44: 0 | GE44: 0 | GF44: 0 | GG44: 0 | GH44: 0 | GI44: 0 | GJ44: 0 | GK44: 0 | GL44: 0 | GM44: 0 | GN44: 0 | GO44: 0 | GP44: 0 | GQ44: 0 | GR44: 0 | GS44: 0 | GT44: 0 | GU44: 0 | GV44: 0 | GW44: 0 | GX44: 0 | GY44: 0 | GZ44: 0 | HA44: 0 | HB44: 0 | HC44: 0 | HD44: 0 | HE44: 0 | HF44: 0 | HG44: 0 | HH44: 0 | HI44: 0 | HJ44: 0 | HK44: 0 | HL44: 0 | HM44: 0 | HN44: 0 | HO44: 0 | HP44: 0 | HQ44: 0 | HR44: 0 | HS44: 0 | HT44: 0 | HU44: 0
A45: 35 | B45: Воскресенский ГО | C45: Сквер г. Воскресенск, ул. Маркина (за ДК "Юбилейный") "Сквер Юбилейный" | D45: 1389512176 | E45: Сквер | F45: На балансе муниципального учреждения | G45: 0 | H45: 9052 | I45: 9052 | R45: 0 | AA45: 0 | AD45: 0 | AJ45: 0 | AL45: 0 | AM45: 0 | AO45: 0 | AR45: 0 | AS45: 0 | AT45: 432 | AU45: 0 | AW45: 0 | AY45: 0 | AZ45: 0 | BA45: 0 | BH45: 0 | BI45: 0 | BJ45: 0 | BK45: 8620 | BL45: 0 | BN45: 18 | BO45: 0 | BP45: 0 | BQ45: 0 | BR45: 0 | BS45: 18 | BT45: 0 | BU45: 0 | BV45: 0 | BW45: 0 | BX45: 0 | BY45: 0 | BZ45: 0 | CA45: 0 | CB45: 0 | CC45: 0 | CD45: 0 | CH45: 0 | CI45: 0 | CJ45: 0 | CK45: 0 | CL45: 0 | CM45: 0 | CN45: 0 | CO45: 0 | CP45: 0 | CQ45: 0 | CR45: 0 | CS45: 0 | CT45: 0 | CU45: 0 | CV45: 0 | CW45: 0 | CX45: 0 | CY45: 0 | CZ45: 0 | DA45: 0 | DB45: 0 | DC45: 0 | DD45: 0 | DE45: 0 | DF45: 0 | DG45: 0 | DH45: 0 | DI45: 0 | DJ45: 0 | DK45: 0 | DL45: 0 | DM45: 0 | DN45: 0 | DO45: 0 | DP45: 0 | DQ45: 0 | DR45: 0 | DS45: 0 | DT45: 0 | DU45: 0 | DV45: 0 | DW45: 0 | DX45: 0 | DY45: 0 | DZ45: 0 | EA45: 0 | EB45: 0 | EC45: 0 | ED45: 0 | EE45: 0 | EF45: 0 | EG45: 0 | EH45: 0 | EI45: 0 | EJ45: 0 | EK45: 0 | EL45: 0 | EM45: 0 | EN45: 0 | EO45: 0 | EP45: 0 | EQ45: 0 | ER45: 0 | ES45: 0 | ET45: 0 | EU45: 0 | EV45: 0 | EW45: 0 | EX45: 0 | EY45: 0 | EZ45: 0 | FA45: 0 | FB45: 0 | FC45: 0 | FD45: 0 | FE45: 0 | FF45: 0 | FG45: 0 | FH45: 0 | FI45: 0 | FJ45: 0 | FK45: 0 | FL45: 0 | FM45: 0 | FN45: 0 | FO45: 0 | FP45: 0 | FQ45: 0 | FR45: 0 | FS45: 0 | FT45: 0 | FU45: 0 | FV45: 0 | FW45: 0 | FX45: 0 | FY45: 0 | FZ45: 0 | GA45: 0 | GB45: 0 | GC45: 0 | GD45: 0 | GE45: 0 | GF45: 0 | GG45: 0 | GH45: 0 | GI45: 0 | GJ45: 0 | GK45: 0 | GL45: 0 | GM45: 0 | GN45: 0 | GO45: 0 | GP45: 0 | GQ45: 0 | GR45: 0 | GS45: 0 | GT45: 0 | GU45: 0 | GV45: 0 | GW45: 0 | GX45: 0 | GY45: 0 | GZ45: 0 | HA45: 0 | HB45: 0 | HC45: 0 | HD45: 0 | HE45: 0 | HF45: 0 | HG45: 0 | HH45: 0 | HI45: 0 | HJ45: 0 | HK45: 0 | HL45: 0 | HM45: 0 | HN45: 0 | HO45: 0 | HP45: 0 | HQ45: 0 | HR45: 0 | HS45: 0 | HT45: 0 | HU45: 0
A46: 36 | B46: Воскресенский ГО | C46: Сквер г. Воскресенск, ул. Кагана (Березовая роща) | D46: 1389512180 | E46: Сквер | F46: Муниципальный заказ | G46: 2292 | H46: 7352 | I46: 9644 | R46: 0 | AA46: 0 | AD46: 0 | AJ46: 0 | AL46: 0 | AM46: 0 | AN46: 1921 | AR46: 0 | AS46: 0 | AT46: 0 | AU46: 0 | AW46: 0 | AY46: 0.546 | AZ46: 2 | BA46: 221 | BH46: 0 | BI46: 60 | BJ46: 3 | BK46: 7352 | BL46: 0 | BN46: 274 | BO46: 0 | BP46: 0 | BQ46: 0 | BR46: 0 | BS46: 48 | BT46: 0 | BU46: 0 | BV46: 0 | BW46: 0 | BX46: 0 | BY46: 0 | BZ46: 0 | CA46: 0 | CB46: 0 | CC46: 0 | CD46: 742 | CH46: 0 | CI46: 0 | CJ46: 0 | CK46: 0 | CL46: 0 | CM46: 0 | CN46: 0 | CO46: 0 | CP46: 0 | CQ46: 0 | CR46: 0 | CS46: 0 | CT46: 0 | CU46: 0 | CV46: 0 | CW46: 0 | CX46: 0 | CY46: 0 | CZ46: 0 | DA46: 0 | DB46: 0 | DC46: 0 | DD46: 0 | DE46: 0 | DF46: 0 | DG46: 0 | DH46: 0 | DI46: 0 | DJ46: 0 | DK46: 0 | DL46: 0 | DM46: 0 | DN46: 0 | DO46: 0 | DP46: 0 | DQ46: 0 | DR46: 0 | DS46: 0 | DT46: 0 | DU46: 0 | DV46: 0 | DW46: 0 | DX46: 0 | DY46: 0 | DZ46: 0 | EA46: 0 | EB46: 0 | EC46: 0 | ED46: 0 | EE46: 0 | EF46: 0 | EG46: 0 | EH46: 0 | EI46: 1 | EJ46: 150 | EK46: 0 | EL46: 0 | EM46: 0 | EN46: 0 | EO46: 0 | EP46: 0 | EQ46: 0 | ER46: 0 | ES46: 0 | ET46: 0 | EU46: 0 | EV46: 0 | EW46: 0 | EX46: 0 | EY46: 0 | EZ46: 0 | FA46: 0 | FB46: 0 | FC46: 0 | FD46: 0 | FE46: 0 | FF46: 0 | FG46: 0 | FH46: 0 | FI46: 0 | FJ46: 0 | FK46: 0 | FL46: 0 | FM46: 0 | FN46: 0 | FO46: 0 | FP46: 0 | FQ46: 0 | FR46: 0 | FS46: 0 | FT46: 0 | FU46: 0 | FV46: 0 | FW46: 0 | FX46: 0 | FY46: 0 | FZ46: 0 | GA46: 0 | GB46: 0 | GC46: 0 | GD46: 0 | GE46: 0 | GF46: 0 | GG46: 0 | GH46: 0 | GI46: 0 | GJ46: 0 | GK46: 0 | GL46: 0 | GM46: 0 | GN46: 0 | GO46: 0 | GP46: 0 | GQ46: 0 | GR46: 0 | GS46: 0 | GT46: 0 | GU46: 0 | GV46: 0 | GW46: 0 | GX46: 0 | GY46: 0 | GZ46: 0 | HA46: 0 | HB46: 0 | HC46: 0 | HD46: 0 | HE46: 0 | HF46: 0 | HG46: 0 | HH46: 0 | HI46: 0 | HJ46: 0 | HK46: 0 | HL46: 0 | HM46: 0 | HN46: 0 | HO46: 0 | HP46: 0 | HQ46: 0 | HR46: 0 | HS46: 0 | HT46: 0 | HU46: 0
A47: 37 | B47: Воскресенский ГО | C47: Сквер г. Воскресенск, Аллея Славы , ул.Центральная | D47: 1389512173 | E47: Сквер | F47: На балансе муниципального учреждения | G47: 2679 | H47: 6603 | I47: 9282 | R47: 0 | AA47: 0 | AD47: 0 | AJ47: 0 | AL47: 0 | AM47: 0 | AN47: 2679 | AR47: 0 | AS47: 0 | AT47: 0 | AU47: 0 | AW47: 0 | AY47: 0.827 | AZ47: 3.5 | BA47: 0 | BH47: 0 | BI47: 0 | BJ47: 0 | BK47: 6603 | BL47: 0 | BN47: 130 | BO47: 6 | BP47: 0 | BQ47: 0 | BR47: 0 | BS47: 9 | BT47: 0 | BU47: 0 | BV47: 0 | BW47: 0 | BX47: 0 | BY47: 0 | BZ47: 0 | CA47: 0 | CB47: 0 | CC47: 0 | CD47: 940 | CF47: 50 | CH47: 8 | CI47: 2 | CJ47: 0 | CK47: 0 | CL47: 6 | CM47: 0 | CN47: 0 | CO47: 0 | CP47: 0 | CQ47: 1 | CR47: 0 | CS47: 0 | CT47: 0 | CU47: 0 | CV47: 0 | CW47: 0 | CX47: 0 | CY47: 0 | CZ47: 0 | DA47: 0 | DB47: 0 | DC47: 0 | DD47: 0 | DE47: 0 | DF47: 0 | DG47: 0 | DH47: 0 | DI47: 0 | DJ47: 0 | DK47: 0 | DL47: 0 | DM47: 0 | DN47: 0 | DO47: 0 | DP47: 0 | DQ47: 0 | DR47: 0 | DS47: 0 | DT47: 0 | DU47: 0 | DV47: 0 | DW47: 0 | DX47: 0 | DY47: 0 | DZ47: 0 | EA47: 0 | EB47: 0 | EC47: 0 | ED47: 0 | EE47: 0 | EF47: 0 | EG47: 0 | EH47: 0 | EI47: 0 | EJ47: 0 | EK47: 0 | EL47: 0 | EM47: 0 | EN47: 0 | EO47: 0 | EP47: 0 | EQ47: 0 | ER47: 0 | ES47: 0 | ET47: 0 | EU47: 0 | EV47: 0 | EW47: 0 | EX47: 0 | EY47: 0 | EZ47: 0 | FA47: 0 | FB47: 0 | FC47: 0 | FD47: 0 | FE47: 0 | FF47: 0 | FG47: 0 | FH47: 0 | FI47: 0 | FJ47: 0 | FK47: 0 | FL47: 0 | FM47: 0 | FN47: 0 | FO47: 0 | FP47: 0 | FQ47: 0 | FR47: 0 | FS47: 0 | FT47: 0 | FU47: 0 | FV47: 0 | FW47: 0 | FX47: 0 | FY47: 0 | FZ47: 0 | GA47: 0 | GB47: 0 | GC47: 0 | GD47: 0 | GE47: 0 | GF47: 0 | GG47: 0 | GH47: 0 | GI47: 0 | GJ47: 0 | GK47: 0 | GL47: 0 | GM47: 0 | GN47: 0 | GO47: 0 | GP47: 0 | GQ47: 0 | GR47: 0 | GS47: 0 | GT47: 0 | GU47: 0 | GV47: 0 | GW47: 0 | GX47: 0 | GY47: 0 | GZ47: 0 | HA47: 0 | HB47: 0 | HC47: 0 | HD47: 0 | HE47: 0 | HF47: 0 | HG47: 0 | HH47: 0 | HI47: 0 | HJ47: 0 | HK47: 0 | HL47: 0 | HM47: 0 | HN47: 0 | HO47: 0 | HP47: 0 | HQ47: 0 | HR47: 0 | HS47: 0 | HT47: 0 | HU47: 0
A48: 38 | B48: Воскресенский ГО | C48: сквер 50 лет Октября | D48: 4777990330 | E48: Сквер | F48: На балансе муниципального учреждения | G48: =J48+L48+N48+O48+P48+T48+U48+V48+AN48+AP48+BA48+BC48+DP48+DR48+EE48+EG48+EJ48+EL48+ES48+EU48+FE48+FG48+FP48+GA48+GC48+HJ48+HL48+CZ48+DB48+FR48+GP48+HE48+BW48 -> 262 | H48: 8979 | I48: 9241 | R48: 878 | AA48: 0 | AD48: 0 | AJ48: 0 | AL48: 0.274 | AM48: 2 | AO48: 0 | AR48: 0 | AS48: 0 | AT48: 0 | AU48: 0 | AW48: 0 | AY48: 0 | AZ48: 0 | BA48: 262 | BH48: 0 | BI48: 60 | BJ48: 3.5 | BK48: 7801 | BL48: 0 | BN48: 55 | BO48: 0 | BP48: 0 | BQ48: 0 | BR48: 0 | BS48: 0 | BT48: 0 | BU48: 0 | BV48: 0 | BW48: 0 | BX48: 0 | BY48: 0 | BZ48: 0 | CA48: 0 | CB48: 0 | CC48: 0 | CD48: 420 | CH48: 0 | CI48: 2 | CJ48: 0 | CK48: 0 | CL48: 0 | CM48: 0 | CN48: 0 | CO48: 0 | CP48: 0 | CQ48: 0 | CR48: 0 | CS48: 0 | CT48: 0 | CU48: 0 | CV48: 0 | CW48: 0 | CX48: 0 | CY48: 1 | CZ48: 0 | DA48: 0 | DB48: 0 | DC48: 0 | DD48: 0 | DE48: 0 | DF48: 0 | DG48: 0 | DH48: 300 | DI48: 0 | DJ48: 0 | DK48: 0 | DL48: 7 | DM48: 0 | DN48: 0 | DO48: 0 | DP48: 0 | DQ48: 0 | DR48: 0 | DS48: 0 | DT48: 0 | DU48: 0 | DV48: 0 | DW48: 0 | DX48: 0 | DY48: 0 | DZ48: 0 | EA48: 0 | EB48: 0 | EC48: 0 | ED48: 0 | EE48: 0 | EF48: 0 | EG48: 0 | EH48: 0 | EI48: 0 | EJ48: 0 | EK48: 0 | EL48: 0 | EM48: 0 | EN48: 0 | EO48: 0 | EP48: 0 | EQ48: 0 | ER48: 0 | ES48: 0 | ET48: 0 | EU48: 0 | EV48: 0 | EW48: 0 | EX48: 0 | EY48: 0 | EZ48: 0 | FA48: 0 | FB48: 0 | FC48: 0 | FD48: 0 | FE48: 0 | FF48: 0 | FG48: 0 | FH48: 0 | FI48: 0 | FJ48: 0 | FK48: 0 | FL48: 0 | FM48: 0 | FN48: 0 | FO48: 0 | FP48: 0 | FQ48: 0 | FR48: 0 | FS48: 0 | FT48: 0 | FU48: 0 | FV48: 0 | FW48: 0 | FX48: 0 | FY48: 0 | FZ48: 0 | GA48: 0 | GB48: 0 | GC48: 0 | GD48: 0 | GE48: 0 | GF48: 0 | GG48: 0 | GH48: 0 | GI48: 0 | GJ48: 0 | GK48: 0 | GL48: 0 | GM48: 0 | GN48: 0 | GO48: 0 | GP48: 0 | GQ48: 0 | GR48: 0 | GS48: 0 | GT48: 0 | GU48: 0 | GV48: 0 | GW48: 0 | GX48: 0 | GY48: 0 | GZ48: 0 | HA48: 0 | HB48: 0 | HC48: 0 | HD48: 0 | HE48: 0 | HF48: 0 | HG48: 0 | HH48: 0 | HI48: 0 | HJ48: 0 | HK48: 0 | HL48: 0 | HM48: 0 | HN48: 0 | HO48: 0 | HP48: 0 | HQ48: 0 | HR48: 0 | HS48: 0 | HT48: 0 | HU48: 0
